Workbook

Sheet Januar 2016
A1: 2016-01-01
A3: Übertrag aus Vormonat | C3: € 151.00
A5: WAS? | B5: Wert | C5: Bemerkung | D5: Fälligkeitszeitraum | E5: Wann ausgeführt | F5: Gebucht | G5: Buchungsdatum | H5: Kontostand
A6: Sven Gehalt | B6: € 3,069.23 | D6: m | E6: 2016-01-14 | F6: x | G6: 2016-01-14 | H6: =302.08+B6 -> € 3,371.31
A7: OBI | B7: -€ 23.98 | E7: 2016-01-13 | F7: x | G7: 2016-01-14 | H7: =H6+B7 -> € 3,347.33
A8: EC-Card | B8: -€ 30.00 | E8: 2016-01-14 | F8: x | G8: 2016-01-15 | H8: =H7+B8 -> € 3,317.33
A9: Shell | B9: -€ 24.98 | E9: 2016-01-14 | F9: x | G9: 2016-01-15 | H9: =H8+B9 -> € 3,292.35
A10: Megazoo | B10: -€ 9.98 | E10: 2016-01-14 | F10: x | G10: 2016-01-15 | H10: =H9+B10 -> € 3,282.37
A11: Autokredit Tilgung | B11: -€ 200.00 | D11: m | F11: x | G11: 2016-01-15 | H11: =H10+B11 -> € 3,082.37
A12: Autokredit Tilgung Corinna | B12: -€ 101.00 | D12: m | F12: x | G12: 2016-01-15 | H12: =H11+B12 -> € 2,981.37
A13: Mediamarkt | B13: -€ 90.98 | E13: 2016-01-14 | F13: x | G13: 2016-01-15 | H13: =H12+B13 -> € 2,890.39
A14: Netto | B14: -€ 9.29 | E14: 2016-01-14 | F14: x | G14: 2016-01-15 | H14: =H13+B14 -> € 2,881.10
A15: Kabel Internet | B15: -€ 39.74 | C15: vom Vormonat | D15: m | F15: x | G15: 2016-01-18 | H15: =H14+B15 -> € 2,841.36
A16: Lidl | B16: -€ 88.57 | E16: 2016-01-15 | F16: x | G16: 2016-01-18 | H16: =H15+B16 -> € 2,752.79
A17: Cinestar | B17: -€ 23.60 | E17: 2016-01-15 | F17: x | G17: 2016-01-18 | H17: =H16+B17 -> € 2,729.19
A18: real | B18: -€ 42.75 | E18: 2016-01-15 | F18: x | G18: 2016-01-18 | H18: =H17+B18 -> € 2,686.44
A19: Paypal | B19: -€ 16.81 | E19: 2016-01-16 | F19: x | G19: 2016-01-19 | H19: =H18+B19 -> € 2,669.63
A20: Fressnapf | B20: -€ 14.16 | E20: 2016-01-18 | F20: x | G20: 2016-01-19 | H20: =H19+B20 -> € 2,655.47
A21: REWE | B21: -€ 64.15 | C21: + 30€ EC | E21: 2016-01-18 | F21: x | G21: 2016-01-19 | H21: =H20+B21 -> € 2,591.32
A22: Getränke Hoffmann | B22: -€ 11.49 | E22: 2016-01-18 | F22: x | G22: 2016-01-19 | H22: =H21+B22 -> € 2,579.83
A23: HEM | B23: -€ 32.66 | E23: 2016-01-19 | F23: x | G23: 2016-01-20 | H23: =H22+B23 -> € 2,547.17
A24: EC-Card | B24: -€ 20.00 | E24: 2016-01-20 | F24: x | G24: 2016-01-20 | H24: =H23+B24 -> € 2,527.17
A25: Vivian | B25: -€ 35.00 | D25: m | F25: x | G25: 2016-01-21 | H25: =H24+B25 -> € 2,492.17
A26: SparCard | B26: -€ 150.00 | C26: =4000.97-50 -> 3950.97 | D26: m | F26: x | G26: 2016-01-21 | H26: =H25+B26 -> € 2,342.17
A27: Amazon | B27: -€ 4.99 | F27: x | G27: 2016-01-21 | H27: =H26+B27 -> € 2,337.18
A28: EMB | B28: -€ 110.00 | D28: m | F28: x | G28: 2016-01-21 | H28: =H27+B28 -> € 2,227.18
A29: Welt digital | B29: -€ 12.99 | D29: m | F29: x | G29: 2016-01-22 | H29: =H28+B29 -> € 2,214.19
A30: Jet | B30: -€ 23.79 | E30: 2016-01-21 | F30: x | G30: 2016-01-22 | H30: =H29+B30 -> € 2,190.40
A31: Vodafone | B31: -€ 29.99 | D31: m | F31: x | G31: 2016-01-25 | H31: =H30+B31 -> € 2,160.41
A32: Corinna Handy | B32: -€ 33.96 | D32: m | F32: x | G32: 2016-01-25 | H32: =H31+B32 -> € 2,126.45
A33: EC-Card | B33: -€ 30.00 | E33: 2016-01-22 | F33: x | G33: 2016-01-25 | H33: =H32+B33 -> € 2,096.45
A34: Mediamarkt | B34: -€ 43.98 | E34: 2016-01-22 | F34: x | G34: 2016-01-25 | H34: =H33+B34 -> € 2,052.47
A35: Lidl | B35: -€ 73.40 | E35: 2016-01-22 | F35: x | G35: 2016-01-25 | H35: =H34+B35 -> € 1,979.07
A36: dm | B36: -€ 30.80 | E36: 2016-01-22 | F36: x | G36: 2016-01-25 | H36: =H35+B36 -> € 1,948.27
A37: Hagebau | B37: -€ 22.25 | E37: 2016-01-22 | F37: x | G37: 2016-01-25 | H37: =H36+B37 -> € 1,926.02
A38: Apotheke | B38: -€ 15.79 | E38: 2016-01-23 | F38: x | G38: 2016-01-26 | H38: =H37+B38 -> € 1,910.23
A39: Total | B39: -€ 24.40 | E39: 2016-01-25 | F39: x | G39: 2016-01-26 | H39: =H38+B39 -> € 1,885.83
A40: REWE | B40: -€ 15.93 | E40: 2016-01-22 | F40: x | G40: 2016-01-26 | H40: =H39+B40 -> € 1,869.90
A41: T-Mobile | B41: =-36.91 -> -€ 36.91 | D41: m | F41: x | G41: 2016-01-27 | H41: =H40+B41 -> € 1,832.99
A42: T-Mobile | B42: =-19.95 -> -€ 19.95 | D42: m | F42: x | G42: 2016-01-27 | H42: =H41+B42 -> € 1,813.04
A43: Corinna Gehalt | B43: € 1,016.07 | D43: m | F43: x | G43: 2016-02-28 | H43: =H42+B43 -> € 2,829.11
A44: VBB | B44: -€ 3.30 | E44: 2016-02-27 | F44: x | G44: 2016-02-28 | H44: =H43+B44 -> € 2,825.81
A45: EC-Card | B45: -€ 100.00 | E45: 2016-02-27 | F45: x | G45: 2016-02-28 | H45: =H44+B45 -> € 2,725.81
A46: EC-Card | B46: -€ 50.00 | E46: 2016-02-01 | F46: x | G46: 2016-01-29 | H46: =H45+B46 -> € 2,675.81
A47: Corinna Bausparer | B47: -€ 20.00 | D47: m | F47: x | G47: 2016-01-29 | H47: =H46+B47 -> € 2,655.81
A48: EWE | B48: -€ 66.00 | D48: m | F48: x | G48: 2016-02-01 | H48: =H47+B48 -> € 2,589.81
A49: Heizungswartung | B49: -€ 101.15 | E49: 2016-02-01 | F49: x | G49: 2016-02-01 | H49: =H48+B49 -> € 2,488.66
A50: ebay | B50: -€ 3.00 | C50: Wanderhefte | E50: 2016-02-01 | F50: x | G50: 2016-02-01 | H50: =H49+B50 -> € 2,485.66
A51: Comfort Card | B51: -€ 88.00 | D51: m | F51: x | G51: 2016-02-01 | H51: =H50+B51 -> € 2,397.66
A52: Autoversicherung Corinna | B52: -€ 20.93 | D52: m | F52: x | G52: 2016-02-01 | H52: =H51+B52 -> € 2,376.73
A53: Autoversicherung Sven | B53: -€ 27.58 | D53: m | F53: x | G53: 2016-02-01 | H53: =H52+B53 -> € 2,349.15
A54: Roland Rechtsschutz | B54: -€ 39.40 | D54: vj | F54: x | G54: 2016-02-01 | H54: =H53+B54 -> € 2,309.75
A55: BVG | B55: -€ 82.17 | D55: m | F55: x | G55: 2016-02-01 | H55: =H54+B55 -> € 2,227.58
A56: Mac 2 | B56: -€ 51.48 | C56: am 01.12.16 51,64€ | D56: m | F56: x | G56: 2016-02-01 | H56: =H55+B56 -> € 2,176.10
A57: Laptop | B57: -€ 51.01 | C57: danach 17 x 51,01 und am 1.8.18 51,08 | D57: m | F57: x | G57: 2016-02-01 | H57: =H56+B57 -> € 2,125.09
A58: HypoVereinsbank | B58: -€ 909.65 | C58: 351.94 | D58: m | F58: x | G58: 2016-02-01 | H58: =H57+B58 -> € 1,215.44
A59: Lidl | B59: -€ 79.81 | E59: 2016-02-01 | F59: x | G59: 2016-02-01 | H59: =H58+B59 -> € 1,135.63
A60: Tee Geschwendner | B60: -€ 21.55 | E60: 2016-01-30 | F60: x | G60: 2016-02-01 | H60: =H59+B60 -> € 1,114.08
A61: real | B61: -€ 46.10 | E61: 2016-02-01 | F61: x | G61: 2016-02-01 | H61: =H60+B61 -> € 1,067.98
A62: Lidl | B62: -€ 17.28 | E62: 2016-01-30 | F62: x | G62: 2016-02-01 | H62: =H61+B62 -> € 1,050.70
A63: Getränke Hoffmann | B63: -€ 12.69 | D63: m | F63: x | G63: 2016-02-01 | H63: =H62+B63 -> € 1,038.01
A64: Pflanzen Kölle | B64: -€ 57.23 | E64: 2016-01-30 | F64: x | G64: 2016-02-01 | H64: =H63+B64 -> € 980.78
A65: Sprint | B65: -€ 25.48 | E65: 2016-02-01 | F65: x | G65: 2016-02-02 | H65: =H64+B65 -> € 955.30
A66: Fressnapf | B66: -€ 19.08 | E66: 2016-02-01 | F66: x | G66: 2016-02-02 | H66: =H65+B66 -> € 936.22
A67: Reisekosten | B67: -€ 75.00 | C67: Airplus | F67: x | G67: 2016-02-03 | H67: =H66+B67 -> € 861.22
A68: EC-Card | B68: -€ 80.00 | E68: 2016-02-03 | F68: x | G68: 2016-02-03 | H68: =H67+B68 -> € 781.22
A69: Bauhaus | B69: -€ 28.68 | E69: 2016-02-02 | F69: x | G69: 2016-02-04 | H69: =H68+B69 -> € 752.54
A70: EC-Card | B70: -€ 10.00 | E70: 2016-02-04 | F70: x | G70: 2016-02-04 | H70: =H69+B70 -> € 742.54
A71: Grundsteuer B | B71: -€ 43.46 | D71: vj | F71: x | G71: 2016-02-08 | H71: =H70+B71 -> € 699.08
A72: Finanzamt Vorauszahlung | B72: -€ 104.00 | C72: Finanzamt Königs Wusterhausen Steuernummer 049/493/01058 DE61100000000016001505 | D72: vj | E72: 2016-02-10 | F72: x | G72: 2016-02-08 | H72: =H71+B72 -> € 595.08
A73: EC-Card | B73: -€ 50.00 | E73: 2016-02-06 | F73: x | G73: 2016-02-08 | H73: =H72+B73 -> € 545.08
A74: DBV Haftpflicht | B74: -€ 6.54 | D74: m | F74: x | G74: 2016-02-08 | H74: =H73+B74 -> € 538.54
A75: OBI | B75: -€ 16.48 | E75: 2016-02-06 | F75: x | G75: 2016-02-08 | H75: =H74+B75 -> € 522.06
A76: MAG | B76: -€ 10.16 | E76: 2016-02-05 | F76: x | G76: 2016-02-08 | H76: =H75+B76 -> € 511.90
A77: Lidl | B77: -€ 122.38 | E77: 2016-02-05 | F77: x | G77: 2016-02-08 | H77: =H76+B77 -> € 389.52
A78: Tankstelle Rangsdorf | B78: -€ 23.98 | E78: 2016-02-06 | F78: x | G78: 2016-02-08 | H78: =H77+B78 -> € 365.54
A79: EUROCARD | B79: =-34-9.99-4.69-2.99-3.19-0.99-27.44-21.1-5.99-9.99+5 -> -€ 115.37 | D79: m | G79: 2016-02-09 | H79: =H78+B79 -> € 250.17
A80: Sprint | B80: -€ 29.52 | D80: m | E80: 2016-02-08 | F80: x | G80: 2016-02-09 | H80: =H79+B80 -> € 220.65
A81: Kfz-Steuern Matiz | B81: -€ 67.00 | D81: j | F81: x | G81: 2016-02-09 | H81: =H80+B81 -> € 153.65
A82: Dussler | B82: -€ 37.95 | D82: m | E82: 2016-02-08 | F82: x | G82: 2016-02-09 | H82: =H81+B82 -> € 115.70
A83: EC-Card | B83: -€ 30.00 | E83: 2016-02-10 | F83: x | G83: 2016-02-10 | H83: =H82+B83 -> € 85.70
A84: Kindergeld | B84: € 190.00 | D84: m | F84: x | G84: 2016-02-10 | H84: =H83+B84 -> € 275.70
A85: Kabel Internet | B85: -€ 39.54 | D85: m | E85: 2016-02-11 | F85: x | G85: 2016-02-11 | H85: =H84+B85 -> € 236.16
A86: Kabelanschluss | B86: -€ 30.91 | D86: m | E86: 2016-02-11 | F86: x | G86: 2016-02-11 | H86: =H85+B86 -> € 205.25
A87: Bio am Bahnhof | B87: -€ 27.73 | E87: 2016-02-10 | F87: x | G87: 2016-02-11 | H87: =H86+B87 -> € 177.52
A88: real | B88: -€ 13.10 | E88: 2016-02-10 | F88: x | G88: 2016-02-11 | H88: =H87+B88 -> € 164.42
A89: Aral | B89: -€ 20.97 | E89: 2016-02-10 | F89: x | G89: 2016-02-12 | H89: =H88+B89 -> € 143.45
A90: Fressnapf | B90: -€ 17.76 | E90: 2016-02-10 | F90: x | G90: 2016-02-12 | H90: =H89+B90 -> € 125.69
A91: Netto | B91: -€ 9.51 | D91: m | E91: 2016-02-11 | F91: x | G91: 2016-02-15 | H91: =H90+B91 -> € 116.18
D92: m | H92: =H91+B92 -> € 116.18

Sheet Februar 2016
A1: 2016-02-01
A3: Übertrag aus Vormonat | C3: ='Januar 2016'!H91 -> 116.18 €
A5: WAS? | B5: Wert | C5: Bemerkung | D5: Fälligkeitszeitraum | E5: Wann ausgeführt | F5: Gebucht | G5: Buchungsdatum | H5: Kontostand
A6: DNWAB | B6: -78.00 € | D6: 1904-01-01T00:02:00 | F6: x | G6: 2016-02-15 | H6: ='Januar 2016'!H90+B6+'Januar 2016'!B91 -> 38.18 €
A7: Sven Gehalt | B7: 3,051.06 € | D7: m | F7: x | G7: 2016-02-15 | H7: =H6+B7 -> 3,089.24 €
A8: Autokredit Tilgung | B8: -200.00 € | D8: m | F8: x | G8: 2016-02-15 | H8: =H7+B8 -> 2,889.24 €
A9: Autokredit Tilgung Corinna | B9: -101.00 € | D9: m | F9: x | G9: 2016-02-15 | H9: =H8+B9 -> 2,788.24 €
A10: Netto | B10: -80.12 € | E10: 2016-02-12 | F10: x | G10: 2016-02-16 | H10: =H9+B10 -> 2,708.12 €
A11: Sprint | B11: -23.58 € | E11: 2016-02-15 | F11: x | G11: 2016-02-16 | H11: =H10+B11 -> 2,684.54 €
A12: EC-Card | B12: -50.00 € | E12: 2016-02-16 | F12: x | G12: 2016-02-16 | H12: =H11+B12 -> 2,634.54 €
A13: Rollos (Paypal) | B13: -30.58 € | E13: 2016-02-16 | F13: x | G13: 2016-02-17 | H13: =H12+B13 -> 2,603.96 €
A14: GEZ | B14: -52.50 € | D14: vj | E14: 2016-02-18 | F14: x | G14: 2016-02-18 | H14: =H13+B14 -> 2,551.46 €
A15: Kaufland | B15: -43.27 € | E15: 2016-02-16 | F15: x | G15: 2016-02-18 | H15: =H14+B15 -> 2,508.19 €
A16: EC-Card | B16: -30.00 € | D16: m | E16: 2016-02-19 | F16: x | G16: 2016-02-19 | H16: =H15+B16 -> 2,478.19 €
A17: Welt digital | B17: -12.99 € | D17: m | F17: x | G17: 2016-02-19 | H17: =H16+B17 -> 2,465.20 €
A18: Vivian | B18: -35.00 € | D18: m | E18: 2016-02-22 | F18: x | G18: 2016-02-22 | H18: =H17+B18 -> 2,430.20 €
A19: SparCard | B19: -150.00 € | C19: ='Januar 2016'!C26-B19 -> 4100.97 | D19: m | E19: 2016-02-22 | F19: x | G19: 2016-02-22 | H19: =H18+B19 -> 2,280.20 €
A20: EMB | B20: -110.00 € | D20: m | F20: x | G20: 2016-02-22 | H20: =H19+B20 -> 2,170.20 €
A21: Corinna Handy | B21: -33.96 € | D21: m | F21: x | G21: 2016-02-22 | H21: =H20+B21 -> 2,136.24 €
A22: Lidl | B22: -73.08 € | D22: m | E22: 2016-02-19 | F22: x | G22: 2016-02-22 | H22: =H21+B22 -> 2,063.16 €
A23: real | B23: -33.33 € | D23: m | E23: 2016-02-19 | F23: x | G23: 2016-02-22 | H23: =H22+B23 -> 2,029.83 €
A24: Getränke Hoffmann | B24: -13.14 € | D24: m | E24: 2016-02-19 | F24: x | G24: 2016-02-22 | H24: =H23+B24 -> 2,016.69 €
A25: dm | B25: -17.90 € | D25: m | E25: 2016-02-19 | F25: x | G25: 2016-02-22 | H25: =H24+B25 -> 1,998.79 €
A26: Vodafone | B26: -29.99 € | D26: m | F26: x | G26: 2016-02-23 | H26: =H25+B26 -> 1,968.80 €
A27: Jet | B27: -28.73 € | E27: 2016-02-20 | F27: x | G27: 2016-02-23 | H27: =H26+B27 -> 1,940.07 €
A28: Netto | B28: -8.37 € | E28: 2016-02-20 | F28: x | G28: 2016-02-23 | H28: =H27+B28 -> 1,931.70 €
A29: H&M | B29: -47.96 € | D29: m | E29: 2016-02-19 | F29: x | G29: 2016-02-23 | H29: =H28+B29 -> 1,883.74 €
A30: Paypal | B30: -23.95 € | C30: Lötstation | E30: 2016-02-21 | F30: x | G30: 2016-02-23 | H30: =H29+B30 -> 1,859.79 €
A31: Apotheke | B31: =-24.83-8.95 -> -33.78 € | E31: 2016-02-19 | F31: x | G31: 2016-02-24 | H31: =H30+B31 -> 1,826.01 €
A32: EC-Card | B32: -30.00 € | E32: 2016-02-24 | F32: x | G32: 2016-02-24 | H32: =H31+B32 -> 1,796.01 €
A33: REWE | B33: -12.32 € | E33: 2016-02-23 | F33: x | G33: 2016-02-24 | H33: =H32+B33 -> 1,783.69 €
A34: Corinna Gehalt | B34: 984.49 € | D34: m | F34: x | G34: 2016-02-25 | H34: =H33+B34 -> 2,768.18 €
A35: SBAZV | B35: -31.20 € | D35: hj | E35: 2015-03-02 | F35: x | G35: 2016-02-26 | H35: =H34+B35 -> 2,736.98 €
A36: Megazoo | B36: -24.98 € | E36: 2016-02-24 | F36: x | G36: 2016-02-26 | H36: =H35+B36 -> 2,712.00 €
A37: Jet | B37: -19.36 € | E37: 2016-02-24 | F37: x | G37: 2016-02-26 | H37: =H36+B37 -> 2,692.64 €
A38: Mediamarkt | B38: -89.00 € | C38: Pulsuhr | E38: 2016-02-24 | F38: x | G38: 2016-02-26 | H38: =H37+B38 -> 2,603.64 €
A39: EC-Card | B39: -50.00 € | E39: 2016-02-26 | F39: x | G39: 2016-02-26 | H39: =H38+B39 -> 2,553.64 €
A40: Corinna Bausparer | B40: -20.00 € | D40: m | F40: x | G40: 2016-02-29 | H40: =H39+B40 -> 2,533.64 €
A41: T-Mobile | B41: =-36.68-0.23 -> -36.91 € | D41: m | F41: x | G41: 2016-02-29 | H41: =H40+B41 -> 2,496.73 €
A42: T-Mobile | B42: =-19.95 -> -19.95 € | D42: m | F42: x | G42: 2016-02-29 | H42: =H41+B42 -> 2,476.78 €
A43: Netto | B43: -8.94 € | E43: 2016-02-25 | F43: x | G43: 2016-02-29 | H43: =H42+B43 -> 2,467.84 €
A44: Bio am Bahnhof | B44: -17.64 € | E44: 2016-02-26 | F44: x | G44: 2016-02-29 | H44: =H43+B44 -> 2,450.20 €
A45: real | B45: -16.33 € | E45: 2016-02-26 | F45: x | G45: 2016-02-29 | H45: =H44+B45 -> 2,433.87 €
A46: Lidl | B46: -80.22 € | E46: 2016-02-26 | F46: x | G46: 2016-02-29 | H46: =H45+B46 -> 2,353.65 €
A47: Durchsicht Matiz | B47: -447.09 € | C47: +95 TÜV | D47: j | E47: 2015-02-23 | F47: x | G47: 2016-02-29 | H47: =H46+B47 -> 1,906.56 €
A48: EWE | B48: -66.00 € | D48: m | F48: x | G48: 2016-03-01 | H48: =H47+B48 -> 1,840.56 €
A49: Comfort Card | B49: -88.00 € | D49: m | F49: x | G49: 2016-03-01 | H49: =H48+B49 -> 1,752.56 €
A50: Mac 2 | B50: -51.48 € | C50: am 01.12.16 51,64€ | D50: m | F50: x | G50: 2016-03-01 | H50: =H49+B50 -> 1,701.08 €
A51: Laptop | B51: -51.01 € | C51: danach 17 x 51,01 und am 1.8.18 51,08 | D51: m | F51: x | G51: 2016-03-01 | H51: =H50+B51 -> 1,650.07 €
A52: Autoversicherung Corinna | B52: -20.93 € | C52: -25.31 | D52: m | F52: x | G52: 2016-03-01 | H52: =H51+B52 -> 1,629.14 €
A53: Autoversicherung Sven | B53: -27.58 € | C53: -21.17 | D53: m | F53: x | G53: 2016-03-01 | H53: =H52+B53 -> 1,601.56 €
A54: Paypal | B54: -4.45 € | C54: Kolophonium | E54: 2016-02-26 | F54: x | G54: 2016-03-01 | H54: =H53+B54 -> 1,597.11 €
A55: BVG | B55: -82.17 € | D55: m | F55: x | G55: 2016-03-01 | H55: =H54+B55 -> 1,514.94 €
A56: VBB | B56: -6.60 € | E56: 2016-02-29 | F56: x | G56: 2016-03-01 | H56: =H55+B56 -> 1,508.34 €
A57: Tankstelle Rangsdorf | B57: -17.24 € | E57: 2016-02-29 | F57: x | G57: 2016-03-01 | H57: =H56+B57 -> 1,491.10 €
A58: Apotheke | B58: -11.99 € | E58: 2016-02-29 | F58: x | G58: 2016-03-01 | H58: =H57+B58 -> 1,479.11 €
A59: Apotheke | B59: -39.51 € | D59: vj | E59: 2016-02-26 | F59: x | G59: 2016-03-02 | H59: =H58+B59 -> 1,439.60 €
A60: Roller | B60: -10.65 € | E60: 2016-02-29 | F60: x | G60: 2016-03-02 | H60: =H59+B60 -> 1,428.95 €
A61: Fressnapf | B61: -8.08 € | E61: 2016-02-29 | F61: x | G61: 2016-03-02 | H61: =H60+B61 -> 1,420.87 €
A62: EC-Card | B62: -30.00 € | E62: 2016-03-01 | F62: x | G62: 2016-03-02 | H62: =H61+B62 -> 1,390.87 €
A63: ebay | B63: -53.20 € | E63: 2016-03-04 | F63: x | G63: 2016-03-04 | H63: =H62+B63 -> 1,337.67 €
A64: EC-Card | B64: -40.00 € | E64: 2016-03-04 | F64: x | G64: 2016-03-04 | H64: =H63+B64 -> 1,297.67 €
A65: Lidl | B65: -86.91 € | E65: 2016-03-04 | F65: x | G65: 2016-03-07 | H65: =H64+B65 -> 1,210.76 €
A66: DBV Haftpflicht | B66: -6.54 € | D66: m | F66: x | G66: 2016-03-08 | H66: =H65+B66 -> 1,204.22 €
A67: Jet | B67: -19.89 € | E67: 2016-03-07 | F67: x | G67: 2016-03-08 | H67: =H66+B67 -> 1,184.33 €
A68: EC-Card | B68: -40.00 € | E68: 2016-03-08 | F68: x | G68: 2016-03-08 | H68: =H67+B68 -> 1,144.33 €
A69: EUROCARD | B69: =-34-39.96-39.85-15.98-1.99-1.99 -> -133.77 € | C69: Eventim 39,85, De Agostini 34, Messerschmidt 39,96 | D69: m | F69: x | G69: 2016-03-09 | H69: =H68+B69 -> 1,010.56 €
A70: Jolly Fin | B70: -10.00 € | E70: 2016-03-08 | F70: x | G70: 2016-03-09 | H70: =H69+B70 -> 1,000.56 €
A71: REWE | B71: -16.92 € | E71: 2016-03-08 | F71: x | G71: 2016-03-09 | H71: =H70+B71 -> 983.64 €
A72: Kindergeld | B72: 190.00 € | D72: m | F72: x | G72: 2016-03-10 | H72: =H71+B72 -> 1,173.64 €
A73: vom Sparbuch | B73: 180.00 € | F73: x | G73: 2016-03-09 | H73: =H72+B73 -> 1,353.64 €
A74: zum Sparbuch | B74: -199.03 € | F74: x | G74: 2016-03-10 | H74: =H73+B74 -> 1,154.61 €
A75: HypoVereinsbank | B75: -909.65 € | C75: 335.38 | D75: m | F75: x | G75: 2016-03-11 | H75: =H74+B75 -> 244.96 €
A76: Kabel Internet | B76: -39.54 € | D76: m | F76: x | H76: =H75+B76 -> 205.42 €
A77: Kabelanschluss | B77: -30.91 € | D77: m | F77: x | H77: =H76+B77 -> 174.51 €
A78: Edeka | B78: -13.25 € | E78: 2016-03-10 | F78: x | G78: 2016-03-11 | H78: =H77+B78 -> 161.26 €
A79: Fressnapf | B79: -20.92 € | F79: x | G79: 2016-03-11 | H79: =H78+B79 -> 140.34 €
A80: Lidl | B80: -70.46 € | E80: 2016-03-11 | F80: x | G80: 2016-03-14 | H80: =H79+B80 -> 69.88 €
A81: Jet | B81: -16.89 € | E81: 2016-03-10 | F81: x | G81: 2016-03-14 | H81: =H80+B81 -> 52.99 €
A82: Star Tankstelle | B82: -12.11 € | E82: 2016-03-12 | F82: x | G82: 2016-03-14 | H82: =H81+B82 -> 40.88 €
D83: m | H83: =H82+B83 -> 40.88 €
D84: m | H84: =H83+B84 -> 40.88 €
D85: m | H85: =H84+B85 -> 40.88 €

Sheet März 2016
A1: 2016-03-01
A3: Übertrag aus Vormonat | C3: ='Februar 2016'!H85 -> 40.88 €
A5: WAS? | B5: Wert | C5: Bemerkung | D5: Fälligkeitszeitraum | E5: Wann ausgeführt | F5: Gebucht | G5: Buchungsdatum | H5: Kontostand
A6: Sven Gehalt | B6: 3,060.13 € | D6: m | F6: x | G6: 2016-03-15 | H6: =C3+B6 -> 3,101.01 €
A7: Autokredit Tilgung | B7: -200.00 € | D7: m | F7: x | G7: 2016-03-15 | H7: =H6+B7 -> 2,901.01 €
A8: Autokredit Tilgung Corinna | B8: -101.00 € | D8: m | F8: x | G8: 2016-03-15 | H8: =H7+B8 -> 2,800.01 €
A9: PayPal | B9: -100.55 € | D9: m | F9: x | G9: 2016-03-15 | H9: =H8+B9 -> 2,699.46 €
A10: Edeka | B10: -11.83 € | E10: 2016-03-14 | F10: x | G10: 2016-03-15 | H10: =H9+B10 -> 2,687.63 €
A11: Training Corinna | B11: -60.00 € | E11: 2016-03-16 | F11: x | G11: 2016-03-16 | H11: =H10+B11 -> 2,627.63 €
A12: EC-Card | B12: -20.00 € | D12: m | F12: x | G12: 2016-03-16 | H12: =H11+B12 -> 2,607.63 €
A13: HU Bibliothek | B13: -2.00 € | E13: 2016-03-14 | F13: x | G13: 2016-03-16 | H13: =H12+B13 -> 2,605.63 €
A14: Sun Tankstelle | B14: -15.01 € | E14: 2016-03-14 | F14: x | G14: 2016-03-16 | H14: =H13+B14 -> 2,590.62 €
A15: IKEA | B15: -62.40 € | E15: 2016-03-15 | F15: x | G15: 2016-03-17 | H15: =H14+B15 -> 2,528.22 €
A16: Netto | B16: -8.60 € | E16: 2016-03-15 | F16: x | G16: 2016-03-17 | H16: =H15+B16 -> 2,519.62 €
A17: Fressnapf | B17: -19.35 € | E17: 2016-03-16 | F17: x | G17: 2016-03-18 | H17: =H16+B17 -> 2,500.27 €
A18: Sprint | B18: -21.66 € | E18: 2016-03-17 | F18: x | G18: 2016-03-18 | H18: =H17+B18 -> 2,478.61 €
A19: Welt digital | B19: -12.99 € | D19: m | F19: x | G19: 2016-03-18 | H19: =H18+B19 -> 2,465.62 €
A20: EC-Card | B20: -50.00 € | E20: 2016-03-18 | F20: x | G20: 2016-03-18 | H20: =H19+B20 -> 2,415.62 €
A21: SparCard | B21: -150.00 € | C21: =3750-B21-150 -> 3750 | D21: m | F21: x | G21: 2016-03-21 | H21: =H20+B21 -> 2,265.62 €
A22: EMB | B22: -110.00 € | D22: m | F22: x | G22: 2016-03-21 | H22: =H21+B22 -> 2,155.62 €
A23: Vivian | B23: -35.00 € | D23: m | F23: x | G23: 2016-03-21 | H23: =H22+B23 -> 2,120.62 €
A24: Corinna Handy | B24: -33.96 € | D24: m | F24: x | G24: 2016-03-21 | H24: =H23+B24 -> 2,086.66 €
A25: Real | B25: -30.39 € | E25: 2016-03-18 | F25: x | G25: 2016-03-21 | H25: =H24+B25 -> 2,056.27 €
A26: Lidl | B26: -98.45 € | E26: 2016-03-18 | F26: x | G26: 2016-03-21 | H26: =H25+B26 -> 1,957.82 €
A27: Pflanzen Kölle | B27: -35.93 € | E27: 2016-03-19 | F27: x | G27: 2016-03-21 | H27: =H26+B27 -> 1,921.89 €
A28: Paypal | B28: -11.90 € | C28: Rollo GästeWC | E28: 2016-03-20 | F28: x | G28: 2016-03-22 | H28: =H27+B28 -> 1,909.99 €
A29: Jet | B29: -26.48 € | E29: 2016-03-20 | F29: x | G29: 2016-03-22 | H29: =H28+B29 -> 1,883.51 €
A30: PayPal | B30: -24.99 € | C30: Cyberghost | E30: 2016-03-18 | F30: x | G30: 2016-03-22 | H30: =H29+B30 -> 1,858.52 €
A31: Medimax | B31: -56.98 € | E31: 2016-03-18 | F31: x | G31: 2016-03-22 | H31: =H30+B31 -> 1,801.54 €
A32: EC-Card | B32: -40.00 € | E32: 2016-03-22 | F32: x | G32: 2016-03-22 | H32: =H31+B32 -> 1,761.54 €
A33: Netto | B33: -12.98 € | E33: 2016-03-21 | F33: x | G33: 2016-03-23 | H33: =H32+B33 -> 1,748.56 €
A34: OBI | B34: -33.80 € | E34: 2016-03-21 | F34: x | G34: 2016-03-23 | H34: =H33+B34 -> 1,714.76 €
A35: OBI | B35: -20.04 € | E35: 2016-03-22 | F35: x | G35: 2016-03-24 | H35: =H34+B35 -> 1,694.72 €
A36: Vodafone | B36: -31.99 € | D36: m | F36: x | G36: 2016-03-24 | H36: =H35+B36 -> 1,662.73 €
A37: Lidl | B37: -95.14 € | E37: 2016-03-23 | F37: x | G37: 2016-03-24 | H37: =H36+B37 -> 1,567.59 €
A38: Getränke Hoffmann | B38: -10.49 € | E38: 2016-03-23 | F38: x | G38: 2016-03-24 | H38: =H37+B38 -> 1,557.10 €
A39: T-Mobile | B39: =-36.68-0.23 -> -36.91 € | D39: m | F39: x | G39: 2016-03-29 | H39: =H38+B39 -> 1,520.19 €
A40: T-Mobile | B40: =-19.95 -> -19.95 € | D40: m | F40: x | G40: 2016-03-29 | H40: =H39+B40 -> 1,500.24 €
A41: Fressnapf | B41: -17.90 € | E41: 2016-03-23 | F41: x | G41: 2016-03-29 | H41: =H40+B41 -> 1,482.34 €
A42: Jet | B42: -19.66 € | E42: 2016-03-23 | F42: x | G42: 2016-03-29 | H42: =H41+B42 -> 1,462.68 €
A43: VBB | B43: -9.80 € | E43: 2016-03-26 | F43: x | G43: 2016-03-29 | H43: =H42+B43 -> 1,452.88 €
A44: EC-Card | B44: -50.00 € | E44: 2016-03-26 | F44: x | G44: 2016-03-29 | H44: =H43+B44 -> 1,402.88 €
A45: H&M | B45: -9.99 € | E45: 2016-03-26 | F45: x | G45: 2016-03-29 | H45: =H44+B45 -> 1,392.89 €
A46: PfennigPfeiffer | B46: -13.06 € | E46: 2016-03-24 | F46: x | G46: 2016-03-29 | H46: =H45+B46 -> 1,379.83 €
A47: Lush | B47: -11.55 € | E47: 2016-03-26 | F47: x | G47: 2016-03-29 | H47: =H46+B47 -> 1,368.28 €
A48: Corinna Gehalt | B48: 1,006.96 € | D48: m | F48: x | G48: 2016-03-29 | H48: =H47+B48 -> 2,375.24 €
A49: Vans | B49: -35.00 € | E49: 2016-03-26 | F49: x | G49: 2016-03-29 | H49: =H48+B49 -> 2,340.24 €
A50: EC-Card | B50: -20.00 € | F50: x | G50: 2016-03-29 | H50: =H49+B50 -> 2,320.24 €
A51: Dussmann | B51: -32.40 € | E51: 2016-03-26 | F51: x | G51: 2016-03-30 | H51: =H50+B51 -> 2,287.84 €
A52: Jet | B52: -18.00 € | E52: 2016-03-27 | F52: x | G52: 2016-03-30 | H52: =H51+B52 -> 2,269.84 €
A53: Gerling | B53: -85.94 € | D53: vj | F53: x | G53: 2016-03-31 | H53: =H52+B53 -> 2,183.90 €
A54: MegaZoo | B54: -21.34 € | E54: 2016-03-24 | F54: x | G54: 2016-03-31 | H54: =H53+B54 -> 2,162.56 €
A55: HypoVereinsbank | B55: -909.65 € | D55: m | F55: x | G55: 2016-03-31 | H55: =H54+B55 -> 1,252.91 €
A56: Corinna Bausparer | B56: -20.00 € | D56: m | F56: x | G56: 2016-03-31 | H56: =H55+B56 -> 1,232.91 €
A57: Paypal | B57: -39.00 € | C57: Rollos Küche | E57: 2016-03-29 | F57: x | G57: 2016-03-31 | H57: =H56+B57 -> 1,193.91 €
A58: EC-Card | B58: -30.00 € | E58: 2016-03-31 | F58: x | G58: 2016-03-31 | H58: =H57+B58 -> 1,163.91 €
A59: EWE | B59: -66.00 € | D59: m | F59: x | G59: 2016-04-01 | H59: =H58+B59 -> 1,097.91 €
A60: Mac 2 | B60: -51.48 € | C60: am 01.12.16 51,64€ | D60: m | F60: x | G60: 2016-04-01 | H60: =H59+B60 -> 1,046.43 €
A61: Laptop | B61: -51.01 € | C61: danach 17 x 51,01 und am 1.8.18 51,08 | D61: m | F61: x | G61: 2016-04-01 | H61: =H60+B61 -> 995.42 €
A62: Comfort Card | B62: -88.00 € | D62: m | F62: x | G62: 2016-04-01 | H62: =H61+B62 -> 907.42 €
A63: PayPal | B63: -11.00 € | C63: Udemy | E63: 2016-03-29 | F63: x | G63: 2016-04-01 | H63: =H62+B63 -> 896.42 €
A64: BVG | B64: -82.17 € | D64: m | F64: x | G64: 2016-04-01 | H64: =H63+B64 -> 814.25 €
A65: Netto | B65: -11.12 € | E65: 2016-03-29 | F65: x | G65: 2016-04-01 | H65: =H64+B65 -> 803.13 €
A66: Autoversicherung Corinna | B66: -20.93 € | D66: m | F66: x | G66: 2016-04-01 | H66: =H65+B66 -> 782.20 €
A67: Autoversicherung Sven | B67: -27.58 € | D67: m | F67: x | G67: 2016-04-01 | H67: =H66+B67 -> 754.62 €
A68: Real | B68: -54.94 € | E68: 2016-03-31 | F68: x | G68: 2016-04-01 | H68: =H67+B68 -> 699.68 €
A69: Real | B69: -25.71 € | E69: 2016-03-31 | F69: x | G69: 2016-04-01 | H69: =H68+B69 -> 673.97 €
A70: Amazon | B70: -16.98 € | C70: Moonsorrow | F70: x | G70: 2016-04-04 | H70: =H69+B70 -> 656.99 €
A71: OBI | B71: -11.74 € | E71: 2016-03-31 | F71: x | G71: 2016-04-04 | H71: =H70+B71 -> 645.25 €
A72: Lidl | B72: -80.05 € | E72: 2016-04-01 | F72: x | G72: 2016-04-04 | H72: =H71+B72 -> 565.20 €
A73: Bio am Bahnhof | B73: -26.29 € | E73: 2016-04-01 | F73: x | G73: 2016-04-04 | H73: =H72+B73 -> 538.91 €
A74: Getränke Hoffmann | B74: -24.40 € | E74: 2016-04-01 | F74: x | G74: 2016-04-04 | H74: =H73+B74 -> 514.51 €
A75: Pflanzen Kölle | B75: -40.64 € | E75: 2016-04-01 | F75: x | G75: 2016-04-04 | H75: =H74+B75 -> 473.87 €
A76: HEM Teupitz | B76: -26.63 € | E76: 2016-04-02 | F76: x | G76: 2016-04-04 | H76: =H75+B76 -> 447.24 €
A77: EC-Card | B77: -50.00 € | E77: 2016-04-04 | F77: x | G77: 2016-04-04 | H77: =H76+B77 -> 397.24 €
A78: Medimax | B78: -59.99 € | E78: 2016-04-01 | F78: x | G78: 2016-04-05 | H78: =H77+B78 -> 337.25 €
A79: RM Computertechnik | B79: -6.14 € | E79: 2016-04-05 | F79: x | G79: 2016-04-05 | H79: =H78+B79 -> 331.11 €
A80: von Sparcard | B80: 120.00 € | E80: 2016-04-08 | F80: x | G80: 2016-04-07 | H80: =H79+B80 -> 451.11 €
A81: DBV Haftpflicht | B81: -6.54 € | D81: m | F81: x | G81: 2016-04-08 | H81: =H80+B81 -> 444.57 €
A82: Ullrich | B82: -19.30 € | E82: 2016-04-06 | F82: x | G82: 2016-04-08 | H82: =H81+B82 -> 425.27 €
A83: Netto | B83: -8.84 € | E83: 2016-04-06 | F83: x | G83: 2016-04-08 | H83: =H82+B83 -> 416.43 €
A84: Kindergeld | B84: 190.00 € | D84: m | F84: x | G84: 2016-04-11 | H84: =H83+B84 -> 606.43 €
A85: Total | B85: -12.60 € | E85: 2016-04-10 | F85: x | G85: 2016-04-11 | H85: =H84+B85 -> 593.83 €
A86: Lidl | B86: -70.90 € | E86: 2016-04-08 | F86: x | G86: 2016-04-11 | H86: =H85+B86 -> 522.93 €
A87: EC-Card | B87: -40.00 € | E87: 2016-04-10 | F87: x | G87: 2016-04-11 | H87: =H86+B87 -> 482.93 €
A88: Pflanzen Kölle | B88: -27.95 € | E88: 2016-04-08 | F88: x | G88: 2016-04-11 | H88: =H87+B88 -> 454.98 €
A89: Sprint | B89: -21.64 € | E89: 2016-04-08 | F89: x | G89: 2016-04-11 | H89: =H88+B89 -> 433.34 €
A90: EUROCARD | B90: =-34-39.96-3.88-81-0.99-0.99-10.48-50.7-0.19 -> -222.19 € | D90: m | F90: x | G90: 2016-04-12 | H90: =H89+B90 -> 211.15 €
A91: Kabel Internet | B91: -39.54 € | D91: m | F91: x | G91: 2016-04-12 | H91: =H90+B91 -> 171.61 €
A92: Kabelanschluss | B92: -30.91 € | D92: m | F92: x | G92: 2016-04-12 | H92: =H91+B92 -> 140.70 €
A93: Fressnapf | B93: -11.67 € | E93: 2016-04-08 | F93: x | G93: 2016-04-12 | H93: =H92+B93 -> 129.03 €
A94: Amazon | B94: -9.99 € | F94: x | G94: 2016-04-12 | H94: =H93+B94 -> 119.04 €
A95: EC-Card | B95: -20.00 € | E95: 2016-04-13 | F95: x | G95: 2016-04-13 | H95: =H94+B95 -> 99.04 €

Sheet April 2016
A1: 2016-04-01
A3: Übertrag aus Vormonat | C3: ='März 2016'!H95 -> 99.04 €
A5: WAS? | B5: Wert | C5: Bemerkung | D5: Fälligkeitszeitraum | E5: Wann ausgeführt | F5: Gebucht | G5: Buchungsdatum | H5: Kontostand
A6: Sven Gehalt | B6: 3,060.13 € | D6: m | F6: x | G6: 2016-04-14 | H6: =C3+B6 -> 3,159.17 €
A7: DNWAB | B7: -78.00 € | D7: 1904-01-01T00:02:00 | F7: x | G7: 2016-04-15 | H7: =H6+B7 -> 3,081.17 €
A8: SparCard | B8: -50.00 € | C8: ='März 2016'!C21-B8 -> 3800 | E8: 2016-04-15 | F8: x | G8: 2016-04-15 | H8: =H7+B8 -> 3,031.17 €
A9: EC-Card | B9: -30.00 € | E9: 2016-04-14 | F9: x | G9: 2016-04-15 | H9: =H8+B9 -> 3,001.17 €
A10: Netto | B10: -15.81 € | F10: x | G10: 2016-04-15 | H10: =H9+B10 -> 2,985.36 €
A11: Autokredit Tilgung | B11: -200.00 € | D11: m | F11: x | G11: 2016-04-15 | H11: =H10+B11 -> 2,785.36 €
A12: Autokredit Tilgung Corinna | B12: -101.00 € | D12: m | F12: x | G12: 2016-04-15 | H12: =H11+B12 -> 2,684.36 €
A13: Einzahlung | B13: 100.00 € | E13: 2016-04-16 | F13: x | G13: 2016-04-18 | H13: =H12+B13 -> 2,784.36 €
A14: EC-Card | B14: -30.00 € | E14: 2016-04-16 | F14: x | G14: 2016-04-18 | H14: =H13+B14 -> 2,754.36 €
A15: Lidl | B15: -95.52 € | E15: 2016-04-15 | F15: x | G15: 2016-04-18 | H15: =H14+B15 -> 2,658.84 €
A16: Shell | B16: -20.00 € | E16: 2016-04-14 | F16: x | G16: 2016-04-18 | H16: =H15+B16 -> 2,638.84 €
A17: Karstadt Sport | B17: -24.95 € | E17: 2016-04-16 | F17: x | G17: 2016-04-18 | H17: =H16+B17 -> 2,613.89 €
A18: Optiker Krüger | B18: -138.00 € | F18: x | G18: 2016-04-18 | H18: =H17+B18 -> 2,475.89 €
A19: Tee Geschwendner | B19: -11.05 € | E19: 2016-04-16 | F19: x | G19: 2016-04-18 | H19: =H18+B19 -> 2,464.84 €
A20: Fressnapf | B20: -20.24 € | E20: 2016-04-15 | F20: x | G20: 2016-04-19 | H20: =H19+B20 -> 2,444.60 €
A21: Bauhaus | B21: -15.25 € | E21: 2016-04-15 | F21: x | G21: 2016-04-19 | H21: =H20+B21 -> 2,429.35 €
A22: Rossmann | B22: -10.00 € | E22: 2016-04-16 | F22: x | G22: 2016-04-19 | H22: =H21+B22 -> 2,419.35 €
A23: Netto | B23: -18.40 € | E23: 2016-04-15 | F23: x | G23: 2016-04-19 | H23: =H22+B23 -> 2,400.95 €
A24: EC-Card | B24: -50.00 € | E24: 2016-04-19 | F24: x | G24: 2016-04-19 | H24: =H23+B24 -> 2,350.95 €
A25: Rossmann | B25: -27.60 € | E25: 2016-04-18 | F25: x | G25: 2016-04-20 | H25: =H24+B25 -> 2,323.35 €
A26: Jet | B26: -27.88 € | E26: 2016-04-18 | F26: x | G26: 2016-04-20 | H26: =H25+B26 -> 2,295.47 €
A27: Vivian | B27: -35.00 € | D27: m | E27: 2016-04-21 | F27: x | G27: 2016-04-21 | H27: =H26+B27 -> 2,260.47 €
A28: SparCard | B28: -150.00 € | C28: =C8-B28 -> 3950 | D28: m | E28: 2016-04-21 | F28: x | G28: 2016-04-21 | H28: =H27+B28 -> 2,110.47 €
A29: EMB | B29: -110.00 € | D29: m | F29: x | G29: 2016-04-21 | H29: =H28+B29 -> 2,000.47 €
A30: Sprint | B30: -18.21 € | E30: 2016-04-20 | F30: x | G30: 2016-04-21 | H30: =H29+B30 -> 1,982.26 €
A31: Saturn | B31: -49.99 € | E31: 2016-04-20 | F31: x | G31: 2016-04-21 | H31: =H30+B31 -> 1,932.27 €
A32: Welt digital | B32: -12.99 € | D32: m | F32: x | G32: 2016-04-22 | H32: =H31+B32 -> 1,919.28 €
A33: Netto | B33: -17.43 € | E33: 2016-04-20 | F33: x | G33: 2016-04-22 | H33: =H32+B33 -> 1,901.85 €
A34: Corinna Handy | B34: -33.96 € | D34: m | F34: x | G34: 2016-04-25 | H34: =H33+B34 -> 1,867.89 €
A35: Vodafone | B35: -29.99 € | D35: m | F35: x | G35: 2016-04-25 | H35: =H34+B35 -> 1,837.90 €
A36: Kaufland | B36: -82.30 € | E36: 2016-04-21 | F36: x | G36: 2016-04-25 | H36: =H35+B36 -> 1,755.60 €
A37: Fressnapf | B37: -30.98 € | E37: 2016-04-21 | F37: x | G37: 2016-04-25 | H37: =H36+B37 -> 1,724.62 €
A38: EC-Card | B38: -30.00 € | E38: 2016-04-23 | F38: x | G38: 2016-04-25 | H38: =H37+B38 -> 1,694.62 €
A39: Sprint | B39: -50.01 € | E39: 2016-04-22 | F39: x | G39: 2016-04-25 | H39: =H38+B39 -> 1,644.61 €
A40: Lotto | B40: 0.01 € | C40: zwecks Prüfung | F40: x | G40: 2016-04-25 | H40: =H39+B40 -> 1,644.62 €
A41: Edeka | B41: -14.20 € | E41: 2016-04-23 | F41: x | G41: 2016-04-25 | H41: =H40+B41 -> 1,630.42 €
A42: SBAZV | B42: -59.64 € | D42: j | F42: x | G42: 2016-04-25 | H42: =H41+B42 -> 1,570.78 €
A43: Toom | B43: -13.99 € | E43: 2016-04-23 | F43: x | G43: 2016-04-26 | H43: =H42+B43 -> 1,556.79 €
A44: EC-Card | B44: -20.00 € | E44: 2016-04-26 | F44: x | G44: 2016-04-26 | H44: =H43+B44 -> 1,536.79 €
A45: T-Mobile | B45: =-36.68-0.23 -> -36.91 € | D45: m | F45: x | G45: 2016-04-27 | H45: =H44+B45 -> 1,499.88 €
A46: T-Mobile | B46: =-19.95-0.13 -> -20.08 € | D46: m | F46: x | G46: 2016-04-27 | H46: =H45+B46 -> 1,479.80 €
A47: Corinna Gehalt | B47: 1,087.87 € | D47: m | F47: x | G47: 2016-04-27 | H47: =H46+B47 -> 2,567.67 €
A48: Megazoo | B48: -15.94 € | E48: 2016-04-26 | F48: x | G48: 2016-04-28 | H48: =H47+B48 -> 2,551.73 €
A49: EC-Card | B49: -80.00 € | E49: 2016-04-28 | F49: x | G49: 2016-04-28 | H49: =H48+B49 -> 2,471.73 €
A50: Lidl | B50: -83.07 € | E50: 2016-04-28 | F50: x | G50: 2016-04-29 | H50: =H49+B50 -> 2,388.66 €
A51: Total | B51: -14.90 € | E51: 2016-04-28 | F51: x | G51: 2016-04-29 | H51: =H50+B51 -> 2,373.76 €
A52: Corinna Bausparer | B52: -20.00 € | D52: m | F52: x | G52: 2016-04-29 | H52: =H51+B52 -> 2,353.76 €
A53: EWE | B53: -66.00 € | D53: m | F53: x | G53: 2016-05-02 | H53: =H52+B53 -> 2,287.76 €
A54: Kfz-Steuern | B54: -106.00 € | D54: j | F54: x | G54: 2016-05-02 | H54: =H53+B54 -> 2,181.76 €
A55: BVG | B55: -82.17 € | D55: m | F55: x | G55: 2016-05-02 | H55: =H54+B55 -> 2,099.59 €
A56: Roland Rechtsschutz | B56: -39.40 € | D56: vj | F56: x | G56: 2016-05-02 | H56: =H55+B56 -> 2,060.19 €
A57: HypoVereinsbank | B57: -909.65 € | D57: m | F57: x | G57: 2016-05-02 | H57: =H56+B57 -> 1,150.54 €
A58: Mac 2 | B58: -51.48 € | C58: am 01.12.16 51,64€ | D58: m | F58: x | G58: 2016-05-02 | H58: =H57+B58 -> 1,099.06 €
A59: Laptop | B59: -51.01 € | C59: danach 17 x 51,01 und am 1.8.18 51,08 | D59: m | F59: x | G59: 2016-05-02 | H59: =H58+B59 -> 1,048.05 €
A60: Comfort Card | B60: -88.00 € | D60: m | F60: x | G60: 2016-05-02 | H60: =H59+B60 -> 960.05 €
A61: Autoversicherung Corinna | B61: -20.93 € | C61: -25.31 | D61: m | F61: x | G61: 2016-05-02 | H61: =H60+B61 -> 939.12 €
A62: Autoversicherung Sven | B62: -27.58 € | C62: -21.17 | D62: m | F62: x | G62: 2016-05-02 | H62: =H61+B62 -> 911.54 €
A63: S-Bahn | B63: -3.30 € | E63: 2016-04-29 | F63: x | G63: 2016-05-02 | H63: =H62+B63 -> 908.24 €
A64: Rossmann | B64: -13.02 € | E64: 2016-04-30 | F64: x | G64: 2016-05-03 | H64: =H63+B64 -> 895.22 €
A65: Udemy | B65: -16.00 € | E65: 2016-05-01 | F65: x | G65: 2016-05-03 | H65: =H64+B65 -> 879.22 €
A66: Jet | B66: -40.48 € | E66: 2016-04-30 | F66: x | G66: 2016-05-03 | H66: =H65+B66 -> 838.74 €
A67: Aral | B67: -26.60 € | E67: 2016-04-29 | F67: x | G67: 2016-05-03 | H67: =H66+B67 -> 812.14 €
A68: Lidl | B68: -13.95 € | E68: 2016-05-02 | F68: x | G68: 2016-05-03 | H68: =H67+B68 -> 798.19 €
A69: Total | B69: -13.69 € | E69: 2016-05-02 | F69: x | G69: 2016-05-03 | H69: =H68+B69 -> 784.50 €
A70: EC-Card | B70: -40.00 € | E70: 2016-05-04 | F70: x | G70: 2016-05-04 | H70: =H69+B70 -> 744.50 €
A71: Aral | B71: -11.11 € | E71: 2016-05-02 | F71: x | G71: 2016-05-04 | H71: =H70+B71 -> 733.39 €
A72: Lidl | B72: -63.28 € | E72: 2016-05-04 | F72: x | G72: 2016-05-06 | H72: =H71+B72 -> 670.11 €
A73: Finanzamt Vorauszahlung | B73: -104.00 € | C73: Finanzamt Königs Wusterhausen Steuernummer 049/493/01058 DE61100000000016001505 | D73: vj | F73: x | G73: 2016-05-09 | H73: =H72+B73 -> 566.11 €
A74: DBV Haftpflicht | B74: -6.54 € | D74: m | F74: x | G74: 2016-05-09 | H74: =H73+B74 -> 559.57 €
A75: C&A | B75: -59.20 € | E75: 2016-05-06 | F75: x | G75: 2016-05-09 | H75: =H74+B75 -> 500.37 €
A76: Pflanzen Kölle | B76: -39.96 € | E76: 2016-05-06 | F76: x | G76: 2016-05-09 | H76: =H75+B76 -> 460.41 €
A77: Total | B77: -10.00 € | E77: 2016-05-06 | F77: x | G77: 2016-05-09 | H77: =H76+B77 -> 450.41 €
A78: EUROCARD | B78: =-75.55-10-129-30.25 -> -244.80 € | C78: + Amazon Prime | F78: x | G78: 2016-05-10 | H78: =H77+B78 -> 205.61 €
A79: Fressnapf | B79: -20.52 € | E79: 2016-05-06 | F79: x | G79: 2016-05-10 | H79: =H78+B79 -> 185.09 €
A80: Parkkarte für xletics | B80: -5.00 € | F80: x | G80: 2016-05-10 | H80: =H79+B80 -> 180.09 €
A81: Netto | B81: -12.71 € | E81: 2016-05-06 | F81: x | G81: 2016-05-10 | H81: =H80+B81 -> 167.38 €
A82: Ihr Platz | B82: -25.95 € | E82: 2016-05-10 | F82: x | G82: 2016-05-11 | H82: =H81+B82 -> 141.43 €
A83: Kindergeld | B83: 190.00 € | D83: m | F83: x | G83: 2016-05-11 | H83: =H82+B83 -> 331.43 €
A84: Kabel Internet | B84: -39.54 € | D84: m | F84: x | G84: 2016-05-12 | H84: =H83+B84 -> 291.89 €
A85: Kabelanschluss | B85: -30.91 € | D85: m | F85: x | G85: 2016-05-12 | H85: =H84+B85 -> 260.98 €
A86: HTM Peenemünde | B86: -29.99 € | F86: x | G86: 2016-05-12 | H86: =H85+B86 -> 230.99 €

Sheet Mai 2016
A1: 2016-05-01
A3: Übertrag aus Vormonat | C3: ='April 2016'!H86 -> 230.99 €
A5: WAS? | B5: Wert | C5: Bemerkung | D5: Fälligkeitszeitraum | E5: Wann ausgeführt | F5: Gebucht | G5: Buchungsdatum | H5: Kontostand
A6: Sven Gehalt | B6: 5,040.79 € | D6: m | F6: x | G6: 2016-05-12 | H6: =C3+B6 -> 5,271.78 €
A7: SparCard | B7: -850.00 € | C7: =3450-B7 -> 4300 | D7: m | F7: x | G7: 2016-05-12 | H7: =H6+B7 -> 4,421.78 €
A8: Hotel Garni Zur Zwiebel | B8: -247.00 € | E8: 2016-05-12 | F8: x | G8: 2016-05-13 | H8: =H7+B8 -> 4,174.78 €
A9: SparCard | B9: -50.00 € | C9: =C7-B9 -> 4350 | E9: 2016-05-13 | F9: x | G9: 2016-05-13 | H9: =H8+B9 -> 4,124.78 €
A10: Expert | B10: -27.99 € | E10: 2016-05-12 | F10: x | G10: 2016-05-13 | H10: =H9+B10 -> 4,096.79 €
A11: Grundsteuer B | B11: -43.46 € | D11: vj | E11: 2016-05-17 | F11: x | G11: 2016-05-17 | H11: =H10+B11 -> 4,053.33 €
A12: Dänisches Bettenlager | B12: -26.08 € | E12: 2016-05-14 | F12: x | G12: 2016-05-17 | H12: =H11+B12 -> 4,027.25 €
A13: Tierarzt | B13: -44.66 € | C13: Maja - Erstimpfung | E13: 2016-05-13 | F13: x | G13: 2016-05-17 | H13: =H12+B13 -> 3,982.59 €
A14: Amazon | B14: -7.30 € | C14: 5th Mine | F14: x | G14: 2016-05-17 | H14: =H13+B14 -> 3,975.29 €
A15: Autokredit Tilgung | B15: -200.00 € | D15: m | F15: x | G15: 2016-05-17 | H15: =H14+B15 -> 3,775.29 €
A16: Autokredit Tilgung Corinna | B16: -101.00 € | D16: m | F16: x | G16: 2016-05-17 | H16: =H15+B16 -> 3,674.29 €
A17: DM | B17: -21.50 € | E17: 2016-05-14 | F17: x | G17: 2016-05-17 | H17: =H16+B17 -> 3,652.79 €
A18: Tankstelle Niederlehme | B18: -37.15 € | E18: 2016-05-16 | F18: x | G18: 2016-05-17 | H18: =H17+B18 -> 3,615.64 €
A19: Mediamarkt | B19: -16.99 € | C19: Akkublock | E19: 2016-05-13 | F19: x | G19: 2016-05-17 | H19: =H18+B19 -> 3,598.65 €
A20: Kaufland | B20: -121.44 € | E20: 2016-05-12 | F20: x | G20: 2016-05-17 | H20: =H19+B20 -> 3,477.21 €
A21: Sprint | B21: -45.96 € | E21: 2016-05-15 | F21: x | G21: 2016-05-17 | H21: =H20+B21 -> 3,431.25 €
A22: Sun Tankstelle | B22: -32.74 € | E22: 2016-05-13 | F22: x | G22: 2016-05-17 | H22: =H21+B22 -> 3,398.51 €
A23: Bauhaus | B23: -27.35 € | E23: 2016-05-14 | F23: x | G23: 2016-05-17 | H23: =H22+B23 -> 3,371.16 €
A24: Amazon | B24: -16.95 € | C24: Mosaik | E24: 2016-05-14 | F24: x | G24: 2016-05-17 | H24: =H23+B24 -> 3,354.21 €
A25: Medimax | B25: -19.99 € | E25: 2016-05-14 | F25: x | G25: 2016-05-17 | H25: =H24+B25 -> 3,334.22 €
A26: GEZ | B26: -52.50 € | D26: vj | E26: 2016-05-18 | F26: x | G26: 2016-05-18 | H26: =H25+B26 -> 3,281.72 €
A27: Bio am Bahnhof | B27: -22.72 € | E27: 2016-05-13 | F27: x | G27: 2016-05-18 | H27: =H26+B27 -> 3,259.00 €
A28: EC-Card | B28: -50.00 € | E28: 2016-05-18 | F28: x | G28: 2016-05-18 | H28: =H27+B28 -> 3,209.00 €
A29: Paypal | B29: -19.95 € | C29: Pearson MyMathlab | E29: 2016-05-13 | F29: x | G29: 2016-05-18 | H29: =H28+B29 -> 3,189.05 €
A30: Paypal | B30: -25.00 € | C30: Rollo | E30: 2016-05-13 | F30: x | G30: 2016-05-18 | H30: =H29+B30 -> 3,164.05 €
A31: Paypal | B31: -18.95 € | C31: Lackschutzfolie | E31: 2016-05-15 | F31: x | G31: 2016-05-18 | H31: =H30+B31 -> 3,145.10 €
A32: Apotheke | B32: -11.04 € | E32: 2016-05-14 | F32: x | G32: 2016-05-18 | H32: =H31+B32 -> 3,134.06 €
A33: Mediamarkt | B33: -14.99 € | E33: 2016-05-19 | F33: x | G33: 2016-05-19 | H33: =H32+B33 -> 3,119.07 €
A34: EC-Card | B34: -30.00 € | E34: 2016-05-19 | F34: x | G34: 2016-05-19 | H34: =H33+B34 -> 3,089.07 €
A35: Vivian | B35: -35.00 € | D35: m | F35: x | G35: 2016-05-20 | H35: =H34+B35 -> 3,054.07 €
A36: Welt digital | B36: -12.99 € | D36: m | F36: x | G36: 2016-05-20 | H36: =H35+B36 -> 3,041.08 €
A37: IKEA | B37: -27.96 € | E37: 2016-05-18 | F37: x | G37: 2016-05-20 | H37: =H36+B37 -> 3,013.12 €
A38: New Yorker | B38: -47.75 € | E38: 2016-05-19 | F38: x | G38: 2016-05-20 | H38: =H37+B38 -> 2,965.37 €
A39: SparCard | B39: -150.00 € | C39: =C9-B39 -> 4500 | D39: m | F39: x | G39: 2016-05-23 | H39: =H38+B39 -> 2,815.37 €
A40: EMB | B40: -110.00 € | D40: m | F40: x | G40: 2016-05-23 | H40: =H39+B40 -> 2,705.37 €
A41: ebay | B41: -2.85 € | F41: x | G41: 2016-05-23 | H41: =H40+B41 -> 2,702.52 €
A42: De Agostini | B42: -34.00 € | C42: Spitfire 15 | E42: 2016-05-23 | F42: x | G42: 2016-05-23 | H42: =H41+B42 -> 2,668.52 €
A43: Lidl | B43: -87.38 € | E43: 2016-05-20 | F43: x | G43: 2016-05-23 | H43: =H42+B43 -> 2,581.14 €
A44: Corinna Handy | B44: -33.96 € | D44: m | F44: x | G44: 2016-05-23 | H44: =H43+B44 -> 2,547.18 €
A45: Vodafone | B45: -29.99 € | D45: m | F45: x | G45: 2016-08-24 | H45: =H44+B45 -> 2,517.19 €
A46: Lidl | B46: -12.04 € | E46: 2016-05-23 | F46: x | G46: 2016-08-24 | H46: =H45+B46 -> 2,505.15 €
A47: real | B47: -34.38 € | E47: 2016-05-24 | F47: x | G47: 2016-05-25 | H47: =H46+B47 -> 2,470.77 €
A48: Medimax | B48: -39.99 € | E48: 2016-05-24 | F48: x | G48: 2016-05-25 | H48: =H47+B48 -> 2,430.78 €
A49: Mediamarkt | B49: -99.00 € | C49: Pencil | E49: 2016-05-23 | F49: x | G49: 2016-05-25 | H49: =H48+B49 -> 2,331.78 €
A50: Amazon | B50: -49.99 € | C50: Office 365 | E50: 2016-05-23 | F50: x | G50: 2016-05-25 | H50: =H49+B50 -> 2,281.79 €
A51: Frisör | B51: -66.00 € | E51: 2016-05-25 | F51: x | G51: 2016-05-26 | H51: =H50+B51 -> 2,215.79 €
A52: Durchsicht | B52: -721.76 € | C52: + Bremsen 500 | E52: 2016-05-25 | F52: x | G52: 2016-05-26 | H52: =H51+B52 -> 1,494.03 €
A53: Jet | B53: -17.97 € | E53: 2016-05-23 | F53: x | G53: 2016-05-26 | H53: =H52+B53 -> 1,476.06 €
A54: EC-Card | B54: -50.00 € | E54: 2016-05-25 | F54: x | G54: 2016-05-27 | H54: =H53+B54 -> 1,426.06 €
A55: MegaZoo | B55: -21.88 € | E55: 2016-05-24 | F55: x | G55: 2016-05-27 | H55: =H54+B55 -> 1,404.18 €
A56: Corinna Gehalt | B56: 1,053.75 € | D56: m | F56: x | G56: 2016-05-27 | H56: =H55+B56 -> 2,457.93 €
A57: EC-Card | B57: -30.00 € | E57: 2016-05-27 | F57: x | G57: 2016-05-27 | H57: =H56+B57 -> 2,427.93 €
A58: T-Mobile | B58: =-C58-0.74 -> -37.65 € | C58: =36.91 -> 36.91 | D58: m | F58: x | G58: 2016-05-30 | H58: =H57+B58 -> 2,390.28 €
A59: T-Mobile | B59: =-19.95 -> -19.95 € | D59: m | F59: x | G59: 2016-05-30 | H59: =H58+B59 -> 2,370.33 €
A60: ipad | B60: -356.90 € | F60: x | G60: 2016-05-30 | H60: =H59+B60 -> 2,013.43 €
A61: Lidl | B61: -90.37 € | E61: 2016-05-27 | F61: x | G61: 2016-05-30 | H61: =H60+B61 -> 1,923.06 €
A62: Tankstelle Rangsdorf | B62: -15.29 € | E62: 2016-05-27 | F62: x | G62: 2016-05-30 | H62: =H61+B62 -> 1,907.77 €
A63: EWE | B63: 108.80 € | F63: x | G63: 2016-05-30 | H63: =H62+B63 -> 2,016.57 €
A64: Fressnapf | B64: -25.94 € | E64: 2016-05-27 | F64: x | G64: 2016-05-31 | H64: =H63+B64 -> 1,990.63 €
A65: Corinna Bausparer | B65: -20.00 € | D65: m | F65: x | G65: 2016-05-31 | H65: =H64+B65 -> 1,970.63 €
A66: HypoVereinsbank | B66: -909.65 € | C66: 339.82 | D66: m | F66: x | G66: 2016-05-31 | H66: =H65+B66 -> 1,060.98 €
A67: HEM | B67: -25.98 € | D67: m | E67: 2016-05-30 | F67: x | G67: 2016-05-31 | H67: =H66+B67 -> 1,035.00 €
A68: ADAC | B68: -89.50 € | D68: j | F68: x | G68: 2016-06-01 | H68: =H67+B68 -> 945.50 €
A69: EWE | B69: -59.00 € | D69: m | E69: 2016-06-01 | F69: x | G69: 2016-06-01 | H69: =H68+B69 -> 886.50 €
A70: Mac 2 | B70: -51.48 € | C70: am 01.12.16 51,64€ | D70: m | F70: x | G70: 2016-06-01 | H70: =H69+B70 -> 835.02 €
A71: Autoversicherung Corinna | B71: -20.93 € | C71: -25.31 | D71: m | F71: x | G71: 2016-06-01 | H71: =H70+B71 -> 814.09 €
A72: Autoversicherung Sven | B72: -27.58 € | C72: -21.17 | D72: m | F72: x | G72: 2016-06-01 | H72: =H71+B72 -> 786.51 €
A73: BVG | B73: -82.17 € | D73: m | F73: x | G73: 2016-06-01 | H73: =H72+B73 -> 704.34 €
A74: Laptop | B74: -51.01 € | C74: danach 25 x 51,01 und am 1.8.18 51,08 | D74: m | F74: x | G74: 2016-06-01 | H74: =H73+B74 -> 653.33 €
A75: Jet | B75: -38.00 € | E75: 2016-05-29 | F75: x | G75: 2016-06-01 | H75: =H74+B75 -> 615.33 €
A76: Comfort Card | B76: -88.00 € | D76: m | F76: x | G76: 2016-06-01 | H76: =H75+B76 -> 527.33 €
A77: Fressnapf | B77: -29.87 € | E77: 2016-06-01 | F77: x | G77: 2016-06-03 | H77: =H76+B77 -> 497.46 €
A78: EC-Card | B78: -30.00 € | E78: 2016-06-04 | F78: x | G78: 2016-06-06 | H78: =H77+B78 -> 467.46 €
A79: ebay | B79: -2.50 € | E79: 2016-06-05 | F79: x | G79: 2016-06-06 | H79: =H78+B79 -> 464.96 €
A80: Lidl | B80: -80.18 € | E80: 2016-06-03 | F80: x | G80: 2016-06-06 | H80: =H79+B80 -> 384.78 €
A81: Sprint | B81: -19.97 € | E81: 2016-06-05 | F81: x | G81: 2016-06-06 | H81: =H80+B81 -> 364.81 €
A82: Hagebau | B82: -10.28 € | E82: 2016-06-03 | F82: x | G82: 2016-06-06 | H82: =H81+B82 -> 354.53 €
A83: Von Sparcard | B83: 120.00 € | C83: 4350 | F83: x | G83: 2016-06-07 | H83: =H82+B83 -> 474.53 €
A84: Tierarzt | B84: -12.61 € | E84: 2016-06-06 | F84: x | G84: 2016-06-07 | H84: =H83+B84 -> 461.92 €
A85: DBV Haftpflicht | B85: -6.54 € | D85: m | F85: x | G85: 2016-06-08 | H85: =H84+B85 -> 455.38 €
A86: MegaZoo | B86: -23.78 € | E86: 2016-06-07 | F86: x | G86: 2016-06-09 | H86: =H85+B86 -> 431.60 €
A87: EUROCARD | B87: =-34-12.49-0.23-59.94-15-2.99-7.99-6.99 -> -139.63 € | C87: + Jahresgebühr | D87: m | F87: x | G87: 2016-06-09 | H87: =H86+B87 -> 291.97 €
A88: Aral | B88: -15.79 € | E88: 2016-06-07 | F88: x | G88: 2016-06-09 | H88: =H87+B88 -> 276.18 €
A89: Kindergeld | B89: 190.00 € | D89: m | F89: x | G89: 2016-06-10 | H89: =H88+B89 -> 466.18 €
A90: Kabel Internet | B90: -39.54 € | D90: m | F90: x | G90: 2016-06-10 | H90: =H89+B90 -> 426.64 €
A91: Kabelanschluss | B91: -30.91 € | D91: m | F91: x | G91: 2016-06-10 | H91: =H90+B91 -> 395.73 €
A92: EC-Card | B92: -50.00 € | E92: 2016-06-10 | F92: x | G92: 2016-06-10 | H92: =H91+B92 -> 345.73 €
A93: real | B93: -24.98 € | E93: 2016-06-10 | F93: x | G93: 2016-06-13 | H93: =H92+B93 -> 320.75 €
A94: Lidl | B94: -82.87 € | E94: 2016-06-10 | F94: x | G94: 2016-06-13 | H94: =H93+B94 -> 237.88 €
A95: Jet | B95: -22.29 € | E95: 2016-06-12 | F95: x | G95: 2016-06-14 | H95: =H94+B95 -> 215.59 €
A96: Netto | B96: -29.85 € | E96: 2016-06-13 | F96: x | G96: 2016-06-15 | H96: =H95+B96 -> 185.74 €
A97: Bußgeld | B97: 0.00 € | E97: 2016-05-30 | H97: =H96+B97 -> 185.74 €
A98: Getränke Hoffmann | B98: 0.00 € | E98: 2016-06-03 | H98: =H97+B98 -> 185.74 €
A99: Bauhaus | B99: 0.00 € | E99: 2016-06-14 | H99: =H98+B99 -> 185.74 €
A100: Aral | B100: 0.00 € | E100: 2016-06-14 | H100: =H99+B100 -> 185.74 €

Sheet Juni 2016
A1: 2016-06-01
A2: Übertrag aus Vormonat | C2: ='Mai 2016'!H96 -> 185.74 € | F2: =MATCH(0,'Mai 2016'!H1:H98,-1) -> 98.00 €
A4: WAS? | B4: Wert | C4: Bemerkung | D4: Fälligkeitszeitraum | E4: Wann ausgeführt | F4: Gebucht | G4: Buchungsdatum | H4: Kontostand
A5: Autokredit Tilgung Corinna | B5: -101.00 € | D5: m | F5: x | G5: 2016-06-15 | H5: =I5 -> 84.74 € | I5: =C2+B5 -> 84.74 € | J5: m
A6: Autokredit Tilgung | B6: -200.00 € | D6: m | F6: x | G6: 2016-06-15 | H6: ='Juni 2016'!$I6 -> -115.26 € | I6: =I5+B6 -> -115.26 € | J6: 2m
A7: Sven Gehalt | B7: 3,113.21 € | D7: m | F7: x | G7: 2016-06-15 | H7: ='Juni 2016'!$I7 -> 2,997.95 € | I7: =I6+B7 -> 2,997.95 € | J7: vj
A8: EC-Card | B8: -30.00 € | E8: 2016-06-15 | F8: x | G8: 2016-06-15 | H8: ='Juni 2016'!$I8 -> 2,967.95 € | I8: =I7+B8 -> 2,967.95 € | J8: hj
A9: DNWAB | B9: -45.32 € | D9: 2m | F9: x | G9: 2016-06-16 | H9: ='Juni 2016'!$I9 -> 2,922.63 € | I9: =I8+B9 -> 2,922.63 € | J9: j
A10: Bauhaus | B10: -20.64 € | E10: 2016-06-14 | F10: x | G10: 2016-06-16 | H10: ='Juni 2016'!$I10 -> 2,901.99 € | I10: =I9+B10 -> 2,901.99 € | J10: 2j
A11: Aral | B11: -22.64 € | E11: 2016-06-14 | F11: x | G11: 2016-06-16 | H11: ='Juni 2016'!$I11 -> 2,879.35 € | I11: =I10+B11 -> 2,879.35 €
A12: EC-Card | B12: -30.00 € | E12: 2016-06-16 | F12: x | G12: 2016-06-16 | H12: ='Juni 2016'!$I12 -> 2,849.35 € | I12: =I11+B12 -> 2,849.35 €
A13: Corinna Fitness | B13: -90.00 € | E13: 2016-06-16 | F13: x | G13: 2016-06-16 | H13: ='Juni 2016'!$I13 -> 2,759.35 € | I13: =I12+B13 -> 2,759.35 €
A14: Welt digital | B14: -12.99 € | D14: m | F14: x | G14: 2016-06-17 | H14: ='Juni 2016'!$I14 -> 2,746.36 € | I14: =I13+B14 -> 2,746.36 €
A15: EC-Card | B15: -30.00 € | E15: 2016-06-18 | F15: x | G15: 2016-06-17 | H15: ='Juni 2016'!$I15 -> 2,716.36 € | I15: =I14+B15 -> 2,716.36 €
A16: ebay | B16: -2.00 € | C16: Holger Spangenberg | E16: 2016-06-18 | F16: x | G16: 2016-06-20 | H16: ='Juni 2016'!$I16 -> 2,714.36 € | I16: =I15+B16 -> 2,714.36 €
A17: Antiquariat | B17: -10.00 € | E17: 2016-06-18 | F17: x | G17: 2016-06-20 | H17: ='Juni 2016'!$I17 -> 2,704.36 € | I17: =I16+B17 -> 2,704.36 €
A18: H&M | B18: -40.11 € | E18: 2016-06-18 | F18: x | G18: 2016-06-20 | H18: ='Juni 2016'!$I18 -> 2,664.25 € | I18: =I17+B18 -> 2,664.25 €
A19: EC-Card | B19: -30.00 € | E19: 2016-06-18 | F19: x | G19: 2016-06-20 | H19: ='Juni 2016'!$I19 -> 2,634.25 € | I19: =I18+B19 -> 2,634.25 €
A20: Schuhcenter | B20: -14.95 € | E20: 2016-06-18 | F20: x | G20: 2016-06-20 | H20: ='Juni 2016'!$I20 -> 2,619.30 € | I20: =I19+B20 -> 2,619.30 €
A21: Lidl | B21: -98.40 € | E21: 2016-06-17 | F21: x | G21: 2016-06-20 | H21: ='Juni 2016'!$I21 -> 2,520.90 € | I21: =I20+B21 -> 2,520.90 €
A22: expert | B22: -34.99 € | E22: 2016-06-18 | F22: x | G22: 2016-06-20 | H22: ='Juni 2016'!$I22 -> 2,485.91 € | I22: =I21+B22 -> 2,485.91 €
A23: Drogerie Müller | B23: -10.90 € | E23: 2016-06-18 | F23: x | G23: 2016-06-20 | H23: ='Juni 2016'!$I23 -> 2,475.01 € | I23: =I22+B23 -> 2,475.01 €
A24: Vivian | B24: -35.00 € | D24: m | F24: x | G24: 2016-06-21 | H24: ='Juni 2016'!$I24 -> 2,440.01 € | I24: =I23+B24 -> 2,440.01 €
A25: SparCard | B25: -150.00 € | C25: ='Mai 2016'!C83-'Juni 2016'!$B25 -> 4500 | D25: m | F25: x | G25: 2016-06-21 | H25: ='Juni 2016'!$I25 -> 2,290.01 € | I25: =I24+B25 -> 2,290.01 €
A26: EMB | B26: -110.00 € | D26: m | F26: x | G26: 2016-06-21 | H26: ='Juni 2016'!$I26 -> 2,180.01 € | I26: =I25+B26 -> 2,180.01 €
A27: Corinna Handy | B27: -33.96 € | D27: m | F27: x | G27: 2016-06-21 | H27: ='Juni 2016'!$I27 -> 2,146.05 € | I27: =I26+B27 -> 2,146.05 €
A28: Roller | B28: -21.18 € | E28: 2016-06-17 | F28: x | G28: 2016-06-21 | H28: ='Juni 2016'!$I28 -> 2,124.87 € | I28: =I27+B28 -> 2,124.87 €
A29: Fressnapf | B29: -31.01 € | E29: 2016-06-17 | F29: x | G29: 2016-06-21 | H29: ='Juni 2016'!$I29 -> 2,093.86 € | I29: =I28+B29 -> 2,093.86 €
A30: Jet | B30: -20.24 € | E30: 2016-06-18 | F30: x | G30: 2016-06-21 | H30: ='Juni 2016'!$I30 -> 2,073.62 € | I30: =I29+B30 -> 2,073.62 €
A31: Amazon | B31: -15.67 € | E31: 2016-06-19 | F31: x | G31: 2016-06-21 | H31: ='Juni 2016'!$I31 -> 2,057.95 € | I31: =I30+B31 -> 2,057.95 €
A32: Apotheke | B32: -18.60 € | E32: 2016-06-16 | F32: x | G32: 2016-06-21 | H32: ='Juni 2016'!$I32 -> 2,039.35 € | I32: =I31+B32 -> 2,039.35 €
A33: Apotheke | B33: -20.85 € | E33: 2016-06-18 | F33: x | G33: 2016-06-21 | H33: ='Juni 2016'!$I33 -> 2,018.50 € | I33: =I32+B33 -> 2,018.50 €
A34: Apotheke | B34: -21.02 € | E34: 2016-06-17 | F34: x | G34: 2016-06-22 | H34: ='Juni 2016'!$I34 -> 1,997.48 € | I34: =I33+B34 -> 1,997.48 €
A35: EC-Card | B35: -25.00 € | E35: 2016-06-22 | F35: x | G35: 2016-06-22 | H35: ='Juni 2016'!$I35 -> 1,972.48 € | I35: =I34+B35 -> 1,972.48 €
A36: Rossmann | B36: -9.51 € | E36: 2016-06-22 | F36: x | G36: 2016-06-24 | H36: ='Juni 2016'!$I36 -> 1,962.97 € | I36: =I35+B36 -> 1,962.97 €
A37: Aral | B37: -22.50 € | E37: 2016-06-22 | F37: x | G37: 2016-06-24 | H37: ='Juni 2016'!$I37 -> 1,940.47 € | I37: =I36+B37 -> 1,940.47 €
A38: Fressnapf | B38: -25.36 € | E38: 2016-06-22 | F38: x | G38: 2016-06-24 | H38: ='Juni 2016'!$I38 -> 1,915.11 € | I38: =I37+B38 -> 1,915.11 €
A39: EC-Card | B39: -30.00 € | E39: 2016-06-24 | F39: x | G39: 2016-06-24 | H39: ='Juni 2016'!$I39 -> 1,885.11 € | I39: =I38+B39 -> 1,885.11 €
A40: Vodafone | B40: -31.99 € | C40: sonst 29,99 | D40: m | F40: x | G40: 2016-06-27 | H40: ='Juni 2016'!$I40 -> 1,853.12 € | I40: =I39+B40 -> 1,853.12 €
A41: Jet | B41: -20.04 € | E41: 2016-06-23 | F41: x | G41: 2016-06-27 | H41: ='Juni 2016'!$I41 -> 1,833.08 € | I41: =I40+B41 -> 1,833.08 €
A42: T-Mobile | B42: =-36.68-0.23 -> -36.91 € | D42: m | F42: x | G42: 2016-06-27 | H42: ='Juni 2016'!$I42 -> 1,796.17 € | I42: =I41+B42 -> 1,796.17 €
A43: T-Mobile | B43: =-19.95 -> -19.95 € | D43: m | F43: x | G43: 2016-06-27 | H43: ='Juni 2016'!$I43 -> 1,776.22 € | I43: =I42+B43 -> 1,776.22 €
A44: real | B44: -24.93 € | E44: 2016-06-25 | F44: x | G44: 2016-06-27 | H44: ='Juni 2016'!$I44 -> 1,751.29 € | I44: =I43+B44 -> 1,751.29 €
A45: Lidl | B45: -104.94 € | E45: 2016-06-24 | F45: x | G45: 2016-06-27 | H45: ='Juni 2016'!$I45 -> 1,646.35 € | I45: =I44+B45 -> 1,646.35 €
A46: Fotoatelier | B46: -11.50 € | E46: 2016-06-18 | F46: x | G46: 2016-06-27 | H46: ='Juni 2016'!$I46 -> 1,634.85 € | I46: =I45+B46 -> 1,634.85 €
A47: Stadtverwaltung Mittenwalde | B47: -28.80 € | C47: Ausweis Corinna | E47: 2016-06-23 | F47: x | G47: 2016-06-27 | H47: ='Juni 2016'!$I47 -> 1,606.05 € | I47: =I46+B47 -> 1,606.05 €
A48: Apotheke | B48: -12.90 € | E48: 2016-06-25 | F48: x | G48: 2016-06-27 | H48: ='Juni 2016'!$I48 -> 1,593.15 € | I48: =I47+B48 -> 1,593.15 €
A49: HDI Gerling | B49: -85.94 € | D49: vj | F49: x | G49: 2016-06-28 | H49: ='Juni 2016'!$I49 -> 1,507.21 € | I49: =I48+B49 -> 1,507.21 €
A50: Netto | B50: -11.88 € | E50: 2016-06-24 | F50: x | G50: 2016-06-28 | H50: ='Juni 2016'!$I50 -> 1,495.33 € | I50: =I49+B50 -> 1,495.33 €
A51: Fressnapf | B51: -21.84 € | E51: 2016-06-25 | F51: x | G51: 2016-06-28 | H51: ='Juni 2016'!$I51 -> 1,473.49 € | I51: =I50+B51 -> 1,473.49 €
A52: EC-Card | B52: -140.00 € | E52: 2016-06-28 | F52: x | G52: 2016-06-28 | H52: ='Juni 2016'!$I52 -> 1,333.49 € | I52: =I51+B52 -> 1,333.49 €
A53: Corinna Gehalt | B53: 1,186.33 € | C53: mit Urlaubsgeld | D53: m | F53: x | G53: 2016-06-28 | H53: ='Juni 2016'!$I53 -> 2,519.82 € | I53: =I52+B53 -> 2,519.82 €
A54: HypoVereinsbank | B54: -909.65 € | C54: 359.74 | D54: m | F54: x | G54: 2016-06-30 | H54: ='Juni 2016'!$I54 -> 1,610.17 € | I54: =I53+B54 -> 1,610.17 €
A55: PayPal | B55: -3.99 € | F55: x | G55: 2016-06-30 | H55: ='Juni 2016'!$I55 -> 1,606.18 € | I55: =I54+B55 -> 1,606.18 €
A56: PayPal | B56: -4.19 € | F56: x | G56: 2016-06-30 | H56: ='Juni 2016'!$I56 -> 1,601.99 € | I56: =I55+B56 -> 1,601.99 €
A57: Corinna Bausparer | B57: -20.00 € | D57: m | F57: x | G57: 2016-06-30 | H57: ='Juni 2016'!$I57 -> 1,581.99 € | I57: =I56+B57 -> 1,581.99 €
A58: EWE | B58: -66.00 € | D58: m | F58: x | G58: 2016-07-01 | H58: ='Juni 2016'!$I58 -> 1,515.99 € | I58: =I57+B58 -> 1,515.99 €
A59: BVG | B59: -82.17 € | D59: m | F59: x | G59: 2016-07-01 | H59: ='Juni 2016'!$I59 -> 1,433.82 € | I59: =I58+B59 -> 1,433.82 €
A60: Autoversicherung Sven | B60: -27.58 € | D60: m | F60: x | G60: 2016-07-01 | H60: ='Juni 2016'!$I60 -> 1,406.24 € | I60: =I59+B60 -> 1,406.24 €
A61: Autoversicherung Corinna | B61: -20.93 € | D61: m | F61: x | G61: 2016-07-01 | H61: ='Juni 2016'!$I61 -> 1,385.31 € | I61: =I60+B61 -> 1,385.31 €
A62: HEM | B62: -26.38 € | E62: 2016-06-30 | F62: x | G62: 2016-07-01 | H62: ='Juni 2016'!$I62 -> 1,358.93 € | I62: =I61+B62 -> 1,358.93 €
A63: Comfort Card | B63: -88.00 € | D63: m | F63: x | G63: 2016-07-01 | H63: ='Juni 2016'!$I63 -> 1,270.93 € | I63: =I62+B63 -> 1,270.93 €
A64: EC-Card | B64: -50.00 € | E64: 2016-07-01 | F64: x | G64: 2016-07-01 | H64: ='Juni 2016'!$I64 -> 1,220.93 € | I64: =I63+B64 -> 1,220.93 €
A65: Mac 2 | B65: -51.48 € | C65: am 01.12.16 51,64€ | D65: m | F65: x | G65: 2016-07-01 | H65: ='Juni 2016'!$I65 -> 1,169.45 € | I65: =I64+B65 -> 1,169.45 €
A66: Laptop | B66: -51.01 € | C66: danach 24 x 51,01 und am 1.8.18 51,08 | D66: m | F66: x | G66: 2016-07-01 | H66: ='Juni 2016'!$I66 -> 1,118.44 € | I66: =I65+B66 -> 1,118.44 €
A67: Lidl | B67: -109.14 € | E67: 2016-07-01 | F67: x | G67: 2016-07-04 | H67: ='Juni 2016'!$I67 -> 1,009.30 € | I67: =I66+B67 -> 1,009.30 €
A68: Pflanzen Kölle | B68: -36.94 € | E68: 2016-07-02 | F68: x | G68: 2016-07-04 | H68: ='Juni 2016'!$I68 -> 972.36 € | I68: =I67+B68 -> 972.36 €
A69: Fressnapf | B69: -11.30 € | E69: 2016-07-01 | F69: x | G69: 2016-07-05 | H69: ='Juni 2016'!$I69 -> 961.06 € | I69: =I68+B69 -> 961.06 €
A70: PayPal | B70: -27.11 € | C70: Levin Minnemann Rudess | F70: x | G70: 2016-07-05 | H70: ='Juni 2016'!$I70 -> 933.95 € | I70: =I69+B70 -> 933.95 €
A71: PayPal | B71: -15.20 € | C71: Ladekantenfolie | E71: 2016-07-02 | F71: x | G71: 2016-07-05 | H71: ='Juni 2016'!$I71 -> 918.75 € | I71: =I70+B71 -> 918.75 €
A72: PayPal | B72: -4.00 € | C72: Die Piratenchronik | E72: 2016-07-02 | F72: x | G72: 2016-07-05 | H72: ='Juni 2016'!$I72 -> 914.75 € | I72: =I71+B72 -> 914.75 €
A73: EC-Card | B73: -25.00 € | D73: m | E73: 2016-07-05 | F73: x | G73: 2016-07-05 | H73: ='Juni 2016'!$I73 -> 889.75 € | I73: =I72+B73 -> 889.75 €
A74: EC-Card | B74: -30.00 € | E74: 2016-07-07 | F74: x | G74: 2016-07-07 | H74: ='Juni 2016'!$I74 -> 859.75 € | I74: =I73+B74 -> 859.75 €
A75: Jet | B75: -20.04 € | E75: 2016-07-05 | F75: x | G75: 2016-07-07 | H75: ='Juni 2016'!$I75 -> 839.71 € | I75: =I74+B75 -> 839.71 €
A76: Sprint | B76: -17.73 € | E76: 2016-07-06 | F76: x | G76: 2016-07-07 | H76: ='Juni 2016'!$I76 -> 821.98 € | I76: =I75+B76 -> 821.98 €
A77: DBV Haftpflicht | B77: -6.54 € | D77: m | F77: x | G77: 2016-07-08 | H77: ='Juni 2016'!$I77 -> 815.44 € | I77: =I76+B77 -> 815.44 €
A78: EC-Card | B78: -20.00 € | F78: x | G78: 2016-07-08 | H78: ='Juni 2016'!$I78 -> 795.44 € | I78: =I77+B78 -> 795.44 €
A79: ebay | B79: -12.89 € | C79: Cisco Bücher | E79: 2016-07-09 | F79: x | G79: 2016-07-11 | H79: ='Juni 2016'!$I79 -> 782.55 € | I79: =I78+B79 -> 782.55 €
A80: Corinna Fitness | B80: -90.00 € | E80: 2016-07-09 | F80: x | G80: 2016-07-11 | H80: ='Juni 2016'!$I80 -> 692.55 € | I80: =I79+B80 -> 692.55 €
A81: Bio am Bahnhof | B81: -34.96 € | E81: 2016-07-08 | F81: x | G81: 2016-07-11 | H81: ='Juni 2016'!$I81 -> 657.59 € | I81: =I80+B81 -> 657.59 €
A82: Kindergeld | B82: 190.00 € | D82: m | F82: x | G82: 2016-07-11 | H82: ='Juni 2016'!$I82 -> 847.59 € | I82: =I81+B82 -> 847.59 €
A83: MAG | B83: -15.85 € | F83: x | G83: 2016-07-11 | H83: ='Juni 2016'!$I83 -> 831.74 € | I83: =I82+B83 -> 831.74 €
A84: Lidl | B84: -80.79 € | F84: x | G84: 2016-07-11 | H84: ='Juni 2016'!$I84 -> 750.95 € | I84: =I83+B84 -> 750.95 €
A85: real | B85: -13.56 € | E85: 2016-07-08 | F85: x | G85: 2016-07-11 | H85: ='Juni 2016'!$I85 -> 737.39 € | I85: =I84+B85 -> 737.39 €
A86: C&A | B86: -15.00 € | E86: 2016-07-08 | F86: x | G86: 2016-07-11 | H86: ='Juni 2016'!$I86 -> 722.39 € | I86: =I85+B86 -> 722.39 €
A87: EUROCARD | B87: =-34-59.94-39.99-7.99-8.89-4.99-3.29-0.99-0.99 -> -161.07 € | D87: m | F87: x | G87: 2016-07-12 | H87: ='Juni 2016'!$I87 -> 561.32 € | I87: =I86+B87 -> 561.32 €
A88: PayPal | B88: -12.50 € | C88: Holzleisten | E88: 2016-07-09 | F88: x | G88: 2016-07-12 | H88: ='Juni 2016'!$I88 -> 548.82 € | I88: =I87+B88 -> 548.82 €
A89: Kabel Anschluss | B89: -30.91 € | D89: m | F89: x | G89: 2016-07-12 | H89: ='Juni 2016'!$I89 -> 517.91 € | I89: =I88+B89 -> 517.91 €
A90: Kabel Internet | B90: -39.54 € | D90: m | F90: x | G90: 2016-07-12 | H90: ='Juni 2016'!$I90 -> 478.37 € | I90: =I89+B90 -> 478.37 €
A91: Penny | B91: -49.11 € | E91: 2016-07-11 | F91: x | G91: 2016-07-12 | H91: ='Juni 2016'!$I91 -> 429.26 € | I91: =I90+B91 -> 429.26 €
A92: EC-Card | B92: -30.00 € | E92: 2016-07-13 | F92: x | G92: 2016-07-13 | H92: ='Juni 2016'!$I92 -> 399.26 € | I92: =I91+B92 -> 399.26 €
A93: Fressnapf | B93: -23.94 € | E93: 2016-07-11 | F93: x | G93: 2016-07-13 | H93: ='Juni 2016'!$I93 -> 375.32 € | I93: =I92+B93 -> 375.32 €
A94: Jet | B94: -19.19 € | E94: 2016-07-11 | F94: x | G94: 2016-07-13 | H94: ='Juni 2016'!$I94 -> 356.13 € | I94: =I93+B94 -> 356.13 €
I95: =I94+B95 -> 356.13 €
I96: =I95+B96 -> 356.13 €
I97: =I96+B97 -> 356.13 €
I98: =I97+B98 -> 356.13 €
I99: =I98+B99 -> 356.13 €
I100: =I99+B100 -> 356.13 €
I101: =I100+B101 -> 356.13 €
I102: =I101+B102 -> 356.13 €
I103: =I102+B103 -> 356.13 €
I104: =I103+B104 -> 356.13 €
I105: =I104+B105 -> 356.13 €
I106: =I105+B106 -> 356.13 €
I107: =I106+B107 -> 356.13 €
I108: =I107+B108 -> 356.13 €
I109: =I108+B109 -> 356.13 €
I110: =I109+B110 -> 356.13 €
I111: =I110+B111 -> 356.13 €
I112: =I111+B112 -> 356.13 €
I113: =I112+B113 -> 356.13 €
I114: =I113+B114 -> 356.13 €
I115: =I114+B115 -> 356.13 €
I116: =I115+B116 -> 356.13 €
I117: =I116+B117 -> 356.13 €
I118: =I117+B118 -> 356.13 €
I119: =I118+B119 -> 356.13 €
I120: =I119+B120 -> 356.13 €
I121: =I120+B121 -> 356.13 €
I122: =I121+B122 -> 356.13 €
I123: =I122+B123 -> 356.13 €
I124: =I123+B124 -> 356.13 €
I125: =I124+B125 -> 356.13 €
I126: =I125+B126 -> 356.13 €
I127: =I126+B127 -> 356.13 €
I128: =I127+B128 -> 356.13 €
I129: =I128+B129 -> 356.13 €
I130: =I129+B130 -> 356.13 €
I131: =I130+B131 -> 356.13 €

Sheet Juli 2016
A1: 2016-07-01
A2: Übertrag aus Vormonat | C2: =LOOKUP(9^99,'Juni 2016'!H$1:H$65536) -> 356.13 €
A4: WAS? | B4: Wert | C4: Bemerkung | D4: Fälligkeitszeitraum | E4: Wann ausgeführt | F4: Gebucht | G4: Buchungsdatum | H4: Kontostand
A5: Sven Gehalt | B5: 3,060.13 € | D5: m | F5: x | G5: 2016-07-14 | H5: =I5 -> 3,416.26 € | I5: =C2+B5 -> 3,416.26 € | J5: m
A6: Gutschrift Ebay Buch | B6: 3.40 € | F6: x | G6: 2016-07-14 | H6: ='Juli 2016'!$I6 -> 3,419.66 € | I6: =I5+B6 -> 3,419.66 € | J6: 2m
A7: Autokredit Tilgung | B7: -200.00 € | D7: m | F7: x | G7: 2016-07-15 | H7: ='Juli 2016'!$I7 -> 3,219.66 € | I7: =I6+B7 -> 3,219.66 € | J7: vj
A8: Autokredit Tilgung Corinna | B8: -101.00 € | D8: m | F8: x | G8: 2016-07-15 | H8: ='Juli 2016'!$I8 -> 3,118.66 € | I8: =I7+B8 -> 3,118.66 € | J8: hj
A9: EC-Card | B9: -40.00 € | E9: 2016-07-15 | F9: x | G9: 2016-07-15 | H9: ='Juli 2016'!$I9 -> 3,078.66 € | I9: =I8+B9 -> 3,078.66 € | J9: j
A10: Corinna Handy | B10: -33.96 € | D10: m | F10: x | G10: 2016-07-18 | H10: ='Juli 2016'!$I10 -> 3,044.70 € | I10: =I9+B10 -> 3,044.70 € | J10: 2j
A11: Paypal | B11: -25.00 € | C11: Udemy | F11: x | G11: 2016-07-18 | H11: ='Juli 2016'!$I11 -> 3,019.70 € | I11: =I10+B11 -> 3,019.70 €
A12: PayPal | B12: -15.98 € | C12: Bond 17/18 Thalia | E12: 2016-07-03 | F12: x | G12: 2016-07-18 | H12: ='Juli 2016'!$I12 -> 3,003.72 € | I12: =I11+B12 -> 3,003.72 €
A13: Total | B13: -27.38 € | E13: 2016-07-15 | F13: x | G13: 2016-07-18 | H13: ='Juli 2016'!$I13 -> 2,976.34 € | I13: =I12+B13 -> 2,976.34 €
A14: Lidl | B14: -98.81 € | E14: 2016-07-15 | F14: x | G14: 2016-07-18 | H14: ='Juli 2016'!$I14 -> 2,877.53 € | I14: =I13+B14 -> 2,877.53 €
A15: real | B15: -30.88 € | E15: 2016-07-15 | F15: x | G15: 2016-07-18 | H15: ='Juli 2016'!$I15 -> 2,846.65 € | I15: =I14+B15 -> 2,846.65 €
A16: Pflanzen Kölle | B16: -19.98 € | E16: 2016-07-15 | F16: x | G16: 2016-07-18 | H16: ='Juli 2016'!$I16 -> 2,826.67 € | I16: =I15+B16 -> 2,826.67 €
A17: Penny | B17: -14.27 € | E17: 2016-07-16 | F17: x | G17: 2016-07-19 | H17: ='Juli 2016'!$I17 -> 2,812.40 € | I17: =I16+B17 -> 2,812.40 €
A18: Bauhaus | B18: -13.35 € | E18: 2016-07-15 | F18: x | G18: 2016-07-19 | H18: ='Juli 2016'!$I18 -> 2,799.05 € | I18: =I17+B18 -> 2,799.05 €
A19: HEM | B19: -32.50 € | E19: 2016-07-18 | F19: x | G19: 2016-07-19 | H19: ='Juli 2016'!$I19 -> 2,766.55 € | I19: =I18+B19 -> 2,766.55 €
A20: Amazon | B20: -49.09 € | E20: 2016-07-17 | F20: x | G20: 2016-07-20 | H20: ='Juli 2016'!$I20 -> 2,717.46 € | I20: =I19+B20 -> 2,717.46 €
A21: ebay | B21: -1.80 € | C21: Vanessa Kühne | E21: 2016-07-20 | F21: x | G21: 2016-07-20 | H21: ='Juli 2016'!$I21 -> 2,715.66 € | I21: =I20+B21 -> 2,715.66 €
A22: EMB | B22: -110.00 € | D22: m | F22: x | G22: 2016-07-21 | H22: ='Juli 2016'!$I22 -> 2,605.66 € | I22: =I21+B22 -> 2,605.66 €
A23: SparCard | B23: -150.00 € | C23: ='Juni 2016'!C25-'Juli 2016'!$B23 -> 4650 | D23: m | F23: x | G23: 2016-07-21 | H23: ='Juli 2016'!$I23 -> 2,455.66 € | I23: =I22+B23 -> 2,455.66 €
A24: EC-Card | B24: -20.00 € | E24: 2016-07-20 | F24: x | G24: 2016-07-21 | H24: ='Juli 2016'!$I24 -> 2,435.66 € | I24: =I23+B24 -> 2,435.66 €
A25: Fressnapf | B25: -32.53 € | E25: 2016-07-09 | F25: x | G25: 2016-07-21 | H25: ='Juli 2016'!$I25 -> 2,403.13 € | I25: =I24+B25 -> 2,403.13 €
A26: Welt digital | B26: -12.99 € | D26: m | F26: x | G26: 2016-07-22 | H26: ='Juli 2016'!$I26 -> 2,390.14 € | I26: =I25+B26 -> 2,390.14 €
A27: Paypal | B27: -53.87 € | C27: Thalia | F27: x | G27: 2016-07-25 | H27: ='Juli 2016'!$I27 -> 2,336.27 € | I27: =I26+B27 -> 2,336.27 €
A28: ebay | B28: -37.30 € | C28: Uhr | E28: 2016-07-25 | F28: x | G28: 2016-07-25 | H28: ='Juli 2016'!$I28 -> 2,298.97 € | I28: =I27+B28 -> 2,298.97 €
A29: Vodafone | B29: -29.99 € | D29: m | F29: x | G29: 2016-07-25 | H29: ='Juli 2016'!$I29 -> 2,268.98 € | I29: =I28+B29 -> 2,268.98 €
A30: T-Mobile | B30: =-36.91-2.43 -> -39.34 € | D30: m | F30: x | G30: 2016-07-25 | H30: ='Juli 2016'!$I30 -> 2,229.64 € | I30: =I29+B30 -> 2,229.64 €
A31: T-Mobile | B31: -19.95 € | D31: m | F31: x | G31: 2016-07-25 | H31: ='Juli 2016'!$I31 -> 2,209.69 € | I31: =I30+B31 -> 2,209.69 €
A32: Lidl | B32: -108.09 € | E32: 2016-07-22 | F32: x | G32: 2016-07-25 | H32: ='Juli 2016'!$I32 -> 2,101.60 € | I32: =I31+B32 -> 2,101.60 €
A33: EC-Card | B33: -50.00 € | E33: 2016-07-23 | F33: x | G33: 2016-07-25 | H33: ='Juli 2016'!$I33 -> 2,051.60 € | I33: =I32+B33 -> 2,051.60 €
A34: Netto | B34: -11.42 € | E34: 2016-07-22 | F34: x | G34: 2016-07-26 | H34: ='Juli 2016'!$I34 -> 2,040.18 € | I34: =I33+B34 -> 2,040.18 €
A35: Netto | B35: -11.55 € | E35: 2016-07-23 | F35: x | G35: 2016-07-26 | H35: ='Juli 2016'!$I35 -> 2,028.63 € | I35: =I34+B35 -> 2,028.63 €
A36: Mediamarkt | B36: -29.99 € | E36: 2016-07-22 | F36: x | G36: 2016-07-26 | H36: ='Juli 2016'!$I36 -> 1,998.64 € | I36: =I35+B36 -> 1,998.64 €
A37: MegaZoo | B37: -19.93 € | E37: 2016-07-22 | F37: x | G37: 2016-07-26 | H37: ='Juli 2016'!$I37 -> 1,978.71 € | I37: =I36+B37 -> 1,978.71 €
A38: Amazon | B38: -2.99 € | E38: 2016-07-22 | F38: x | G38: 2016-07-26 | H38: ='Juli 2016'!$I38 -> 1,975.72 € | I38: =I37+B38 -> 1,975.72 €
A39: Corinna Gehalt | B39: 1,136.06 € | D39: m | F39: x | G39: 2016-07-27 | H39: ='Juli 2016'!$I39 -> 3,111.78 € | I39: =I38+B39 -> 3,111.78 €
A40: Kindertraum | B40: -35.53 € | E40: 2016-07-26 | F40: x | G40: 2016-07-27 | H40: ='Juli 2016'!$I40 -> 3,076.25 € | I40: =I39+B40 -> 3,076.25 €
A41: Penny | B41: -26.46 € | E41: 2016-07-26 | F41: x | G41: 2016-07-27 | H41: ='Juli 2016'!$I41 -> 3,049.79 € | I41: =I40+B41 -> 3,049.79 €
A42: Corinna Bausparer | B42: -20.00 € | D42: m | F42: x | G42: 2016-07-29 | H42: ='Juli 2016'!$I42 -> 3,029.79 € | I42: =I41+B42 -> 3,029.79 €
A43: Amazon | B43: -33.85 € | E43: 2016-07-27 | F43: x | G43: 2016-07-29 | H43: ='Juli 2016'!$I43 -> 2,995.94 € | I43: =I42+B43 -> 2,995.94 €
A44: Paypal | B44: -20.00 € | C44: Berlin Linien Bus | F44: x | G44: 2016-07-29 | H44: ='Juli 2016'!$I44 -> 2,975.94 € | I44: =I43+B44 -> 2,975.94 €
A45: EC-Card | B45: -50.00 € | E45: 2016-07-29 | F45: x | G45: 2016-07-29 | H45: ='Juli 2016'!$I45 -> 2,925.94 € | I45: =I44+B45 -> 2,925.94 €
A46: Sprint | B46: -31.04 € | E46: 2016-07-28 | F46: x | G46: 2016-07-29 | H46: ='Juli 2016'!$I46 -> 2,894.90 € | I46: =I45+B46 -> 2,894.90 €
A47: Mac 2 | B47: -51.48 € | C47: am 01.12.16 51,64€ | D47: m | F47: x | G47: 2016-08-01 | H47: ='Juli 2016'!$I47 -> 2,843.42 € | I47: =I46+B47 -> 2,843.42 €
A48: Comfort Card | B48: -88.00 € | D48: m | F48: x | G48: 2016-08-01 | H48: ='Juli 2016'!$I48 -> 2,755.42 € | I48: =I47+B48 -> 2,755.42 €
A49: EWE | B49: -66.00 € | D49: m | F49: x | G49: 2016-08-01 | H49: ='Juli 2016'!$I49 -> 2,689.42 € | I49: =I48+B49 -> 2,689.42 €
A50: HypoVereinsbank | B50: -909.65 € | D50: m | F50: x | G50: 2016-08-01 | H50: ='Juli 2016'!$I50 -> 1,779.77 € | I50: =I49+B50 -> 1,779.77 €
A51: Laptop | B51: -51.01 € | C51: danach 23 x 51,01 und am 1.8.18 51,08 | D51: m | F51: x | G51: 2016-08-01 | H51: ='Juli 2016'!$I51 -> 1,728.76 € | I51: =I50+B51 -> 1,728.76 €
A52: Amazon | B52: =-50.8+33.85 -> -16.95 € | E52: 2016-06-27 | F52: x | G52: 2016-08-01 | H52: ='Juli 2016'!$I52 -> 1,711.81 € | I52: =I51+B52 -> 1,711.81 €
A53: BVG | B53: -82.17 € | D53: m | F53: x | G53: 2016-08-01 | H53: ='Juli 2016'!$I53 -> 1,629.64 € | I53: =I52+B53 -> 1,629.64 €
A54: Autoversicherung Sven | B54: -27.58 € | C54: -25.31 | D54: m | F54: x | G54: 2016-08-01 | H54: ='Juli 2016'!$I54 -> 1,602.06 € | I54: =I53+B54 -> 1,602.06 €
A55: Autoversicherung Corinna | B55: -20.93 € | C55: -21.17 | D55: m | F55: x | G55: 2016-08-01 | H55: ='Juli 2016'!$I55 -> 1,581.13 € | I55: =I54+B55 -> 1,581.13 €
A56: Roland Rechtsschutz | B56: -39.40 € | D56: vj | F56: x | G56: 2016-08-01 | H56: ='Juli 2016'!$I56 -> 1,541.73 € | I56: =I55+B56 -> 1,541.73 €
A57: Lidl | B57: -87.75 € | E57: 2016-07-29 | F57: x | G57: 2016-08-01 | H57: ='Juli 2016'!$I57 -> 1,453.98 € | I57: =I56+B57 -> 1,453.98 €
A58: real | B58: -26.22 € | E58: 2016-07-29 | F58: x | G58: 2016-08-01 | H58: ='Juli 2016'!$I58 -> 1,427.76 € | I58: =I57+B58 -> 1,427.76 €
A59: real | B59: -10.00 € | E59: 2016-08-30 | F59: x | G59: 2016-08-01 | H59: ='Juli 2016'!$I59 -> 1,417.76 € | I59: =I58+B59 -> 1,417.76 €
A60: dm | B60: -24.55 € | E60: 2016-07-29 | F60: x | G60: 2016-08-01 | H60: ='Juli 2016'!$I60 -> 1,393.21 € | I60: =I59+B60 -> 1,393.21 €
A61: Christ | B61: -25.00 € | E61: 2016-07-29 | F61: x | G61: 2016-08-01 | H61: ='Juli 2016'!$I61 -> 1,368.21 € | I61: =I60+B61 -> 1,368.21 €
A62: C&A | B62: -25.00 € | E62: 2016-07-29 | F62: x | G62: 2016-08-01 | H62: ='Juli 2016'!$I62 -> 1,343.21 € | I62: =I61+B62 -> 1,343.21 €
A63: IKEA | B63: -73.90 € | E63: 2016-07-30 | F63: x | G63: 2016-08-02 | H63: ='Juli 2016'!$I63 -> 1,269.31 € | I63: =I62+B63 -> 1,269.31 €
A64: EC-Card | B64: -50.00 € | E64: 2016-08-02 | F64: x | G64: 2016-08-02 | H64: ='Juli 2016'!$I64 -> 1,219.31 € | I64: =I63+B64 -> 1,219.31 €
A65: Fressnapf | B65: -22.02 € | E65: 2016-07-29 | F65: x | G65: 2016-08-02 | H65: ='Juli 2016'!$I65 -> 1,197.29 € | I65: =I64+B65 -> 1,197.29 €
A66: Apotheke | B66: -9.41 € | E66: 2016-07-30 | F66: x | G66: 2016-08-02 | H66: ='Juli 2016'!$I66 -> 1,187.88 € | I66: =I65+B66 -> 1,187.88 €
A67: Shell | B67: -26.08 € | E67: 2016-08-01 | F67: x | G67: 2016-08-02 | H67: ='Juli 2016'!$I67 -> 1,161.80 € | I67: =I66+B67 -> 1,161.80 €
A68: Penny | B68: -7.72 € | E68: 2016-08-01 | F68: x | G68: 2016-08-03 | H68: ='Juli 2016'!$I68 -> 1,154.08 € | I68: =I67+B68 -> 1,154.08 €
A69: Netto | B69: -7.30 € | E69: 2016-08-02 | F69: x | G69: 2016-08-04 | H69: ='Juli 2016'!$I69 -> 1,146.78 € | I69: =I68+B69 -> 1,146.78 €
A70: EC-Card | B70: -60.00 € | E70: 2016-08-05 | F70: x | G70: 2016-08-05 | H70: ='Juli 2016'!$I70 -> 1,086.78 € | I70: =I69+B70 -> 1,086.78 €
A71: Edeka | B71: -29.60 € | E71: 2016-08-04 | F71: x | G71: 2016-08-05 | H71: ='Juli 2016'!$I71 -> 1,057.18 € | I71: =I70+B71 -> 1,057.18 €
A72: Finanzamt Vorauszahlung | B72: -104.00 € | C72: Finanzamt Königs Wusterhausen Steuernummer 049/493/01058 DE61100000000016001505 | D72: vj | E72: 2016-08-08 | F72: x | G72: 2016-08-08 | H72: ='Juli 2016'!$I72 -> 953.18 € | I72: =I71+B72 -> 953.18 €
A73: Grundsteuer B | B73: -43.46 € | D73: vj | E73: 2016-08-08 | F73: x | G73: 2016-08-08 | H73: ='Juli 2016'!$I73 -> 909.72 € | I73: =I72+B73 -> 909.72 €
A74: DBV Haftpflicht | B74: -6.54 € | D74: m | F74: x | G74: 2016-08-08 | H74: ='Juli 2016'!$I74 -> 903.18 € | I74: =I73+B74 -> 903.18 €
A75: Lidl | B75: -103.50 € | C75: mit Wetterstation | E75: 2016-08-03 | F75: x | G75: 2016-08-08 | H75: ='Juli 2016'!$I75 -> 799.68 € | I75: =I74+B75 -> 799.68 €
A76: Sun | B76: -20.35 € | E76: 2016-08-06 | F76: x | G76: 2016-08-08 | H76: ='Juli 2016'!$I76 -> 779.33 € | I76: =I75+B76 -> 779.33 €
A77: EUROCARD | B77: =-34-59.94-39.99-39.99-3.99-23.9-6.99 -> -208.80 € | C77: Affinitiy Photo / October Tide | D77: m | F77: x | G77: 2016-08-09 | H77: ='Juli 2016'!$I77 -> 570.53 € | I77: =I76+B77 -> 570.53 €
A78: Kindergeld | B78: 190.00 € | D78: m | F78: x | G78: 2016-08-09 | H78: ='Juli 2016'!$I78 -> 760.53 € | I78: =I77+B78 -> 760.53 €
A79: Apotheke | B79: -8.29 € | E79: 2016-08-05 | F79: x | G79: 2016-08-09 | H79: ='Juli 2016'!$I79 -> 752.24 € | I79: =I78+B79 -> 752.24 €
A80: EC-Card | B80: -30.00 € | E80: 2016-08-10 | F80: x | G80: 2016-08-10 | H80: ='Juli 2016'!$I80 -> 722.24 € | I80: =I79+B80 -> 722.24 €
A81: Kabel Internet | B81: -39.54 € | D81: m | F81: x | G81: 2016-08-11 | H81: ='Juli 2016'!$I81 -> 682.70 € | I81: =I80+B81 -> 682.70 €
A82: Kabelanschluss | B82: -30.91 € | D82: m | F82: x | G82: 2016-08-11 | H82: ='Juli 2016'!$I82 -> 651.79 € | I82: =I81+B82 -> 651.79 €
A83: Fressnapf | B83: -17.72 € | E83: 2016-08-09 | F83: x | G83: 2016-08-11 | H83: ='Juli 2016'!$I83 -> 634.07 € | I83: =I82+B83 -> 634.07 €
A84: PfennigPfeiffer | B84: -16.02 € | E84: 2016-08-10 | F84: x | G84: 2016-08-11 | H84: ='Juli 2016'!$I84 -> 618.05 € | I84: =I83+B84 -> 618.05 €
A85: Pocco Domäne | B85: -26.95 € | E85: 2016-08-10 | F85: x | G85: 2016-08-12 | H85: ='Juli 2016'!$I85 -> 591.10 € | I85: =I84+B85 -> 591.10 €
A86: Netto | B86: -8.41 € | E86: 2016-08-10 | F86: x | G86: 2016-08-12 | H86: ='Juli 2016'!$I86 -> 582.69 € | I86: =I85+B86 -> 582.69 €
H87: ='Juli 2016'!$I87 -> 582.69 € | I87: =I86+B87 -> 582.69 €
H88: ='Juli 2016'!$I88 -> 582.69 € | I88: =I87+B88 -> 582.69 €
H89: ='Juli 2016'!$I89 -> 582.69 € | I89: =I88+B89 -> 582.69 €
H90: ='Juli 2016'!$I90 -> 582.69 € | I90: =I89+B90 -> 582.69 €
H91: ='Juli 2016'!$I91 -> 582.69 € | I91: =I90+B91 -> 582.69 €
I92: =I91+B92 -> 582.69 €
I93: =I92+B93 -> 582.69 €
I94: =I93+B94 -> 582.69 €
I95: =I94+B95 -> 582.69 €
I96: =I95+B96 -> 582.69 €
I97: =I96+B97 -> 582.69 €
I98: =I97+B98 -> 582.69 €
I99: =I98+B99 -> 582.69 €
I100: =I99+B100 -> 582.69 €
I101: =I100+B101 -> 582.69 €
I102: =I101+B102 -> 582.69 €
I103: =I102+B103 -> 582.69 €
I104: =I103+B104 -> 582.69 €
I105: =I104+B105 -> 582.69 €
I106: =I105+B106 -> 582.69 €
I107: =I106+B107 -> 582.69 €
I108: =I107+B108 -> 582.69 €
I109: =I108+B109 -> 582.69 €
I110: =I109+B110 -> 582.69 €
I111: =I110+B111 -> 582.69 €
I112: =I111+B112 -> 582.69 €
I113: =I112+B113 -> 582.69 €
I114: =I113+B114 -> 582.69 €
I115: =I114+B115 -> 582.69 €
I116: =I115+B116 -> 582.69 €
I117: =I116+B117 -> 582.69 €
I118: =I117+B118 -> 582.69 €
I119: =I118+B119 -> 582.69 €
I120: =I119+B120 -> 582.69 €
I121: =I120+B121 -> 582.69 €
I122: =I121+B122 -> 582.69 €
I123: =I122+B123 -> 582.69 €
I124: =I123+B124 -> 582.69 €
I125: =I124+B125 -> 582.69 €
I126: =I125+B126 -> 582.69 €
I127: =I126+B127 -> 582.69 €
I128: =I127+B128 -> 582.69 €
I129: =I128+B129 -> 582.69 €
I130: =I129+B130 -> 582.69 €
I131: =I130+B131 -> 582.69 €

Sheet August 2016
A1: 2016-08-01
A2: Übertrag aus Vormonat | C2: =LOOKUP(9^99,'Juli 2016'!H$1:H$65536) -> 582.69 €
A4: WAS? | B4: Wert | C4: Bemerkung | D4: Fälligkeitszeitraum | E4: Wann ausgeführt | F4: Gebucht | G4: Buchungsdatum | H4: Kontostand
A5: DNWAB | B5: -78.00 € | D5: 2m | E5: 2016-08-15 | F5: x | G5: 2016-08-15 | H5: =I5 -> 504.69 € | I5: =C2+B5 -> 504.69 € | J5: m
A6: Sven Gehalt | B6: 3,060.13 € | D6: m | F6: x | G6: 2016-08-15 | H6: ='August 2016'!$I6 -> 3,564.82 € | I6: =I5+B6 -> 3,564.82 € | J6: 2m
A7: Autokredit Tilgung | B7: -200.00 € | D7: m | F7: x | G7: 2016-08-15 | H7: ='August 2016'!$I7 -> 3,364.82 € | I7: =I6+B7 -> 3,364.82 € | J7: vj
A8: Autokredit Tilgung Corinna | B8: -101.00 € | D8: m | F8: x | G8: 2016-08-15 | H8: ='August 2016'!$I8 -> 3,263.82 € | I8: =I7+B8 -> 3,263.82 € | J8: hj
A9: EC-Card | B9: -50.00 € | E9: 2016-08-12 | F9: x | G9: 2016-08-15 | H9: ='August 2016'!$I9 -> 3,213.82 € | I9: =I8+B9 -> 3,213.82 € | J9: j
A10: EC-Card | B10: -30.00 € | E10: 2016-08-14 | F10: x | G10: 2016-08-15 | H10: ='August 2016'!$I10 -> 3,183.82 € | I10: =I9+B10 -> 3,183.82 € | J10: 2j
A11: Lidl | B11: -81.97 € | E11: 2016-08-12 | F11: x | G11: 2016-08-15 | H11: ='August 2016'!$I11 -> 3,101.85 € | I11: =I10+B11 -> 3,101.85 €
A12: Thalia | B12: -6.95 € | E12: 2016-08-12 | F12: x | G12: 2016-08-15 | H12: ='August 2016'!$I12 -> 3,094.90 € | I12: =I11+B12 -> 3,094.90 €
A13: real | B13: -33.14 € | E13: 2016-08-12 | F13: x | G13: 2016-08-15 | H13: ='August 2016'!$I13 -> 3,061.76 € | I13: =I12+B13 -> 3,061.76 €
A14: Total | B14: -14.87 € | E14: 2016-08-12 | F14: x | G14: 2016-08-15 | H14: ='August 2016'!$I14 -> 3,046.89 € | I14: =I13+B14 -> 3,046.89 €
A15: ebay | B15: -19.99 € | E15: 2016-08-16 | F15: x | G15: 2016-08-16 | H15: ='August 2016'!$I15 -> 3,026.90 € | I15: =I14+B15 -> 3,026.90 €
A16: Rewe | B16: -21.33 € | E16: 2016-08-13 | F16: x | G16: 2016-08-16 | H16: ='August 2016'!$I16 -> 3,005.57 € | I16: =I15+B16 -> 3,005.57 €
A17: Lidl | B17: -14.52 € | E17: 2016-08-05 | F17: x | G17: 2016-08-16 | H17: ='August 2016'!$I17 -> 2,991.05 € | I17: =I16+B17 -> 2,991.05 €
A18: star | B18: -25.19 € | E18: 2016-08-14 | F18: x | G18: 2016-08-16 | H18: ='August 2016'!$I18 -> 2,965.86 € | I18: =I17+B18 -> 2,965.86 €
A19: Penny | B19: -10.06 € | E19: 2016-08-15 | F19: x | G19: 2016-08-17 | H19: ='August 2016'!$I19 -> 2,955.80 € | I19: =I18+B19 -> 2,955.80 €
A20: Paypal | B20: -6.95 € | F20: x | G20: 2016-08-17 | H20: ='August 2016'!$I20 -> 2,948.85 € | I20: =I19+B20 -> 2,948.85 €
A21: Total | B21: -25.18 € | E21: 2016-06-16 | F21: x | G21: 2016-08-17 | H21: ='August 2016'!$I21 -> 2,923.67 € | I21: =I20+B21 -> 2,923.67 €
A22: Bio am Bahnhof | B22: -23.48 € | E22: 2016-08-16 | F22: x | G22: 2016-08-17 | H22: ='August 2016'!$I22 -> 2,900.19 € | I22: =I21+B22 -> 2,900.19 €
A23: EC-Card | B23: -20.00 € | E23: 2016-08-17 | F23: x | G23: 2016-08-17 | H23: ='August 2016'!$I23 -> 2,880.19 € | I23: =I22+B23 -> 2,880.19 €
A24: GEZ | B24: -52.50 € | D24: vj | E24: 2016-08-18 | F24: x | G24: 2016-08-18 | H24: ='August 2016'!$I24 -> 2,827.69 € | I24: =I23+B24 -> 2,827.69 €
A25: Paypal | B25: -4.27 € | C25: domäne sriwoldt.de | E25: 2016-08-16 | F25: x | G25: 2016-08-18 | H25: ='August 2016'!$I25 -> 2,823.42 € | I25: =I24+B25 -> 2,823.42 €
A26: Paypal | B26: -18.00 € | E26: 2016-08-16 | F26: x | G26: 2016-08-18 | H26: ='August 2016'!$I26 -> 2,805.42 € | I26: =I25+B26 -> 2,805.42 €
A27: PayPal | B27: -2.51 € | E27: 2016-08-17 | F27: x | G27: 2016-08-19 | H27: ='August 2016'!$I27 -> 2,802.91 € | I27: =I26+B27 -> 2,802.91 €
A28: Welt digital | B28: -12.99 € | D28: m | F28: x | G28: 2016-08-19 | H28: ='August 2016'!$I28 -> 2,789.92 € | I28: =I27+B28 -> 2,789.92 €
A29: contabo | B29: -6.99 € | C29: root-server | D29: m | F29: x | G29: 2016-08-19 | H29: ='August 2016'!$I29 -> 2,782.93 € | I29: =I28+B29 -> 2,782.93 €
A30: OBI | B30: -85.98 € | C30: 52,99 wieder erhalten, da es nicht passte | E30: 2016-08-18 | F30: x | G30: 2016-08-19 | H30: ='August 2016'!$I30 -> 2,696.95 € | I30: =I29+B30 -> 2,696.95 €
A31: EMB | B31: -110.00 € | D31: m | F31: x | G31: 2016-08-22 | H31: ='August 2016'!$I31 -> 2,586.95 € | I31: =I30+B31 -> 2,586.95 €
A32: SparCard | B32: -150.00 € | C32: ='Juli 2016'!C23-'August 2016'!$B32-150-50 -> 4600 | D32: m | F32: x | G32: 2016-08-22 | H32: ='August 2016'!$I32 -> 2,436.95 € | I32: =I31+B32 -> 2,436.95 €
A33: Corinna Handy | B33: -33.96 € | D33: m | F33: x | G33: 2016-08-22 | H33: ='August 2016'!$I33 -> 2,402.99 € | I33: =I32+B33 -> 2,402.99 €
A34: Lidl | B34: -70.91 € | E34: 2016-08-19 | F34: x | G34: 2016-08-22 | H34: ='August 2016'!$I34 -> 2,332.08 € | I34: =I33+B34 -> 2,332.08 €
A35: Jet | B35: -12.59 € | E35: 2016-08-19 | F35: x | G35: 2016-08-22 | H35: ='August 2016'!$I35 -> 2,319.49 € | I35: =I34+B35 -> 2,319.49 €
A36: Vodafone | B36: -29.99 € | F36: x | G36: 2016-08-23 | H36: ='August 2016'!$I36 -> 2,289.50 € | I36: =I35+B36 -> 2,289.50 €
A37: Fressnapf | B37: -45.72 € | E37: 2016-08-19 | F37: x | G37: 2016-08-23 | H37: ='August 2016'!$I37 -> 2,243.78 € | I37: =I36+B37 -> 2,243.78 €
A38: EC-Card | B38: -35.00 € | E38: 2016-08-24 | F38: x | G38: 2016-08-24 | H38: ='August 2016'!$I38 -> 2,208.78 € | I38: =I37+B38 -> 2,208.78 €
A39: Apotheke | B39: -48.43 € | E39: 2016-08-20 | F39: x | G39: 2016-08-24 | H39: ='August 2016'!$I39 -> 2,160.35 € | I39: =I38+B39 -> 2,160.35 €
A40: Netto | B40: -9.62 € | E40: 2016-08-23 | F40: x | G40: 2016-08-25 | H40: ='August 2016'!$I40 -> 2,150.73 € | I40: =I39+B40 -> 2,150.73 €
A41: Paypal | B41: -14.34 € | C41: Corinnas Uhr | F41: x | G41: 2016-08-25 | H41: ='August 2016'!$I41 -> 2,136.39 € | I41: =I40+B41 -> 2,136.39 €
A42: EC-Card | B42: -30.00 € | E42: 2016-08-25 | F42: x | G42: 2016-08-25 | H42: ='August 2016'!$I42 -> 2,106.39 € | I42: =I41+B42 -> 2,106.39 €
A43: SBAZV | B43: -31.20 € | D43: hj | F43: x | G43: 2016-08-26 | H43: ='August 2016'!$I43 -> 2,075.19 € | I43: =I42+B43 -> 2,075.19 €
A44: T-Mobile | B44: -37.11 € | D44: m | F44: x | G44: 2016-08-29 | H44: ='August 2016'!$I44 -> 2,038.08 € | I44: =I43+B44 -> 2,038.08 €
A45: T-Mobile | B45: -19.95 € | D45: m | F45: x | G45: 2016-08-29 | H45: ='August 2016'!$I45 -> 2,018.13 € | I45: =I44+B45 -> 2,018.13 €
A46: EC-Card | B46: -20.00 € | E46: 2016-08-27 | F46: x | G46: 2016-08-29 | H46: ='August 2016'!$I46 -> 1,998.13 € | I46: =I45+B46 -> 1,998.13 €
A47: Lidl | B47: -99.81 € | E47: 2016-08-26 | F47: x | G47: 2016-08-29 | H47: ='August 2016'!$I47 -> 1,898.32 € | I47: =I46+B47 -> 1,898.32 €
A48: Corinna Gehalt | B48: 1,047.92 € | D48: m | F48: x | G48: 2016-08-29 | H48: ='August 2016'!$I48 -> 2,946.24 € | I48: =I47+B48 -> 2,946.24 €
A49: Bijou Brigitte | B49: -27.95 € | E49: 2016-08-27 | F49: x | G49: 2016-08-29 | H49: ='August 2016'!$I49 -> 2,918.29 € | I49: =I48+B49 -> 2,918.29 €
A50: PflanzenKölle | B50: -30.23 € | E50: 2016-08-27 | F50: x | G50: 2016-08-29 | H50: ='August 2016'!$I50 -> 2,888.06 € | I50: =I49+B50 -> 2,888.06 €
A51: Fressnapf | B51: -18.98 € | E51: 2016-08-26 | F51: x | G51: 2016-08-30 | H51: ='August 2016'!$I51 -> 2,869.08 € | I51: =I50+B51 -> 2,869.08 €
A52: McPaper | B52: -36.85 € | E52: 2016-08-26 | F52: x | G52: 2016-08-30 | H52: ='August 2016'!$I52 -> 2,832.23 € | I52: =I51+B52 -> 2,832.23 €
A53: Jet | B53: -18.74 € | E53: 2016-08-26 | F53: x | G53: 2016-08-30 | H53: ='August 2016'!$I53 -> 2,813.49 € | I53: =I52+B53 -> 2,813.49 €
A54: Paypal | B54: -18.90 € | C54: Staubsaugerbeutel | E54: 2016-08-28 | F54: x | G54: 2016-08-30 | H54: ='August 2016'!$I54 -> 2,794.59 € | I54: =I53+B54 -> 2,794.59 €
A55: Netto | B55: -11.10 € | E55: 2016-08-27 | F55: x | G55: 2016-08-30 | H55: ='August 2016'!$I55 -> 2,783.49 € | I55: =I54+B55 -> 2,783.49 €
A56: Paypal | B56: -59.00 € | C56: Uhr | E56: 2016-08-27 | F56: x | G56: 2016-08-30 | H56: ='August 2016'!$I56 -> 2,724.49 € | I56: =I55+B56 -> 2,724.49 €
A57: Aldi | B57: -21.97 € | E57: 2016-08-29 | F57: x | G57: 2016-08-30 | H57: ='August 2016'!$I57 -> 2,702.52 € | I57: =I56+B57 -> 2,702.52 €
A58: Corinna Bausparer | B58: -20.00 € | D58: m | F58: x | G58: 2016-08-31 | H58: ='August 2016'!$I58 -> 2,682.52 € | I58: =I57+B58 -> 2,682.52 €
A59: Roller | B59: -16.94 € | E59: 2016-08-29 | F59: x | G59: 2016-08-31 | H59: ='August 2016'!$I59 -> 2,665.58 € | I59: =I58+B59 -> 2,665.58 €
A60: HypoVereinsbank | B60: -909.65 € | D60: m | F60: x | G60: 2016-08-31 | H60: ='August 2016'!$I60 -> 1,755.93 € | I60: =I59+B60 -> 1,755.93 €
A61: EC-Card | B61: -100.00 € | E61: 2016-08-31 | F61: x | G61: 2016-08-31 | H61: ='August 2016'!$I61 -> 1,655.93 € | I61: =I60+B61 -> 1,655.93 €
A62: Sun | B62: -67.37 € | E62: 2016-08-29 | F62: x | G62: 2016-08-31 | H62: ='August 2016'!$I62 -> 1,588.56 € | I62: =I61+B62 -> 1,588.56 €
A63: EWE | B63: -66.00 € | D63: m | F63: x | G63: 2016-09-01 | H63: ='August 2016'!$I63 -> 1,522.56 € | I63: =I62+B63 -> 1,522.56 €
A64: Autoversicherung Sven | B64: -27.58 € | C64: -25.31 | D64: m | F64: x | G64: 2016-09-01 | H64: ='August 2016'!$I64 -> 1,494.98 € | I64: =I63+B64 -> 1,494.98 €
A65: Autoversicherung Corinna | B65: -20.93 € | C65: -21.17 | D65: m | F65: x | G65: 2016-09-01 | H65: ='August 2016'!$I65 -> 1,474.05 € | I65: =I64+B65 -> 1,474.05 €
A66: Comfort Card | B66: -88.00 € | D66: m | F66: x | G66: 2016-09-01 | H66: ='August 2016'!$I66 -> 1,386.05 € | I66: =I65+B66 -> 1,386.05 €
A67: Mac 2 | B67: -51.48 € | C67: am 01.12.16 51,64€ | D67: m | F67: x | G67: 2016-09-01 | H67: ='August 2016'!$I67 -> 1,334.57 € | I67: =I66+B67 -> 1,334.57 €
A68: BVG | B68: -82.17 € | D68: m | F68: x | G68: 2016-09-01 | H68: ='August 2016'!$I68 -> 1,252.40 € | I68: =I67+B68 -> 1,252.40 €
A69: Laptop | B69: -51.01 € | C69: danach 22 x 51,01 und am 1.8.18 51,08 | D69: m | F69: x | G69: 2016-09-01 | H69: ='August 2016'!$I69 -> 1,201.39 € | I69: =I68+B69 -> 1,201.39 €
A70: Paypal | B70: -10.00 € | C70: Udemy Java Fx | E70: 2016-08-30 | F70: x | G70: 2016-09-01 | H70: ='August 2016'!$I70 -> 1,191.39 € | I70: =I69+B70 -> 1,191.39 €
A71: Jet | B71: -20.01 € | E71: 2016-08-30 | F71: x | G71: 2016-09-01 | H71: ='August 2016'!$I71 -> 1,171.38 € | I71: =I70+B71 -> 1,171.38 €
A72: Netto | B72: -11.13 € | E72: 2016-08-31 | F72: x | G72: 2016-09-02 | H72: ='August 2016'!$I72 -> 1,160.25 € | I72: =I71+B72 -> 1,160.25 €
A73: Corinna Sport | B73: -120.00 € | E73: 2016-09-05 | F73: x | G73: 2016-09-05 | H73: ='August 2016'!$I73 -> 1,040.25 € | I73: =I72+B73 -> 1,040.25 €
A74: EC-Card | B74: -30.00 € | E74: 2016-09-03 | F74: x | G74: 2016-09-05 | H74: ='August 2016'!$I74 -> 1,010.25 € | I74: =I73+B74 -> 1,010.25 €
A75: Total | B75: -10.07 € | E75: 2016-09-04 | F75: x | G75: 2016-09-05 | H75: ='August 2016'!$I75 -> 1,000.18 € | I75: =I74+B75 -> 1,000.18 €
A76: Bio am Bahnhof | B76: -23.79 € | E76: 2016-09-02 | F76: x | G76: 2016-09-05 | H76: ='August 2016'!$I76 -> 976.39 € | I76: =I75+B76 -> 976.39 €
A77: Lidl | B77: -79.42 € | E77: 2016-09-02 | F77: x | G77: 2016-09-05 | H77: ='August 2016'!$I77 -> 896.97 € | I77: =I76+B77 -> 896.97 €
A78: Penny | B78: -6.96 € | E78: 2016-09-02 | F78: x | G78: 2016-09-05 | H78: ='August 2016'!$I78 -> 890.01 € | I78: =I77+B78 -> 890.01 €
A79: Zeitungskosk | B79: =-(2*5.99) -> -11.98 € | E79: 2016-09-01 | F79: x | G79: 2016-09-05 | H79: ='August 2016'!$I79 -> 878.03 € | I79: =I78+B79 -> 878.03 €
A80: Uhrmacher | B80: -22.00 € | E80: 2016-09-02 | F80: x | G80: 2016-09-05 | H80: ='August 2016'!$I80 -> 856.03 € | I80: =I79+B80 -> 856.03 €
A81: Thalia | B81: =-(14.99+9.99) -> -24.98 € | E81: 2016-09-03 | F81: x | G81: 2016-09-05 | H81: ='August 2016'!$I81 -> 831.05 € | I81: =I80+B81 -> 831.05 €
A82: Jet | B82: -15.53 € | E82: 2016-09-02 | F82: x | G82: 2016-09-06 | H82: ='August 2016'!$I82 -> 815.52 € | I82: =I81+B82 -> 815.52 €
A83: Fressnapf | B83: -27.86 € | E83: 2016-09-02 | F83: x | G83: 2016-09-06 | H83: ='August 2016'!$I83 -> 787.66 € | I83: =I82+B83 -> 787.66 €
A84: EC-Card | B84: -30.00 € | E84: 2016-09-07 | F84: x | G84: 2016-09-07 | H84: ='August 2016'!$I84 -> 757.66 € | I84: =I83+B84 -> 757.66 €
A85: Sprint | B85: -20.92 € | E85: 2016-09-07 | F85: x | G85: 2016-09-08 | H85: ='August 2016'!$I85 -> 736.74 € | I85: =I84+B85 -> 736.74 €
A86: DBV Haftpflicht | B86: -6.54 € | D86: m | F86: x | G86: 2016-09-08 | H86: ='August 2016'!$I86 -> 730.20 € | I86: =I85+B86 -> 730.20 €
A87: Fressnapf | B87: -37.66 € | E87: 2016-09-06 | F87: x | G87: 2016-09-08 | H87: ='August 2016'!$I87 -> 692.54 € | I87: =I86+B87 -> 692.54 €
A88: EC-Card | B88: -30.00 € | E88: 2016-09-08 | F88: x | G88: 2016-09-08 | H88: ='August 2016'!$I88 -> 662.54 € | I88: =I87+B88 -> 662.54 €
A89: EUROCARD | B89: =-34-15.98-46.85-7.96-14.63-0.99 -> -120.41 € | C89: Opeth und die BF-109 ist im nächsten Monat | D89: m | F89: x | G89: 2016-09-09 | H89: ='August 2016'!$I89 -> 542.13 € | I89: =I88+B89 -> 542.13 €
A90: Aral | B90: -27.80 € | E90: 2016-08-21 | F90: x | G90: 2016-09-09 | H90: ='August 2016'!$I90 -> 514.33 € | I90: =I89+B90 -> 514.33 €
A91: Paypal | B91: -64.99 € | F91: x | G91: 2016-09-09 | H91: ='August 2016'!$I91 -> 449.34 € | I91: =I90+B91 -> 449.34 €
A92: Paypal | B92: -15.02 € | F92: x | G92: 2016-09-09 | H92: ='August 2016'!$I92 -> 434.32 € | I92: =I91+B92 -> 434.32 €
A93: Aldi | B93: -71.40 € | E93: 2016-09-09 | F93: x | G93: 2016-09-12 | H93: ='August 2016'!$I93 -> 362.92 € | I93: =I92+B93 -> 362.92 €
A94: Kabelanschluss | B94: -30.91 € | D94: m | F94: x | G94: 2016-09-12 | H94: ='August 2016'!$I94 -> 332.01 € | I94: =I93+B94 -> 332.01 €
A95: Kabel Internet | B95: -39.54 € | D95: m | E95: 2016-09-09 | F95: x | G95: 2016-09-12 | H95: ='August 2016'!$I95 -> 292.47 € | I95: =I94+B95 -> 292.47 €
A96: Kindergeld | B96: 190.00 € | D96: m | F96: x | G96: 2016-09-12 | H96: ='August 2016'!$I96 -> 482.47 € | I96: =I95+B96 -> 482.47 €
A97: PfennigPfeiffer | B97: -33.17 € | E97: 2016-09-10 | F97: x | G97: 2016-09-12 | H97: ='August 2016'!$I97 -> 449.30 € | I97: =I96+B97 -> 449.30 €
A98: Hagebau | B98: -17.98 € | E98: 2016-09-10 | F98: x | G98: 2016-09-12 | H98: ='August 2016'!$I98 -> 431.32 € | I98: =I97+B98 -> 431.32 €
A99: Roller | B99: -19.74 € | E99: 2016-09-09 | F99: x | G99: 2016-09-13 | H99: ='August 2016'!$I99 -> 411.58 € | I99: =I98+B99 -> 411.58 €
A100: Jet | B100: -17.69 € | E100: 2016-09-10 | F100: x | G100: 2016-09-13 | H100: ='August 2016'!$I100 -> 393.89 € | I100: =I99+B100 -> 393.89 €
A101: Netto | B101: -15.70 € | E101: 2016-09-12 | F101: x | G101: 2016-09-14 | H101: ='August 2016'!$I101 -> 378.19 € | I101: =I100+B101 -> 378.19 €
A102: Union Zapfstelle | B102: -18.74 € | E102: 2016-09-13 | F102: x | G102: 2016-09-14 | H102: ='August 2016'!$I102 -> 359.45 € | I102: =I101+B102 -> 359.45 €
A103: EC-Card | B103: -50.00 € | E103: 2016-09-14 | F103: x | G103: 2016-09-14 | H103: ='August 2016'!$I103 -> 309.45 € | I103: =I102+B103 -> 309.45 €
A104: Netto | B104: -10.60 € | E104: 2016-09-13 | F104: x | G104: 2016-09-15 | H104: ='August 2016'!$I104 -> 298.85 € | I104: =I103+B104 -> 298.85 €
A105: EMB Guthaben | B105: 322.58 € | F105: x | G105: 2016-09-15 | H105: ='August 2016'!$I105 -> 621.43 € | I105: =I104+B105 -> 621.43 €
A106: Finazamt Nachzahlung | B106: -174.61 € | E106: 2016-09-15 | F106: x | G106: 2016-09-15 | H106: ='August 2016'!$I106 -> 446.82 € | I106: =I105+B106 -> 446.82 €
H107: ='August 2016'!$I107 -> 446.82 € | I107: =I106+B107 -> 446.82 €
H108: ='August 2016'!$I108 -> 446.82 € | I108: =I107+B108 -> 446.82 €
H109: ='August 2016'!$I109 -> 446.82 € | I109: =I108+B109 -> 446.82 €
I110: =I109+B110 -> 446.82 €
I111: =I110+B111 -> 446.82 €
I112: =I111+B112 -> 446.82 €
I113: =I112+B113 -> 446.82 €
I114: =I113+B114 -> 446.82 €
I115: =I114+B115 -> 446.82 €
I116: =I115+B116 -> 446.82 €
I117: =I116+B117 -> 446.82 €
I118: =I117+B118 -> 446.82 €
I119: =I118+B119 -> 446.82 €
I120: =I119+B120 -> 446.82 €
I121: =I120+B121 -> 446.82 €
I122: =I121+B122 -> 446.82 €
I123: =I122+B123 -> 446.82 €
I124: =I123+B124 -> 446.82 €
I125: =I124+B125 -> 446.82 €
I126: =I125+B126 -> 446.82 €
I127: =I126+B127 -> 446.82 €
I128: =I127+B128 -> 446.82 €
I129: =I128+B129 -> 446.82 €
I130: =I129+B130 -> 446.82 €
I131: =I130+B131 -> 446.82 €

Sheet September 2016
A1: 2016-09-01
A2: Übertrag aus Vormonat | C2: =LOOKUP(9^99,'August 2016'!H$1:H$65536) -> 446.82 €
A4: WAS? | B4: Wert | C4: Bemerkung | D4: Fälligkeitszeitraum | E4: Wann ausgeführt | F4: Gebucht | G4: Buchungsdatum | H4: Kontostand
A5: Sven Gehalt | B5: 3,185.28 € | D5: m | F5: x | G5: 2016-09-15 | H5: =I5 -> 3,632.10 € | I5: =C2+B5 -> 3,632.10 € | J5: m
A6: Autokredit Tilgung | B6: -200.00 € | D6: m | F6: x | G6: 2016-09-15 | H6: ='September 2016'!$I6 -> 3,432.10 € | I6: =I5+B6 -> 3,432.10 € | J6: 2m
A7: Autokredit Tilgung Corinna | B7: -101.00 € | D7: m | F7: x | G7: 2016-09-15 | H7: ='September 2016'!$I7 -> 3,331.10 € | I7: =I6+B7 -> 3,331.10 € | J7: vj
A8: Schulamt Cottbus | B8: -26.00 € | C8: Fachhochschulreife | E8: 2016-09-15 | F8: x | G8: 2016-09-15 | H8: ='September 2016'!$I8 -> 3,305.10 € | I8: =I7+B8 -> 3,305.10 € | J8: hj
A9: Welt digital | B9: -12.99 € | D9: m | F9: x | G9: 2016-09-16 | H9: ='September 2016'!$I9 -> 3,292.11 € | I9: =I8+B9 -> 3,292.11 € | J9: j
A10: Paypal | B10: -1.16 € | F10: x | G10: 2016-09-16 | H10: ='September 2016'!$I10 -> 3,290.95 € | I10: =I9+B10 -> 3,290.95 € | J10: 2j
A11: Fressnapf | B11: -17.21 € | E11: 2016-09-14 | F11: x | G11: 2016-09-16 | H11: ='September 2016'!$I11 -> 3,273.74 € | I11: =I10+B11 -> 3,273.74 €
A12: Aldi | B12: -31.88 € | E12: 2016-09-15 | F12: x | G12: 2016-09-16 | H12: ='September 2016'!$I12 -> 3,241.86 € | I12: =I11+B12 -> 3,241.86 €
A13: Auszahlung Glasschaden | B13: 201.35 € | F13: x | G13: 2016-09-16 | H13: ='September 2016'!$I13 -> 3,443.21 € | I13: =I12+B13 -> 3,443.21 €
A14: Sparcard | B14: -200.00 € | C14: 4800 | F14: x | G14: 2016-09-16 | H14: ='September 2016'!$I14 -> 3,243.21 € | I14: =I13+B14 -> 3,243.21 €
A15: Netto | B15: -10.26 € | E15: 2016-09-15 | F15: x | G15: 2016-09-19 | H15: ='September 2016'!$I15 -> 3,232.95 € | I15: =I14+B15 -> 3,232.95 €
A16: Mediamarkt | B16: -139.00 € | E16: 2016-09-15 | F16: x | G16: 2016-09-19 | H16: ='September 2016'!$I16 -> 3,093.95 € | I16: =I15+B16 -> 3,093.95 €
A17: Jet | B17: -57.44 € | E17: 2016-09-15 | F17: x | G17: 2016-09-19 | H17: ='September 2016'!$I17 -> 3,036.51 € | I17: =I16+B17 -> 3,036.51 €
A18: EC-Card | B18: -50.00 € | E18: 2016-09-16 | F18: x | G18: 2016-09-19 | H18: ='September 2016'!$I18 -> 2,986.51 € | I18: =I17+B18 -> 2,986.51 €
A19: EC-Card | B19: -10.00 € | E19: 2016-09-19 | F19: x | G19: 2016-09-19 | H19: ='September 2016'!$I19 -> 2,976.51 € | I19: =I18+B19 -> 2,976.51 €
A20: EC-Card | B20: -50.00 € | E20: 2016-09-19 | F20: x | G20: 2016-09-19 | H20: ='September 2016'!$I20 -> 2,926.51 € | I20: =I19+B20 -> 2,926.51 €
A21: Tankstelle | B21: -21.63 € | E21: 2016-09-16 | F21: x | G21: 2016-09-20 | H21: ='September 2016'!$I21 -> 2,904.88 € | I21: =I20+B21 -> 2,904.88 €
A22: Sky | B22: -18.10 € | E22: 2016-09-16 | F22: x | G22: 2016-09-20 | H22: ='September 2016'!$I22 -> 2,886.78 € | I22: =I21+B22 -> 2,886.78 €
A23: Sky | B23: -18.01 € | E23: 2016-09-17 | F23: x | G23: 2016-09-20 | H23: ='September 2016'!$I23 -> 2,868.77 € | I23: =I22+B23 -> 2,868.77 €
A24: Corinna Handy | B24: -33.96 € | D24: m | F24: x | G24: 2016-09-21 | H24: ='September 2016'!$I24 -> 2,834.81 € | I24: =I23+B24 -> 2,834.81 €
A25: IKEA | B25: -34.43 € | E25: 2016-09-19 | F25: x | G25: 2016-09-21 | H25: ='September 2016'!$I25 -> 2,800.38 € | I25: =I24+B25 -> 2,800.38 €
A26: SparCard | B26: -150.00 € | C26: 4900 | D26: m | F26: x | G26: 2016-09-21 | H26: ='September 2016'!$I26 -> 2,650.38 € | I26: =I25+B26 -> 2,650.38 €
A27: Netto | B27: -27.21 € | E27: 2016-09-20 | F27: x | G27: 2016-09-21 | H27: ='September 2016'!$I27 -> 2,623.17 € | I27: =I26+B27 -> 2,623.17 €
A28: Tankstelle | B28: -52.46 € | E28: 2016-09-20 | F28: x | G28: 2016-09-21 | H28: ='September 2016'!$I28 -> 2,570.71 € | I28: =I27+B28 -> 2,570.71 €
A29: EC-Card | B29: -100.00 € | E29: 2016-09-21 | F29: x | G29: 2016-09-22 | H29: ='September 2016'!$I29 -> 2,470.71 € | I29: =I28+B29 -> 2,470.71 €
A30: Netto | B30: -8.36 € | E30: 2016-09-20 | F30: x | G30: 2016-09-22 | H30: ='September 2016'!$I30 -> 2,462.35 € | I30: =I29+B30 -> 2,462.35 €
A31: Paypal | B31: -20.00 € | C31: BLB | F31: x | G31: 2016-09-22 | H31: ='September 2016'!$I31 -> 2,442.35 € | I31: =I30+B31 -> 2,442.35 €
A32: Filigran | B32: -65.00 € | E32: 2016-09-21 | F32: x | G32: 2016-09-22 | H32: ='September 2016'!$I32 -> 2,377.35 € | I32: =I31+B32 -> 2,377.35 €
A33: Vodafone | B33: -31.99 € | D33: m | F33: x | G33: 2016-09-23 | H33: ='September 2016'!$I33 -> 2,345.36 € | I33: =I32+B33 -> 2,345.36 €
A34: EC-Card | B34: -30.00 € | E34: 2016-09-22 | F34: x | G34: 2016-09-23 | H34: ='September 2016'!$I34 -> 2,315.36 € | I34: =I33+B34 -> 2,315.36 €
A35: Getränkemarkt | B35: -10.47 € | E35: 2016-09-22 | F35: x | G35: 2016-09-23 | H35: ='September 2016'!$I35 -> 2,304.89 € | I35: =I34+B35 -> 2,304.89 €
A36: Getränkemarkt | B36: -14.74 € | E36: 2016-09-22 | F36: x | G36: 2016-09-23 | H36: ='September 2016'!$I36 -> 2,290.15 € | I36: =I35+B36 -> 2,290.15 €
A37: für Miete Vivian | B37: 500.00 € | E37: 2016-09-26 | F37: x | G37: 2016-09-26 | H37: ='September 2016'!$I37 -> 2,790.15 € | I37: =I36+B37 -> 2,790.15 €
A38: Thalia | B38: -7.99 € | C38: Paypal | E38: 2016-09-15 | F38: x | G38: 2016-09-26 | H38: ='September 2016'!$I38 -> 2,782.16 € | I38: =I37+B38 -> 2,782.16 €
A39: Netto | B39: -9.30 € | E39: 2016-09-22 | F39: x | G39: 2016-09-26 | H39: ='September 2016'!$I39 -> 2,772.86 € | I39: =I38+B39 -> 2,772.86 €
A40: Kaution | B40: -540.00 € | F40: x | G40: 2016-09-26 | H40: ='September 2016'!$I40 -> 2,232.86 € | I40: =I39+B40 -> 2,232.86 €
A41: Lidl | B41: -70.07 € | E41: 2016-09-23 | F41: x | G41: 2016-09-26 | H41: ='September 2016'!$I41 -> 2,162.79 € | I41: =I40+B41 -> 2,162.79 €
A42: dm | B42: -14.85 € | E42: 2016-09-23 | F42: x | G42: 2016-09-26 | H42: ='September 2016'!$I42 -> 2,147.94 € | I42: =I41+B42 -> 2,147.94 €
A43: EC-Card | B43: -30.00 € | E43: 2016-09-26 | F43: x | G43: 2016-09-26 | H43: ='September 2016'!$I43 -> 2,117.94 € | I43: =I42+B43 -> 2,117.94 €
A44: Fressnapf | B44: -23.81 € | E44: 2016-09-23 | F44: x | G44: 2016-09-27 | H44: ='September 2016'!$I44 -> 2,094.13 € | I44: =I43+B44 -> 2,094.13 €
A45: Ranzinger | B45: -14.99 € | E45: 2016-09-19 | F45: x | G45: 2016-09-27 | H45: ='September 2016'!$I45 -> 2,079.14 € | I45: =I44+B45 -> 2,079.14 €
A46: Jet | B46: -18.29 € | E46: 2016-09-23 | F46: x | G46: 2016-09-27 | H46: ='September 2016'!$I46 -> 2,060.85 € | I46: =I45+B46 -> 2,060.85 €
A47: IKEA | B47: -243.44 € | C47: Möbel für Vivi | E47: 2016-09-24 | F47: x | G47: 2016-09-27 | H47: ='September 2016'!$I47 -> 1,817.41 € | I47: =I46+B47 -> 1,817.41 €
A48: HDI Gerling | B48: -85.94 € | D48: vj | F48: x | G48: 2016-09-27 | H48: ='September 2016'!$I48 -> 1,731.47 € | I48: =I47+B48 -> 1,731.47 €
A49: T-Mobile | B49: -36.91 € | D49: m | F49: x | G49: 2016-09-27 | H49: ='September 2016'!$I49 -> 1,694.56 € | I49: =I48+B49 -> 1,694.56 €
A50: T-Mobile | B50: -19.95 € | D50: m | F50: x | G50: 2016-09-27 | H50: ='September 2016'!$I50 -> 1,674.61 € | I50: =I49+B50 -> 1,674.61 €
A51: Hotel Horthertor | B51: -81.00 € | E51: 2016-09-21 | F51: x | G51: 2016-09-27 | H51: ='September 2016'!$I51 -> 1,593.61 € | I51: =I50+B51 -> 1,593.61 €
A52: dm | B52: -14.85 € | E52: 2016-09-26 | F52: x | G52: 2016-09-27 | H52: ='September 2016'!$I52 -> 1,578.76 € | I52: =I51+B52 -> 1,578.76 €
A53: denns Bio | B53: -21.26 € | E53: 2016-09-26 | F53: x | G53: 2016-09-28 | H53: ='September 2016'!$I53 -> 1,557.50 € | I53: =I52+B53 -> 1,557.50 €
A54: Penny | B54: -10.12 € | E54: 2016-09-26 | F54: x | G54: 2016-09-28 | H54: ='September 2016'!$I54 -> 1,547.38 € | I54: =I53+B54 -> 1,547.38 €
A55: Paypal | B55: -35.53 € | C55: Radio | E55: 2016-09-26 | F55: x | G55: 2016-09-28 | H55: ='September 2016'!$I55 -> 1,511.85 € | I55: =I54+B55 -> 1,511.85 €
A56: Corinna Gehalt | B56: 1,057.89 € | D56: m | F56: x | G56: 2016-09-28 | H56: ='September 2016'!$I56 -> 2,569.74 € | I56: =I55+B56 -> 2,569.74 €
A57: real | B57: -27.93 € | E57: 2016-09-27 | F57: x | G57: 2016-09-28 | H57: ='September 2016'!$I57 -> 2,541.81 € | I57: =I56+B57 -> 2,541.81 €
A58: EC-Card | B58: -100.00 € | E58: 2016-09-29 | F58: x | G58: 2016-09-29 | H58: ='September 2016'!$I58 -> 2,441.81 € | I58: =I57+B58 -> 2,441.81 €
A59: Jet | B59: -13.30 € | E59: 2016-09-27 | F59: x | G59: 2016-09-29 | H59: ='September 2016'!$I59 -> 2,428.51 € | I59: =I58+B59 -> 2,428.51 €
A60: Corinna Bausparer | B60: -20.00 € | D60: m | F60: x | G60: 2016-09-30 | H60: ='September 2016'!$I60 -> 2,408.51 € | I60: =I59+B60 -> 2,408.51 €
A61: HypoVereinsbank | B61: -909.65 € | D61: m | F61: x | G61: 2016-09-30 | H61: ='September 2016'!$I61 -> 1,498.86 € | I61: =I60+B61 -> 1,498.86 €
A62: Paypal | B62: -4.39 € | C62: Polywatch | E62: 2016-09-28 | F62: x | G62: 2016-09-30 | H62: ='September 2016'!$I62 -> 1,494.47 € | I62: =I61+B62 -> 1,494.47 €
A63: Netto | B63: -10.16 € | E63: 2016-09-28 | F63: x | G63: 2016-09-30 | H63: ='September 2016'!$I63 -> 1,484.31 € | I63: =I62+B63 -> 1,484.31 €
A64: Hornbach | B64: -16.50 € | E64: 2016-09-28 | F64: x | G64: 2016-09-30 | H64: ='September 2016'!$I64 -> 1,467.81 € | I64: =I63+B64 -> 1,467.81 €
A65: Paypal | B65: -30.00 € | C65: Udemy | E65: 2016-09-28 | F65: x | G65: 2016-09-30 | H65: ='September 2016'!$I65 -> 1,437.81 € | I65: =I64+B65 -> 1,437.81 €
A66: EWE | B66: -66.00 € | D66: m | F66: x | G66: 2016-10-04 | H66: ='September 2016'!$I66 -> 1,371.81 € | I66: =I65+B66 -> 1,371.81 €
A67: Tankstelle Greifswald | B67: -18.75 € | E67: 2016-10-01 | F67: x | G67: 2016-10-04 | H67: ='September 2016'!$I67 -> 1,353.06 € | I67: =I66+B67 -> 1,353.06 €
A68: Albers | B68: -49.00 € | E68: 2016-10-01 | F68: x | G68: 2016-10-04 | H68: ='September 2016'!$I68 -> 1,304.06 € | I68: =I67+B68 -> 1,304.06 €
A69: Mediamarkt | B69: -6.99 € | E69: 2016-10-01 | F69: x | G69: 2016-10-04 | H69: ='September 2016'!$I69 -> 1,297.07 € | I69: =I68+B69 -> 1,297.07 €
A70: Lidl | B70: -76.07 € | E70: 2016-09-30 | F70: x | G70: 2016-10-04 | H70: ='September 2016'!$I70 -> 1,221.00 € | I70: =I69+B70 -> 1,221.00 €
A71: Autoversicherung Sven | B71: -27.58 € | C71: -25.31 | D71: m | F71: x | G71: 2016-10-04 | H71: ='September 2016'!$I71 -> 1,193.42 € | I71: =I70+B71 -> 1,193.42 €
A72: Autoversicherung Corinna | B72: -20.93 € | C72: -21.17 | D72: m | F72: x | G72: 2016-10-04 | H72: ='September 2016'!$I72 -> 1,172.49 € | I72: =I71+B72 -> 1,172.49 €
A73: Comfort Card | B73: -88.00 € | D73: m | F73: x | G73: 2016-10-04 | H73: ='September 2016'!$I73 -> 1,084.49 € | I73: =I72+B73 -> 1,084.49 €
A74: Laptop | B74: -51.01 € | C74: danach 21 x 51,01 und am 1.8.18 51,08 | D74: m | F74: x | G74: 2016-10-04 | H74: ='September 2016'!$I74 -> 1,033.48 € | I74: =I73+B74 -> 1,033.48 €
A75: Mac 2 | B75: -51.48 € | C75: am 01.12.16 51,64€ | D75: m | F75: x | G75: 2016-10-04 | H75: ='September 2016'!$I75 -> 982.00 € | I75: =I74+B75 -> 982.00 €
A76: Amazon | B76: -14.99 € | F76: x | G76: 2016-10-04 | H76: ='September 2016'!$I76 -> 967.01 € | I76: =I75+B76 -> 967.01 €
A77: Fressnapf | B77: -23.47 € | E77: 2016-09-30 | F77: x | G77: 2016-10-04 | H77: ='September 2016'!$I77 -> 943.54 € | I77: =I76+B77 -> 943.54 €
A78: EC-Card | B78: -30.00 € | E78: 2016-10-03 | F78: x | G78: 2016-10-04 | H78: ='September 2016'!$I78 -> 913.54 € | I78: =I77+B78 -> 913.54 €
A79: Jet | B79: -50.00 € | E79: 2016-09-30 | F79: x | G79: 2016-10-04 | H79: ='September 2016'!$I79 -> 863.54 € | I79: =I78+B79 -> 863.54 €
A80: BVG | B80: -82.17 € | D80: m | F80: x | G80: 2016-10-04 | H80: ='September 2016'!$I80 -> 781.37 € | I80: =I79+B80 -> 781.37 €
A81: Shell | B81: -16.31 € | E81: 2016-10-03 | F81: x | G81: 2016-10-04 | H81: ='September 2016'!$I81 -> 765.06 € | I81: =I80+B81 -> 765.06 €
A82: Amazon | B82: -0.99 € | F82: x | G82: 2016-10-04 | H82: ='September 2016'!$I82 -> 764.07 € | I82: =I81+B82 -> 764.07 €
A83: Amazon | B83: -0.99 € | F83: x | G83: 2016-10-04 | H83: ='September 2016'!$I83 -> 763.08 € | I83: =I82+B83 -> 763.08 €
A84: EC-Card | B84: -20.00 € | F84: x | G84: 2016-10-04 | H84: ='September 2016'!$I84 -> 743.08 € | I84: =I83+B84 -> 743.08 €
A85: EC-Card | B85: -30.00 € | E85: 2016-10-07 | F85: x | G85: 2016-10-07 | H85: ='September 2016'!$I85 -> 713.08 € | I85: =I84+B85 -> 713.08 €
A86: DBV Haftpflicht | B86: -6.54 € | D86: m | F86: x | G86: 2016-10-10 | H86: ='September 2016'!$I86 -> 706.54 € | I86: =I85+B86 -> 706.54 €
A87: Contabo | B87: -3.37 € | D87: m | F87: x | G87: 2016-10-10 | H87: ='September 2016'!$I87 -> 703.17 € | I87: =I86+B87 -> 703.17 €
A88: Lidl | B88: -88.31 € | E88: 2016-10-07 | F88: x | G88: 2016-10-10 | H88: ='September 2016'!$I88 -> 614.86 € | I88: =I87+B88 -> 614.86 €
A89: C&A | B89: -33.00 € | E89: 2016-10-08 | F89: x | G89: 2016-10-10 | H89: ='September 2016'!$I89 -> 581.86 € | I89: =I88+B89 -> 581.86 €
A90: star-Tankstelle | B90: -13.49 € | E90: 2016-10-08 | F90: x | G90: 2016-10-11 | H90: ='September 2016'!$I90 -> 568.37 € | I90: =I89+B90 -> 568.37 €
A91: Kabelanschluss | B91: -30.91 € | D91: m | F91: x | G91: 2016-10-12 | H91: ='September 2016'!$I91 -> 537.46 € | I91: =I90+B91 -> 537.46 €
A92: Kabel Internet | B92: -39.54 € | D92: m | F92: x | G92: 2016-10-12 | H92: ='September 2016'!$I92 -> 497.92 € | I92: =I91+B92 -> 497.92 €
A93: EUROCARD | B93: =-34-59.94-26.09-14.99-0.99-4.99-18 -> -159.00 € | C93: Opeth neues Album | D93: m | F93: x | G93: 2016-10-12 | H93: ='September 2016'!$I93 -> 338.92 € | I93: =I92+B93 -> 338.92 €
A94: Kindergeld | B94: 190.00 € | D94: m | F94: x | G94: 2016-10-12 | H94: ='September 2016'!$I94 -> 528.92 € | I94: =I93+B94 -> 528.92 €
A95: doorbreaker | B95: -79.99 € | E95: 2016-10-11 | F95: x | G95: 2016-10-12 | H95: ='September 2016'!$I95 -> 448.93 € | I95: =I94+B95 -> 448.93 €
A96: EC-Card | B96: -20.00 € | E96: 2016-10-12 | F96: x | G96: 2016-10-12 | H96: ='September 2016'!$I96 -> 428.93 € | I96: =I95+B96 -> 428.93 €
A97: Fressnapf | B97: -17.93 € | E97: 2016-10-10 | F97: x | G97: 2016-10-12 | H97: ='September 2016'!$I97 -> 411.00 € | I97: =I96+B97 -> 411.00 €
A98: Vivi | B98: -130.00 € | F98: x | G98: 2016-10-12 | H98: ='September 2016'!$I98 -> 281.00 € | I98: =I97+B98 -> 281.00 €
A99: sprint | B99: -14.24 € | E99: 2016-10-12 | F99: x | G99: 2016-10-13 | H99: ='September 2016'!$I99 -> 266.76 € | I99: =I98+B99 -> 266.76 €
A100: contabo | B100: -15.00 € | F100: x | G100: 2016-10-13 | H100: ='September 2016'!$I100 -> 251.76 € | I100: =I99+B100 -> 251.76 €
H101: ='September 2016'!$I101 -> 251.76 € | I101: =I100+B101 -> 251.76 €
H102: ='September 2016'!$I102 -> 251.76 € | I102: =I101+B102 -> 251.76 €
H103: ='September 2016'!$I103 -> 251.76 € | I103: =I102+B103 -> 251.76 €
H104: ='September 2016'!$I104 -> 251.76 € | I104: =I103+B104 -> 251.76 €
H105: ='September 2016'!$I105 -> 251.76 € | I105: =I104+B105 -> 251.76 €
H106: ='September 2016'!$I106 -> 251.76 € | I106: =I105+B106 -> 251.76 €
H107: ='September 2016'!$I107 -> 251.76 € | I107: =I106+B107 -> 251.76 €
I108: =I107+B108 -> 251.76 €
I109: =I108+B109 -> 251.76 €
I110: =I109+B110 -> 251.76 €
I111: =I110+B111 -> 251.76 €
I112: =I111+B112 -> 251.76 €
I113: =I112+B113 -> 251.76 €
I114: =I113+B114 -> 251.76 €
I115: =I114+B115 -> 251.76 €
I116: =I115+B116 -> 251.76 €
I117: =I116+B117 -> 251.76 €
I118: =I117+B118 -> 251.76 €
I119: =I118+B119 -> 251.76 €
I120: =I119+B120 -> 251.76 €
I121: =I120+B121 -> 251.76 €
I122: =I121+B122 -> 251.76 €
I123: =I122+B123 -> 251.76 €
I124: =I123+B124 -> 251.76 €
I125: =I124+B125 -> 251.76 €
I126: =I125+B126 -> 251.76 €
I127: =I126+B127 -> 251.76 €
I128: =I127+B128 -> 251.76 €
I129: =I128+B129 -> 251.76 €
I130: =I129+B130 -> 251.76 €
I131: =I130+B131 -> 251.76 €

Sheet Oktober 2016
A1: 2016-10-01
A2: Übertrag aus Vormonat | C2: =LOOKUP(9^99,'September 2016'!H$1:H$65536) -> 251.76 €
A4: WAS? | B4: Wert | C4: Bemerkung | D4: Fälligkeitszeitraum | E4: Wann ausgeführt | F4: Gebucht | G4: Buchungsdatum | H4: Kontostand
A5: Sven Gehalt | B5: 3,088.25 € | D5: m | F5: x | G5: 2016-10-13 | H5: =I5 -> 3,340.01 € | I5: =C2+B5 -> 3,340.01 € | J5: m
A6: EC-Card | B6: -50.00 € | F6: x | G6: 2016-10-14 | H6: ='Oktober 2016'!$I6 -> 3,290.01 € | I6: =I5+B6 -> 3,290.01 € | J6: 2m
A7: Kalender | B7: -28.40 € | F7: x | G7: 2016-10-14 | H7: ='Oktober 2016'!$I7 -> 3,261.61 € | I7: =I6+B7 -> 3,261.61 € | J7: vj
A8: DNWAB | B8: -78.00 € | D8: 2m | F8: x | G8: 2016-10-17 | H8: ='Oktober 2016'!$I8 -> 3,183.61 € | I8: =I7+B8 -> 3,183.61 € | J8: hj
A9: Autokredit Tilgung | B9: -200.00 € | D9: m | F9: x | G9: 2016-10-17 | H9: ='Oktober 2016'!$I9 -> 2,983.61 € | I9: =I8+B9 -> 2,983.61 € | J9: j
A10: Autokredit Tilgung Corinna | B10: -101.00 € | D10: m | F10: x | G10: 2016-10-17 | H10: ='Oktober 2016'!$I10 -> 2,882.61 € | I10: =I9+B10 -> 2,882.61 € | J10: 2j
A11: Hagebau | B11: -19.98 € | E11: 2016-10-15 | F11: x | G11: 2016-10-17 | H11: ='Oktober 2016'!$I11 -> 2,862.63 € | I11: =I10+B11 -> 2,862.63 €
A12: Sachsenhaus | B12: -29.30 € | E12: 2016-10-15 | F12: x | G12: 2016-10-17 | H12: ='Oktober 2016'!$I12 -> 2,833.33 € | I12: =I11+B12 -> 2,833.33 €
A13: Bio am Bahnhof | B13: -32.69 € | E13: 2016-10-14 | F13: x | G13: 2016-10-17 | H13: ='Oktober 2016'!$I13 -> 2,800.64 € | I13: =I12+B13 -> 2,800.64 €
A14: Olymp & Hades | B14: -49.95 € | E14: 2016-10-15 | F14: x | G14: 2016-10-17 | H14: ='Oktober 2016'!$I14 -> 2,750.69 € | I14: =I13+B14 -> 2,750.69 €
A15: Rubin | B15: -19.50 € | E15: 2016-10-14 | F15: x | G15: 2016-10-17 | H15: ='Oktober 2016'!$I15 -> 2,731.19 € | I15: =I14+B15 -> 2,731.19 €
A16: Jet | B16: -25.90 € | E16: 2016-10-13 | F16: x | G16: 2016-10-17 | H16: ='Oktober 2016'!$I16 -> 2,705.29 € | I16: =I15+B16 -> 2,705.29 €
A17: Kaufland | B17: -70.81 € | E17: 2016-10-14 | F17: x | G17: 2016-10-18 | H17: ='Oktober 2016'!$I17 -> 2,634.48 € | I17: =I16+B17 -> 2,634.48 €
A18: Dussmann | B18: -51.58 € | E18: 2016-10-15 | F18: x | G18: 2016-10-18 | H18: ='Oktober 2016'!$I18 -> 2,582.90 € | I18: =I17+B18 -> 2,582.90 €
A19: Netto | B19: -11.11 € | E19: 2016-10-15 | F19: x | G19: 2016-10-18 | H19: ='Oktober 2016'!$I19 -> 2,571.79 € | I19: =I18+B19 -> 2,571.79 €
A20: Aral | B20: -20.00 € | E20: 2016-10-14 | F20: x | G20: 2016-10-18 | H20: ='Oktober 2016'!$I20 -> 2,551.79 € | I20: =I19+B20 -> 2,551.79 €
A21: EC-Card | B21: -30.00 € | E21: 2016-10-19 | F21: x | G21: 2016-10-19 | H21: ='Oktober 2016'!$I21 -> 2,521.79 € | I21: =I20+B21 -> 2,521.79 €
A22: Paypal | B22: -10.00 € | C22: BLB | E22: 2016-10-16 | F22: x | G22: 2016-10-19 | H22: ='Oktober 2016'!$I22 -> 2,511.79 € | I22: =I21+B22 -> 2,511.79 €
A23: Sprint | B23: -21.90 € | E23: 2016-10-18 | F23: x | G23: 2016-10-19 | H23: ='Oktober 2016'!$I23 -> 2,489.89 € | I23: =I22+B23 -> 2,489.89 €
A24: HU | B24: -26.00 € | E24: 2016-10-17 | F24: x | G24: 2016-10-19 | H24: ='Oktober 2016'!$I24 -> 2,463.89 € | I24: =I23+B24 -> 2,463.89 €
A25: SparCard | B25: -150.00 € | C25: ='September 2016'!C26-'Oktober 2016'!$B25 -> 5050.00 | D25: m | F25: x | G25: 2016-10-21 | H25: ='Oktober 2016'!$I25 -> 2,313.89 € | I25: =I24+B25 -> 2,313.89 €
A26: EMB | B26: -100.00 € | D26: m | F26: x | G26: 2016-10-21 | H26: ='Oktober 2016'!$I26 -> 2,213.89 € | I26: =I25+B26 -> 2,213.89 €
A27: Welt digital | B27: -12.99 € | D27: m | F27: x | G27: 2016-10-21 | H27: ='Oktober 2016'!$I27 -> 2,200.90 € | I27: =I26+B27 -> 2,200.90 €
A28: EC-Card | B28: -80.00 € | E28: 2016-10-21 | F28: x | G28: 2016-10-21 | H28: ='Oktober 2016'!$I28 -> 2,120.90 € | I28: =I27+B28 -> 2,120.90 €
A29: Vodafone | B29: -31.99 € | D29: m | F29: x | G29: 2016-10-24 | H29: ='Oktober 2016'!$I29 -> 2,088.91 € | I29: =I28+B29 -> 2,088.91 €
A30: Corinna Handy | B30: -33.96 € | D30: m | F30: x | G30: 2016-10-24 | H30: ='Oktober 2016'!$I30 -> 2,054.95 € | I30: =I29+B30 -> 2,054.95 €
A31: Rubin | B31: -18.05 € | E31: 2016-10-22 | F31: x | G31: 2016-10-24 | H31: ='Oktober 2016'!$I31 -> 2,036.90 € | I31: =I30+B31 -> 2,036.90 €
A32: real | B32: -21.15 € | E32: 2016-10-21 | F32: x | G32: 2016-10-24 | H32: ='Oktober 2016'!$I32 -> 2,015.75 € | I32: =I31+B32 -> 2,015.75 €
A33: Lidl | B33: -65.87 € | E33: 2016-10-21 | F33: x | G33: 2016-10-24 | H33: ='Oktober 2016'!$I33 -> 1,949.88 € | I33: =I32+B33 -> 1,949.88 €
A34: Apotheke | B34: -12.98 € | E34: 2016-10-21 | F34: x | G34: 2016-10-24 | H34: ='Oktober 2016'!$I34 -> 1,936.90 € | I34: =I33+B34 -> 1,936.90 €
A35: Thalia | B35: -16.99 € | E35: 2016-10-21 | F35: x | G35: 2016-10-24 | H35: ='Oktober 2016'!$I35 -> 1,919.91 € | I35: =I34+B35 -> 1,919.91 €
A36: Amazon | B36: -4.99 € | F36: x | G36: 2016-10-25 | H36: ='Oktober 2016'!$I36 -> 1,914.92 € | I36: =I35+B36 -> 1,914.92 €
A37: Paypal | B37: -6.99 € | C37: Krankenschwesteruhr | F37: x | G37: 2016-10-25 | H37: ='Oktober 2016'!$I37 -> 1,907.93 € | I37: =I36+B37 -> 1,907.93 €
A38: Aral | B38: -25.40 € | E38: 2016-10-21 | F38: x | G38: 2016-10-25 | H38: ='Oktober 2016'!$I38 -> 1,882.53 € | I38: =I37+B38 -> 1,882.53 €
A39: Fressnapf | B39: -31.18 € | E39: 2016-10-21 | F39: x | G39: 2016-10-25 | H39: ='Oktober 2016'!$I39 -> 1,851.35 € | I39: =I38+B39 -> 1,851.35 €
A40: Corinna Gehalt | B40: 1,088.09 € | D40: m | F40: x | G40: 2016-11-26 | H40: ='Oktober 2016'!$I40 -> 2,939.44 € | I40: =I39+B40 -> 2,939.44 €
A41: Corinna Sport | B41: -120.00 € | F41: x | G41: 2016-11-26 | H41: ='Oktober 2016'!$I41 -> 2,819.44 € | I41: =I40+B41 -> 2,819.44 €
A42: HypoVereinsbank | B42: -909.65 € | D42: m | F42: x | G42: 2016-10-31 | H42: ='Oktober 2016'!$I42 -> 1,909.79 € | I42: =I41+B42 -> 1,909.79 €
A43: T-Mobile | B43: -36.91 € | D43: m | F43: x | G43: 2016-10-31 | H43: ='Oktober 2016'!$I43 -> 1,872.88 € | I43: =I42+B43 -> 1,872.88 €
A44: T-Mobile | B44: -19.95 € | D44: m | F44: x | G44: 2016-10-31 | H44: ='Oktober 2016'!$I44 -> 1,852.93 € | I44: =I43+B44 -> 1,852.93 €
A45: Corinna Bausparer | B45: -20.00 € | D45: m | F45: x | G45: 2016-10-31 | H45: ='Oktober 2016'!$I45 -> 1,832.93 € | I45: =I44+B45 -> 1,832.93 €
A46: Lidl | B46: -98.77 € | E46: 2016-10-29 | F46: x | G46: 2016-10-31 | H46: ='Oktober 2016'!$I46 -> 1,734.16 € | I46: =I45+B46 -> 1,734.16 €
A47: TKMaxx | B47: -37.97 € | E47: 2016-10-29 | F47: x | G47: 2016-10-31 | H47: ='Oktober 2016'!$I47 -> 1,696.19 € | I47: =I46+B47 -> 1,696.19 €
A48: EWE | B48: -66.00 € | D48: m | F48: x | G48: 2016-11-01 | H48: ='Oktober 2016'!$I48 -> 1,630.19 € | I48: =I47+B48 -> 1,630.19 €
A49: Johanniter | B49: -60.00 € | D49: j | F49: x | G49: 2016-11-01 | H49: ='Oktober 2016'!$I49 -> 1,570.19 € | I49: =I48+B49 -> 1,570.19 €
A50: Comfort Card | B50: -88.00 € | D50: m | F50: x | G50: 2016-11-01 | H50: ='Oktober 2016'!$I50 -> 1,482.19 € | I50: =I49+B50 -> 1,482.19 €
A51: Medimax | B51: -65.99 € | E51: 2016-10-29 | F51: x | G51: 2016-11-01 | H51: ='Oktober 2016'!$I51 -> 1,416.20 € | I51: =I50+B51 -> 1,416.20 €
A52: Roland Rechtsschutz | B52: -39.40 € | D52: vj | F52: x | G52: 2016-11-01 | H52: ='Oktober 2016'!$I52 -> 1,376.80 € | I52: =I51+B52 -> 1,376.80 €
A53: Laptop | B53: -51.01 € | C53: danach 21 x 51,01 und am 1.8.18 51,08 | D53: m | F53: x | G53: 2016-11-01 | H53: ='Oktober 2016'!$I53 -> 1,325.79 € | I53: =I52+B53 -> 1,325.79 €
A54: Autoversicherung Sven | B54: -27.58 € | C54: -25.31 | D54: m | F54: x | G54: 2016-11-01 | H54: ='Oktober 2016'!$I54 -> 1,298.21 € | I54: =I53+B54 -> 1,298.21 €
A55: Autoversicherung Corinna | B55: -20.93 € | C55: -21.17 | D55: m | F55: x | G55: 2016-11-01 | H55: ='Oktober 2016'!$I55 -> 1,277.28 € | I55: =I54+B55 -> 1,277.28 €
A56: Mac 2 | B56: -51.48 € | C56: am 01.12.16 51,64€ | D56: m | F56: x | G56: 2016-11-01 | H56: ='Oktober 2016'!$I56 -> 1,225.80 € | I56: =I55+B56 -> 1,225.80 €
A57: BVG | B57: -82.17 € | D57: m | F57: x | G57: 2016-11-01 | H57: ='Oktober 2016'!$I57 -> 1,143.63 € | I57: =I56+B57 -> 1,143.63 €
A58: Amazon | B58: =-2.99-3.99 -> -6.98 € | E58: 2016-10-29 | F58: x | G58: 2016-11-01 | H58: ='Oktober 2016'!$I58 -> 1,136.65 € | I58: =I57+B58 -> 1,136.65 €
A59: Fressnapf | B59: -50.28 € | E59: 2016-10-29 | F59: x | G59: 2016-11-01 | H59: ='Oktober 2016'!$I59 -> 1,086.37 € | I59: =I58+B59 -> 1,086.37 €
A60: Jet | B60: -26.18 € | E60: 2016-10-29 | F60: x | G60: 2016-11-01 | H60: ='Oktober 2016'!$I60 -> 1,060.19 € | I60: =I59+B60 -> 1,060.19 €
A61: Total | B61: -23.74 € | E61: 2016-11-01 | F61: x | G61: 2016-11-02 | H61: ='Oktober 2016'!$I61 -> 1,036.45 € | I61: =I60+B61 -> 1,036.45 €
A62: Paypal | B62: -10.00 € | C62: BLB | E62: 2016-10-29 | F62: x | G62: 2016-11-02 | H62: ='Oktober 2016'!$I62 -> 1,026.45 € | I62: =I61+B62 -> 1,026.45 €
A63: Rubin | B63: -20.88 € | E63: 2016-11-01 | F63: x | G63: 2016-11-02 | H63: ='Oktober 2016'!$I63 -> 1,005.57 € | I63: =I62+B63 -> 1,005.57 €
A64: PfennigPfeiffer | B64: -19.93 € | E64: 2016-11-01 | F64: x | G64: 2016-11-02 | H64: ='Oktober 2016'!$I64 -> 985.64 € | I64: =I63+B64 -> 985.64 €
A65: EC-Card | B65: -30.00 € | E65: 2016-11-02 | F65: x | G65: 2016-11-02 | H65: ='Oktober 2016'!$I65 -> 955.64 € | I65: =I64+B65 -> 955.64 €
A66: Paypal | B66: -20.00 € | C66: Udemy | F66: x | G66: 2016-11-03 | H66: ='Oktober 2016'!$I66 -> 935.64 € | I66: =I65+B66 -> 935.64 €
A67: Lidl | B67: -19.48 € | E67: 2016-11-02 | F67: x | G67: 2016-11-03 | H67: ='Oktober 2016'!$I67 -> 916.16 € | I67: =I66+B67 -> 916.16 €
A68: Fressnapf | B68: -20.86 € | E68: 2016-11-02 | F68: x | G68: 2016-11-04 | H68: ='Oktober 2016'!$I68 -> 895.30 € | I68: =I67+B68 -> 895.30 €
A69: Lidl | B69: -77.43 € | E69: 2016-11-04 | F69: x | G69: 2016-11-07 | H69: ='Oktober 2016'!$I69 -> 817.87 € | I69: =I68+B69 -> 817.87 €
A70: EC-Card | B70: -30.00 € | E70: 2016-11-05 | F70: x | G70: 2016-11-07 | H70: ='Oktober 2016'!$I70 -> 787.87 € | I70: =I69+B70 -> 787.87 €
A71: Amazon | B71: -1.98 € | F71: x | G71: 2016-11-08 | H71: ='Oktober 2016'!$I71 -> 785.89 € | I71: =I70+B71 -> 785.89 €
A72: Star Tankstelle | B72: -25.19 € | E72: 2016-11-04 | F72: x | G72: 2016-11-08 | H72: ='Oktober 2016'!$I72 -> 760.70 € | I72: =I71+B72 -> 760.70 €
A73: real | B73: -35.11 € | E73: 2016-11-07 | F73: x | G73: 2016-11-08 | H73: ='Oktober 2016'!$I73 -> 725.59 € | I73: =I72+B73 -> 725.59 €
A74: Apotheke | B74: -10.95 € | E74: 2016-11-07 | F74: x | G74: 2016-11-08 | H74: ='Oktober 2016'!$I74 -> 714.64 € | I74: =I73+B74 -> 714.64 €
A75: dm | B75: -10.90 € | E75: 2016-11-07 | F75: x | G75: 2016-11-08 | H75: ='Oktober 2016'!$I75 -> 703.74 € | I75: =I74+B75 -> 703.74 €
A76: DBV Haftpflicht | B76: -6.54 € | D76: m | F76: x | G76: 2016-11-08 | H76: ='Oktober 2016'!$I76 -> 697.20 € | I76: =I75+B76 -> 697.20 €
A77: EUROCARD | B77: =-12.95-9.9-59.94-0.99-34-5.9-48.98 -> -172.66 € | D77: m | F77: x | G77: 2016-11-09 | H77: ='Oktober 2016'!$I77 -> 524.54 € | I77: =I76+B77 -> 524.54 €
A78: Paypal | B78: -25.00 € | C78: Flixbus | E78: 2016-11-07 | F78: x | G78: 2016-11-09 | H78: ='Oktober 2016'!$I78 -> 499.54 € | I78: =I77+B78 -> 499.54 €
A79: Paypal | B79: -6.81 € | C79: 2 Bücher bei ebay | E79: 2016-11-07 | F79: x | G79: 2016-11-09 | H79: ='Oktober 2016'!$I79 -> 492.73 € | I79: =I78+B79 -> 492.73 €
A80: Apotheke | B80: -17.18 € | E80: 2016-11-05 | F80: x | G80: 2016-11-09 | H80: ='Oktober 2016'!$I80 -> 475.55 € | I80: =I79+B80 -> 475.55 €
A81: Contabo | B81: -6.99 € | D81: m | F81: x | G81: 2016-11-10 | H81: ='Oktober 2016'!$I81 -> 468.56 € | I81: =I80+B81 -> 468.56 €
A82: Dienstreise | B82: 467.11 € | F82: x | G82: 2016-11-10 | H82: ='Oktober 2016'!$I82 -> 935.67 € | I82: =I81+B82 -> 935.67 €
A83: Kabel Internet | B83: -39.54 € | D83: m | F83: x | G83: 2016-11-11 | H83: ='Oktober 2016'!$I83 -> 896.13 € | I83: =I82+B83 -> 896.13 €
A84: Kabelanschluss | B84: -30.91 € | D84: m | F84: x | G84: 2016-11-11 | H84: ='Oktober 2016'!$I84 -> 865.22 € | I84: =I83+B84 -> 865.22 €
A85: Fressnapf | B85: -24.88 € | E85: 2016-11-09 | F85: x | G85: 2016-11-11 | H85: ='Oktober 2016'!$I85 -> 840.34 € | I85: =I84+B85 -> 840.34 €
A86: Fressnapf | B86: -10.25 € | E86: 2016-11-09 | F86: x | G86: 2016-11-11 | H86: ='Oktober 2016'!$I86 -> 830.09 € | I86: =I85+B86 -> 830.09 €
A87: Lidl | B87: -61.50 € | E87: 2016-11-10 | F87: x | G87: 2016-11-11 | H87: ='Oktober 2016'!$I87 -> 768.59 € | I87: =I86+B87 -> 768.59 €
A88: Kindergeld | B88: 190.00 € | F88: x | G88: 2016-11-11 | H88: ='Oktober 2016'!$I88 -> 958.59 € | I88: =I87+B88 -> 958.59 €
A89: Rubin | B89: -9.24 € | E89: 2016-11-10 | F89: x | G89: 2016-11-11 | H89: ='Oktober 2016'!$I89 -> 949.35 € | I89: =I88+B89 -> 949.35 €
A90: EC-Card | B90: -40.00 € | E90: 2016-11-11 | F90: x | G90: 2016-11-11 | H90: ='Oktober 2016'!$I90 -> 909.35 € | I90: =I89+B90 -> 909.35 €
A91: Vivian | B91: -50.00 € | D91: m | F91: x | G91: 2016-11-11 | H91: ='Oktober 2016'!$I91 -> 859.35 € | I91: =I90+B91 -> 859.35 €
A92: Netto | B92: -7.79 € | E92: 2016-11-10 | F92: x | G92: 2016-11-14 | H92: ='Oktober 2016'!$I92 -> 851.56 € | I92: =I91+B92 -> 851.56 €
A93: Aral | B93: -25.18 € | E93: 2016-11-10 | F93: x | G93: 2016-11-14 | H93: ='Oktober 2016'!$I93 -> 826.38 € | I93: =I92+B93 -> 826.38 €
A94: Mediamarkt | B94: -115.98 € | E94: 2016-11-10 | F94: x | G94: 2016-11-14 | H94: ='Oktober 2016'!$I94 -> 710.40 € | I94: =I93+B94 -> 710.40 €
A95: ebay | B95: -4.00 € | C95: Ronald Schneemann | F95: x | G95: 2016-11-14 | H95: ='Oktober 2016'!$I95 -> 706.40 € | I95: =I94+B95 -> 706.40 €
A96: Thalia | B96: -15.00 € | E96: 2016-11-12 | F96: x | G96: 2016-11-14 | H96: ='Oktober 2016'!$I96 -> 691.40 € | I96: =I95+B96 -> 691.40 €
A97: Ludwig | B97: -27.98 € | E97: 2016-11-13 | F97: x | G97: 2016-11-14 | H97: ='Oktober 2016'!$I97 -> 663.42 € | I97: =I96+B97 -> 663.42 €
A98: McPaper | B98: -12.89 € | E98: 2016-11-12 | F98: x | G98: 2016-11-15 | H98: ='Oktober 2016'!$I98 -> 650.53 € | I98: =I97+B98 -> 650.53 €
A99: Apotheke | B99: -7.97 € | E99: 2016-11-11 | F99: x | G99: 2016-11-15 | H99: ='Oktober 2016'!$I99 -> 642.56 € | I99: =I98+B99 -> 642.56 €
A100: Amazon | B100: -3.99 € | F100: x | G100: 2016-11-15 | H100: ='Oktober 2016'!$I100 -> 638.57 € | I100: =I99+B100 -> 638.57 €
H101: ='Oktober 2016'!$I101 -> 638.57 € | I101: =I100+B101 -> 638.57 €
I102: =I101+B102 -> 638.57 €
I103: =I102+B103 -> 638.57 €
I104: =I103+B104 -> 638.57 €
I105: =I104+B105 -> 638.57 €
I106: =I105+B106 -> 638.57 €
I107: =I106+B107 -> 638.57 €
I108: =I107+B108 -> 638.57 €
I109: =I108+B109 -> 638.57 €
I110: =I109+B110 -> 638.57 €
I111: =I110+B111 -> 638.57 €
I112: =I111+B112 -> 638.57 €
I113: =I112+B113 -> 638.57 €
I114: =I113+B114 -> 638.57 €
I115: =I114+B115 -> 638.57 €
I116: =I115+B116 -> 638.57 €
I117: =I116+B117 -> 638.57 €
I118: =I117+B118 -> 638.57 €
I119: =I118+B119 -> 638.57 €
I120: =I119+B120 -> 638.57 €
I121: =I120+B121 -> 638.57 €
I122: =I121+B122 -> 638.57 €
I123: =I122+B123 -> 638.57 €
I124: =I123+B124 -> 638.57 €
I125: =I124+B125 -> 638.57 €
I126: =I125+B126 -> 638.57 €
I127: =I126+B127 -> 638.57 €
I128: =I127+B128 -> 638.57 €
I129: =I128+B129 -> 638.57 €
I130: =I129+B130 -> 638.57 €
I131: =I130+B131 -> 638.57 €

Sheet November 2016
A1: 2016-11-01
A2: Übertrag aus Vormonat | C2: =LOOKUP(9^99,'Oktober 2016'!H$1:H$65536) -> 638.57 €
A4: WAS? | B4: Wert | C4: Bemerkung | D4: Fälligkeitszeitraum | E4: Wann ausgeführt | F4: Gebucht | G4: Buchungsdatum | H4: Kontostand
A5: Sven Gehalt | B5: 3,088.04 € | D5: m | F5: x | G5: 2016-11-15 | H5: =I5 -> 3,726.61 € | I5: =C2+B5 -> 3,726.61 € | J5: m
A6: Grundsteuer B | B6: -43.37 € | F6: x | G6: 2016-11-15 | H6: ='November 2016'!$I6 -> 3,683.24 € | I6: =I5+B6 -> 3,683.24 € | J6: 2m
A7: Autokredit Tilgung | B7: -200.00 € | D7: m | F7: x | G7: 2016-11-15 | H7: ='November 2016'!$I7 -> 3,483.24 € | I7: =I6+B7 -> 3,483.24 € | J7: vj
A8: Autokredit Tilgung Corinna | B8: -101.00 € | D8: m | F8: x | G8: 2016-11-15 | H8: ='November 2016'!$I8 -> 3,382.24 € | I8: =I7+B8 -> 3,382.24 € | J8: hj
A9: MegaZoo | B9: -11.78 € | E9: 2016-11-14 | F9: x | G9: 2016-11-16 | H9: ='November 2016'!$I9 -> 3,370.46 € | I9: =I8+B9 -> 3,370.46 € | J9: j
A10: Netto | B10: -19.25 € | E10: 2016-11-14 | F10: x | G10: 2016-11-16 | H10: ='November 2016'!$I10 -> 3,351.21 € | I10: =I9+B10 -> 3,351.21 € | J10: 2j
A11: Jet | B11: -19.35 € | E11: 2016-11-14 | F11: x | G11: 2016-11-16 | H11: ='November 2016'!$I11 -> 3,331.86 € | I11: =I10+B11 -> 3,331.86 €
A12: EC-Card | B12: -50.00 € | E12: 2016-11-16 | F12: x | G12: 2016-11-16 | H12: ='November 2016'!$I12 -> 3,281.86 € | I12: =I11+B12 -> 3,281.86 €
A13: Autoteile Dussler | B13: -57.80 € | C13: Scheibenwischer für beide Autos | E13: 2016-11-16 | F13: x | G13: 2016-11-17 | H13: ='November 2016'!$I13 -> 3,224.06 € | I13: =I12+B13 -> 3,224.06 €
A14: Paypal | B14: -17.63 € | C14: reBuy | E14: 2016-11-15 | F14: x | G14: 2016-11-17 | H14: ='November 2016'!$I14 -> 3,206.43 € | I14: =I13+B14 -> 3,206.43 €
A15: Paypal | B15: -9.57 € | C15: Minen 2,0 B und 2B | E15: 2016-11-15 | F15: x | G15: 2016-11-17 | H15: ='November 2016'!$I15 -> 3,196.86 € | I15: =I14+B15 -> 3,196.86 €
A16: Sun Wildau | B16: -20.16 € | E16: 2016-11-16 | F16: x | G16: 2016-11-17 | H16: ='November 2016'!$I16 -> 3,176.70 € | I16: =I15+B16 -> 3,176.70 €
A17: GEZ | B17: -52.50 € | D17: vj | F17: x | G17: 2016-11-18 | H17: ='November 2016'!$I17 -> 3,124.20 € | I17: =I16+B17 -> 3,124.20 €
A18: EC-Card | B18: -50.00 € | F18: x | G18: 2016-11-18 | H18: ='November 2016'!$I18 -> 3,074.20 € | I18: =I17+B18 -> 3,074.20 €
A19: Fressnapf | B19: -20.91 € | E19: 2016-11-16 | F19: x | G19: 2016-11-18 | H19: ='November 2016'!$I19 -> 3,053.29 € | I19: =I18+B19 -> 3,053.29 €
A20: Welt digital | B20: -12.99 € | D20: m | F20: x | G20: 2016-11-18 | H20: ='November 2016'!$I20 -> 3,040.30 € | I20: =I19+B20 -> 3,040.30 €
A21: SparCard | B21: -150.00 € | D21: m | F21: x | G21: 2016-11-21 | H21: ='November 2016'!$I21 -> 2,890.30 € | I21: =I20+B21 -> 2,890.30 €
A22: EMB | B22: -100.00 € | D22: m | F22: x | G22: 2016-11-21 | H22: ='November 2016'!$I22 -> 2,790.30 € | I22: =I21+B22 -> 2,790.30 €
A23: EC-Card | B23: -30.00 € | E23: 2016-11-19 | F23: x | G23: 2016-11-21 | H23: ='November 2016'!$I23 -> 2,760.30 € | I23: =I22+B23 -> 2,760.30 €
A24: Corinna Handy | B24: -33.96 € | D24: m | F24: x | G24: 2016-11-21 | H24: ='November 2016'!$I24 -> 2,726.34 € | I24: =I23+B24 -> 2,726.34 €
A25: Lidl | B25: -74.82 € | E25: 2016-11-18 | F25: x | G25: 2016-11-21 | H25: ='November 2016'!$I25 -> 2,651.52 € | I25: =I24+B25 -> 2,651.52 €
A26: Total | B26: -12.49 € | E26: 2016-11-18 | F26: x | G26: 2016-11-21 | H26: ='November 2016'!$I26 -> 2,639.03 € | I26: =I25+B26 -> 2,639.03 €
A27: DM | B27: -17.00 € | F27: x | G27: 2016-11-21 | H27: ='November 2016'!$I27 -> 2,622.03 € | I27: =I26+B27 -> 2,622.03 €
A28: Star | B28: -30.00 € | E28: 2016-11-17 | F28: x | G28: 2016-11-21 | H28: ='November 2016'!$I28 -> 2,592.03 € | I28: =I27+B28 -> 2,592.03 €
A29: Rubin | B29: -16.75 € | E29: 2016-11-18 | F29: x | G29: 2016-11-21 | H29: ='November 2016'!$I29 -> 2,575.28 € | I29: =I28+B29 -> 2,575.28 €
A30: MegaZoo | B30: -8.56 € | E30: 2016-11-17 | F30: x | G30: 2016-11-21 | H30: ='November 2016'!$I30 -> 2,566.72 € | I30: =I29+B30 -> 2,566.72 €
A31: EC-Card | B31: -30.00 € | E31: 2016-11-22 | F31: x | G31: 2016-11-22 | H31: ='November 2016'!$I31 -> 2,536.72 € | I31: =I30+B31 -> 2,536.72 €
A32: Vodafone | B32: -29.99 € | D32: m | F32: x | G32: 2016-11-23 | H32: ='November 2016'!$I32 -> 2,506.73 € | I32: =I31+B32 -> 2,506.73 €
A33: Bauhaus | B33: -12.93 € | E33: 2016-11-18 | F33: x | G33: 2016-11-23 | H33: ='November 2016'!$I33 -> 2,493.80 € | I33: =I32+B33 -> 2,493.80 €
A34: Paypal | B34: -35.00 € | C34: Flixbus | E34: 2016-11-21 | F34: x | G34: 2016-11-23 | H34: ='November 2016'!$I34 -> 2,458.80 € | I34: =I33+B34 -> 2,458.80 €
A35: Dussmann | B35: -10.80 € | E35: 2016-11-22 | F35: x | G35: 2016-11-24 | H35: ='November 2016'!$I35 -> 2,448.00 € | I35: =I34+B35 -> 2,448.00 €
A36: Fressnapf | B36: -29.08 € | E36: 2016-11-22 | F36: x | G36: 2016-11-24 | H36: ='November 2016'!$I36 -> 2,418.92 € | I36: =I35+B36 -> 2,418.92 €
A37: EC-Card | B37: -100.00 € | E37: 2016-11-24 | F37: x | G37: 2016-11-24 | H37: ='November 2016'!$I37 -> 2,318.92 € | I37: =I36+B37 -> 2,318.92 €
A38: Netto | B38: -6.69 € | E38: 2016-11-23 | F38: x | G38: 2016-11-25 | H38: ='November 2016'!$I38 -> 2,312.23 € | I38: =I37+B38 -> 2,312.23 €
A39: T-Mobile | B39: -36.91 € | D39: m | F39: x | G39: 2016-11-28 | H39: ='November 2016'!$I39 -> 2,275.32 € | I39: =I38+B39 -> 2,275.32 €
A40: T-Mobile | B40: -19.95 € | D40: m | F40: x | G40: 2016-11-28 | H40: ='November 2016'!$I40 -> 2,255.37 € | I40: =I39+B40 -> 2,255.37 €
A41: Corinna Gehalt | B41: 1,343.49 € | D41: m | F41: x | G41: 2016-11-28 | H41: ='November 2016'!$I41 -> 3,598.86 € | I41: =I40+B41 -> 3,598.86 €
A42: Total | B42: -18.61 € | E42: 2016-11-27 | F42: x | G42: 2016-11-28 | H42: ='November 2016'!$I42 -> 3,580.25 € | I42: =I41+B42 -> 3,580.25 €
A43: Doc Martens | B43: -159.95 € | E43: 2016-11-26 | F43: x | G43: 2016-11-28 | H43: ='November 2016'!$I43 -> 3,420.30 € | I43: =I42+B43 -> 3,420.30 €
A44: Kauhof | B44: -37.50 € | E44: 2016-11-26 | F44: x | G44: 2016-11-28 | H44: ='November 2016'!$I44 -> 3,382.80 € | I44: =I43+B44 -> 3,382.80 €
A45: Kauhof | B45: -14.99 € | E45: 2016-11-26 | F45: x | G45: 2016-11-28 | H45: ='November 2016'!$I45 -> 3,367.81 € | I45: =I44+B45 -> 3,367.81 €
A46: Rubin | B46: -20.16 € | E46: 2016-11-26 | F46: x | G46: 2016-11-28 | H46: ='November 2016'!$I46 -> 3,347.65 € | I46: =I45+B46 -> 3,347.65 €
A47: Kölle | B47: -26.13 € | E47: 2016-11-26 | F47: x | G47: 2016-11-28 | H47: ='November 2016'!$I47 -> 3,321.52 € | I47: =I46+B47 -> 3,321.52 €
A48: Paypal | B48: -59.00 € | C48: Photoline | E48: 2016-11-25 | F48: x | G48: 2016-11-29 | H48: ='November 2016'!$I48 -> 3,262.52 € | I48: =I47+B48 -> 3,262.52 €
A49: Reno | B49: -50.15 € | E49: 2016-11-26 | F49: x | G49: 2016-11-29 | H49: ='November 2016'!$I49 -> 3,212.37 € | I49: =I48+B49 -> 3,212.37 €
A50: Paypal | B50: -24.94 € | C50: Buntstifte | E50: 2016-11-27 | F50: x | G50: 2016-11-29 | H50: ='November 2016'!$I50 -> 3,187.43 € | I50: =I49+B50 -> 3,187.43 €
A51: Jet | B51: -27.68 € | E51: 2016-11-25 | F51: x | G51: 2016-11-29 | H51: ='November 2016'!$I51 -> 3,159.75 € | I51: =I50+B51 -> 3,159.75 €
A52: Kaufland | B52: -96.00 € | E52: 2016-11-25 | F52: x | G52: 2016-11-29 | H52: ='November 2016'!$I52 -> 3,063.75 € | I52: =I51+B52 -> 3,063.75 €
A53: Paypal | B53: -28.00 € | C53: Märchenhütte 07.12, 19:30 | E53: 2016-11-27 | F53: x | G53: 2016-11-29 | H53: ='November 2016'!$I53 -> 3,035.75 € | I53: =I52+B53 -> 3,035.75 €
A54: Total | B54: -20.02 € | E54: 2016-11-28 | F54: x | G54: 2016-11-29 | H54: ='November 2016'!$I54 -> 3,015.73 € | I54: =I53+B54 -> 3,015.73 €
A55: Apotheke | B55: -16.33 € | E55: 2016-11-28 | F55: x | G55: 2016-11-29 | H55: ='November 2016'!$I55 -> 2,999.40 € | I55: =I54+B55 -> 2,999.40 €
A56: EC-Card | B56: -20.00 € | E56: 2016-11-29 | F56: x | G56: 2016-11-29 | H56: ='November 2016'!$I56 -> 2,979.40 € | I56: =I55+B56 -> 2,979.40 €
A57: Corinna Bausparer | B57: -20.00 € | D57: m | F57: x | G57: 2016-11-30 | H57: ='November 2016'!$I57 -> 2,959.40 € | I57: =I56+B57 -> 2,959.40 €
A58: HypoVereinsbank | B58: -909.65 € | D58: m | F58: x | G58: 2016-11-30 | H58: ='November 2016'!$I58 -> 2,049.75 € | I58: =I57+B58 -> 2,049.75 €
A59: Amazon | B59: -4.99 € | E59: 2016-11-28 | F59: x | G59: 2016-11-30 | H59: ='November 2016'!$I59 -> 2,044.76 € | I59: =I58+B59 -> 2,044.76 €
A60: Kaufland | B60: -10.36 € | E60: 2016-11-28 | F60: x | G60: 2016-11-30 | H60: ='November 2016'!$I60 -> 2,034.40 € | I60: =I59+B60 -> 2,034.40 €
A61: EWE | B61: -66.00 € | D61: m | F61: x | G61: 2016-12-01 | H61: ='November 2016'!$I61 -> 1,968.40 € | I61: =I60+B61 -> 1,968.40 €
A62: Autoversicherung Sven | B62: -27.58 € | C62: -25.31 | D62: m | F62: x | G62: 2016-12-01 | H62: ='November 2016'!$I62 -> 1,940.82 € | I62: =I61+B62 -> 1,940.82 €
A63: Autoversicherung Corinna | B63: -20.93 € | C63: -21.17 | D63: m | F63: x | G63: 2016-12-01 | H63: ='November 2016'!$I63 -> 1,919.89 € | I63: =I62+B63 -> 1,919.89 €
A64: Mac 2 | B64: -51.64 € | C64: am 01.12.16 51,64€ | D64: m | F64: x | G64: 2016-12-01 | H64: ='November 2016'!$I64 -> 1,868.25 € | I64: =I63+B64 -> 1,868.25 €
A65: Laptop | B65: -51.01 € | C65: danach 21 x 51,01 und am 1.8.17 51,08 | D65: m | F65: x | G65: 2016-12-01 | H65: ='November 2016'!$I65 -> 1,817.24 € | I65: =I64+B65 -> 1,817.24 €
A66: Comfort Card | B66: -88.00 € | D66: m | F66: x | G66: 2016-12-01 | H66: ='November 2016'!$I66 -> 1,729.24 € | I66: =I65+B66 -> 1,729.24 €
A67: BVG | B67: -82.17 € | D67: m | F67: x | G67: 2016-12-01 | H67: ='November 2016'!$I67 -> 1,647.07 € | I67: =I66+B67 -> 1,647.07 €
A68: Mediamarkt | B68: -94.99 € | C68: Festplatte | E68: 2016-11-29 | F68: x | G68: 2016-12-01 | H68: ='November 2016'!$I68 -> 1,552.08 € | I68: =I67+B68 -> 1,552.08 €
A69: Apotheke | B69: -9.15 € | E69: 2016-11-30 | F69: x | G69: 2016-12-01 | H69: ='November 2016'!$I69 -> 1,542.93 € | I69: =I68+B69 -> 1,542.93 €
A70: Fressnapf | B70: -9.98 € | E70: 2016-11-30 | F70: x | G70: 2016-12-02 | H70: ='November 2016'!$I70 -> 1,532.95 € | I70: =I69+B70 -> 1,532.95 €
A71: Airplus | B71: -373.13 € | F71: x | G71: 2016-12-05 | H71: ='November 2016'!$I71 -> 1,159.82 € | I71: =I70+B71 -> 1,159.82 €
A72: Lidl | B72: -73.24 € | E72: 2016-12-02 | F72: x | G72: 2016-12-05 | H72: ='November 2016'!$I72 -> 1,086.58 € | I72: =I71+B72 -> 1,086.58 €
A73: von Sparcard | B73: 100.00 € | E73: 2016-12-05 | F73: x | G73: 2016-12-05 | H73: ='November 2016'!$I73 -> 1,186.58 € | I73: =I72+B73 -> 1,186.58 €
A74: Park-Knolle | B74: -19.90 € | F74: x | G74: 2016-12-06 | H74: ='November 2016'!$I74 -> 1,166.68 € | I74: =I73+B74 -> 1,166.68 €
A75: Star | B75: -25.38 € | E75: 2016-12-02 | F75: x | G75: 2016-12-06 | H75: ='November 2016'!$I75 -> 1,141.30 € | I75: =I74+B75 -> 1,141.30 €
A76: MegaZoo | B76: -14.36 € | E76: 2016-12-03 | F76: x | G76: 2016-12-06 | H76: ='November 2016'!$I76 -> 1,126.94 € | I76: =I75+B76 -> 1,126.94 €
A77: Netto | B77: -16.44 € | E77: 2016-12-05 | F77: x | G77: 2016-12-07 | H77: ='November 2016'!$I77 -> 1,110.50 € | I77: =I76+B77 -> 1,110.50 €
A78: Mediamarkt | B78: -150.00 € | C78: Anzahlung iMAC | E78: 2016-12-05 | F78: x | G78: 2016-12-07 | H78: ='November 2016'!$I78 -> 960.50 € | I78: =I77+B78 -> 960.50 €
A79: Paypal | B79: -8.49 € | C79: Thalia | E79: 2016-11-28 | F79: x | G79: 2016-12-07 | H79: ='November 2016'!$I79 -> 952.01 € | I79: =I78+B79 -> 952.01 €
A80: Rubin | B80: -9.93 € | E80: 2016-12-06 | F80: x | G80: 2016-12-07 | H80: ='November 2016'!$I80 -> 942.08 € | I80: =I79+B80 -> 942.08 €
A81: EC-Card | B81: -40.00 € | E81: 2016-12-06 | F81: x | G81: 2016-12-07 | H81: ='November 2016'!$I81 -> 902.08 € | I81: =I80+B81 -> 902.08 €
A82: Finanzamt | B82: =-253-12 -> -265.00 € | F82: x | G82: 2016-12-08 | H82: ='November 2016'!$I82 -> 637.08 € | I82: =I81+B82 -> 637.08 €
A83: Kindergeld | B83: 190.00 € | D83: m | F83: x | G83: 2016-12-08 | H83: ='November 2016'!$I83 -> 827.08 € | I83: =I82+B83 -> 827.08 €
A84: DBV Haftpflicht | B84: -6.54 € | D84: m | F84: x | G84: 2016-12-08 | H84: ='November 2016'!$I84 -> 820.54 € | I84: =I83+B84 -> 820.54 €
A85: EC-Card | B85: -30.00 € | E85: 2016-12-07 | F85: x | G85: 2016-12-08 | H85: ='November 2016'!$I85 -> 790.54 € | I85: =I84+B85 -> 790.54 €
A86: Contabo | B86: -6.99 € | D86: m | F86: x | G86: 2016-12-08 | H86: ='November 2016'!$I86 -> 783.55 € | I86: =I85+B86 -> 783.55 €
A87: EUROCARD | B87: =-59.94-34-7.79-7.72-3.99-14 -> -127.44 € | D87: m | F87: x | G87: 2016-12-09 | H87: ='November 2016'!$I87 -> 656.11 € | I87: =I86+B87 -> 656.11 €
A88: Lidl | B88: -77.19 € | E88: 2016-12-08 | F88: x | G88: 2016-12-09 | H88: ='November 2016'!$I88 -> 578.92 € | I88: =I87+B88 -> 578.92 €
A89: Vivian | B89: -100.00 € | D89: m | F89: x | G89: 2016-12-12 | H89: ='November 2016'!$I89 -> 478.92 € | I89: =I88+B89 -> 478.92 €
A90: EC-Card | B90: -30.00 € | E90: 2016-12-10 | F90: x | G90: 2016-12-12 | H90: ='November 2016'!$I90 -> 448.92 € | I90: =I89+B90 -> 448.92 €
A91: Amazon | B91: -11.99 € | E91: 2016-12-07 | F91: x | G91: 2016-12-12 | H91: ='November 2016'!$I91 -> 436.93 € | I91: =I90+B91 -> 436.93 €
A92: Star | B92: -23.38 € | E92: 2016-12-08 | F92: x | G92: 2016-12-12 | H92: ='November 2016'!$I92 -> 413.55 € | I92: =I91+B92 -> 413.55 €
A93: MegaZoo | B93: -24.27 € | E93: 2016-12-08 | F93: x | G93: 2016-12-12 | H93: ='November 2016'!$I93 -> 389.28 € | I93: =I92+B93 -> 389.28 €
A94: DM | B94: -23.95 € | E94: 2016-12-09 | F94: x | G94: 2016-12-12 | H94: ='November 2016'!$I94 -> 365.33 € | I94: =I93+B94 -> 365.33 €
A95: real | B95: -21.12 € | E95: 2016-12-09 | F95: x | G95: 2016-12-12 | H95: ='November 2016'!$I95 -> 344.21 € | I95: =I94+B95 -> 344.21 €
A96: Kabelanschluss | B96: -30.91 € | D96: m | F96: x | G96: 2016-12-13 | H96: ='November 2016'!$I96 -> 313.30 € | I96: =I95+B96 -> 313.30 €
A97: Kabel Internet | B97: -39.54 € | D97: m | F97: x | G97: 2016-12-13 | H97: ='November 2016'!$I97 -> 273.76 € | I97: =I96+B97 -> 273.76 €
A98: Jet | B98: -13.39 € | E98: 2016-12-10 | F98: x | G98: 2016-12-13 | H98: ='November 2016'!$I98 -> 260.37 € | I98: =I97+B98 -> 260.37 €
A99: Paypal | B99: -2.99 € | F99: x | G99: 2016-12-13 | H99: ='November 2016'!$I99 -> 257.38 € | I99: =I98+B99 -> 257.38 €
A100: Axa | B100: -7.75 € | E100: 2016-12-10 | F100: x | G100: 2016-12-13 | H100: ='November 2016'!$I100 -> 249.63 € | I100: =I99+B100 -> 249.63 €
A101: Dussmann | B101: -24.95 € | E101: 2016-12-12 | H101: ='November 2016'!$I101 -> 224.68 € | I101: =I100+B101 -> 224.68 €
B102: 0.00 € | H102: ='November 2016'!$I102 -> 224.68 € | I102: =I101+B102 -> 224.68 €
B103: 0.00 € | H103: ='November 2016'!$I103 -> 224.68 € | I103: =I102+B103 -> 224.68 €
H104: ='November 2016'!$I104 -> 224.68 € | I104: =I103+B104 -> 224.68 €
I105: =I104+B105 -> 224.68 €
I106: =I105+B106 -> 224.68 €
I107: =I106+B107 -> 224.68 €
I108: =I107+B108 -> 224.68 €
I109: =I108+B109 -> 224.68 €
I110: =I109+B110 -> 224.68 €
I111: =I110+B111 -> 224.68 €
I112: =I111+B112 -> 224.68 €
I113: =I112+B113 -> 224.68 €
I114: =I113+B114 -> 224.68 €
I115: =I114+B115 -> 224.68 €
I116: =I115+B116 -> 224.68 €
I117: =I116+B117 -> 224.68 €
I118: =I117+B118 -> 224.68 €
I119: =I118+B119 -> 224.68 €
I120: =I119+B120 -> 224.68 €
I121: =I120+B121 -> 224.68 €
I122: =I121+B122 -> 224.68 €
I123: =I122+B123 -> 224.68 €
I124: =I123+B124 -> 224.68 €
I125: =I124+B125 -> 224.68 €
I126: =I125+B126 -> 224.68 €
I127: =I126+B127 -> 224.68 €
I128: =I127+B128 -> 224.68 €
I129: =I128+B129 -> 224.68 €
I130: =I129+B130 -> 224.68 €
I131: =I130+B131 -> 224.68 €

Sheet November 2016 - Tabelle 1-1
A1: 2016-11-01
A3: Übertrag aus Vormonat | C3: ="#n"/"a" -> 
A5: WAS? | B5: Wert | C5: Bemerkung | D5: Fälligkeitszeitraum | E5: Wann ausgeführt | F5: Gebucht | G5: Buchungsdatum | H5: Kontostand
A6: DNWAB | B6: -€ 78.00 | D6: 1904-01-01T00:02:00 | F6: x | G6: 2015-10-15 | H6: ="#n"/"a" -> 
A7: Sven Gehalt | B7: € 3,066.73 | D7: m | F7: x | G7: 2015-10-15 | H7: =H6+B7 -> 
A8: Autokredit Tilgung | B8: -€ 200.00 | D8: m | F8: x | G8: 2015-10-15 | H8: =H7+B8 -> 
A9: Autokredit Tilgung Corinna | B9: -€ 101.00 | D9: m | F9: x | G9: 2015-10-15 | H9: =H8+B9 -> 
A10: Finanzamt Vorauszahlung | B10: -€ 104.00 | C10: Finanzamt Königs Wusterhausen Steuernummer 049/493/01058 DE61100000000016001505 | D10: vj | E10: 2016-12-10 | H10: =H9+B10 -> 
A11: Welt digital | B11: -€ 12.99 | D11: m | F11: x | G11: 2015-10-16 | H11: =H10+B11 -> 
A12: Shell | B12: -€ 27.77 | E12: 2015-10-15 | F12: x | G12: 2015-10-16 | H12: =H11+B12 -> 
A13: EC-Card | B13: -€ 30.00 | E13: 2015-10-16 | F13: x | G13: 2015-10-16 | H13: =H12+B13 -> 
A14: Cinestar | B14: -€ 20.60 | E14: 2015-10-17 | F14: x | G14: 2015-10-19 | H14: =H13+B14 -> 
A15: Fressnapf | B15: -€ 19.48 | E15: 2015-10-16 | F15: x | G15: 2015-10-19 | H15: =H14+B15 -> 
A16: REWE | B16: -€ 28.74 | E16: 2015-10-16 | F16: x | G16: 2015-10-19 | H16: =H15+B16 -> 
A17: Lidl | B17: -€ 91.21 | E17: 2015-10-16 | F17: x | G17: 2015-10-19 | H17: =H16+B17 -> 
A18: Getränke Hoffmann | B18: -€ 22.98 | E18: 2015-10-16 | F18: x | G18: 2015-10-19 | H18: =H17+B18 -> 
A19: Sun Tankstelle | B19: -€ 17.74 | E19: 2015-10-17 | F19: x | G19: 2015-10-19 | H19: =H18+B19 -> 
A20: Megazoo | B20: -€ 32.37 | E20: 2015-10-19 | F20: x | G20: 2015-10-20 | H20: =H19+B20 -> 
A21: Vivian | B21: -€ 35.00 | D21: m | F21: x | G21: 2015-10-21 | H21: =H20+B21 -> 
A22: SparCard | B22: -€ 150.00 | C22: ="#n"/"a" ->  | D22: m | F22: x | G22: 2015-10-21 | H22: =H21+B22 -> 
A23: EMB | B23: -€ 110.00 | D23: m | F23: x | G23: 2015-10-21 | H23: =H22+B23 -> 
A24: Corinna Abschlag | B24: € 500.00 | D24: m | F24: x | G24: 2015-10-21 | H24: =H23+B24 -> 
A25: Total | B25: -€ 20.01 | E25: 2015-10-20 | F25: x | G25: 2015-10-21 | H25: =H24+B25 -> 
A26: EC-Card | B26: -€ 30.00 | E26: 2015-10-21 | F26: x | G26: 2015-10-21 | H26: =H25+B26 -> 
A27: Corinna Handy | B27: -€ 33.96 | D27: m | F27: x | G27: 2015-10-21 | H27: =H26+B27 -> 
A28: Netto | B28: -€ 18.33 | E28: 2015-10-21 | F28: x | G28: 2015-10-22 | H28: =H27+B28 -> 
A29: Vodafone | B29: -€ 26.99 | D29: m | F29: x | G29: 2015-10-23 | H29: =H28+B29 -> 
A30: T-Mobile | B30: =-36.68-0.23 -> -€ 36.91 | D30: m | H30: =H29+B30 -> 
A31: T-Mobile | B31: =-19.95 -> -€ 19.95 | D31: m | H31: =H30+B31 -> 
A32: Autoversicherung Corinna | B32: -€ 21.33 | C32: -25.31 | D32: m | H32: =H31+B32 -> 
A33: Corinna Bausparer | B33: -€ 20.00 | D33: m | H33: =H32+B33 -> 
A34: HypoVereinsbank | B34: -€ 909.65 | D34: m | H34: =H33+B34 -> 
A35: EWE | B35: -€ 66.00 | D35: m | H35: =H34+B35 -> 
A36: Mac 2 | B36: -€ 51.48 | C36: am 01.12.16 51,64€ | D36: m | H36: =H35+B36 -> 
A37: BVG | B37: -€ 80.50 | D37: m | H37: =H36+B37 -> 
A38: Autoversicherung Sven | B38: -€ 26.98 | C38: -21.17 | D38: m | H38: =H37+B38 -> 
A39: Comfort Card | B39: -€ 88.00 | D39: m | H39: =H38+B39 -> 
A40: Corinna Gehalt | B40: € 200.00 | D40: m | H40: =H39+B40 -> 
A41: Atlas | B41: -€ 29.90 | D41: m | H41: =H40+B41 -> 
A42: Roland Rechtsschutz | B42: -€ 38.00 | D42: vj | H42: =H41+B42 -> 
A43: Kabel Internet | B43: -€ 40.00 | D43: m | H43: =H42+B43 -> 
A44: DBV Haftpflicht | B44: -€ 6.54 | D44: m | H44: =H43+B44 -> 
A45: Laptop | B45: -€ 51.01 | C45: danach 19 x 51,01 und am 1.8.18 51,08 | D45: m | H45: =H44+B45 -> 
A46: Kabelanschluss | B46: -€ 31.00 | D46: m | H46: =H45+B46 -> 
A47: Vodafone | B47: -€ 40.00 | D47: m | H47: =H46+B47 -> 
A48: SparCard | B48: -€ 50.00 | C48: noch 16 mal (für Vivi) | D48: m | H48: =H47+B48 -> 
A49: Kindergeld | B49: € 184.00 | D49: m | H49: =H48+B49 -> 
A50: EUROCARD | B50: =-77.8-11-64.9-25.25-1.99+34-34-7.99 -> -€ 188.93 | C50: 77,8 €= TI | D50: m | H50: =H49+B50 -> 
A51: Provinzial Unfallversicherung | B51: -€ 25.85 | D51: m | H51: =H50+B51 -> 
A52: Fahrrad | B52: -€ 68.01 | D52: m | H52: =H51+B52 -> 
A53: Roller | B53: -€ 58.74 | D53: m | H53: =H52+B53 -> 
A54: Roller | B54: -€ 58.74 | D54: m | H54: =H53+B54 -> 
A55: Johanniter | B55: -€ 60.00 | D55: j | H55: =H54+B55 -> 
A56: Crazy Factory | B56: -€ 17.48 | E56: 2015-10-21 | H56: =H55+B56 -> 
A57: Total | B57: -€ 19.05 | E57: 2015-10-22 | H57: =H56+B57 -> 
A58: Lidl | B58: -€ 83.63 | E58: 2015-10-24 | H58: =H57+B58 -> 
A59: Paypal | B59: -€ 11.00 | H59: =H58+B59 -> 
A60: Dänisches Bettenlager | B60: -€ 55.99 | C60: Kissen | E60: 2015-10-24 | H60: =H59+B60 -> 
A61: EC-Card | B61: -€ 30.00 | E61: 2015-10-23 | H61: =H60+B61 -> 
A62: Hagebau | B62: -€ 33.55 | E62: 2015-10-24 | H62: =H61+B62 -> 
A63: C & A | B63: -€ 12.00 | H63: =H62+B63 -> 
D64: m | H64: =H63+B64 -> 

Sheet Dezember 2016
A1: 2016-12-01
A2: Übertrag aus Vormonat | D2: =LOOKUP(9^99,'November 2016'!H$1:H$65536) -> 224.68 €
A4: WAS? | B4: Wert | C4: Haushalt | D4: Bemerkung | E4: Fälligkeitszeitraum | F4: Wann ausgeführt | G4: Gebucht | H4: Buchungsdatum | I4: Kontostand
A5: DNWAB | B5: -78.00 € | E5: 2m | G5: x | H5: 2016-12-15 | I5: =J5 -> 146.68 € | J5: =D2+B5 -> 146.68 € | K5: m | L5: =IF(C5="x",-B5,0) -> 0
A6: Sven Gehalt | B6: 3,093.22 € | E6: m | G6: x | H6: 2016-12-15 | I6: ='Dezember 2016'!$J6 -> 3,239.90 € | J6: =J5+B6 -> 3,239.90 € | K6: 2m | L6: =IF(C6="x",-B6,0) -> 0
A7: Total | B7: -30.57 € | F7: 2016-12-14 | G7: x | H7: 2016-12-15 | I7: ='Dezember 2016'!$J7 -> 3,209.33 € | J7: =J6+B7 -> 3,209.33 € | K7: vj | L7: =IF(C7="x",-B7,0) -> 0
A8: Autokredit Tilgung | B8: -200.00 € | E8: m | G8: x | H8: 2016-12-15 | I8: ='Dezember 2016'!$J8 -> 3,009.33 € | J8: =J7+B8 -> 3,009.33 € | K8: hj | L8: =IF(C8="x",-B8,0) -> 0
A9: Autokredit Tilgung Corinna | B9: -101.00 € | E9: m | G9: x | H9: 2016-12-15 | I9: ='Dezember 2016'!$J9 -> 2,908.33 € | J9: =J8+B9 -> 2,908.33 € | K9: j | L9: =IF(C9="x",-B9,0) -> 0
A10: Welt digital | B10: -12.99 € | E10: m | G10: x | H10: 2016-12-15 | I10: ='Dezember 2016'!$J10 -> 2,895.34 € | J10: =J9+B10 -> 2,895.34 € | K10: 2j | L10: =IF(C10="x",-B10,0) -> 0
A11: DJH | B11: -22.50 € | E11: j | G11: x | H11: 2016-12-15 | I11: ='Dezember 2016'!$J11 -> 2,872.84 € | J11: =J10+B11 -> 2,872.84 € | L11: =IF(C11="x",-B11,0) -> 0
A12: EC-Card | B12: -50.00 € | F12: 2016-12-15 | G12: x | H12: 2016-12-15 | I12: ='Dezember 2016'!$J12 -> 2,822.84 € | J12: =J11+B12 -> 2,822.84 € | L12: =IF(C12="x",-B12,0) -> 0
A13: Paypal | B13: -9.90 € | D13: Stift | F13: 2016-12-15 | G13: x | H13: 2016-12-19 | I13: ='Dezember 2016'!$J13 -> 2,812.94 € | J13: =J12+B13 -> 2,812.94 € | L13: =IF(C13="x",-B13,0) -> 0
A14: Paypal | B14: -39.50 € | D14: Flixbus | F14: 2016-12-15 | G14: x | H14: 2016-12-19 | I14: ='Dezember 2016'!$J14 -> 2,773.44 € | J14: =J13+B14 -> 2,773.44 € | L14: =IF(C14="x",-B14,0) -> 0
A15: Paypal | B15: -42.00 € | D15: Märchenhütte | G15: x | H15: 2016-12-19 | I15: ='Dezember 2016'!$J15 -> 2,731.44 € | J15: =J14+B15 -> 2,731.44 € | L15: =IF(C15="x",-B15,0) -> 0
A16: Lidl | B16: -101.70 € | C16: x | F16: 2016-12-16 | G16: x | H16: 2016-12-19 | I16: ='Dezember 2016'!$J16 -> 2,629.74 € | J16: =J15+B16 -> 2,629.74 € | L16: =IF(C16="x",-B16,0) -> 101.7
A17: EC-Card | B17: -50.00 € | F17: 2016-12-17 | G17: x | H17: 2016-12-19 | I17: ='Dezember 2016'!$J17 -> 2,579.74 € | J17: =J16+B17 -> 2,579.74 € | L17: =IF(C17="x",-B17,0) -> 0
A18: Rubin | B18: -11.34 € | F18: 2016-12-16 | G18: x | H18: 2016-12-19 | I18: ='Dezember 2016'!$J18 -> 2,568.40 € | J18: =J17+B18 -> 2,568.40 € | L18: =IF(C18="x",-B18,0) -> 0
A19: IKEA | B19: -68.62 € | F19: 2016-12-16 | G19: x | H19: 2016-12-19 | I19: ='Dezember 2016'!$J19 -> 2,499.78 € | J19: =J18+B19 -> 2,499.78 € | L19: =IF(C19="x",-B19,0) -> 0
A20: Edeka | B20: -19.42 € | F20: 2016-12-17 | G20: x | H20: 2016-12-19 | I20: ='Dezember 2016'!$J20 -> 2,480.36 € | J20: =J19+B20 -> 2,480.36 € | L20: =IF(C20="x",-B20,0) -> 0
A21: Corinna Handy | B21: -33.96 € | E21: m | G21: x | H21: 2016-12-20 | I21: ='Dezember 2016'!$J21 -> 2,446.40 € | J21: =J20+B21 -> 2,446.40 € | L21: =IF(C21="x",-B21,0) -> 0
A22: Star | B22: -24.09 € | F22: 2016-12-16 | G22: x | H22: 2016-12-20 | I22: ='Dezember 2016'!$J22 -> 2,422.31 € | J22: =J21+B22 -> 2,422.31 € | L22: =IF(C22="x",-B22,0) -> 0
A23: MegaZoo | B23: -32.98 € | F23: 2016-12-16 | G23: x | H23: 2016-12-20 | I23: ='Dezember 2016'!$J23 -> 2,389.33 € | J23: =J22+B23 -> 2,389.33 € | L23: =IF(C23="x",-B23,0) -> 0
A24: Amazon | B24: -4.99 € | F24: 2016-12-17 | G24: x | H24: 2016-12-20 | I24: ='Dezember 2016'!$J24 -> 2,384.34 € | J24: =J23+B24 -> 2,384.34 € | L24: =IF(C24="x",-B24,0) -> 0
A25: Amazon | B25: -0.99 € | F25: 2016-12-17 | G25: x | H25: 2016-12-20 | I25: ='Dezember 2016'!$J25 -> 2,383.35 € | J25: =J24+B25 -> 2,383.35 € | L25: =IF(C25="x",-B25,0) -> 0
A26: SparCard | B26: -150.00 € | D26: 4600 | E26: m | G26: x | H26: 2016-12-21 | I26: ='Dezember 2016'!$J26 -> 2,233.35 € | J26: =J25+B26 -> 2,233.35 € | L26: =IF(C26="x",-B26,0) -> 0
A27: EMB | B27: -100.00 € | E27: m | G27: x | H27: 2016-12-21 | I27: ='Dezember 2016'!$J27 -> 2,133.35 € | J27: =J26+B27 -> 2,133.35 € | L27: =IF(C27="x",-B27,0) -> 0
A28: Dussmann | B28: -12.00 € | F28: 2016-12-19 | G28: x | H28: 2016-12-21 | I28: ='Dezember 2016'!$J28 -> 2,121.35 € | J28: =J27+B28 -> 2,121.35 € | L28: =IF(C28="x",-B28,0) -> 0
A29: Gerling-HDI | B29: -47.66 € | E29: vj | G29: x | H29: 2016-12-22 | I29: ='Dezember 2016'!$J29 -> 2,073.69 € | J29: =J28+B29 -> 2,073.69 € | L29: =IF(C29="x",-B29,0) -> 0
A30: Vodafone | B30: -30.59 € | E30: m | G30: x | H30: 2016-12-22 | I30: ='Dezember 2016'!$J30 -> 2,043.10 € | J30: =J29+B30 -> 2,043.10 € | L30: =IF(C30="x",-B30,0) -> 0
A31: Netto | B31: -12.60 € | F31: 2016-12-20 | G31: x | H31: 2016-12-22 | I31: ='Dezember 2016'!$J31 -> 2,030.50 € | J31: =J30+B31 -> 2,030.50 € | L31: =IF(C31="x",-B31,0) -> 0
A32: Sprint | B32: -15.85 € | F32: 2016-12-20 | G32: x | H32: 2016-12-22 | I32: ='Dezember 2016'!$J32 -> 2,014.65 € | J32: =J31+B32 -> 2,014.65 € | L32: =IF(C32="x",-B32,0) -> 0
A33: Kaufland | B33: -62.09 € | C33: x | G33: x | H33: 2016-12-23 | I33: ='Dezember 2016'!$J33 -> 1,952.56 € | J33: =J32+B33 -> 1,952.56 € | L33: =IF(C33="x",-B33,0) -> 62.09
A34: Paypal | B34: -10.00 € | D34: Udemy | F34: 2016-12-21 | G34: x | H34: 2016-12-23 | I34: ='Dezember 2016'!$J34 -> 1,942.56 € | J34: =J33+B34 -> 1,942.56 € | L34: =IF(C34="x",-B34,0) -> 0
A35: Rubin | B35: -11.22 € | F35: 2016-12-22 | G35: x | H35: 2016-12-23 | I35: ='Dezember 2016'!$J35 -> 1,931.34 € | J35: =J34+B35 -> 1,931.34 € | L35: =IF(C35="x",-B35,0) -> 0
A36: Total | B36: -15.95 € | F36: 2016-12-22 | G36: x | H36: 2016-12-23 | I36: ='Dezember 2016'!$J36 -> 1,915.39 € | J36: =J35+B36 -> 1,915.39 € | L36: =IF(C36="x",-B36,0) -> 0
A37: Corinna Training | B37: -120.00 € | G37: x | H37: 2016-12-23 | I37: ='Dezember 2016'!$J37 -> 1,795.39 € | J37: =J36+B37 -> 1,795.39 € | L37: =IF(C37="x",-B37,0) -> 0
A38: EC-Card | B38: -30.00 € | F38: 2016-12-24 | G38: x | H38: 2016-12-27 | I38: ='Dezember 2016'!$J38 -> 1,765.39 € | J38: =J37+B38 -> 1,765.39 € | L38: =IF(C38="x",-B38,0) -> 0
A39: Fressnapf | B39: -20.89 € | F39: 2016-12-22 | G39: x | H39: 2016-12-27 | I39: ='Dezember 2016'!$J39 -> 1,744.50 € | J39: =J38+B39 -> 1,744.50 € | L39: =IF(C39="x",-B39,0) -> 0
A40: T-Mobile | B40: -36.91 € | E40: m | G40: x | H40: 2016-12-27 | I40: ='Dezember 2016'!$J40 -> 1,707.59 € | J40: =J39+B40 -> 1,707.59 € | L40: =IF(C40="x",-B40,0) -> 0
A41: T-Mobile | B41: -19.95 € | E41: m | G41: x | H41: 2016-12-27 | I41: ='Dezember 2016'!$J41 -> 1,687.64 € | J41: =J40+B41 -> 1,687.64 € | L41: =IF(C41="x",-B41,0) -> 0
A42: Amazon | B42: -7.95 € | F42: 2016-12-22 | G42: x | H42: 2016-12-27 | I42: ='Dezember 2016'!$J42 -> 1,679.69 € | J42: =J41+B42 -> 1,679.69 € | L42: =IF(C42="x",-B42,0) -> 0
A43: Amazon | B43: -23.99 € | D43: für Rene, Geld bar erhalten | F43: 2016-12-21 | G43: x | H43: 2016-12-27 | I43: ='Dezember 2016'!$J43 -> 1,655.70 € | J43: =J42+B43 -> 1,655.70 € | L43: =IF(C43="x",-B43,0) -> 0
A44: Corinna Gehalt | B44: 1,109.10 € | E44: m | G44: x | H44: 2016-12-27 | I44: ='Dezember 2016'!$J44 -> 2,764.80 € | J44: =J43+B44 -> 2,764.80 € | L44: =IF(C44="x",-B44,0) -> 0
A45: Lidl | B45: -94.08 € | C45: x | F45: 2016-12-23 | G45: x | H45: 2016-12-27 | I45: ='Dezember 2016'!$J45 -> 2,670.72 € | J45: =J44+B45 -> 2,670.72 € | L45: =IF(C45="x",-B45,0) -> 94.08
A46: Real | B46: -18.63 € | C46: x | F46: 2016-12-24 | G46: x | H46: 2016-12-27 | I46: ='Dezember 2016'!$J46 -> 2,652.09 € | J46: =J45+B46 -> 2,652.09 € | L46: =IF(C46="x",-B46,0) -> 18.63
A47: Amazon | B47: -3.99 € | G47: x | H47: 2016-12-28 | I47: ='Dezember 2016'!$J47 -> 2,648.10 € | J47: =J46+B47 -> 2,648.10 € | L47: =IF(C47="x",-B47,0) -> 0
A48: Paypal | B48: -19.79 € | D48: Doom | F48: 2016-12-26 | G48: x | H48: 2016-12-28 | I48: ='Dezember 2016'!$J48 -> 2,628.31 € | J48: =J47+B48 -> 2,628.31 € | L48: =IF(C48="x",-B48,0) -> 0
A49: Roller | B49: -16.46 € | C49: x | F49: 2016-12-24 | G49: x | H49: 2016-12-28 | I49: ='Dezember 2016'!$J49 -> 2,611.85 € | J49: =J48+B49 -> 2,611.85 € | L49: =IF(C49="x",-B49,0) -> 16.46
A50: Dussmann | B50: -13.40 € | F50: 2016-12-27 | G50: x | H50: 2016-12-29 | I50: ='Dezember 2016'!$J50 -> 2,598.45 € | J50: =J49+B50 -> 2,598.45 € | L50: =IF(C50="x",-B50,0) -> 0
A51: EC-Card | B51: -50.00 € | F51: 2016-12-29 | G51: x | H51: 2016-12-29 | I51: ='Dezember 2016'!$J51 -> 2,548.45 € | J51: =J50+B51 -> 2,548.45 € | L51: =IF(C51="x",-B51,0) -> 0
A52: ebay | B52: -7.77 € | D52: Schollmeier -- Stifte | F52: 2016-12-29 | G52: x | H52: 2016-12-29 | I52: ='Dezember 2016'!$J52 -> 2,540.68 € | J52: =J51+B52 -> 2,540.68 € | L52: =IF(C52="x",-B52,0) -> 0
A53: Netto | B53: -17.56 € | C53: x | F53: 2016-12-28 | G53: x | H53: 2016-12-30 | I53: ='Dezember 2016'!$J53 -> 2,523.12 € | J53: =J52+B53 -> 2,523.12 € | L53: =IF(C53="x",-B53,0) -> 17.56
A54: Jet | B54: -23.92 € | F54: 2016-12-28 | G54: x | H54: 2016-12-30 | I54: ='Dezember 2016'!$J54 -> 2,499.20 € | J54: =J53+B54 -> 2,499.20 € | L54: =IF(C54="x",-B54,0) -> 0
A55: Corinna Bausparer | B55: -20.00 € | E55: m | G55: x | H55: 2016-12-30 | I55: ='Dezember 2016'!$J55 -> 2,479.20 € | J55: =J54+B55 -> 2,479.20 € | L55: =IF(C55="x",-B55,0) -> 0
A56: EC-Card | B56: -30.00 € | F56: 2016-12-30 | G56: x | H56: 2016-12-30 | I56: ='Dezember 2016'!$J56 -> 2,449.20 € | J56: =J55+B56 -> 2,449.20 € | L56: =IF(C56="x",-B56,0) -> 0
A57: Kaufhof | B57: -36.34 € | F57: 2016-12-29 | G57: x | H57: 2016-12-30 | I57: ='Dezember 2016'!$J57 -> 2,412.86 € | J57: =J56+B57 -> 2,412.86 € | L57: =IF(C57="x",-B57,0) -> 0
A58: Zinsen/Entgelte | B58: -7.80 € | G58: x | H58: 2016-12-30 | I58: ='Dezember 2016'!$J58 -> 2,405.06 € | J58: =J57+B58 -> 2,405.06 € | L58: =IF(C58="x",-B58,0) -> 0
A59: EWE | B59: -66.00 € | E59: m | G59: x | H59: 2017-01-02 | I59: ='Dezember 2016'!$J59 -> 2,339.06 € | J59: =J58+B59 -> 2,339.06 € | L59: =IF(C59="x",-B59,0) -> 0
A60: Sun | B60: -29.99 € | C60: x | F60: 2016-12-29 | G60: x | H60: 2017-01-02 | I60: ='Dezember 2016'!$J60 -> 2,309.07 € | J60: =J59+B60 -> 2,309.07 € | L60: =IF(C60="x",-B60,0) -> 29.99
A61: Autoversicherung Sven | B61: -30.46 € | E61: m | G61: x | H61: 2017-01-02 | I61: ='Dezember 2016'!$J61 -> 2,278.61 € | J61: =J60+B61 -> 2,278.61 € | L61: =IF(C61="x",-B61,0) -> 0
A62: Autoversicherung Corinna | B62: -22.31 € | E62: m | G62: x | H62: 2017-01-02 | I62: ='Dezember 2016'!$J62 -> 2,256.30 € | J62: =J61+B62 -> 2,256.30 € | L62: =IF(C62="x",-B62,0) -> 0
A63: Gerling - Axa | B63: -40.47 € | E63: vj | G63: x | H63: 2017-01-02 | I63: ='Dezember 2016'!$J63 -> 2,215.83 € | J63: =J62+B63 -> 2,215.83 € | L63: =IF(C63="x",-B63,0) -> 0
A64: Laptop | B64: -51.01 € | D64: danach 21 x 51,01 und am 1.8.17 51,08 | E64: m | G64: x | H64: 2017-01-02 | I64: ='Dezember 2016'!$J64 -> 2,164.82 € | J64: =J63+B64 -> 2,164.82 € | L64: =IF(C64="x",-B64,0) -> 0
A65: iMAC | B65: -84.88 € | D65: am 01.06.2018 85,04 | E65: m | G65: x | H65: 2017-01-02 | I65: ='Dezember 2016'!$J65 -> 2,079.94 € | J65: =J64+B65 -> 2,079.94 € | L65: =IF(C65="x",-B65,0) -> 0
A66: Netto | B66: -21.72 € | C66: x | F66: 2016-12-29 | G66: x | H66: 2017-01-02 | I66: ='Dezember 2016'!$J66 -> 2,058.22 € | J66: =J65+B66 -> 2,058.22 € | L66: =IF(C66="x",-B66,0) -> 21.72
A67: Comfort Card | B67: -88.00 € | E67: m | G67: x | H67: 2017-01-02 | I67: ='Dezember 2016'!$J67 -> 1,970.22 € | J67: =J66+B67 -> 1,970.22 € | L67: =IF(C67="x",-B67,0) -> 0
A68: BVG | B68: -82.67 € | E68: m | G68: x | H68: 2017-01-02 | I68: ='Dezember 2016'!$J68 -> 1,887.55 € | J68: =J67+B68 -> 1,887.55 € | L68: =IF(C68="x",-B68,0) -> 0
A69: Lidl | B69: -84.93 € | C69: x | F69: 2016-12-30 | G69: x | H69: 2017-01-02 | I69: ='Dezember 2016'!$J69 -> 1,802.62 € | J69: =J68+B69 -> 1,802.62 € | L69: =IF(C69="x",-B69,0) -> 84.93
A70: Dänisches Bettenlager | B70: -9.98 € | C70: x | F70: 2016-12-30 | G70: x | H70: 2017-01-02 | I70: ='Dezember 2016'!$J70 -> 1,792.64 € | J70: =J69+B70 -> 1,792.64 € | L70: =IF(C70="x",-B70,0) -> 9.98
A71: dm | B71: -7.85 € | C71: x | F71: 2016-12-30 | G71: x | H71: 2017-01-02 | I71: ='Dezember 2016'!$J71 -> 1,784.79 € | J71: =J70+B71 -> 1,784.79 € | L71: =IF(C71="x",-B71,0) -> 7.85
A72: S-Bahn | B72: -6.60 € | F72: 2017-12-30 | G72: x | H72: 2017-01-02 | I72: ='Dezember 2016'!$J72 -> 1,778.19 € | J72: =J71+B72 -> 1,778.19 € | L72: =IF(C72="x",-B72,0) -> 0
A73: HypoVereinsbank | B73: -909.65 € | E73: m | G73: x | H73: 2017-01-02 | I73: ='Dezember 2016'!$J73 -> 868.54 € | J73: =J72+B73 -> 868.54 € | L73: =IF(C73="x",-B73,0) -> 0
A74: EC-Card | B74: -20.00 € | F74: 2017-01-03 | G74: x | H74: 2017-01-03 | I74: ='Dezember 2016'!$J74 -> 848.54 € | J74: =J73+B74 -> 848.54 € | L74: =IF(C74="x",-B74,0) -> 0
A75: Mediamarkt | B75: -43.98 € | D75: Trackpad | F75: 2016-12-30 | G75: x | H75: 2017-01-03 | I75: ='Dezember 2016'!$J75 -> 804.56 € | J75: =J74+B75 -> 804.56 € | L75: =IF(C75="x",-B75,0) -> 0
A76: Lidl | B76: -16.35 € | C76: x | F76: 2017-01-02 | G76: x | H76: 2017-01-03 | I76: ='Dezember 2016'!$J76 -> 788.21 € | J76: =J75+B76 -> 788.21 € | L76: =IF(C76="x",-B76,0) -> 16.35
A77: Hagebaumarkt | B77: -10.48 € | F77: 2017-01-02 | G77: x | H77: 2017-01-03 | I77: ='Dezember 2016'!$J77 -> 777.73 € | J77: =J76+B77 -> 777.73 € | L77: =IF(C77="x",-B77,0) -> 0
A78: Fressnapf | B78: -19.74 € | C78: x | F78: 2017-01-02 | G78: x | H78: 2017-01-04 | I78: ='Dezember 2016'!$J78 -> 757.99 € | J78: =J77+B78 -> 757.99 € | L78: =IF(C78="x",-B78,0) -> 19.74
A79: Sprint | B79: -15.97 € | C79: x | F79: 2017-01-02 | G79: x | H79: 2017-01-04 | I79: ='Dezember 2016'!$J79 -> 742.02 € | J79: =J78+B79 -> 742.02 € | L79: =IF(C79="x",-B79,0) -> 15.97
A80: Apotheke | B80: -9.05 € | F80: 2017-01-02 | G80: x | H80: 2017-01-04 | I80: ='Dezember 2016'!$J80 -> 732.97 € | J80: =J79+B80 -> 732.97 € | L80: =IF(C80="x",-B80,0) -> 0
A81: Apotheke | B81: -9.95 € | G81: x | H81: 2017-01-05 | I81: ='Dezember 2016'!$J81 -> 723.02 € | J81: =J80+B81 -> 723.02 € | L81: =IF(C81="x",-B81,0) -> 0
A82: EC-Card | B82: -40.00 € | G82: x | H82: 2017-01-05 | I82: ='Dezember 2016'!$J82 -> 683.02 € | J82: =J81+B82 -> 683.02 € | L82: =IF(C82="x",-B82,0) -> 0
A83: Contabo | B83: -6.99 € | E83: m | G83: x | H83: 2017-01-05 | I83: ='Dezember 2016'!$J83 -> 676.03 € | J83: =J82+B83 -> 676.03 € | L83: =IF(C83="x",-B83,0) -> 0
A84: Amazon | B84: -2.99 € | F84: 2017-01-03 | G84: x | H84: 2017-01-05 | I84: ='Dezember 2016'!$J84 -> 673.04 € | J84: =J83+B84 -> 673.04 € | L84: =IF(C84="x",-B84,0) -> 0
A85: DBV Haftpflicht | B85: -6.54 € | G85: x | H85: 2017-01-06 | I85: ='Dezember 2016'!$J85 -> 666.50 € | J85: =J84+B85 -> 666.50 € | L85: =IF(C85="x",-B85,0) -> 0
A86: Rubin | B86: -16.32 € | C86: x | F86: 2017-01-06 | G86: x | H86: 2017-01-06 | I86: ='Dezember 2016'!$J86 -> 650.18 € | J86: =J85+B86 -> 650.18 € | L86: =IF(C86="x",-B86,0) -> 16.32
A87: Lidl | B87: -57.89 € | C87: x | F87: 2017-01-06 | G87: x | H87: 2017-01-06 | I87: ='Dezember 2016'!$J87 -> 592.29 € | J87: =J86+B87 -> 592.29 € | L87: =IF(C87="x",-B87,0) -> 57.89
A88: EC-Card | B88: -20.00 € | F88: 2017-01-09 | G88: x | H88: 2017-01-06 | I88: ='Dezember 2016'!$J88 -> 572.29 € | J88: =J87+B88 -> 572.29 € | L88: =IF(C88="x",-B88,0) -> 0
A89: Total | B89: -14.95 € | F89: 2017-01-07 | G89: x | H89: 2017-01-06 | I89: ='Dezember 2016'!$J89 -> 557.34 € | J89: =J88+B89 -> 557.34 € | L89: =IF(C89="x",-B89,0) -> 0
A90: EUROCARD | B90: =-34-31.5-10.58-41.1-7.99-2.99 -> -128.16 € | D90: 41,1 Gojira | E90: m | G90: x | H90: 2017-01-10 | I90: ='Dezember 2016'!$J90 -> 429.18 € | J90: =J89+B90 -> 429.18 € | L90: =IF(C90="x",-B90,0) -> 0
A91: Aral | B91: -13.39 € | E91: m | F91: 2017-01-06 | G91: x | H91: 2017-01-10 | I91: ='Dezember 2016'!$J91 -> 415.79 € | J91: =J90+B91 -> 415.79 € | L91: =IF(C91="x",-B91,0) -> 0
A92: MegaZoo | B92: -7.13 € | F92: 2017-01-06 | G92: x | H92: 2017-01-10 | I92: ='Dezember 2016'!$J92 -> 408.66 € | J92: =J91+B92 -> 408.66 € | L92: =IF(C92="x",-B92,0) -> 0
A93: Amazon | B93: -9.95 € | D93: für Rene, Geld bar erhalten | G93: x | H93: 2017-01-10 | I93: ='Dezember 2016'!$J93 -> 398.71 € | J93: =J92+B93 -> 398.71 € | L93: =IF(C93="x",-B93,0) -> 0
A94: Aral | B94: -20.00 € | F94: 2017-01-09 | G94: x | H94: 2017-01-11 | I94: ='Dezember 2016'!$J94 -> 378.71 € | J94: =J93+B94 -> 378.71 € | L94: =IF(C94="x",-B94,0) -> 0
A95: Bauhaus | B95: -14.15 € | F95: 2017-01-09 | G95: x | H95: 2017-01-11 | I95: ='Dezember 2016'!$J95 -> 364.56 € | J95: =J94+B95 -> 364.56 € | L95: =IF(C95="x",-B95,0) -> 0
A96: EC-Card | B96: -30.00 € | F96: 2017-01-11 | G96: x | H96: 2017-01-11 | I96: ='Dezember 2016'!$J96 -> 334.56 € | J96: =J95+B96 -> 334.56 € | L96: =IF(C96="x",-B96,0) -> 0
A97: Kabel Internet | B97: -39.54 € | E97: m | F97: 2017-01-13 | G97: x | H97: 2017-01-12 | I97: ='Dezember 2016'!$J97 -> 295.02 € | J97: =J96+B97 -> 295.02 € | L97: =IF(C97="x",-B97,0) -> 0
A98: Kabelanschluss | B98: -30.91 € | E98: m | G98: x | H98: 2017-01-12 | I98: ='Dezember 2016'!$J98 -> 264.11 € | J98: =J97+B98 -> 264.11 € | L98: =IF(C98="x",-B98,0) -> 0
A99: Kindergeld | B99: 192.00 € | E99: m | G99: x | H99: 2017-01-12 | I99: ='Dezember 2016'!$J99 -> 456.11 € | J99: =J98+B99 -> 456.11 € | L99: =IF(C99="x",-B99,0) -> 0
A100: dm | B100: -9.15 € | F100: 2017-01-11 | G100: x | H100: 2017-01-12 | I100: ='Dezember 2016'!$J100 -> 446.96 € | J100: =J99+B100 -> 446.96 € | L100: =IF(C100="x",-B100,0) -> 0
A101: Fressnapf | B101: -31.84 € | F101: 2017-01-11 | G101: x | H101: 2017-01-13 | I101: ='Dezember 2016'!$J101 -> 415.12 € | J101: =J100+B101 -> 415.12 € | L101: =IF(C101="x",-B101,0) -> 0
A102: Vivian | B102: -100.00 € | E102: m | F102: 2017-01-13 | G102: x | H102: 2017-01-13 | I102: ='Dezember 2016'!$J102 -> 315.12 € | J102: =J101+B102 -> 315.12 € | L102: =IF(C102="x",-B102,0) -> 0
A103: Haushalt | B103: =-700+SUM(L$1:L$65536) -> -108.74 € | I103: ='Dezember 2016'!$J103 -> 206.38 € | J103: =J102+B103 -> 206.38 € | L103: =IF(C103="x",-B103,0) -> 0
A104: Axa | B104: -7.75 € | I104: ='Dezember 2016'!$J104 -> 198.63 € | J104: =J103+B104 -> 198.63 € | L104: =IF(C104="x",-B104,0) -> 0
A105: Ausgleich | B105: =-B104-B103 -> 116.49 € | I105: ='Dezember 2016'!$J105 -> 315.12 € | J105: =J104+B105 -> 315.12 € | L105: =IF(C105="x",-B105,0) -> 0
I106: ='Dezember 2016'!$J106 -> 315.12 € | J106: =J105+B106 -> 315.12 € | L106: =IF(C106="x",-B106,0) -> 0
I107: ='Dezember 2016'!$J107 -> 315.12 € | J107: =J106+B107 -> 315.12 € | L107: =IF(C107="x",-B107,0) -> 0
I108: ='Dezember 2016'!$J108 -> 315.12 € | J108: =J107+B108 -> 315.12 € | L108: =IF(C108="x",-B108,0) -> 0
I109: ='Dezember 2016'!$J109 -> 315.12 € | J109: =J108+B109 -> 315.12 € | L109: =IF(C109="x",-B109,0) -> 0
J110: =J109+B110 -> 315.12 € | L110: =IF(C110="x",-B110,0) -> 0
J111: =J110+B111 -> 315.12 € | L111: =IF(C111="x",-B111,0) -> 0
J112: =J111+B112 -> 315.12 € | L112: =IF(C112="x",-B112,0) -> 0
J113: =J112+B113 -> 315.12 € | L113: =IF(C113="x",-B113,0) -> 0
J114: =J113+B114 -> 315.12 € | L114: =IF(C114="x",-B114,0) -> 0
J115: =J114+B115 -> 315.12 € | L115: =IF(C115="x",-B115,0) -> 0
J116: =J115+B116 -> 315.12 € | L116: =IF(C116="x",-B116,0) -> 0
J117: =J116+B117 -> 315.12 € | L117: =IF(C117="x",-B117,0) -> 0
J118: =J117+B118 -> 315.12 € | L118: =IF(C118="x",-B118,0) -> 0
J119: =J118+B119 -> 315.12 € | L119: =IF(C119="x",-B119,0) -> 0
J120: =J119+B120 -> 315.12 € | L120: =IF(C120="x",-B120,0) -> 0
J121: =J120+B121 -> 315.12 € | L121: =IF(C121="x",-B121,0) -> 0
J122: =J121+B122 -> 315.12 € | L122: =IF(C122="x",-B122,0) -> 0
J123: =J122+B123 -> 315.12 € | L123: =IF(C123="x",-B123,0) -> 0
J124: =J123+B124 -> 315.12 € | L124: =IF(C124="x",-B124,0) -> 0
J125: =J124+B125 -> 315.12 € | L125: =IF(C125="x",-B125,0) -> 0
J126: =J125+B126 -> 315.12 € | L126: =IF(C126="x",-B126,0) -> 0
J127: =J126+B127 -> 315.12 € | L127: =IF(C127="x",-B127,0) -> 0
J128: =J127+B128 -> 315.12 € | L128: =IF(C128="x",-B128,0) -> 0
J129: =J128+B129 -> 315.12 € | L129: =IF(C129="x",-B129,0) -> 0
J130: =J129+B130 -> 315.12 € | L130: =IF(C130="x",-B130,0) -> 0
J131: =J130+B131 -> 315.12 € | L131: =IF(C131="x",-B131,0) -> 0

Sheet Januar 2017
A1: 2017-01-01
A2: Übertrag aus Vormonat | D2: =LOOKUP(9^99,'Dezember 2016'!I$1:I$65536) -> 315.12 €
A4: WAS? | B4: Wert | C4: Haushalt | D4: Bemerkung | E4: Fälligkeitszeitraum | F4: Wann ausgeführt | G4: Gebucht | H4: Buchungsdatum | I4: Kontostand
A5: Sven Gehalt | B5: 3,073.01 € | E5: m | G5: x | H5: 2017-01-13 | I5: =J5 -> 3,388.13 € | J5: =D2+B5 -> 3,388.13 € | K5: m | L5: =IF(C5="x",-B5,0) -> 0
A6: EC-Card | B6: -40.00 € | F6: 2016-01-14 | G6: x | H6: 2017-01-16 | I6: ='Januar 2017'!$J6 -> 3,348.13 € | J6: =J5+B6 -> 3,348.13 € | K6: 2m | L6: =IF(C6="x",-B6,0) -> 0
A7: Autokredit Tilgung | B7: -200.00 € | E7: m | G7: x | H7: 2017-01-16 | I7: ='Januar 2017'!$J7 -> 3,148.13 € | J7: =J6+B7 -> 3,148.13 € | K7: vj | L7: =IF(C7="x",-B7,0) -> 0
A8: Autokredit Tilgung Corinna | B8: -101.00 € | E8: m | G8: x | H8: 2017-01-16 | I8: ='Januar 2017'!$J8 -> 3,047.13 € | J8: =J7+B8 -> 3,047.13 € | K8: hj | L8: =IF(C8="x",-B8,0) -> 0
A9: Rubin | B9: -13.51 € | C9: x | F9: 2017-01-13 | G9: x | H9: 2017-01-16 | I9: ='Januar 2017'!$J9 -> 3,033.62 € | J9: =J8+B9 -> 3,033.62 € | K9: j | L9: =IF(C9="x",-B9,0) -> 13.51
A10: Bio am Bahnhof | B10: -36.57 € | C10: x | F10: 2017-01-13 | G10: x | H10: 2017-01-16 | I10: ='Januar 2017'!$J10 -> 2,997.05 € | J10: =J9+B10 -> 2,997.05 € | K10: 2j | L10: =IF(C10="x",-B10,0) -> 36.57
A11: Karstadt Sport | B11: -64.16 € | F11: 2017-01-14 | G11: x | H11: 2017-01-16 | I11: ='Januar 2017'!$J11 -> 2,932.89 € | J11: =J10+B11 -> 2,932.89 € | L11: =IF(C11="x",-B11,0) -> 0
A12: NewYorker | B12: -9.90 € | F12: 2017-01-14 | G12: x | H12: 2017-01-16 | I12: ='Januar 2017'!$J12 -> 2,922.99 € | J12: =J11+B12 -> 2,922.99 € | L12: =IF(C12="x",-B12,0) -> 0
A13: Hagebau | B13: -7.49 € | F13: 2017-01-13 | G13: x | H13: 2017-01-16 | I13: ='Januar 2017'!$J13 -> 2,915.50 € | J13: =J12+B13 -> 2,915.50 € | L13: =IF(C13="x",-B13,0) -> 0
A14: Thalia | B14: -12.00 € | F14: 2017-01-14 | G14: x | H14: 2017-01-16 | I14: ='Januar 2017'!$J14 -> 2,903.50 € | J14: =J13+B14 -> 2,903.50 € | L14: =IF(C14="x",-B14,0) -> 0
A15: Sun | B15: -13.79 € | F15: 2017-01-15 | G15: x | H15: 2017-01-17 | I15: ='Januar 2017'!$J15 -> 2,889.71 € | J15: =J14+B15 -> 2,889.71 € | L15: =IF(C15="x",-B15,0) -> 0
A16: Amazon | B16: -29.94 € | G16: x | H16: 2017-01-17 | I16: ='Januar 2017'!$J16 -> 2,859.77 € | J16: =J15+B16 -> 2,859.77 € | L16: =IF(C16="x",-B16,0) -> 0
A17: Amazon | B17: -47.99 € | F17: 2017-01-16 | G17: x | H17: 2017-01-17 | I17: ='Januar 2017'!$J17 -> 2,811.78 € | J17: =J16+B17 -> 2,811.78 € | L17: =IF(C17="x",-B17,0) -> 0
A18: Amazon | B18: -1.99 € | F18: 2017-01-13 | G18: x | H18: 2017-01-17 | I18: ='Januar 2017'!$J18 -> 2,809.79 € | J18: =J17+B18 -> 2,809.79 € | L18: =IF(C18="x",-B18,0) -> 0
A19: H&M | B19: -35.15 € | F19: 2017-01-14 | G19: x | H19: 2017-01-17 | I19: ='Januar 2017'!$J19 -> 2,774.64 € | J19: =J18+B19 -> 2,774.64 € | L19: =IF(C19="x",-B19,0) -> 0
A20: Jet | B20: -13.39 € | F20: 2017-01-14 | G20: x | H20: 2017-01-17 | I20: ='Januar 2017'!$J20 -> 2,761.25 € | J20: =J19+B20 -> 2,761.25 € | L20: =IF(C20="x",-B20,0) -> 0
A21: Kaufland | B21: -94.51 € | C21: x | F21: 2017-01-13 | G21: x | H21: 2017-01-17 | I21: ='Januar 2017'!$J21 -> 2,666.74 € | J21: =J20+B21 -> 2,666.74 € | L21: =IF(C21="x",-B21,0) -> 94.51
A22: Hornbach | B22: -14.90 € | F22: 2017-01-13 | G22: x | H22: 2017-01-17 | I22: ='Januar 2017'!$J22 -> 2,651.84 € | J22: =J21+B22 -> 2,651.84 € | L22: =IF(C22="x",-B22,0) -> 0
A23: Lidl | B23: -28.53 € | C23: x | F23: 2017-01-17 | G23: x | H23: 2017-01-19 | I23: ='Januar 2017'!$J23 -> 2,623.31 € | J23: =J22+B23 -> 2,623.31 € | L23: =IF(C23="x",-B23,0) -> 28.53
A24: Paypal | B24: -22.00 € | D24: Flixbus | G24: x | H24: 2017-01-19 | I24: ='Januar 2017'!$J24 -> 2,601.31 € | J24: =J23+B24 -> 2,601.31 € | L24: =IF(C24="x",-B24,0) -> 0
A25: Welt digital | B25: -12.99 € | E25: m | G25: x | H25: 2017-01-20 | I25: ='Januar 2017'!$J25 -> 2,588.32 € | J25: =J24+B25 -> 2,588.32 € | L25: =IF(C25="x",-B25,0) -> 0
A26: Sprint | B26: -13.50 € | F26: 2017-01-18 | G26: x | H26: 2017-01-20 | I26: ='Januar 2017'!$J26 -> 2,574.82 € | J26: =J25+B26 -> 2,574.82 € | L26: =IF(C26="x",-B26,0) -> 0
A27: EC-Card | B27: -50.00 € | F27: 2017-01-20 | G27: x | H27: 2017-01-20 | I27: ='Januar 2017'!$J27 -> 2,524.82 € | J27: =J26+B27 -> 2,524.82 € | L27: =IF(C27="x",-B27,0) -> 0
A28: Corinna Handy | B28: -33.96 € | E28: m | G28: x | H28: 2017-01-23 | I28: ='Januar 2017'!$J28 -> 2,490.86 € | J28: =J27+B28 -> 2,490.86 € | L28: =IF(C28="x",-B28,0) -> 0
A29: SparCard | B29: -150.00 € | D29: 4650.45 | E29: m | G29: x | H29: 2017-01-23 | I29: ='Januar 2017'!$J29 -> 2,340.86 € | J29: =J28+B29 -> 2,340.86 € | L29: =IF(C29="x",-B29,0) -> 0
A30: EMB | B30: -100.00 € | E30: m | G30: x | H30: 2017-01-23 | I30: ='Januar 2017'!$J30 -> 2,240.86 € | J30: =J29+B30 -> 2,240.86 € | L30: =IF(C30="x",-B30,0) -> 0
A31: Lidl | B31: -97.86 € | C31: x | F31: 2017-01-20 | G31: x | H31: 2017-01-23 | I31: ='Januar 2017'!$J31 -> 2,143.00 € | J31: =J30+B31 -> 2,143.00 € | L31: =IF(C31="x",-B31,0) -> 97.86
A32: Rubin | B32: -14.21 € | C32: x | F32: 2017-01-20 | G32: x | H32: 2017-01-23 | I32: ='Januar 2017'!$J32 -> 2,128.79 € | J32: =J31+B32 -> 2,128.79 € | L32: =IF(C32="x",-B32,0) -> 14.21
A33: Megazoo | B33: -17.36 € | F33: 2017-01-20 | G33: x | H33: 2017-01-24 | I33: ='Januar 2017'!$J33 -> 2,111.43 € | J33: =J32+B33 -> 2,111.43 € | L33: =IF(C33="x",-B33,0) -> 0
A34: Amazon | B34: -3.99 € | G34: x | H34: 2017-01-24 | I34: ='Januar 2017'!$J34 -> 2,107.44 € | J34: =J33+B34 -> 2,107.44 € | L34: =IF(C34="x",-B34,0) -> 0
A35: REWE | B35: -26.41 € | C35: x | F35: 2017-01-21 | G35: x | H35: 2017-01-24 | I35: ='Januar 2017'!$J35 -> 2,081.03 € | J35: =J34+B35 -> 2,081.03 € | L35: =IF(C35="x",-B35,0) -> 26.41
A36: Jet | B36: -26.98 € | F36: 2017-01-22 | G36: x | H36: 2017-01-24 | I36: ='Januar 2017'!$J36 -> 2,054.05 € | J36: =J35+B36 -> 2,054.05 € | L36: =IF(C36="x",-B36,0) -> 0
A37: Jet | B37: -27.57 € | F37: 2017-01-20 | G37: x | H37: 2017-01-24 | I37: ='Januar 2017'!$J37 -> 2,026.48 € | J37: =J36+B37 -> 2,026.48 € | L37: =IF(C37="x",-B37,0) -> 0
A38: EC-Card | B38: -20.00 € | F38: 2017-01-24 | G38: x | H38: 2017-01-24 | I38: ='Januar 2017'!$J38 -> 2,006.48 € | J38: =J37+B38 -> 2,006.48 € | L38: =IF(C38="x",-B38,0) -> 0
A39: EC-Card | B39: -50.00 € | F39: 2017-01-25 | G39: x | H39: 2017-01-25 | I39: ='Januar 2017'!$J39 -> 1,956.48 € | J39: =J38+B39 -> 1,956.48 € | L39: =IF(C39="x",-B39,0) -> 0
A40: Vodafone | B40: -31.99 € | E40: m | G40: x | H40: 2017-01-26 | I40: ='Januar 2017'!$J40 -> 1,924.49 € | J40: =J39+B40 -> 1,924.49 € | L40: =IF(C40="x",-B40,0) -> 0
A41: Edeka | B41: -22.09 € | C41: x | F41: 2017-01-25 | G41: x | H41: 2017-01-26 | I41: ='Januar 2017'!$J41 -> 1,902.40 € | J41: =J40+B41 -> 1,902.40 € | L41: =IF(C41="x",-B41,0) -> 22.09
A42: Apotheke | B42: -31.98 € | F42: 2017-01-25 | G42: x | H42: 2017-01-27 | I42: ='Januar 2017'!$J42 -> 1,870.42 € | J42: =J41+B42 -> 1,870.42 € | L42: =IF(C42="x",-B42,0) -> 0
A43: Corinna Gehalt | B43: 1,397.22 € | E43: m | G43: x | H43: 2017-01-27 | I43: ='Januar 2017'!$J43 -> 3,267.64 € | J43: =J42+B43 -> 3,267.64 € | L43: =IF(C43="x",-B43,0) -> 0
A44: Paypal | B44: -8.00 € | D44: Flixbus | G44: x | H44: 2017-01-27 | I44: ='Januar 2017'!$J44 -> 3,259.64 € | J44: =J43+B44 -> 3,259.64 € | L44: =IF(C44="x",-B44,0) -> 0
A45: EC-Card | B45: -30.00 € | F45: 2017-01-28 | G45: x | H45: 2017-01-30 | I45: ='Januar 2017'!$J45 -> 3,229.64 € | J45: =J44+B45 -> 3,229.64 € | L45: =IF(C45="x",-B45,0) -> 0
A46: T-Mobile | B46: -36.91 € | E46: m | G46: x | H46: 2017-01-30 | I46: ='Januar 2017'!$J46 -> 3,192.73 € | J46: =J45+B46 -> 3,192.73 € | L46: =IF(C46="x",-B46,0) -> 0
A47: T-Mobile | B47: -19.95 € | E47: m | G47: x | H47: 2017-01-30 | I47: ='Januar 2017'!$J47 -> 3,172.78 € | J47: =J46+B47 -> 3,172.78 € | L47: =IF(C47="x",-B47,0) -> 0
A48: Lidl | B48: -97.75 € | C48: x | F48: 2017-01-27 | G48: x | H48: 2017-01-30 | I48: ='Januar 2017'!$J48 -> 3,075.03 € | J48: =J47+B48 -> 3,075.03 € | L48: =IF(C48="x",-B48,0) -> 97.75
A49: real | B49: -29.82 € | C49: x | F49: 2017-01-28 | G49: x | H49: 2017-01-30 | I49: ='Januar 2017'!$J49 -> 3,045.21 € | J49: =J48+B49 -> 3,045.21 € | L49: =IF(C49="x",-B49,0) -> 29.82
A50: Karstadt Sport | B50: -47.00 € | F50: 2017-01-28 | G50: x | H50: 2017-01-30 | I50: ='Januar 2017'!$J50 -> 2,998.21 € | J50: =J49+B50 -> 2,998.21 € | L50: =IF(C50="x",-B50,0) -> 0
A51: Total | B51: -15.19 € | F51: 2017-01-27 | G51: x | H51: 2017-01-30 | I51: ='Januar 2017'!$J51 -> 2,983.02 € | J51: =J50+B51 -> 2,983.02 € | L51: =IF(C51="x",-B51,0) -> 0
A52: Presse Ludwig | B52: -19.99 € | F52: 2017-01-29 | G52: x | H52: 2017-01-30 | I52: ='Januar 2017'!$J52 -> 2,963.03 € | J52: =J51+B52 -> 2,963.03 € | L52: =IF(C52="x",-B52,0) -> 0
A53: Apotheke | B53: -45.36 € | F53: 2017-01-27 | G53: x | H53: 2017-01-31 | I53: ='Januar 2017'!$J53 -> 2,917.67 € | J53: =J52+B53 -> 2,917.67 € | L53: =IF(C53="x",-B53,0) -> 0
A54: Star Tankstelle | B54: -20.69 € | F54: 2017-01-29 | G54: x | H54: 2017-01-31 | I54: ='Januar 2017'!$J54 -> 2,896.98 € | J54: =J53+B54 -> 2,896.98 € | L54: =IF(C54="x",-B54,0) -> 0
A55: Corinna Bausparer | B55: -20.00 € | E55: m | G55: x | H55: 2017-01-31 | I55: ='Januar 2017'!$J55 -> 2,876.98 € | J55: =J54+B55 -> 2,876.98 € | L55: =IF(C55="x",-B55,0) -> 0
A56: Mediamarkt | B56: -34.99 € | F56: 2017-01-27 | G56: x | H56: 2017-01-31 | I56: ='Januar 2017'!$J56 -> 2,841.99 € | J56: =J55+B56 -> 2,841.99 € | L56: =IF(C56="x",-B56,0) -> 0
A57: Megazoo | B57: -40.39 € | F57: 2017-01-27 | G57: x | H57: 2017-01-31 | I57: ='Januar 2017'!$J57 -> 2,801.60 € | J57: =J56+B57 -> 2,801.60 € | L57: =IF(C57="x",-B57,0) -> 0
A58: Amazon | B58: =-4.99-5.99 -> -10.98 € | G58: x | H58: 2017-01-31 | I58: ='Januar 2017'!$J58 -> 2,790.62 € | J58: =J57+B58 -> 2,790.62 € | L58: =IF(C58="x",-B58,0) -> 0
A59: HypoVereinsbank | B59: -909.65 € | E59: m | G59: x | H59: 2017-01-31 | I59: ='Januar 2017'!$J59 -> 1,880.97 € | J59: =J58+B59 -> 1,880.97 € | L59: =IF(C59="x",-B59,0) -> 0
A60: EWE | B60: -66.00 € | E60: m | G60: x | H60: 2017-02-01 | I60: ='Januar 2017'!$J60 -> 1,814.97 € | J60: =J59+B60 -> 1,814.97 € | L60: =IF(C60="x",-B60,0) -> 0
A61: Autoversicherung Sven | B61: -30.46 € | E61: m | G61: x | H61: 2017-02-01 | I61: ='Januar 2017'!$J61 -> 1,784.51 € | J61: =J60+B61 -> 1,784.51 € | L61: =IF(C61="x",-B61,0) -> 0
A62: Autoversicherung Corinna | B62: -22.31 € | E62: m | G62: x | H62: 2017-02-01 | I62: ='Januar 2017'!$J62 -> 1,762.20 € | J62: =J61+B62 -> 1,762.20 € | L62: =IF(C62="x",-B62,0) -> 0
A63: 5.5 | B63: -41.38 € | E63: vj | G63: x | H63: 2017-02-01 | I63: ='Januar 2017'!$J63 -> 1,720.82 € | J63: =J62+B63 -> 1,720.82 € | L63: =IF(C63="x",-B63,0) -> 0
A64: iMAC | B64: -84.88 € | D64: am 01.06.2018 85,04 | E64: m | G64: x | H64: 2017-02-01 | I64: ='Januar 2017'!$J64 -> 1,635.94 € | J64: =J63+B64 -> 1,635.94 € | L64: =IF(C64="x",-B64,0) -> 0
A65: Laptop | B65: -51.01 € | D65: danach 21 x 51,01 und am 1.8.17 51,08 | E65: m | G65: x | H65: 2017-02-01 | I65: ='Januar 2017'!$J65 -> 1,584.93 € | J65: =J64+B65 -> 1,584.93 € | L65: =IF(C65="x",-B65,0) -> 0
A66: Comfort Card | B66: -88.00 € | E66: m | G66: x | H66: 2017-02-01 | I66: ='Januar 2017'!$J66 -> 1,496.93 € | J66: =J65+B66 -> 1,496.93 € | L66: =IF(C66="x",-B66,0) -> 0
A67: BVG | B67: -82.67 € | E67: m | G67: x | H67: 2017-02-01 | I67: ='Januar 2017'!$J67 -> 1,414.26 € | J67: =J66+B67 -> 1,414.26 € | L67: =IF(C67="x",-B67,0) -> 0
A68: Apotheke | B68: -7.36 € | F68: 2017-01-31 | G68: x | H68: 2017-02-01 | I68: ='Januar 2017'!$J68 -> 1,406.90 € | J68: =J67+B68 -> 1,406.90 € | L68: =IF(C68="x",-B68,0) -> 0
A69: EC-Card | B69: -40.00 € | F69: 2017-02-01 | G69: x | H69: 2017-02-01 | I69: ='Januar 2017'!$J69 -> 1,366.90 € | J69: =J68+B69 -> 1,366.90 € | L69: =IF(C69="x",-B69,0) -> 0
A70: OBI | B70: -14.77 € | F70: 2017-01-30 | G70: x | H70: 2017-02-01 | I70: ='Januar 2017'!$J70 -> 1,352.13 € | J70: =J69+B70 -> 1,352.13 € | L70: =IF(C70="x",-B70,0) -> 0
A71: Paypal | B71: -10.00 € | D71: Udemy | F71: 2017-01-31 | G71: x | H71: 2017-01-02 | I71: ='Januar 2017'!$J71 -> 1,342.13 € | J71: =J70+B71 -> 1,342.13 € | L71: =IF(C71="x",-B71,0) -> 0
A72: dm | B72: -15.65 € | C72: x | F72: 2017-02-01 | G72: x | H72: 2017-01-02 | I72: ='Januar 2017'!$J72 -> 1,326.48 € | J72: =J71+B72 -> 1,326.48 € | L72: =IF(C72="x",-B72,0) -> 15.65
A73: Edeka | B73: -12.07 € | C73: x | F73: 2017-02-01 | G73: x | H73: 2017-01-02 | I73: ='Januar 2017'!$J73 -> 1,314.41 € | J73: =J72+B73 -> 1,314.41 € | L73: =IF(C73="x",-B73,0) -> 12.07
A74: Netto | B74: -13.92 € | C74: x | F74: 2017-01-31 | G74: x | H74: 2017-01-02 | I74: ='Januar 2017'!$J74 -> 1,300.49 € | J74: =J73+B74 -> 1,300.49 € | L74: =IF(C74="x",-B74,0) -> 13.92
A75: Jet | B75: -13.70 € | F75: 2017-02-01 | G75: x | H75: 2017-02-03 | I75: ='Januar 2017'!$J75 -> 1,286.79 € | J75: =J74+B75 -> 1,286.79 € | L75: =IF(C75="x",-B75,0) -> 0
A76: EC-Card | B76: -50.00 € | F76: 2017-02-03 | G76: x | H76: 2017-02-03 | I76: ='Januar 2017'!$J76 -> 1,236.79 € | J76: =J75+B76 -> 1,236.79 € | L76: =IF(C76="x",-B76,0) -> 0
A77: OBI | B77: -9.99 € | F77: 2017-02-03 | G77: x | H77: 2017-02-06 | I77: ='Januar 2017'!$J77 -> 1,226.80 € | J77: =J76+B77 -> 1,226.80 € | L77: =IF(C77="x",-B77,0) -> 0
A78: Lidl | B78: -89.07 € | C78: x | F78: 2017-02-03 | G78: x | H78: 2017-02-06 | I78: ='Januar 2017'!$J78 -> 1,137.73 € | J78: =J77+B78 -> 1,137.73 € | L78: =IF(C78="x",-B78,0) -> 89.07
A79: Amazon | B79: -6.25 € | G79: x | H79: 2017-02-07 | I79: ='Januar 2017'!$J79 -> 1,131.48 € | J79: =J78+B79 -> 1,131.48 € | L79: =IF(C79="x",-B79,0) -> 0
A80: Corinna Training | B80: -120.00 € | G80: x | H80: 2017-02-07 | I80: ='Januar 2017'!$J80 -> 1,011.48 € | J80: =J79+B80 -> 1,011.48 € | L80: =IF(C80="x",-B80,0) -> 0
A81: OBI | B81: -6.99 € | F81: 2017-02-04 | G81: x | H81: 2017-02-07 | I81: ='Januar 2017'!$J81 -> 1,004.49 € | J81: =J80+B81 -> 1,004.49 € | L81: =IF(C81="x",-B81,0) -> 0
A82: Fressnapf | B82: -27.71 € | C82: x | F82: 2017-02-03 | G82: x | H82: 2017-02-07 | I82: ='Januar 2017'!$J82 -> 976.78 € | J82: =J81+B82 -> 976.78 € | L82: =IF(C82="x",-B82,0) -> 27.71
A83: Jet | B83: =-1.379*15.03 -> -20.73 € | F83: 2017-02-05 | G83: x | H83: 2017-02-07 | I83: ='Januar 2017'!$J83 -> 956.05 € | J83: =J82+B83 -> 956.05 € | L83: =IF(C83="x",-B83,0) -> 0
A84: Aral | B84: -16.19 € | F84: 2017-02-03 | G84: x | H84: 2017-02-07 | I84: ='Januar 2017'!$J84 -> 939.86 € | J84: =J83+B84 -> 939.86 € | L84: =IF(C84="x",-B84,0) -> 0
A85: Mediamarkt | B85: -44.99 € | F85: 2017-02-03 | G85: x | H85: 2017-02-07 | I85: ='Januar 2017'!$J85 -> 894.87 € | J85: =J84+B85 -> 894.87 € | L85: =IF(C85="x",-B85,0) -> 0
A86: EC-Card | B86: -40.00 € | F86: 2017-02-07 | G86: x | H86: 2017-02-07 | I86: ='Januar 2017'!$J86 -> 854.87 € | J86: =J85+B86 -> 854.87 € | L86: =IF(C86="x",-B86,0) -> 0
A87: Contabo | B87: -6.99 € | E87: m | G87: x | H87: 2017-02-07 | I87: ='Januar 2017'!$J87 -> 847.88 € | J87: =J86+B87 -> 847.88 € | L87: =IF(C87="x",-B87,0) -> 0
A88: Heizungswartung | B88: -101.15 € | E88: j | G88: x | H88: 2017-02-08 | I88: ='Januar 2017'!$J88 -> 746.73 € | J88: =J87+B88 -> 746.73 € | L88: =IF(C88="x",-B88,0) -> 0
A89: Amazon | B89: -6.91 € | G89: x | H89: 2017-02-08 | I89: ='Januar 2017'!$J89 -> 739.82 € | J89: =J88+B89 -> 739.82 € | L89: =IF(C89="x",-B89,0) -> 0
A90: DBV Haftpflicht | B90: -6.54 € | E90: m | G90: x | H90: 2017-02-08 | I90: ='Januar 2017'!$J90 -> 733.28 € | J90: =J89+B90 -> 733.28 € | L90: =IF(C90="x",-B90,0) -> 0
A91: EUROCARD | B91: =-59.94-34-1.99-10+5.71-1.99-3.99 -> -106.20 € | D91: mir wurde eine Jahresgebühr anteilmäßig zurückerstattet?? | E91: m | G91: x | H91: 2017-02-09 | I91: ='Januar 2017'!$J91 -> 627.08 € | J91: =J90+B91 -> 627.08 € | L91: =IF(C91="x",-B91,0) -> 0
A92: Paypal | B92: -22.00 € | D92: Flixbus | G92: x | H92: 2017-02-09 | I92: ='Januar 2017'!$J92 -> 605.08 € | J92: =J91+B92 -> 605.08 € | L92: =IF(C92="x",-B92,0) -> 0
A93: Kindergeld | B93: 192.00 € | E93: m | G93: x | H93: 2017-02-09 | I93: ='Januar 2017'!$J93 -> 797.08 € | J93: =J92+B93 -> 797.08 € | L93: =IF(C93="x",-B93,0) -> 0
A94: Kfz-Steuern Matiz | B94: -67.00 € | E94: j | G94: x | H94: 2017-02-09 | I94: ='Januar 2017'!$J94 -> 730.08 € | J94: =J93+B94 -> 730.08 € | L94: =IF(C94="x",-B94,0) -> 0
A95: Kabel Internet | B95: -39.54 € | E95: m | G95: x | H95: 2017-02-10 | I95: ='Januar 2017'!$J95 -> 690.54 € | J95: =J94+B95 -> 690.54 € | L95: =IF(C95="x",-B95,0) -> 0
A96: Kabelanschluss | B96: -30.91 € | E96: m | G96: x | H96: 2017-02-10 | I96: ='Januar 2017'!$J96 -> 659.63 € | J96: =J95+B96 -> 659.63 € | L96: =IF(C96="x",-B96,0) -> 0
A97: Netto | B97: -9.06 € | F97: 2017-02-08 | G97: x | H97: 2017-02-10 | I97: ='Januar 2017'!$J97 -> 650.57 € | J97: =J96+B97 -> 650.57 € | L97: =IF(C97="x",-B97,0) -> 0
A98: Mediamarkt | B98: -89.95 € | F98: 2017-02-09 | G98: x | H98: 2017-02-10 | I98: ='Januar 2017'!$J98 -> 560.62 € | J98: =J97+B98 -> 560.62 € | L98: =IF(C98="x",-B98,0) -> 0
A99: Vivian | B99: -100.00 € | E99: m | G99: x | H99: 2017-02-13 | I99: ='Januar 2017'!$J99 -> 460.62 € | J99: =J98+B99 -> 460.62 € | L99: =IF(C99="x",-B99,0) -> 0
A100: Lidl | B100: -92.99 € | C100: x | G100: x | H100: 2017-02-13 | I100: ='Januar 2017'!$J100 -> 367.63 € | J100: =J99+B100 -> 367.63 € | L100: =IF(C100="x",-B100,0) -> 92.99
A101: Rubin | B101: -12.63 € | C101: x | G101: x | H101: 2017-02-13 | I101: ='Januar 2017'!$J101 -> 355.00 € | J101: =J100+B101 -> 355.00 € | L101: =IF(C101="x",-B101,0) -> 12.63
A102: EC-Card | B102: -40.00 € | F102: 2017-02-10 | G102: x | H102: 2017-02-13 | I102: ='Januar 2017'!$J102 -> 315.00 € | J102: =J101+B102 -> 315.00 € | L102: =IF(C102="x",-B102,0) -> 0
A103: Jet | B103: -26.58 € | H103: 2017-02-14 | I103: ='Januar 2017'!$J103 -> 288.42 € | J103: =J102+B103 -> 288.42 € | L103: =IF(C103="x",-B103,0) -> 0
A104: Grundsteuer B | B104: -43.45 € | D104: 15.02/15.05/15.08/15.11 | E104: vj | H104: 2017-02-14 | I104: ='Januar 2017'!$J104 -> 244.97 € | J104: =J103+B104 -> 244.97 € | L104: =IF(C104="x",-B104,0) -> 0
A105: DNWAB | B105: 0.00 € | I105: ='Januar 2017'!$J105 -> 244.97 € | J105: =J104+B105 -> 244.97 € | L105: =IF(C105="x",-B105,0) -> 0
A106: Haushalt | B106: 0.00 € | I106: ='Januar 2017'!$J106 -> 244.97 € | J106: =J105+B106 -> 244.97 € | L106: =IF(C106="x",-B106,0) -> 0
A107: Gebühren | B107: 0.00 € | E107: m | I107: ='Januar 2017'!$J107 -> 244.97 € | J107: =J106+B107 -> 244.97 € | L107: =IF(C107="x",-B107,0) -> 0
I108: ='Januar 2017'!$J108 -> 244.97 € | J108: =J107+B108 -> 244.97 € | L108: =IF(C108="x",-B108,0) -> 0
J109: =J108+B109 -> 244.97 € | L109: =IF(C109="x",-B109,0) -> 0
J110: =J109+B110 -> 244.97 € | L110: =IF(C110="x",-B110,0) -> 0
J111: =J110+B111 -> 244.97 € | L111: =IF(C111="x",-B111,0) -> 0
J112: =J111+B112 -> 244.97 € | L112: =IF(C112="x",-B112,0) -> 0
J113: =J112+B113 -> 244.97 € | L113: =IF(C113="x",-B113,0) -> 0
J114: =J113+B114 -> 244.97 € | L114: =IF(C114="x",-B114,0) -> 0
J115: =J114+B115 -> 244.97 € | L115: =IF(C115="x",-B115,0) -> 0
J116: =J115+B116 -> 244.97 € | L116: =IF(C116="x",-B116,0) -> 0
J117: =J116+B117 -> 244.97 € | L117: =IF(C117="x",-B117,0) -> 0
J118: =J117+B118 -> 244.97 € | L118: =IF(C118="x",-B118,0) -> 0
J119: =J118+B119 -> 244.97 € | L119: =IF(C119="x",-B119,0) -> 0
J120: =J119+B120 -> 244.97 € | L120: =IF(C120="x",-B120,0) -> 0
J121: =J120+B121 -> 244.97 € | L121: =IF(C121="x",-B121,0) -> 0
J122: =J121+B122 -> 244.97 € | L122: =IF(C122="x",-B122,0) -> 0
J123: =J122+B123 -> 244.97 € | L123: =IF(C123="x",-B123,0) -> 0
J124: =J123+B124 -> 244.97 € | L124: =IF(C124="x",-B124,0) -> 0
J125: =J124+B125 -> 244.97 € | L125: =IF(C125="x",-B125,0) -> 0
J126: =J125+B126 -> 244.97 € | L126: =IF(C126="x",-B126,0) -> 0
J127: =J126+B127 -> 244.97 € | L127: =IF(C127="x",-B127,0) -> 0
J128: =J127+B128 -> 244.97 € | L128: =IF(C128="x",-B128,0) -> 0
J129: =J128+B129 -> 244.97 € | L129: =IF(C129="x",-B129,0) -> 0
J130: =J129+B130 -> 244.97 € | L130: =IF(C130="x",-B130,0) -> 0
J131: =J130+B131 -> 244.97 € | L131: =IF(C131="x",-B131,0) -> 0

Sheet Februar 2017
A1: 2017-02-01
A2: Übertrag aus Vormonat | D2: =LOOKUP(9^99,'Januar 2017'!I$1:I$65536) -> 244.97 €
A4: WAS? | B4: Wert | C4: Haushalt | D4: Bemerkung | E4: Fälligkeitszeitraum | F4: Wann ausgeführt | G4: Gebucht | H4: Buchungsdatum | I4: Kontostand
A5: DNWAB | B5: -78.00 € | E5: 2m | G5: x | H5: 2017-02-15 | I5: =J5 -> 166.97 € | J5: =D2+B5 -> 166.97 € | K5: m | L5: =IF(C5="x",-B5,0) -> 0
A6: Sven Gehalt | B6: 3,107.35 € | E6: m | G6: x | H6: 2017-02-15 | I6: ='Februar 2017'!$J6 -> 3,274.32 € | J6: =J5+B6 -> 3,274.32 € | K6: 2m | L6: =IF(C6="x",-B6,0) -> 0
A7: Autokredit Tilgung | B7: -200.00 € | E7: m | G7: x | H7: 2017-02-15 | I7: ='Februar 2017'!$J7 -> 3,074.32 € | J7: =J6+B7 -> 3,074.32 € | K7: vj | L7: =IF(C7="x",-B7,0) -> 0
A8: Autokredit Tilgung Corinna | B8: -89.83 € | E8: m | G8: x | H8: 2017-02-15 | I8: ='Februar 2017'!$J8 -> 2,984.49 € | J8: =J7+B8 -> 2,984.49 € | K8: hj | L8: =IF(C8="x",-B8,0) -> 0
A9: EC-Card | B9: -50.00 € | F9: 2017-02-15 | G9: x | H9: 2017-02-15 | I9: ='Februar 2017'!$J9 -> 2,934.49 € | J9: =J8+B9 -> 2,934.49 € | K9: j | L9: =IF(C9="x",-B9,0) -> 0
A10: Aral | B10: -21.90 € | F10: 2017-02-14 | G10: x | H10: 2017-01-16 | I10: ='Februar 2017'!$J10 -> 2,912.59 € | J10: =J9+B10 -> 2,912.59 € | K10: 2j | L10: =IF(C10="x",-B10,0) -> 0
A11: Penny | B11: -24.44 € | C11: x | F11: 2017-02-15 | G11: x | H11: 2017-01-16 | I11: ='Februar 2017'!$J11 -> 2,888.15 € | J11: =J10+B11 -> 2,888.15 € | L11: =IF(C11="x",-B11,0) -> 24.44
A12: Welt digital | B12: -12.99 € | E12: m | G12: x | H12: 2017-01-16 | I12: ='Februar 2017'!$J12 -> 2,875.16 € | J12: =J11+B12 -> 2,875.16 € | L12: =IF(C12="x",-B12,0) -> 0
A13: Fressnapf | B13: -32.01 € | C13: x | F13: 2017-02-14 | G13: x | H13: 2017-01-16 | I13: ='Februar 2017'!$J13 -> 2,843.15 € | J13: =J12+B13 -> 2,843.15 € | L13: =IF(C13="x",-B13,0) -> 32.01
A14: GEZ | B14: -52.50 € | E14: vj | F14: 2017-02-17 | G14: x | H14: 2017-01-17 | I14: ='Februar 2017'!$J14 -> 2,790.65 € | J14: =J13+B14 -> 2,790.65 € | L14: =IF(C14="x",-B14,0) -> 0
A15: Total | B15: -27.18 € | F15: 2017-02-16 | G15: x | H15: 2017-02-17 | I15: ='Februar 2017'!$J15 -> 2,763.47 € | J15: =J14+B15 -> 2,763.47 € | L15: =IF(C15="x",-B15,0) -> 0
A16: von Sparcard | B16: 250.00 € | C16: ='Januar 2017'!D29-'Februar 2017'!$B16 -> 4,400.45 € | G16: x | H16: 2017-02-20 | I16: ='Februar 2017'!$J16 -> 3,013.47 € | J16: =J15+B16 -> 3,013.47 € | L16: =IF(C16="x",-B16,0) -> 0
A17: Corinna Handy | B17: -33.96 € | E17: m | G17: x | H17: 2017-02-20 | I17: ='Februar 2017'!$J17 -> 2,979.51 € | J17: =J16+B17 -> 2,979.51 € | L17: =IF(C17="x",-B17,0) -> 0
A18: Amazon | B18: -2.09 € | D18: für Rene, Geld erhalten | G18: x | H18: 2017-02-20 | I18: ='Februar 2017'!$J18 -> 2,977.42 € | J18: =J17+B18 -> 2,977.42 € | L18: =IF(C18="x",-B18,0) -> 0
A19: Amazon | B19: -16.95 € | G19: x | H19: 2017-02-20 | I19: ='Februar 2017'!$J19 -> 2,960.47 € | J19: =J18+B19 -> 2,960.47 € | L19: =IF(C19="x",-B19,0) -> 0
A20: Rubin | B20: -18.29 € | C20: x | F20: 2017-02-17 | G20: x | H20: 2017-02-20 | I20: ='Februar 2017'!$J20 -> 2,942.18 € | J20: =J19+B20 -> 2,942.18 € | L20: =IF(C20="x",-B20,0) -> 18.29
A21: Rewe | B21: -13.67 € | C21: x | F21: 2017-02-17 | G21: x | H21: 2017-02-20 | I21: ='Februar 2017'!$J21 -> 2,928.51 € | J21: =J20+B21 -> 2,928.51 € | L21: =IF(C21="x",-B21,0) -> 13.67
A22: Lidl | B22: -87.43 € | C22: x | F22: 2017-02-17 | G22: x | H22: 2017-02-20 | I22: ='Februar 2017'!$J22 -> 2,841.08 € | J22: =J21+B22 -> 2,841.08 € | L22: =IF(C22="x",-B22,0) -> 87.43
A23: SparCard | B23: -150.00 € | C23: =C16-'Februar 2017'!$B23 -> 4,550.45 € | E23: m | G23: x | H23: 2017-02-21 | I23: ='Februar 2017'!$J23 -> 2,691.08 € | J23: =J22+B23 -> 2,691.08 € | L23: =IF(C23="x",-B23,0) -> 0
A24: EMB | B24: -100.00 € | E24: m | G24: x | H24: 2017-02-21 | I24: ='Februar 2017'!$J24 -> 2,591.08 € | J24: =J23+B24 -> 2,591.08 € | L24: =IF(C24="x",-B24,0) -> 0
A25: Amazon | B25: -3.99 € | G25: x | H25: 2017-02-21 | I25: ='Februar 2017'!$J25 -> 2,587.09 € | J25: =J24+B25 -> 2,587.09 € | L25: =IF(C25="x",-B25,0) -> 0
A26: Amazon | B26: -4.99 € | G26: x | H26: 2017-02-21 | I26: ='Februar 2017'!$J26 -> 2,582.10 € | J26: =J25+B26 -> 2,582.10 € | L26: =IF(C26="x",-B26,0) -> 0
A27: Sun | B27: -20.33 € | F27: 2017-02-18 | G27: x | H27: 2017-02-21 | I27: ='Februar 2017'!$J27 -> 2,561.77 € | J27: =J26+B27 -> 2,561.77 € | L27: =IF(C27="x",-B27,0) -> 0
A28: Roller | B28: -279.95 € | F28: 2017-02-17 | G28: x | H28: 2017-02-21 | I28: ='Februar 2017'!$J28 -> 2,281.82 € | J28: =J27+B28 -> 2,281.82 € | L28: =IF(C28="x",-B28,0) -> 0
A29: Total | B29: -12.49 € | F29: 2017-02-20 | G29: x | H29: 2017-02-21 | I29: ='Februar 2017'!$J29 -> 2,269.33 € | J29: =J28+B29 -> 2,269.33 € | L29: =IF(C29="x",-B29,0) -> 0
A30: EC-Card | B30: -50.00 € | F30: 2017-02-21 | G30: x | H30: 2017-02-21 | I30: ='Februar 2017'!$J30 -> 2,219.33 € | J30: =J29+B30 -> 2,219.33 € | L30: =IF(C30="x",-B30,0) -> 0
A31: Apotheke | B31: -22.59 € | F31: 2017-02-20 | G31: x | H31: 2017-02-22 | I31: ='Februar 2017'!$J31 -> 2,196.74 € | J31: =J30+B31 -> 2,196.74 € | L31: =IF(C31="x",-B31,0) -> 0
A32: Edeka | B32: -34.36 € | C32: x | F32: 2017-02-22 | G32: x | H32: 2017-02-23 | I32: ='Februar 2017'!$J32 -> 2,162.38 € | J32: =J31+B32 -> 2,162.38 € | L32: =IF(C32="x",-B32,0) -> 34.36
A33: Vodafone | B33: -31.99 € | E33: m | G33: x | H33: 2017-02-24 | I33: ='Februar 2017'!$J33 -> 2,130.39 € | J33: =J32+B33 -> 2,130.39 € | L33: =IF(C33="x",-B33,0) -> 0
A34: Corinna Gehalt | B34: 1,110.48 € | E34: m | G34: x | H34: 2017-02-24 | I34: ='Februar 2017'!$J34 -> 3,240.87 € | J34: =J33+B34 -> 3,240.87 € | L34: =IF(C34="x",-B34,0) -> 0
A35: EC-Card | B35: -40.00 € | F35: 2017-02-25 | G35: x | H35: 2017-02-27 | I35: ='Februar 2017'!$J35 -> 3,200.87 € | J35: =J34+B35 -> 3,200.87 € | L35: =IF(C35="x",-B35,0) -> 0
A36: SBAZV | B36: -33.60 € | D36: eine Leerung mehr | E36: hj | F36: 2017-02-27 | G36: x | H36: 2017-02-27 | I36: ='Februar 2017'!$J36 -> 3,167.27 € | J36: =J35+B36 -> 3,167.27 € | L36: =IF(C36="x",-B36,0) -> 0
A37: Netto | B37: -6.01 € | C37: x | F37: 2017-02-23 | G37: x | H37: 2017-02-27 | I37: ='Februar 2017'!$J37 -> 3,161.26 € | J37: =J36+B37 -> 3,161.26 € | L37: =IF(C37="x",-B37,0) -> 6.01
A38: T-Mobile | B38: -36.91 € | E38: m | G38: x | H38: 2017-02-27 | I38: ='Februar 2017'!$J38 -> 3,124.35 € | J38: =J37+B38 -> 3,124.35 € | L38: =IF(C38="x",-B38,0) -> 0
A39: T-Mobile | B39: -19.95 € | E39: m | G39: x | H39: 2017-02-27 | I39: ='Februar 2017'!$J39 -> 3,104.40 € | J39: =J38+B39 -> 3,104.40 € | L39: =IF(C39="x",-B39,0) -> 0
A40: Real | B40: -41.94 € | F40: 2017-02-25 | G40: x | H40: 2017-02-27 | I40: ='Februar 2017'!$J40 -> 3,062.46 € | J40: =J39+B40 -> 3,062.46 € | L40: =IF(C40="x",-B40,0) -> 0
A41: EC-Card | B41: -50.00 € | F41: 2017-02-24 | G41: x | H41: 2017-02-27 | I41: ='Februar 2017'!$J41 -> 3,012.46 € | J41: =J40+B41 -> 3,012.46 € | L41: =IF(C41="x",-B41,0) -> 0
A42: Hagebaumarkt | B42: -13.87 € | F42: 2017-02-24 | G42: x | H42: 2017-02-27 | I42: ='Februar 2017'!$J42 -> 2,998.59 € | J42: =J41+B42 -> 2,998.59 € | L42: =IF(C42="x",-B42,0) -> 0
A43: Lidl | B43: -70.93 € | C43: x | F43: 2017-02-24 | G43: x | H43: 2017-02-27 | I43: ='Februar 2017'!$J43 -> 2,927.66 € | J43: =J42+B43 -> 2,927.66 € | L43: =IF(C43="x",-B43,0) -> 70.93
A44: Apotheke | B44: -12.37 € | F44: 2017-02-24 | G44: x | H44: 2017-02-27 | I44: ='Februar 2017'!$J44 -> 2,915.29 € | J44: =J43+B44 -> 2,915.29 € | L44: =IF(C44="x",-B44,0) -> 0
A45: HypoVereinsbank | B45: -909.65 € | E45: m | G45: x | H45: 2017-02-28 | I45: ='Februar 2017'!$J45 -> 2,005.64 € | J45: =J44+B45 -> 2,005.64 € | L45: =IF(C45="x",-B45,0) -> 0
A46: Fressnapf | B46: -28.33 € | C46: x | F46: 2017-02-24 | G46: x | H46: 2017-02-28 | I46: ='Februar 2017'!$J46 -> 1,977.31 € | J46: =J45+B46 -> 1,977.31 € | L46: =IF(C46="x",-B46,0) -> 28.33
A47: Dx | B47: -14.45 € | D47: Digital Kompass / PayPal | F47: 2017-02-25 | G47: x | H47: 2017-02-28 | I47: ='Februar 2017'!$J47 -> 1,962.86 € | J47: =J46+B47 -> 1,962.86 € | L47: =IF(C47="x",-B47,0) -> 0
A48: Amazon | B48: =-(3.14+4.91) -> -8.05 € | F48: 2017-02-25 | G48: x | H48: 2017-02-28 | I48: ='Februar 2017'!$J48 -> 1,954.81 € | J48: =J47+B48 -> 1,954.81 € | L48: =IF(C48="x",-B48,0) -> 0
A49: Corinna Bausparer | B49: -20.00 € | E49: m | G49: x | H49: 2017-02-28 | I49: ='Februar 2017'!$J49 -> 1,934.81 € | J49: =J48+B49 -> 1,934.81 € | L49: =IF(C49="x",-B49,0) -> 0
A50: ebay | B50: -4.99 € | F50: 2017-02-26 | G50: x | H50: 2017-02-28 | I50: ='Februar 2017'!$J50 -> 1,929.82 € | J50: =J49+B50 -> 1,929.82 € | L50: =IF(C50="x",-B50,0) -> 0
A51: Jet | B51: -11.29 € | F51: 2017-02-24 | G51: x | H51: 2017-02-28 | I51: ='Februar 2017'!$J51 -> 1,918.53 € | J51: =J50+B51 -> 1,918.53 € | L51: =IF(C51="x",-B51,0) -> 0
A52: EC-Card | B52: -60.00 € | D52: Frisör | F52: 2017-02-28 | G52: x | H52: 2017-02-28 | I52: ='Februar 2017'!$J52 -> 1,858.53 € | J52: =J51+B52 -> 1,858.53 € | L52: =IF(C52="x",-B52,0) -> 0
A53: Dussmann | B53: -35.74 € | F53: 2017-02-25 | G53: x | H53: 2017-02-28 | I53: ='Februar 2017'!$J53 -> 1,822.79 € | J53: =J52+B53 -> 1,822.79 € | L53: =IF(C53="x",-B53,0) -> 0
A54: paypal | B54: -5.00 € | D54: emu 8086 | E54: m | G54: x | H54: 2017-02-28 | I54: ='Februar 2017'!$J54 -> 1,817.79 € | J54: =J53+B54 -> 1,817.79 € | L54: =IF(C54="x",-B54,0) -> 0
A55: EWE | B55: -66.00 € | E55: m | G55: x | H55: 2017-03-01 | I55: ='Februar 2017'!$J55 -> 1,751.79 € | J55: =J54+B55 -> 1,751.79 € | L55: =IF(C55="x",-B55,0) -> 0
A56: Comfort Card | B56: -88.00 € | E56: m | G56: x | H56: 2017-03-01 | I56: ='Februar 2017'!$J56 -> 1,663.79 € | J56: =J55+B56 -> 1,663.79 € | L56: =IF(C56="x",-B56,0) -> 0
A57: iMAC | B57: -84.88 € | D57: am 01.06.2018 85,04 | E57: m | G57: x | H57: 2017-03-01 | I57: ='Februar 2017'!$J57 -> 1,578.91 € | J57: =J56+B57 -> 1,578.91 € | L57: =IF(C57="x",-B57,0) -> 0
A58: Autoversicherung Sven | B58: -30.46 € | E58: m | G58: x | H58: 2017-03-01 | I58: ='Februar 2017'!$J58 -> 1,548.45 € | J58: =J57+B58 -> 1,548.45 € | L58: =IF(C58="x",-B58,0) -> 0
A59: Autoversicherung Corinna | B59: -22.31 € | E59: m | G59: x | H59: 2017-03-01 | I59: ='Februar 2017'!$J59 -> 1,526.14 € | J59: =J58+B59 -> 1,526.14 € | L59: =IF(C59="x",-B59,0) -> 0
A60: Laptop | B60: -51.01 € | D60: danach 21 x 51,01 und am 1.8.17 51,08 | E60: m | G60: x | H60: 2017-03-01 | I60: ='Februar 2017'!$J60 -> 1,475.13 € | J60: =J59+B60 -> 1,475.13 € | L60: =IF(C60="x",-B60,0) -> 0
A61: BVG | B61: -82.67 € | E61: m | G61: x | H61: 2017-03-01 | I61: ='Februar 2017'!$J61 -> 1,392.46 € | J61: =J60+B61 -> 1,392.46 € | L61: =IF(C61="x",-B61,0) -> 0
A62: EC-Card | B62: -30.00 € | F62: 2017-02-28 | G62: x | H62: 2017-03-01 | I62: ='Februar 2017'!$J62 -> 1,362.46 € | J62: =J61+B62 -> 1,362.46 € | L62: =IF(C62="x",-B62,0) -> 0
A63: Flixbus | B63: -23.47 € | D63: jetzt 0,57 Paypal-Gebühr | F63: 2017-02-27 | G63: x | H63: 2017-03-01 | I63: ='Februar 2017'!$J63 -> 1,338.99 € | J63: =J62+B63 -> 1,338.99 € | L63: =IF(C63="x",-B63,0) -> 0
A64: Jet | B64: -26.98 € | F64: 2017-02-27 | G64: x | H64: 2017-03-01 | I64: ='Februar 2017'!$J64 -> 1,312.01 € | J64: =J63+B64 -> 1,312.01 € | L64: =IF(C64="x",-B64,0) -> 0
A65: Netto | B65: -17.71 € | C65: x | F65: 2017-03-01 | G65: x | H65: 2017-03-03 | I65: ='Februar 2017'!$J65 -> 1,294.30 € | J65: =J64+B65 -> 1,294.30 € | L65: =IF(C65="x",-B65,0) -> 17.71
A66: Netto | B66: -10.21 € | C66: x | F66: 2017-03-02 | G66: x | H66: 2017-03-06 | I66: ='Februar 2017'!$J66 -> 1,284.09 € | J66: =J65+B66 -> 1,284.09 € | L66: =IF(C66="x",-B66,0) -> 10.21
A67: Amazon | B67: -8.99 € | G67: x | H67: 2017-03-06 | I67: ='Februar 2017'!$J67 -> 1,275.10 € | J67: =J66+B67 -> 1,275.10 € | L67: =IF(C67="x",-B67,0) -> 0
A68: Rubin | B68: -13.73 € | C68: x | F68: 2017-03-03 | G68: x | H68: 2017-03-06 | I68: ='Februar 2017'!$J68 -> 1,261.37 € | J68: =J67+B68 -> 1,261.37 € | L68: =IF(C68="x",-B68,0) -> 13.73
A69: Lidl | B69: -78.96 € | C69: x | F69: 2017-03-03 | G69: x | H69: 2017-03-06 | I69: ='Februar 2017'!$J69 -> 1,182.41 € | J69: =J68+B69 -> 1,182.41 € | L69: =IF(C69="x",-B69,0) -> 78.96
A70: Cookmal | B70: -7.99 € | F70: 2017-03-04 | G70: x | H70: 2017-03-06 | I70: ='Februar 2017'!$J70 -> 1,174.42 € | J70: =J69+B70 -> 1,174.42 € | L70: =IF(C70="x",-B70,0) -> 0
A71: real | B71: -43.10 € | C71: x | F71: 2017-03-03 | G71: x | H71: 2017-03-06 | I71: ='Februar 2017'!$J71 -> 1,131.32 € | J71: =J70+B71 -> 1,131.32 € | L71: =IF(C71="x",-B71,0) -> 43.1
A72: C&A | B72: -19.00 € | F72: 2017-03-04 | G72: x | H72: 2017-03-06 | I72: ='Februar 2017'!$J72 -> 1,112.32 € | J72: =J71+B72 -> 1,112.32 € | L72: =IF(C72="x",-B72,0) -> 0
A73: Dänisches Bettenlager | B73: -22.06 € | C73: x | F73: 2017-03-04 | G73: x | H73: 2017-03-06 | I73: ='Februar 2017'!$J73 -> 1,090.26 € | J73: =J72+B73 -> 1,090.26 € | L73: =IF(C73="x",-B73,0) -> 22.06
A74: dm | B74: -16.95 € | C74: x | F74: 2017-03-04 | G74: x | H74: 2017-03-06 | I74: ='Februar 2017'!$J74 -> 1,073.31 € | J74: =J73+B74 -> 1,073.31 € | L74: =IF(C74="x",-B74,0) -> 16.95
A75: Contabo | B75: -6.99 € | E75: m | G75: x | H75: 2017-03-07 | I75: ='Februar 2017'!$J75 -> 1,066.32 € | J75: =J74+B75 -> 1,066.32 € | L75: =IF(C75="x",-B75,0) -> 0
A76: Jet | B76: -26.78 € | F76: 2017-03-05 | G76: x | H76: 2017-03-07 | I76: ='Februar 2017'!$J76 -> 1,039.54 € | J76: =J75+B76 -> 1,039.54 € | L76: =IF(C76="x",-B76,0) -> 0
A77: Star | B77: -19.36 € | F77: 2017-03-03 | G77: x | H77: 2017-03-07 | I77: ='Februar 2017'!$J77 -> 1,020.18 € | J77: =J76+B77 -> 1,020.18 € | L77: =IF(C77="x",-B77,0) -> 0
A78: Tee Geschwendner | B78: -11.80 € | C78: x | F78: 2017-03-04 | G78: x | H78: 2017-03-07 | I78: ='Februar 2017'!$J78 -> 1,008.38 € | J78: =J77+B78 -> 1,008.38 € | L78: =IF(C78="x",-B78,0) -> 11.8
A79: EC-Card | B79: -40.00 € | F79: 2017-03-04 | G79: x | H79: 2017-03-07 | I79: ='Februar 2017'!$J79 -> 968.38 € | J79: =J78+B79 -> 968.38 € | L79: =IF(C79="x",-B79,0) -> 0
A80: Tierarzt | B80: -34.72 € | F80: 2017-03-06 | G80: x | H80: 2017-03-07 | I80: ='Februar 2017'!$J80 -> 933.66 € | J80: =J79+B80 -> 933.66 € | L80: =IF(C80="x",-B80,0) -> 0
A81: Finanzamt | B81: -104.00 € | D81: 10.3/10.6/10.9/10.12 | E81: vj | G81: x | H81: 2017-03-08 | I81: ='Februar 2017'!$J81 -> 829.66 € | J81: =J80+B81 -> 829.66 € | L81: =IF(C81="x",-B81,0) -> 0
A82: DBV Haftpflicht | B82: -6.54 € | E82: m | G82: x | H82: 2017-03-08 | I82: ='Februar 2017'!$J82 -> 823.12 € | J82: =J81+B82 -> 823.12 € | L82: =IF(C82="x",-B82,0) -> 0
A83: Amazon | B83: -43.85 € | F83: 2017-03-06 | G83: x | H83: 2017-03-08 | I83: ='Februar 2017'!$J83 -> 779.27 € | J83: =J82+B83 -> 779.27 € | L83: =IF(C83="x",-B83,0) -> 0
A84: Dussmann | B84: -23.00 € | F84: 2017-03-07 | G84: x | H84: 2017-03-09 | I84: ='Februar 2017'!$J84 -> 756.27 € | J84: =J83+B84 -> 756.27 € | L84: =IF(C84="x",-B84,0) -> 0
A85: Amazon | B85: -20.90 € | F85: 2017-03-05 | G85: x | H85: 2017-03-09 | I85: ='Februar 2017'!$J85 -> 735.37 € | J85: =J84+B85 -> 735.37 € | L85: =IF(C85="x",-B85,0) -> 0
A86: EUROCARD | B86: =-59.94-34-1.29-4.99 -> -100.22 € | E86: m | G86: x | H86: 2017-03-09 | I86: ='Februar 2017'!$J86 -> 635.15 € | J86: =J85+B86 -> 635.15 € | L86: =IF(C86="x",-B86,0) -> 0
A87: Kabel Internet | B87: -39.54 € | E87: m | G87: x | H87: 2017-03-10 | I87: ='Februar 2017'!$J87 -> 595.61 € | J87: =J86+B87 -> 595.61 € | L87: =IF(C87="x",-B87,0) -> 0
A88: Kabelanschluss | B88: -30.91 € | E88: m | G88: x | H88: 2017-03-10 | I88: ='Februar 2017'!$J88 -> 564.70 € | J88: =J87+B88 -> 564.70 € | L88: =IF(C88="x",-B88,0) -> 0
A89: Kindergeld | B89: 192.00 € | E89: m | G89: x | H89: 2017-03-10 | I89: ='Februar 2017'!$J89 -> 756.70 € | J89: =J88+B89 -> 756.70 € | L89: =IF(C89="x",-B89,0) -> 0
A90: Sprint | B90: -21.30 € | F90: 2017-03-09 | G90: x | H90: 2017-03-13 | I90: ='Februar 2017'!$J90 -> 735.40 € | J90: =J89+B90 -> 735.40 € | L90: =IF(C90="x",-B90,0) -> 0
A91: Vivian | B91: -100.00 € | E91: m | G91: x | H91: 2017-03-13 | I91: ='Februar 2017'!$J91 -> 635.40 € | J91: =J90+B91 -> 635.40 € | L91: =IF(C91="x",-B91,0) -> 0
A92: EC-Card | B92: -30.00 € | F92: 2017-03-10 | G92: x | H92: 2017-03-13 | I92: ='Februar 2017'!$J92 -> 605.40 € | J92: =J91+B92 -> 605.40 € | L92: =IF(C92="x",-B92,0) -> 0
A93: Rubin | B93: -19.40 € | C93: x | F93: 2017-03-10 | G93: x | H93: 2017-03-13 | I93: ='Februar 2017'!$J93 -> 586.00 € | J93: =J92+B93 -> 586.00 € | L93: =IF(C93="x",-B93,0) -> 19.4
A94: Lidl | B94: -77.41 € | C94: x | F94: 2017-03-10 | G94: x | H94: 2017-03-13 | I94: ='Februar 2017'!$J94 -> 508.59 € | J94: =J93+B94 -> 508.59 € | L94: =IF(C94="x",-B94,0) -> 77.41
A95: Fressnapf | B95: -33.86 € | C95: x | F95: 2017-03-11 | G95: x | H95: 2017-03-14 | I95: ='Februar 2017'!$J95 -> 474.73 € | J95: =J94+B95 -> 474.73 € | L95: =IF(C95="x",-B95,0) -> 33.86
A96: Amazon | B96: =-(28.38-20.9) -> -7.48 € | F96: 2017-03-05 | G96: x | H96: 2017-03-14 | I96: ='Februar 2017'!$J96 -> 467.25 € | J96: =J95+B96 -> 467.25 € | L96: =IF(C96="x",-B96,0) -> 0
A97: Amazon | B97: -16.95 € | F97: 2017-03-10 | G97: x | H97: 2017-03-14 | I97: ='Februar 2017'!$J97 -> 450.30 € | J97: =J96+B97 -> 450.30 € | L97: =IF(C97="x",-B97,0) -> 0
A98: Uhrmacher | B98: -12.00 € | F98: 2017-03-10 | G98: x | H98: 2017-03-14 | I98: ='Februar 2017'!$J98 -> 438.30 € | J98: =J97+B98 -> 438.30 € | L98: =IF(C98="x",-B98,0) -> 0
A99: Paypal | B99: -25.62 € | D99: Flixbus | F99: 2017-03-12 | G99: x | H99: 2017-03-14 | I99: ='Februar 2017'!$J99 -> 412.68 € | J99: =J98+B99 -> 412.68 € | L99: =IF(C99="x",-B99,0) -> 0
A100: HEM | B100: -26.38 € | F100: 2017-03-13 | G100: x | H100: 2017-03-14 | I100: ='Februar 2017'!$J100 -> 386.30 € | J100: =J99+B100 -> 386.30 € | L100: =IF(C100="x",-B100,0) -> 0
I101: ='Februar 2017'!$J101 -> 386.30 € | J101: =J100+B101 -> 386.30 € | L101: =IF(C101="x",-B101,0) -> 0
A102: Haushalt | B102: 0.00 € | I102: ='Februar 2017'!$J102 -> 386.30 € | J102: =J101+B102 -> 386.30 € | L102: =IF(C102="x",-B102,0) -> 0
I103: ='Februar 2017'!$J103 -> 386.30 € | J103: =J102+B103 -> 386.30 € | L103: =IF(C103="x",-B103,0) -> 0
I104: ='Februar 2017'!$J104 -> 386.30 € | J104: =J103+B104 -> 386.30 € | L104: =IF(C104="x",-B104,0) -> 0
I105: ='Februar 2017'!$J105 -> 386.30 € | J105: =J104+B105 -> 386.30 € | L105: =IF(C105="x",-B105,0) -> 0
I106: ='Februar 2017'!$J106 -> 386.30 € | J106: =J105+B106 -> 386.30 € | L106: =IF(C106="x",-B106,0) -> 0
I107: ='Februar 2017'!$J107 -> 386.30 € | J107: =J106+B107 -> 386.30 € | L107: =IF(C107="x",-B107,0) -> 0
I108: ='Februar 2017'!$J108 -> 386.30 € | J108: =J107+B108 -> 386.30 € | L108: =IF(C108="x",-B108,0) -> 0
J109: =J108+B109 -> 386.30 € | L109: =IF(C109="x",-B109,0) -> 0
J110: =J109+B110 -> 386.30 € | L110: =IF(C110="x",-B110,0) -> 0
J111: =J110+B111 -> 386.30 € | L111: =IF(C111="x",-B111,0) -> 0
J112: =J111+B112 -> 386.30 € | L112: =IF(C112="x",-B112,0) -> 0
J113: =J112+B113 -> 386.30 € | L113: =IF(C113="x",-B113,0) -> 0
J114: =J113+B114 -> 386.30 € | L114: =IF(C114="x",-B114,0) -> 0
J115: =J114+B115 -> 386.30 € | L115: =IF(C115="x",-B115,0) -> 0
J116: =J115+B116 -> 386.30 € | L116: =IF(C116="x",-B116,0) -> 0
J117: =J116+B117 -> 386.30 € | L117: =IF(C117="x",-B117,0) -> 0
J118: =J117+B118 -> 386.30 € | L118: =IF(C118="x",-B118,0) -> 0
J119: =J118+B119 -> 386.30 € | L119: =IF(C119="x",-B119,0) -> 0
J120: =J119+B120 -> 386.30 € | L120: =IF(C120="x",-B120,0) -> 0
J121: =J120+B121 -> 386.30 € | L121: =IF(C121="x",-B121,0) -> 0
J122: =J121+B122 -> 386.30 € | L122: =IF(C122="x",-B122,0) -> 0
J123: =J122+B123 -> 386.30 € | L123: =IF(C123="x",-B123,0) -> 0
J124: =J123+B124 -> 386.30 € | L124: =IF(C124="x",-B124,0) -> 0
J125: =J124+B125 -> 386.30 € | L125: =IF(C125="x",-B125,0) -> 0
J126: =J125+B126 -> 386.30 € | L126: =IF(C126="x",-B126,0) -> 0
J127: =J126+B127 -> 386.30 € | L127: =IF(C127="x",-B127,0) -> 0
J128: =J127+B128 -> 386.30 € | L128: =IF(C128="x",-B128,0) -> 0
J129: =J128+B129 -> 386.30 € | L129: =IF(C129="x",-B129,0) -> 0
J130: =J129+B130 -> 386.30 € | L130: =IF(C130="x",-B130,0) -> 0
J131: =J130+B131 -> 386.30 € | L131: =IF(C131="x",-B131,0) -> 0

Sheet März 2017
A1: 2017-03-01
A2: Übertrag aus Vormonat | D2: =LOOKUP(9^99,'Februar 2017'!I$1:I$65536) -> 386.30 €
A4: WAS? | B4: Wert | C4: Haushalt | D4: Bemerkung | E4: Fälligkeitszeitraum | F4: Wann ausgeführt | G4: Gebucht | H4: Buchungsdatum | I4: Kontostand
A5: Sven Gehalt | B5: 3,192.49 € | E5: m | G5: x | H5: 2017-03-15 | I5: =J5 -> 3,578.79 € | J5: =D2+B5 -> 3,578.79 € | K5: m | L5: =IF(C5="x",-B5,0) -> 0
A6: Autokredit Tilgung | B6: -200.00 € | E6: m | G6: x | H6: 2017-03-15 | I6: ='März 2017'!$J6 -> 3,378.79 € | J6: =J5+B6 -> 3,378.79 € | K6: 2m | L6: =IF(C6="x",-B6,0) -> 0
A7: PayPal | B7: -39.99 € | D7: CyberGhost | E7: j | F7: 2017-03-15 | G7: x | H7: 2017-03-17 | I7: ='März 2017'!$J7 -> 3,338.80 € | J7: =J6+B7 -> 3,338.80 € | K7: vj | L7: =IF(C7="x",-B7,0) -> 0
A8: Welt digital | B8: -12.99 € | E8: m | G8: x | H8: 2017-03-17 | I8: ='März 2017'!$J8 -> 3,325.81 € | J8: =J7+B8 -> 3,325.81 € | K8: hj | L8: =IF(C8="x",-B8,0) -> 0
A9: Kaufland | B9: -74.28 € | C9: x | F9: 2017-03-15 | G9: x | H9: 2017-03-17 | I9: ='März 2017'!$J9 -> 3,251.53 € | J9: =J8+B9 -> 3,251.53 € | K9: j | L9: =IF(C9="x",-B9,0) -> 74.28
A10: Fressnapf | B10: -36.35 € | C10: x | F10: 2017-03-15 | G10: x | H10: 2017-03-17 | I10: ='März 2017'!$J10 -> 3,215.18 € | J10: =J9+B10 -> 3,215.18 € | K10: 2j | L10: =IF(C10="x",-B10,0) -> 36.35
A11: Kölle | B11: -62.51 € | F11: 2017-03-16 | G11: x | H11: 2017-03-17 | I11: ='März 2017'!$J11 -> 3,152.67 € | J11: =J10+B11 -> 3,152.67 € | L11: =IF(C11="x",-B11,0) -> 0
A12: Dussmann | B12: -25.15 € | F12: 2017-03-16 | G12: x | H12: 2017-03-20 | I12: ='März 2017'!$J12 -> 3,127.52 € | J12: =J11+B12 -> 3,127.52 € | L12: =IF(C12="x",-B12,0) -> 0
A13: EC-Card | B13: -40.00 € | F13: 2017-03-17 | G13: x | H13: 2017-03-20 | I13: ='März 2017'!$J13 -> 3,087.52 € | J13: =J12+B13 -> 3,087.52 € | L13: =IF(C13="x",-B13,0) -> 0
A14: Rubin | B14: -20.60 € | C14: x | F14: 2017-03-17 | G14: x | H14: 2017-03-20 | I14: ='März 2017'!$J14 -> 3,066.92 € | J14: =J13+B14 -> 3,066.92 € | L14: =IF(C14="x",-B14,0) -> 20.6
A15: Lidl | B15: -88.15 € | C15: x | F15: 2017-03-17 | G15: x | H15: 2017-03-20 | I15: ='März 2017'!$J15 -> 2,978.77 € | J15: =J14+B15 -> 2,978.77 € | L15: =IF(C15="x",-B15,0) -> 88.15
A16: Autobedarf | B16: -29.90 € | F16: 2017-03-17 | G16: x | H16: 2017-03-20 | I16: ='März 2017'!$J16 -> 2,948.87 € | J16: =J15+B16 -> 2,948.87 € | L16: =IF(C16="x",-B16,0) -> 0
A17: GAAC | B17: -14.40 € | F17: 2017-03-17 | G17: x | H17: 2017-03-20 | I17: ='März 2017'!$J17 -> 2,934.47 € | J17: =J16+B17 -> 2,934.47 € | L17: =IF(C17="x",-B17,0) -> 0
A18: EC-Card | B18: -20.00 € | F18: 2017-03-20 | G18: x | H18: 2017-03-20 | I18: ='März 2017'!$J18 -> 2,914.47 € | J18: =J17+B18 -> 2,914.47 € | L18: =IF(C18="x",-B18,0) -> 0
A19: SparCard | B19: -150.00 € | E19: m | G19: x | H19: 2017-03-21 | I19: ='März 2017'!$J19 -> 2,764.47 € | J19: =J18+B19 -> 2,764.47 € | L19: =IF(C19="x",-B19,0) -> 0
A20: EMB | B20: -100.00 € | E20: m | G20: x | H20: 2017-03-21 | I20: ='März 2017'!$J20 -> 2,664.47 € | J20: =J19+B20 -> 2,664.47 € | L20: =IF(C20="x",-B20,0) -> 0
A21: Corinna Handy | B21: -33.96 € | E21: m | G21: x | H21: 2017-03-21 | I21: ='März 2017'!$J21 -> 2,630.51 € | J21: =J20+B21 -> 2,630.51 € | L21: =IF(C21="x",-B21,0) -> 0
A22: EC-Card | B22: -50.00 € | G22: x | H22: 2017-03-21 | I22: ='März 2017'!$J22 -> 2,580.51 € | J22: =J21+B22 -> 2,580.51 € | L22: =IF(C22="x",-B22,0) -> 0
A23: Sun | B23: -30.01 € | F23: 2017-03-17 | G23: x | H23: 2017-03-21 | I23: ='März 2017'!$J23 -> 2,550.50 € | J23: =J22+B23 -> 2,550.50 € | L23: =IF(C23="x",-B23,0) -> 0
A24: dm | B24: -10.10 € | C24: x | F24: 2017-03-21 | G24: x | H24: 2017-03-22 | I24: ='März 2017'!$J24 -> 2,540.40 € | J24: =J23+B24 -> 2,540.40 € | L24: =IF(C24="x",-B24,0) -> 10.1
A25: C&A | B25: -42.00 € | F25: 2017-03-21 | G25: x | H25: 2017-03-22 | I25: ='März 2017'!$J25 -> 2,498.40 € | J25: =J24+B25 -> 2,498.40 € | L25: =IF(C25="x",-B25,0) -> 0
A26: Karstadt Sport | B26: -113.95 € | F26: 2017-03-21 | G26: x | H26: 2017-03-22 | I26: ='März 2017'!$J26 -> 2,384.45 € | J26: =J25+B26 -> 2,384.45 € | L26: =IF(C26="x",-B26,0) -> 0
A27: Dussmann | B27: -32.90 € | F27: 2017-03-20 | G27: x | H27: 2017-03-22 | I27: ='März 2017'!$J27 -> 2,351.55 € | J27: =J26+B27 -> 2,351.55 € | L27: =IF(C27="x",-B27,0) -> 0
A28: HDI | B28: -47.66 € | E28: vj | G28: x | H28: 2017-03-23 | I28: ='März 2017'!$J28 -> 2,303.89 € | J28: =J27+B28 -> 2,303.89 € | L28: =IF(C28="x",-B28,0) -> 0
A29: Vodafone | B29: -29.99 € | E29: m | G29: x | H29: 2017-03-23 | I29: ='März 2017'!$J29 -> 2,273.90 € | J29: =J28+B29 -> 2,273.90 € | L29: =IF(C29="x",-B29,0) -> 0
A30: Sprint | B30: -28.80 € | F30: 2017-03-21 | G30: x | H30: 2017-03-23 | I30: ='März 2017'!$J30 -> 2,245.10 € | J30: =J29+B30 -> 2,245.10 € | L30: =IF(C30="x",-B30,0) -> 0
A31: Sprint | B31: -19.94 € | F31: 2017-03-22 | G31: x | H31: 2017-03-23 | I31: ='März 2017'!$J31 -> 2,225.16 € | J31: =J30+B31 -> 2,225.16 € | L31: =IF(C31="x",-B31,0) -> 0
A32: Netto | B32: -7.23 € | G32: x | H32: 2017-03-24 | I32: ='März 2017'!$J32 -> 2,217.93 € | J32: =J31+B32 -> 2,217.93 € | L32: =IF(C32="x",-B32,0) -> 0
A33: EC-Card | B33: -60.00 € | G33: x | H33: 2017-03-24 | I33: ='März 2017'!$J33 -> 2,157.93 € | J33: =J32+B33 -> 2,157.93 € | L33: =IF(C33="x",-B33,0) -> 0
A34: von Sparcard | B34: 100.00 € | D34: 4550.45 | G34: x | H34: 2017-03-27 | I34: ='März 2017'!$J34 -> 2,257.93 € | J34: =J33+B34 -> 2,257.93 € | L34: =IF(C34="x",-B34,0) -> 0
A35: T-Mobile | B35: -36.91 € | E35: m | G35: x | H35: 2017-03-27 | I35: ='März 2017'!$J35 -> 2,221.02 € | J35: =J34+B35 -> 2,221.02 € | L35: =IF(C35="x",-B35,0) -> 0
A36: T-Mobile | B36: -19.95 € | E36: m | G36: x | H36: 2017-03-27 | I36: ='März 2017'!$J36 -> 2,201.07 € | J36: =J35+B36 -> 2,201.07 € | L36: =IF(C36="x",-B36,0) -> 0
A37: Lidl | B37: -67.36 € | C37: x | F37: 2017-03-24 | G37: x | H37: 2017-03-27 | I37: ='März 2017'!$J37 -> 2,133.71 € | J37: =J36+B37 -> 2,133.71 € | L37: =IF(C37="x",-B37,0) -> 67.36
A38: Total | B38: -16.44 € | F38: 2017-03-26 | G38: x | H38: 2017-03-27 | I38: ='März 2017'!$J38 -> 2,117.27 € | J38: =J37+B38 -> 2,117.27 € | L38: =IF(C38="x",-B38,0) -> 0
A39: IPhoneReparatur | B39: -179.00 € | F39: 2017-03-24 | G39: x | H39: 2017-03-27 | I39: ='März 2017'!$J39 -> 1,938.27 € | J39: =J38+B39 -> 1,938.27 € | L39: =IF(C39="x",-B39,0) -> 0
A40: Mediamarkt | B40: -9.00 € | F40: 2017-03-24 | G40: x | H40: 2017-03-27 | I40: ='März 2017'!$J40 -> 1,929.27 € | J40: =J39+B40 -> 1,929.27 € | L40: =IF(C40="x",-B40,0) -> 0
A41: Rossmann | B41: -18.29 € | C41: x | F41: 2017-03-24 | G41: x | H41: 2017-03-28 | I41: ='März 2017'!$J41 -> 1,910.98 € | J41: =J40+B41 -> 1,910.98 € | L41: =IF(C41="x",-B41,0) -> 18.29
A42: Flixbus | B42: -23.47 € | F42: 2017-03-26 | G42: x | H42: 2017-03-28 | I42: ='März 2017'!$J42 -> 1,887.51 € | J42: =J41+B42 -> 1,887.51 € | L42: =IF(C42="x",-B42,0) -> 0
A43: Corinna Gehalt | B43: 1,042.68 € | E43: m | G43: x | H43: 2017-03-29 | I43: ='März 2017'!$J43 -> 2,930.19 € | J43: =J42+B43 -> 2,930.19 € | L43: =IF(C43="x",-B43,0) -> 0
A44: Saturn | B44: -19.99 € | F44: 2017-03-28 | G44: x | H44: 2017-03-29 | I44: ='März 2017'!$J44 -> 2,910.20 € | J44: =J43+B44 -> 2,910.20 € | L44: =IF(C44="x",-B44,0) -> 0
A45: EC-Card | B45: -10.00 € | F45: 2017-03-29 | G45: x | H45: 1904-01-30T07:12:00 | I45: ='März 2017'!$J45 -> 2,900.20 € | J45: =J44+B45 -> 2,900.20 € | L45: =IF(C45="x",-B45,0) -> 0
A46: HypoVereinsbank | B46: -909.65 € | E46: m | G46: x | H46: 2017-03-31 | I46: ='März 2017'!$J46 -> 1,990.55 € | J46: =J45+B46 -> 1,990.55 € | L46: =IF(C46="x",-B46,0) -> 0
A47: Corinna Bausparer | B47: -20.00 € | E47: m | G47: x | H47: 2017-03-31 | I47: ='März 2017'!$J47 -> 1,970.55 € | J47: =J46+B47 -> 1,970.55 € | L47: =IF(C47="x",-B47,0) -> 0
A48: EC-Card | B48: -40.00 € | F48: 2017-04-01 | G48: x | H48: 2017-04-03 | I48: ='März 2017'!$J48 -> 1,930.55 € | J48: =J47+B48 -> 1,930.55 € | L48: =IF(C48="x",-B48,0) -> 0
A49: EWE | B49: -66.00 € | E49: m | G49: x | H49: 2017-04-03 | I49: ='März 2017'!$J49 -> 1,864.55 € | J49: =J48+B49 -> 1,864.55 € | L49: =IF(C49="x",-B49,0) -> 0
A50: Comfort Card | B50: -88.00 € | E50: m | G50: x | H50: 2017-04-03 | I50: ='März 2017'!$J50 -> 1,776.55 € | J50: =J49+B50 -> 1,776.55 € | L50: =IF(C50="x",-B50,0) -> 0
A51: AXA | B51: -40.47 € | E51: vj | G51: x | H51: 2017-04-03 | I51: ='März 2017'!$J51 -> 1,736.08 € | J51: =J50+B51 -> 1,736.08 € | L51: =IF(C51="x",-B51,0) -> 0
A52: iMAC | B52: -84.88 € | D52: am 01.06.2018 85,04 | E52: m | G52: x | H52: 2017-04-03 | I52: ='März 2017'!$J52 -> 1,651.20 € | J52: =J51+B52 -> 1,651.20 € | L52: =IF(C52="x",-B52,0) -> 0
A53: Iphone | B53: -42.04 € | D53: am 01.03.2019 42,08 | E53: m | G53: x | H53: 2017-04-03 | I53: ='März 2017'!$J53 -> 1,609.16 € | J53: =J52+B53 -> 1,609.16 € | L53: =IF(C53="x",-B53,0) -> 0
A54: BVG | B54: -82.67 € | E54: m | G54: x | H54: 2017-04-03 | I54: ='März 2017'!$J54 -> 1,526.49 € | J54: =J53+B54 -> 1,526.49 € | L54: =IF(C54="x",-B54,0) -> 0
A55: Autoversicherung Sven | B55: -30.46 € | E55: m | G55: x | H55: 2017-04-03 | I55: ='März 2017'!$J55 -> 1,496.03 € | J55: =J54+B55 -> 1,496.03 € | L55: =IF(C55="x",-B55,0) -> 0
A56: Autoversicherung Corinna | B56: -22.31 € | E56: m | G56: x | H56: 2017-04-03 | I56: ='März 2017'!$J56 -> 1,473.72 € | J56: =J55+B56 -> 1,473.72 € | L56: =IF(C56="x",-B56,0) -> 0
A57: Laptop | B57: -51.01 € | D57: danach 21 x 51,01 und am 1.8.17 51,08 | E57: m | G57: x | H57: 2017-04-03 | I57: ='März 2017'!$J57 -> 1,422.71 € | J57: =J56+B57 -> 1,422.71 € | L57: =IF(C57="x",-B57,0) -> 0
A58: Lidl | B58: -92.65 € | C58: x | F58: 2017-03-31 | G58: x | H58: 2017-04-03 | I58: ='März 2017'!$J58 -> 1,330.06 € | J58: =J57+B58 -> 1,330.06 € | L58: =IF(C58="x",-B58,0) -> 92.65
A59: Real | B59: -35.26 € | F59: 2017-04-01 | G59: x | H59: 2017-04-03 | I59: ='März 2017'!$J59 -> 1,294.80 € | J59: =J58+B59 -> 1,294.80 € | L59: =IF(C59="x",-B59,0) -> 0
A60: Rewe | B60: -7.46 € | C60: x | F60: 2017-03-31 | G60: x | H60: 2017-04-03 | I60: ='März 2017'!$J60 -> 1,287.34 € | J60: =J59+B60 -> 1,287.34 € | L60: =IF(C60="x",-B60,0) -> 7.46
A61: Floristik-Center | B61: -14.48 € | F61: 2017-03-31 | G61: x | H61: 2017-04-03 | I61: ='März 2017'!$J61 -> 1,272.86 € | J61: =J60+B61 -> 1,272.86 € | L61: =IF(C61="x",-B61,0) -> 0
A62: Rossmann | B62: -66.63 € | C62: x | F62: 2017-04-01 | G62: x | H62: 2017-04-04 | I62: ='März 2017'!$J62 -> 1,206.23 € | J62: =J61+B62 -> 1,206.23 € | L62: =IF(C62="x",-B62,0) -> 66.63
A63: Amazon | B63: -13.98 € | F63: 2017-03-31 | G63: x | H63: 2017-04-04 | I63: ='März 2017'!$J63 -> 1,192.25 € | J63: =J62+B63 -> 1,192.25 € | L63: =IF(C63="x",-B63,0) -> 0
A64: Orlen | B64: -30.91 € | F64: 2017-04-02 | G64: x | H64: 2017-04-04 | I64: ='März 2017'!$J64 -> 1,161.34 € | J64: =J63+B64 -> 1,161.34 € | L64: =IF(C64="x",-B64,0) -> 0
A65: Fleurop | B65: -23.95 € | F65: 2017-04-02 | G65: x | H65: 2017-04-04 | I65: ='März 2017'!$J65 -> 1,137.39 € | J65: =J64+B65 -> 1,137.39 € | L65: =IF(C65="x",-B65,0) -> 0
A66: EC-Card | B66: -60.00 € | F66: 2017-04-04 | G66: x | H66: 2017-04-05 | I66: ='März 2017'!$J66 -> 1,077.39 € | J66: =J65+B66 -> 1,077.39 € | L66: =IF(C66="x",-B66,0) -> 0
A67: Flixbus | B67: -26.54 € | F67: 2017-04-03 | G67: x | H67: 2017-04-05 | I67: ='März 2017'!$J67 -> 1,050.85 € | J67: =J66+B67 -> 1,050.85 € | L67: =IF(C67="x",-B67,0) -> 0
A68: Netto | B68: -33.39 € | C68: x | F68: 2017-04-06 | G68: x | H68: 2017-04-07 | I68: ='März 2017'!$J68 -> 1,017.46 € | J68: =J67+B68 -> 1,017.46 € | L68: =IF(C68="x",-B68,0) -> 33.39
A69: Contabo | B69: -6.99 € | E69: m | G69: x | H69: 2017-04-07 | I69: ='März 2017'!$J69 -> 1,010.47 € | J69: =J68+B69 -> 1,010.47 € | L69: =IF(C69="x",-B69,0) -> 0
A70: Total | B70: -16.36 € | F70: 2017-07-06 | G70: x | H70: 2017-04-07 | I70: ='März 2017'!$J70 -> 994.11 € | J70: =J69+B70 -> 994.11 € | L70: =IF(C70="x",-B70,0) -> 0
A71: Amazon | B71: -3.43 € | F71: 2017-04-01 | G71: x | H71: 2017-04-07 | I71: ='März 2017'!$J71 -> 990.68 € | J71: =J70+B71 -> 990.68 € | L71: =IF(C71="x",-B71,0) -> 0
A72: Rubin | B72: -23.12 € | C72: x | F72: 2017-04-07 | G72: x | H72: 2017-04-10 | I72: ='März 2017'!$J72 -> 967.56 € | J72: =J71+B72 -> 967.56 € | L72: =IF(C72="x",-B72,0) -> 23.12
A73: Thalia | B73: -17.48 € | F73: 2017-03-31 | G73: x | H73: 2017-04-10 | I73: ='März 2017'!$J73 -> 950.08 € | J73: =J72+B73 -> 950.08 € | L73: =IF(C73="x",-B73,0) -> 0
A74: DBV Haftpflicht | B74: -6.54 € | E74: m | G74: x | H74: 2017-04-10 | I74: ='März 2017'!$J74 -> 943.54 € | J74: =J73+B74 -> 943.54 € | L74: =IF(C74="x",-B74,0) -> 0
A75: Amazon | B75: -102.24 € | D75: Docs | G75: x | H75: 2017-04-10 | I75: ='März 2017'!$J75 -> 841.30 € | J75: =J74+B75 -> 841.30 € | L75: =IF(C75="x",-B75,0) -> 0
A76: Amazon | B76: -8.90 € | D76: Schwarzer Reis | G76: x | H76: 2017-04-10 | I76: ='März 2017'!$J76 -> 832.40 € | J76: =J75+B76 -> 832.40 € | L76: =IF(C76="x",-B76,0) -> 0
A77: Amazon | B77: -3.77 € | G77: x | H77: 2017-04-10 | I77: ='März 2017'!$J77 -> 828.63 € | J77: =J76+B77 -> 828.63 € | L77: =IF(C77="x",-B77,0) -> 0
A78: Amazon | B78: -5.08 € | F78: 2017-04-04 | G78: x | H78: 2017-04-10 | I78: ='März 2017'!$J78 -> 823.55 € | J78: =J77+B78 -> 823.55 € | L78: =IF(C78="x",-B78,0) -> 0
A79: EC-Card | B79: -30.00 € | F79: 2017-04-08 | G79: x | H79: 2017-04-10 | I79: ='März 2017'!$J79 -> 793.55 € | J79: =J78+B79 -> 793.55 € | L79: =IF(C79="x",-B79,0) -> 0
A80: EC-Card | B80: -20.00 € | F80: 2017-04-09 | G80: x | H80: 2017-04-10 | I80: ='März 2017'!$J80 -> 773.55 € | J80: =J79+B80 -> 773.55 € | L80: =IF(C80="x",-B80,0) -> 0
A81: Lidl | B81: -93.58 € | C81: x | F81: 2017-04-07 | G81: x | H81: 2017-04-10 | I81: ='März 2017'!$J81 -> 679.97 € | J81: =J80+B81 -> 679.97 € | L81: =IF(C81="x",-B81,0) -> 93.58
A82: Reisekosten | B82: 42.40 € | G82: x | H82: 2017-04-10 | I82: ='März 2017'!$J82 -> 722.37 € | J82: =J81+B82 -> 722.37 € | L82: =IF(C82="x",-B82,0) -> 0
A83: Amazon | B83: -13.69 € | F83: 2017-04-09 | G83: x | H83: 2017-04-11 | I83: ='März 2017'!$J83 -> 708.68 € | J83: =J82+B83 -> 708.68 € | L83: =IF(C83="x",-B83,0) -> 0
A84: Star | B84: -26.59 € | F84: 2017-04-07 | G84: x | H84: 2017-04-11 | I84: ='März 2017'!$J84 -> 682.09 € | J84: =J83+B84 -> 682.09 € | L84: =IF(C84="x",-B84,0) -> 0
A85: EUROCARD | B85: =-34-8.14-3.99 -> -46.13 € | E85: m | G85: x | H85: 2017-04-11 | I85: ='März 2017'!$J85 -> 635.96 € | J85: =J84+B85 -> 635.96 € | L85: =IF(C85="x",-B85,0) -> 0
A86: Amazon | B86: -3.99 € | D86: 3. Adler Olsen | F86: 2017-04-08 | G86: x | H86: 2017-04-11 | I86: ='März 2017'!$J86 -> 631.97 € | J86: =J85+B86 -> 631.97 € | L86: =IF(C86="x",-B86,0) -> 0
A87: Amazon | B87: -5.95 € | F87: 2017-04-09 | G87: x | H87: 2017-04-11 | I87: ='März 2017'!$J87 -> 626.02 € | J87: =J86+B87 -> 626.02 € | L87: =IF(C87="x",-B87,0) -> 0
A88: Kindergeld | B88: 192.00 € | E88: m | G88: x | H88: 2017-04-11 | I88: ='März 2017'!$J88 -> 818.02 € | J88: =J87+B88 -> 818.02 € | L88: =IF(C88="x",-B88,0) -> 0
A89: Kabelanschluss | B89: -30.91 € | E89: m | G89: x | H89: 2017-04-12 | I89: ='März 2017'!$J89 -> 787.11 € | J89: =J88+B89 -> 787.11 € | L89: =IF(C89="x",-B89,0) -> 0
A90: Kabel Internet | B90: -39.54 € | E90: m | G90: x | H90: 2017-04-12 | I90: ='März 2017'!$J90 -> 747.57 € | J90: =J89+B90 -> 747.57 € | L90: =IF(C90="x",-B90,0) -> 0
A91: Bauhaus | B91: -108.39 € | C91: x | D91: Farben | F91: 2017-04-10 | G91: x | H91: 2017-04-12 | I91: ='März 2017'!$J91 -> 639.18 € | J91: =J90+B91 -> 639.18 € | L91: =IF(C91="x",-B91,0) -> 108.39
A92: Fressnapf | B92: -31.77 € | C92: x | F92: 2017-04-10 | G92: x | H92: 2017-04-12 | I92: ='März 2017'!$J92 -> 607.41 € | J92: =J91+B92 -> 607.41 € | L92: =IF(C92="x",-B92,0) -> 31.77
A93: Vivian | B93: -100.00 € | E93: m | F93: 13.4. | G93: x | H93: 2017-04-13 | I93: ='März 2017'!$J93 -> 507.41 € | J93: =J92+B93 -> 507.41 € | L93: =IF(C93="x",-B93,0) -> 0
A94: Haushalt | B94: 0.00 € | I94: ='März 2017'!$J94 -> 507.41 € | J94: =J93+B94 -> 507.41 € | L94: =IF(C94="x",-B94,0) -> 0
I95: ='März 2017'!$J95 -> 507.41 € | J95: =J94+B95 -> 507.41 € | L95: =IF(C95="x",-B95,0) -> 0
I96: ='März 2017'!$J96 -> 507.41 € | J96: =J95+B96 -> 507.41 € | L96: =IF(C96="x",-B96,0) -> 0
I97: ='März 2017'!$J97 -> 507.41 € | J97: =J96+B97 -> 507.41 € | L97: =IF(C97="x",-B97,0) -> 0
I98: ='März 2017'!$J98 -> 507.41 € | J98: =J97+B98 -> 507.41 € | L98: =IF(C98="x",-B98,0) -> 0
I99: ='März 2017'!$J99 -> 507.41 € | J99: =J98+B99 -> 507.41 € | L99: =IF(C99="x",-B99,0) -> 0
I100: ='März 2017'!$J100 -> 507.41 € | J100: =J99+B100 -> 507.41 € | L100: =IF(C100="x",-B100,0) -> 0
I101: ='März 2017'!$J101 -> 507.41 € | J101: =J100+B101 -> 507.41 € | L101: =IF(C101="x",-B101,0) -> 0
I102: ='März 2017'!$J102 -> 507.41 € | J102: =J101+B102 -> 507.41 € | L102: =IF(C102="x",-B102,0) -> 0
I103: ='März 2017'!$J103 -> 507.41 € | J103: =J102+B103 -> 507.41 € | L103: =IF(C103="x",-B103,0) -> 0
I104: ='März 2017'!$J104 -> 507.41 € | J104: =J103+B104 -> 507.41 € | L104: =IF(C104="x",-B104,0) -> 0
I105: ='März 2017'!$J105 -> 507.41 € | J105: =J104+B105 -> 507.41 € | L105: =IF(C105="x",-B105,0) -> 0
I106: ='März 2017'!$J106 -> 507.41 € | J106: =J105+B106 -> 507.41 € | L106: =IF(C106="x",-B106,0) -> 0
J107: =J106+B107 -> 507.41 € | L107: =IF(C107="x",-B107,0) -> 0
J108: =J107+B108 -> 507.41 € | L108: =IF(C108="x",-B108,0) -> 0
J109: =J108+B109 -> 507.41 € | L109: =IF(C109="x",-B109,0) -> 0
J110: =J109+B110 -> 507.41 € | L110: =IF(C110="x",-B110,0) -> 0
J111: =J110+B111 -> 507.41 € | L111: =IF(C111="x",-B111,0) -> 0
J112: =J111+B112 -> 507.41 € | L112: =IF(C112="x",-B112,0) -> 0
J113: =J112+B113 -> 507.41 € | L113: =IF(C113="x",-B113,0) -> 0
J114: =J113+B114 -> 507.41 € | L114: =IF(C114="x",-B114,0) -> 0
J115: =J114+B115 -> 507.41 € | L115: =IF(C115="x",-B115,0) -> 0
J116: =J115+B116 -> 507.41 € | L116: =IF(C116="x",-B116,0) -> 0
J117: =J116+B117 -> 507.41 € | L117: =IF(C117="x",-B117,0) -> 0
J118: =J117+B118 -> 507.41 € | L118: =IF(C118="x",-B118,0) -> 0
J119: =J118+B119 -> 507.41 € | L119: =IF(C119="x",-B119,0) -> 0
J120: =J119+B120 -> 507.41 € | L120: =IF(C120="x",-B120,0) -> 0
J121: =J120+B121 -> 507.41 € | L121: =IF(C121="x",-B121,0) -> 0
J122: =J121+B122 -> 507.41 € | L122: =IF(C122="x",-B122,0) -> 0
J123: =J122+B123 -> 507.41 € | L123: =IF(C123="x",-B123,0) -> 0
J124: =J123+B124 -> 507.41 € | L124: =IF(C124="x",-B124,0) -> 0
J125: =J124+B125 -> 507.41 € | L125: =IF(C125="x",-B125,0) -> 0
J126: =J125+B126 -> 507.41 € | L126: =IF(C126="x",-B126,0) -> 0
J127: =J126+B127 -> 507.41 € | L127: =IF(C127="x",-B127,0) -> 0
J128: =J127+B128 -> 507.41 € | L128: =IF(C128="x",-B128,0) -> 0
J129: =J128+B129 -> 507.41 € | L129: =IF(C129="x",-B129,0) -> 0
J130: =J129+B130 -> 507.41 € | L130: =IF(C130="x",-B130,0) -> 0
J131: =J130+B131 -> 507.41 € | L131: =IF(C131="x",-B131,0) -> 0

Sheet März 2017 alt
A1: 2017-02-01
A2: Übertrag aus Vormonat | C2: =LOOKUP(9^99,'Februar 2017'!J$1:J$65536) -> 386.30 €
A4: WAS? | B4: Wert | C4: Bemerkung | D4: Fälligkeitszeitraum | E4: Wann ausgeführt | F4: Gebucht | G4: Buchungsdatum | H4: Kontostand
A5: WAS? | B5: Wert | C5: Bemerkung | D5: Fälligkeitszeitraum | E5: Wann ausgeführt | F5: Gebucht | G5: Buchungsdatum | H5: Kontostand
A6: Sven Gehalt | B6: 3,060.13 € | D6: m | F6: x | G6: 2016-03-15 | H6: =C3+B6 -> 3,060.13 €
A7: Autokredit Tilgung | B7: -200.00 € | D7: m | F7: x | G7: 2016-03-15 | H7: =H6+B7 -> 2,860.13 €
A8: Autokredit Tilgung Corinna | B8: -101.00 € | D8: m | F8: x | G8: 2016-03-15 | H8: =H7+B8 -> 2,759.13 €
A9: PayPal | B9: -100.55 € | D9: m | F9: x | G9: 2016-03-15 | H9: =H8+B9 -> 2,658.58 €
A10: Edeka | B10: -11.83 € | E10: 2016-03-14 | F10: x | G10: 2016-03-15 | H10: =H9+B10 -> 2,646.75 €
A11: Training Corinna | B11: -60.00 € | E11: 2016-03-16 | F11: x | G11: 2016-03-16 | H11: =H10+B11 -> 2,586.75 €
A12: EC-Card | B12: -20.00 € | D12: m | F12: x | G12: 2016-03-16 | H12: =H11+B12 -> 2,566.75 €
A13: HU Bibliothek | B13: -2.00 € | E13: 2016-03-14 | F13: x | G13: 2016-03-16 | H13: =H12+B13 -> 2,564.75 €
A14: Sun Tankstelle | B14: -15.01 € | E14: 2016-03-14 | F14: x | G14: 2016-03-16 | H14: =H13+B14 -> 2,549.74 €
A15: IKEA | B15: -62.40 € | E15: 2016-03-15 | F15: x | G15: 2016-03-17 | H15: =H14+B15 -> 2,487.34 €
A16: Netto | B16: -8.60 € | E16: 2016-03-15 | F16: x | G16: 2016-03-17 | H16: =H15+B16 -> 2,478.74 €
A17: Fressnapf | B17: -19.35 € | E17: 2016-03-16 | F17: x | G17: 2016-03-18 | H17: =H16+B17 -> 2,459.39 €
A18: Sprint | B18: -21.66 € | E18: 2016-03-17 | F18: x | G18: 2016-03-18 | H18: =H17+B18 -> 2,437.73 €
A19: Welt digital | B19: -12.99 € | D19: m | F19: x | G19: 2016-03-18 | H19: =H18+B19 -> 2,424.74 €
A20: EC-Card | B20: -50.00 € | E20: 2016-03-18 | F20: x | G20: 2016-03-18 | H20: =H19+B20 -> 2,374.74 €
A21: SparCard | B21: -150.00 € | C21: =3750-B21-150 -> 3750 | D21: m | F21: x | G21: 2016-03-21 | H21: =H20+B21 -> 2,224.74 €
A22: EMB | B22: -110.00 € | D22: m | F22: x | G22: 2016-03-21 | H22: =H21+B22 -> 2,114.74 €
A23: Vivian | B23: -35.00 € | D23: m | F23: x | G23: 2016-03-21 | H23: =H22+B23 -> 2,079.74 €
A24: Corinna Handy | B24: -33.96 € | D24: m | F24: x | G24: 2016-03-21 | H24: =H23+B24 -> 2,045.78 €
A25: Real | B25: -30.39 € | E25: 2016-03-18 | F25: x | G25: 2016-03-21 | H25: =H24+B25 -> 2,015.39 €
A26: Lidl | B26: -98.45 € | E26: 2016-03-18 | F26: x | G26: 2016-03-21 | H26: =H25+B26 -> 1,916.94 €
A27: Pflanzen Kölle | B27: -35.93 € | E27: 2016-03-19 | F27: x | G27: 2016-03-21 | H27: =H26+B27 -> 1,881.01 €
A28: Paypal | B28: -11.90 € | C28: Rollo GästeWC | E28: 2016-03-20 | F28: x | G28: 2016-03-22 | H28: =H27+B28 -> 1,869.11 €
A29: Jet | B29: -26.48 € | E29: 2016-03-20 | F29: x | G29: 2016-03-22 | H29: =H28+B29 -> 1,842.63 €
A30: PayPal | B30: -24.99 € | C30: Cyberghost | E30: 2016-03-18 | F30: x | G30: 2016-03-22 | H30: =H29+B30 -> 1,817.64 €
A31: Medimax | B31: -56.98 € | E31: 2016-03-18 | F31: x | G31: 2016-03-22 | H31: =H30+B31 -> 1,760.66 €
A32: EC-Card | B32: -40.00 € | E32: 2016-03-22 | F32: x | G32: 2016-03-22 | H32: =H31+B32 -> 1,720.66 €
A33: Netto | B33: -12.98 € | E33: 2016-03-21 | F33: x | G33: 2016-03-23 | H33: =H32+B33 -> 1,707.68 €
A34: OBI | B34: -33.80 € | E34: 2016-03-21 | F34: x | G34: 2016-03-23 | H34: =H33+B34 -> 1,673.88 €
A35: OBI | B35: -20.04 € | E35: 2016-03-22 | F35: x | G35: 2016-03-24 | H35: =H34+B35 -> 1,653.84 €
A36: Vodafone | B36: -31.99 € | D36: m | F36: x | G36: 2016-03-24 | H36: =H35+B36 -> 1,621.85 €
A37: Lidl | B37: -95.14 € | E37: 2016-03-23 | F37: x | G37: 2016-03-24 | H37: =H36+B37 -> 1,526.71 €
A38: Getränke Hoffmann | B38: -10.49 € | E38: 2016-03-23 | F38: x | G38: 2016-03-24 | H38: =H37+B38 -> 1,516.22 €
A39: T-Mobile | B39: =-36.68-0.23 -> -36.91 € | D39: m | F39: x | G39: 2016-03-29 | H39: =H38+B39 -> 1,479.31 €
A40: T-Mobile | B40: =-19.95 -> -19.95 € | D40: m | F40: x | G40: 2016-03-29 | H40: =H39+B40 -> 1,459.36 €
A41: Fressnapf | B41: -17.90 € | E41: 2016-03-23 | F41: x | G41: 2016-03-29 | H41: =H40+B41 -> 1,441.46 €
A42: Jet | B42: -19.66 € | E42: 2016-03-23 | F42: x | G42: 2016-03-29 | H42: =H41+B42 -> 1,421.80 €
A43: VBB | B43: -9.80 € | E43: 2016-03-26 | F43: x | G43: 2016-03-29 | H43: =H42+B43 -> 1,412.00 €
A44: EC-Card | B44: -50.00 € | E44: 2016-03-26 | F44: x | G44: 2016-03-29 | H44: =H43+B44 -> 1,362.00 €
A45: H&M | B45: -9.99 € | E45: 2016-03-26 | F45: x | G45: 2016-03-29 | H45: =H44+B45 -> 1,352.01 €
A46: PfennigPfeiffer | B46: -13.06 € | E46: 2016-03-24 | F46: x | G46: 2016-03-29 | H46: =H45+B46 -> 1,338.95 €
A47: Lush | B47: -11.55 € | E47: 2016-03-26 | F47: x | G47: 2016-03-29 | H47: =H46+B47 -> 1,327.40 €
A48: Corinna Gehalt | B48: 1,006.96 € | D48: m | F48: x | G48: 2016-03-29 | H48: =H47+B48 -> 2,334.36 €
A49: Vans | B49: -35.00 € | E49: 2016-03-26 | F49: x | G49: 2016-03-29 | H49: =H48+B49 -> 2,299.36 €
A50: EC-Card | B50: -20.00 € | F50: x | G50: 2016-03-29 | H50: =H49+B50 -> 2,279.36 €
A51: Dussmann | B51: -32.40 € | E51: 2016-03-26 | F51: x | G51: 2016-03-30 | H51: =H50+B51 -> 2,246.96 €
A52: Jet | B52: -18.00 € | E52: 2016-03-27 | F52: x | G52: 2016-03-30 | H52: =H51+B52 -> 2,228.96 €
A53: Gerling | B53: -85.94 € | D53: vj | F53: x | G53: 2016-03-31 | H53: =H52+B53 -> 2,143.02 €
A54: MegaZoo | B54: -21.34 € | E54: 2016-03-24 | F54: x | G54: 2016-03-31 | H54: =H53+B54 -> 2,121.68 €
A55: HypoVereinsbank | B55: -909.65 € | D55: m | F55: x | G55: 2016-03-31 | H55: =H54+B55 -> 1,212.03 €
A56: Corinna Bausparer | B56: -20.00 € | D56: m | F56: x | G56: 2016-03-31 | H56: =H55+B56 -> 1,192.03 €
A57: Paypal | B57: -39.00 € | C57: Rollos Küche | E57: 2016-03-29 | F57: x | G57: 2016-03-31 | H57: =H56+B57 -> 1,153.03 €
A58: EC-Card | B58: -30.00 € | E58: 2016-03-31 | F58: x | G58: 2016-03-31 | H58: =H57+B58 -> 1,123.03 €
A59: EWE | B59: -66.00 € | D59: m | F59: x | G59: 2016-04-01 | H59: =H58+B59 -> 1,057.03 €
A60: Mac 2 | B60: -51.48 € | C60: am 01.12.16 51,64€ | D60: m | F60: x | G60: 2016-04-01 | H60: =H59+B60 -> 1,005.55 €
A61: Laptop | B61: -51.01 € | C61: danach 17 x 51,01 und am 1.8.18 51,08 | D61: m | F61: x | G61: 2016-04-01 | H61: =H60+B61 -> 954.54 €
A62: Comfort Card | B62: -88.00 € | D62: m | F62: x | G62: 2016-04-01 | H62: =H61+B62 -> 866.54 €
A63: PayPal | B63: -11.00 € | C63: Udemy | E63: 2016-03-29 | F63: x | G63: 2016-04-01 | H63: =H62+B63 -> 855.54 €
A64: BVG | B64: -82.67 € | D64: m | F64: x | G64: 2016-04-01 | H64: =H63+B64 -> 772.87 €
A65: Netto | B65: -11.12 € | E65: 2016-03-29 | F65: x | G65: 2016-04-01 | H65: =H64+B65 -> 761.75 €
A66: Autoversicherung Corinna | B66: -30.46 € | D66: m | F66: x | G66: 2016-04-01 | H66: =H65+B66 -> 731.29 €
A67: Autoversicherung Sven | B67: -22.31 € | D67: m | F67: x | G67: 2016-04-01 | H67: =H66+B67 -> 708.98 €
A68: Real | B68: -54.94 € | E68: 2016-03-31 | F68: x | G68: 2016-04-01 | H68: =H67+B68 -> 654.04 €
A69: Real | B69: -25.71 € | E69: 2016-03-31 | F69: x | G69: 2016-04-01 | H69: =H68+B69 -> 628.33 €
A70: Amazon | B70: -16.98 € | C70: Moonsorrow | F70: x | G70: 2016-04-04 | H70: =H69+B70 -> 611.35 €
A71: OBI | B71: -11.74 € | E71: 2016-03-31 | F71: x | G71: 2016-04-04 | H71: =H70+B71 -> 599.61 €
A72: Lidl | B72: -80.05 € | E72: 2016-04-01 | F72: x | G72: 2016-04-04 | H72: =H71+B72 -> 519.56 €
A73: Bio am Bahnhof | B73: -26.29 € | E73: 2016-04-01 | F73: x | G73: 2016-04-04 | H73: =H72+B73 -> 493.27 €
A74: Getränke Hoffmann | B74: -24.40 € | E74: 2016-04-01 | F74: x | G74: 2016-04-04 | H74: =H73+B74 -> 468.87 €
A75: Pflanzen Kölle | B75: -40.64 € | E75: 2016-04-01 | F75: x | G75: 2016-04-04 | H75: =H74+B75 -> 428.23 €
A76: HEM Teupitz | B76: -26.63 € | E76: 2016-04-02 | F76: x | G76: 2016-04-04 | H76: =H75+B76 -> 401.60 €
A77: EC-Card | B77: -50.00 € | E77: 2016-04-04 | F77: x | G77: 2016-04-04 | H77: =H76+B77 -> 351.60 €
A78: Medimax | B78: -59.99 € | E78: 2016-04-01 | F78: x | G78: 2016-04-05 | H78: =H77+B78 -> 291.61 €
A79: RM Computertechnik | B79: -6.14 € | E79: 2016-04-05 | F79: x | G79: 2016-04-05 | H79: =H78+B79 -> 285.47 €
A80: von Sparcard | B80: 120.00 € | E80: 2016-04-08 | F80: x | G80: 2016-04-07 | H80: =H79+B80 -> 405.47 €
A81: DBV Haftpflicht | B81: -6.54 € | D81: m | F81: x | G81: 2016-04-08 | H81: =H80+B81 -> 398.93 €
A82: Ullrich | B82: -19.30 € | E82: 2016-04-06 | F82: x | G82: 2016-04-08 | H82: =H81+B82 -> 379.63 €
A83: Netto | B83: -8.84 € | E83: 2016-04-06 | F83: x | G83: 2016-04-08 | H83: =H82+B83 -> 370.79 €
A84: Kindergeld | B84: 190.00 € | D84: m | F84: x | G84: 2016-04-11 | H84: =H83+B84 -> 560.79 €
A85: Total | B85: -12.60 € | E85: 2016-04-10 | F85: x | G85: 2016-04-11 | H85: =H84+B85 -> 548.19 €
A86: Lidl | B86: -70.90 € | E86: 2016-04-08 | F86: x | G86: 2016-04-11 | H86: =H85+B86 -> 477.29 €
A87: EC-Card | B87: -40.00 € | E87: 2016-04-10 | F87: x | G87: 2016-04-11 | H87: =H86+B87 -> 437.29 €
A88: Pflanzen Kölle | B88: -27.95 € | E88: 2016-04-08 | F88: x | G88: 2016-04-11 | H88: =H87+B88 -> 409.34 €
A89: Sprint | B89: -21.64 € | E89: 2016-04-08 | F89: x | G89: 2016-04-11 | H89: =H88+B89 -> 387.70 €
A90: EUROCARD | B90: =-34-39.96-3.88-81-0.99-0.99-10.48-50.7-0.19 -> -222.19 € | D90: m | F90: x | G90: 2016-04-12 | H90: =H89+B90 -> 165.51 €
A91: Kabel Internet | B91: -39.54 € | D91: m | F91: x | G91: 2016-04-12 | H91: =H90+B91 -> 125.97 €
A92: Kabelanschluss | B92: -30.91 € | D92: m | F92: x | G92: 2016-04-12 | H92: =H91+B92 -> 95.06 €
A93: Fressnapf | B93: -11.67 € | E93: 2016-04-08 | F93: x | G93: 2016-04-12 | H93: =H92+B93 -> 83.39 €
A94: Amazon | B94: -9.99 € | F94: x | G94: 2016-04-12 | H94: =H93+B94 -> 73.40 €
A95: EC-Card | B95: -20.00 € | E95: 2016-04-13 | F95: x | G95: 2016-04-13 | H95: =H94+B95 -> 53.40 €

Sheet April 2017
A1: 2017-04-01
A2: Übertrag aus Vormonat | D2: =LOOKUP(9^99,'März 2017'!I$1:I$65536) -> 507.41 €
A4: WAS? | B4: Wert | C4: Haushalt | D4: Bemerkung | E4: Fälligkeitszeitraum | F4: Wann ausgeführt | G4: Gebucht | H4: Buchungsdatum | I4: Kontostand
A5: Sven Gehalt | B5: 3,123.01 € | E5: m | G5: x | H5: 2017-04-12 | I5: =J5 -> 3,630.42 € | J5: =D2+B5 -> 3,630.42 € | K5: m | L5: =IF(C5="x",-B5,0) -> 0
A6: Netto | B6: -16.36 € | C6: x | F6: 2017-04-11 | G6: x | H6: 2017-04-13 | I6: ='April 2017'!$J6 -> 3,614.06 € | J6: =J5+B6 -> 3,614.06 € | K6: 2m | L6: =IF(C6="x",-B6,0) -> 16.36
A7: Rubin | B7: -17.66 € | C7: x | F7: 2017-04-12 | G7: x | H7: 2017-04-13 | I7: ='April 2017'!$J7 -> 3,596.40 € | J7: =J6+B7 -> 3,596.40 € | K7: vj | L7: =IF(C7="x",-B7,0) -> 17.66
A8: Lidl | B8: -61.14 € | C8: x | F8: 2017-04-12 | G8: x | H8: 2017-04-13 | I8: ='April 2017'!$J8 -> 3,535.26 € | J8: =J7+B8 -> 3,535.26 € | K8: hj | L8: =IF(C8="x",-B8,0) -> 61.14
A9: Rewe | B9: -10.56 € | C9: x | F9: 2017-04-12 | G9: x | H9: 2017-04-13 | I9: ='April 2017'!$J9 -> 3,524.70 € | J9: =J8+B9 -> 3,524.70 € | K9: j | L9: =IF(C9="x",-B9,0) -> 10.56
A10: Hagebau | B10: -6.56 € | F10: 2017-04-12 | G10: x | H10: 2017-04-13 | I10: ='April 2017'!$J10 -> 3,518.14 € | J10: =J9+B10 -> 3,518.14 € | K10: 2j | L10: =IF(C10="x",-B10,0) -> 0
A11: EC-Card | B11: -40.00 € | G11: x | H11: 2017-04-13 | I11: ='April 2017'!$J11 -> 3,478.14 € | J11: =J10+B11 -> 3,478.14 € | L11: =IF(C11="x",-B11,0) -> 0
A12: DNWAB | B12: -78.00 € | E12: 2m | G12: x | H12: 2017-04-18 | I12: ='April 2017'!$J12 -> 3,400.14 € | J12: =J11+B12 -> 3,400.14 € | L12: =IF(C12="x",-B12,0) -> 0
A13: Corinna Handy | B13: -34.55 € | E13: m | G13: x | H13: 2017-04-18 | I13: ='April 2017'!$J13 -> 3,365.59 € | J13: =J12+B13 -> 3,365.59 € | L13: =IF(C13="x",-B13,0) -> 0
A14: Autokredit Tilgung | B14: -200.00 € | E14: m | G14: x | H14: 2017-04-18 | I14: ='April 2017'!$J14 -> 3,165.59 € | J14: =J13+B14 -> 3,165.59 € | L14: =IF(C14="x",-B14,0) -> 0
A15: Udemy | B15: -10.00 € | F15: 2017-04-12 | G15: x | H15: 2017-04-18 | I15: ='April 2017'!$J15 -> 3,155.59 € | J15: =J14+B15 -> 3,155.59 € | L15: =IF(C15="x",-B15,0) -> 0
A16: Dussmann | B16: -24.00 € | F16: 2017-04-12 | G16: x | H16: 2017-04-18 | I16: ='April 2017'!$J16 -> 3,131.59 € | J16: =J15+B16 -> 3,131.59 € | L16: =IF(C16="x",-B16,0) -> 0
A17: EC-Card | B17: -30.00 € | F17: 2017-04-18 | G17: x | H17: 2017-04-18 | I17: ='April 2017'!$J17 -> 3,101.59 € | J17: =J16+B17 -> 3,101.59 € | L17: =IF(C17="x",-B17,0) -> 0
A18: HEM | B18: -26.39 € | F18: 2017-04-15 | G18: x | H18: 2017-04-18 | I18: ='April 2017'!$J18 -> 3,075.20 € | J18: =J17+B18 -> 3,075.20 € | L18: =IF(C18="x",-B18,0) -> 0
A19: OBI | B19: -29.95 € | F19: 2017-04-15 | G19: x | H19: 2017-04-19 | I19: ='April 2017'!$J19 -> 3,045.25 € | J19: =J18+B19 -> 3,045.25 € | L19: =IF(C19="x",-B19,0) -> 0
A20: Ullrich | B20: -13.06 € | F20: 2017-04-13 | G20: x | H20: 2017-04-19 | I20: ='April 2017'!$J20 -> 3,032.19 € | J20: =J19+B20 -> 3,032.19 € | L20: =IF(C20="x",-B20,0) -> 0
A21: Sky | B21: -24.98 € | C21: x | F21: 2017-04-15 | G21: x | H21: 2017-04-19 | I21: ='April 2017'!$J21 -> 3,007.21 € | J21: =J20+B21 -> 3,007.21 € | L21: =IF(C21="x",-B21,0) -> 24.98
A22: Amazon | B22: =-9.32-4.41 -> -13.73 € | G22: x | H22: 2017-04-19 | I22: ='April 2017'!$J22 -> 2,993.48 € | J22: =J21+B22 -> 2,993.48 € | L22: =IF(C22="x",-B22,0) -> 0
A23: Rossmann | B23: -30.91 € | F23: 2017-04-15 | G23: x | H23: 2017-04-19 | I23: ='April 2017'!$J23 -> 2,962.57 € | J23: =J22+B23 -> 2,962.57 € | L23: =IF(C23="x",-B23,0) -> 0
A24: Sprint | B24: -50.28 € | F24: 2017-04-13 | G24: x | H24: 2017-04-19 | I24: ='April 2017'!$J24 -> 2,912.29 € | J24: =J23+B24 -> 2,912.29 € | L24: =IF(C24="x",-B24,0) -> 0
A25: Mediamarkt | B25: -14.99 € | D25: Munddusche mit 25€ Gutschrift | F25: 2017-04-18 | G25: x | H25: 2017-04-19 | I25: ='April 2017'!$J25 -> 2,897.30 € | J25: =J24+B25 -> 2,897.30 € | L25: =IF(C25="x",-B25,0) -> 0
A26: VBB | B26: -9.60 € | F26: 2017-04-18 | G26: x | H26: 2017-04-19 | I26: ='April 2017'!$J26 -> 2,887.70 € | J26: =J25+B26 -> 2,887.70 € | L26: =IF(C26="x",-B26,0) -> 0
A27: EC-Card | B27: -20.00 € | F27: 2017-04-19 | G27: x | H27: 2017-04-19 | I27: ='April 2017'!$J27 -> 2,867.70 € | J27: =J26+B27 -> 2,867.70 € | L27: =IF(C27="x",-B27,0) -> 0
A28: Denns | B28: -24.57 € | C28: x | F28: 2017-04-18 | G28: x | H28: 2017-04-20 | I28: ='April 2017'!$J28 -> 2,843.13 € | J28: =J27+B28 -> 2,843.13 € | L28: =IF(C28="x",-B28,0) -> 24.57
A29: Netto | B29: -8.81 € | C29: x | F29: 2017-04-18 | G29: x | H29: 2017-04-20 | I29: ='April 2017'!$J29 -> 2,834.32 € | J29: =J28+B29 -> 2,834.32 € | L29: =IF(C29="x",-B29,0) -> 8.81
A30: Dussmann | B30: -20.50 € | G30: x | H30: 2017-04-20 | I30: ='April 2017'!$J30 -> 2,813.82 € | J30: =J29+B30 -> 2,813.82 € | L30: =IF(C30="x",-B30,0) -> 0
A31: Fressnapf | B31: -12.65 € | C31: x | F31: 2017-04-18 | G31: x | H31: 2017-04-20 | I31: ='April 2017'!$J31 -> 2,801.17 € | J31: =J30+B31 -> 2,801.17 € | L31: =IF(C31="x",-B31,0) -> 12.65
A32: Bauhaus | B32: -20.35 € | F32: 2017-04-18 | G32: x | H32: 2017-04-20 | I32: ='April 2017'!$J32 -> 2,780.82 € | J32: =J31+B32 -> 2,780.82 € | L32: =IF(C32="x",-B32,0) -> 0
A33: Welt digital | B33: -12.99 € | E33: m | G33: x | H33: 2017-04-20 | I33: ='April 2017'!$J33 -> 2,767.83 € | J33: =J32+B33 -> 2,767.83 € | L33: =IF(C33="x",-B33,0) -> 0
A34: SparCard | B34: -150.00 € | D34: 4700.45 | E34: m | G34: x | H34: 2017-04-21 | I34: ='April 2017'!$J34 -> 2,617.83 € | J34: =J33+B34 -> 2,617.83 € | L34: =IF(C34="x",-B34,0) -> 0
A35: EMB | B35: -100.00 € | E35: m | G35: x | H35: 2017-04-21 | I35: ='April 2017'!$J35 -> 2,517.83 € | J35: =J34+B35 -> 2,517.83 € | L35: =IF(C35="x",-B35,0) -> 0
A36: Netto | B36: -15.20 € | C36: x | F36: 2017-04-19 | G36: x | H36: 2017-04-21 | I36: ='April 2017'!$J36 -> 2,502.63 € | J36: =J35+B36 -> 2,502.63 € | L36: =IF(C36="x",-B36,0) -> 15.2
A37: Flixbus | B37: -11.27 € | D37: paypal | G37: x | H37: 2017-04-21 | I37: ='April 2017'!$J37 -> 2,491.36 € | J37: =J36+B37 -> 2,491.36 € | L37: =IF(C37="x",-B37,0) -> 0
A38: von Sparcard | B38: 320.00 € | D38: =4350.45 -> 4,350.45 € | F38: 2017-04-21 | G38: x | H38: 2017-04-21 | I38: ='April 2017'!$J38 -> 2,811.36 € | J38: =J37+B38 -> 2,811.36 € | L38: =IF(C38="x",-B38,0) -> 0
A39: SBAZV | B39: -59.64 € | E39: j | G39: x | H39: 2017-04-24 | I39: ='April 2017'!$J39 -> 2,751.72 € | J39: =J38+B39 -> 2,751.72 € | L39: =IF(C39="x",-B39,0) -> 0
A40: Netto | B40: -10.91 € | C40: x | F40: 2017-04-20 | G40: x | H40: 2017-04-24 | I40: ='April 2017'!$J40 -> 2,740.81 € | J40: =J39+B40 -> 2,740.81 € | L40: =IF(C40="x",-B40,0) -> 10.91
A41: OBI | B41: -35.13 € | D41: Lichtschalter | F41: 2017-04-20 | G41: x | H41: 2017-04-24 | I41: ='April 2017'!$J41 -> 2,705.68 € | J41: =J40+B41 -> 2,705.68 € | L41: =IF(C41="x",-B41,0) -> 0
A42: T-Mobile | B42: -35.46 € | E42: m | G42: x | H42: 2017-04-24 | I42: ='April 2017'!$J42 -> 2,670.22 € | J42: =J41+B42 -> 2,670.22 € | L42: =IF(C42="x",-B42,0) -> 0
A43: T-Mobile | B43: -19.95 € | E43: m | G43: x | H43: 2017-04-24 | I43: ='April 2017'!$J43 -> 2,650.27 € | J43: =J42+B43 -> 2,650.27 € | L43: =IF(C43="x",-B43,0) -> 0
A44: EC-Card | B44: -30.00 € | F44: 2017-04-23 | G44: x | H44: 2017-04-24 | I44: ='April 2017'!$J44 -> 2,620.27 € | J44: =J43+B44 -> 2,620.27 € | L44: =IF(C44="x",-B44,0) -> 0
A45: Rubin | B45: -12.46 € | C45: x | F45: 2017-04-21 | G45: x | H45: 2017-04-24 | I45: ='April 2017'!$J45 -> 2,607.81 € | J45: =J44+B45 -> 2,607.81 € | L45: =IF(C45="x",-B45,0) -> 12.46
A46: Lidl | B46: -99.82 € | C46: x | F46: 2017-04-21 | G46: x | H46: 2017-04-24 | I46: ='April 2017'!$J46 -> 2,507.99 € | J46: =J45+B46 -> 2,507.99 € | L46: =IF(C46="x",-B46,0) -> 99.82
A47: Jet | B47: -23.04 € | F47: 2017-04-22 | G47: x | H47: 2017-04-24 | I47: ='April 2017'!$J47 -> 2,484.95 € | J47: =J46+B47 -> 2,484.95 € | L47: =IF(C47="x",-B47,0) -> 0
A48: Thinius | B48: -395.07 € | D48: Durchsicht und TÜV | F48: 2017-04-21 | G48: x | H48: 2017-04-24 | I48: ='April 2017'!$J48 -> 2,089.88 € | J48: =J47+B48 -> 2,089.88 € | L48: =IF(C48="x",-B48,0) -> 0
A49: Vodafone | B49: -29.99 € | E49: m | G49: x | H49: 2017-04-24 | I49: ='April 2017'!$J49 -> 2,059.89 € | J49: =J48+B49 -> 2,059.89 € | L49: =IF(C49="x",-B49,0) -> 0
A50: Paypal | B50: -10.00 € | D50: Udemy | G50: x | H50: 2017-04-24 | I50: ='April 2017'!$J50 -> 2,049.89 € | J50: =J49+B50 -> 2,049.89 € | L50: =IF(C50="x",-B50,0) -> 0
A51: Bauhaus | B51: -47.89 € | F51: 2017-04-22 | G51: x | H51: 2017-04-24 | I51: ='April 2017'!$J51 -> 2,002.00 € | J51: =J50+B51 -> 2,002.00 € | L51: =IF(C51="x",-B51,0) -> 0
A52: Amazon | B52: -29.90 € | F52: 2017-04-23 | G52: x | H52: 2017-04-24 | I52: ='April 2017'!$J52 -> 1,972.10 € | J52: =J51+B52 -> 1,972.10 € | L52: =IF(C52="x",-B52,0) -> 0
A53: Sun | B53: -24.91 € | F53: 2017-04-23 | G53: x | H53: 2017-04-24 | I53: ='April 2017'!$J53 -> 1,947.19 € | J53: =J52+B53 -> 1,947.19 € | L53: =IF(C53="x",-B53,0) -> 0
A54: Corinna Gehalt | B54: 1,128.51 € | E54: m | G54: x | H54: 2017-04-26 | I54: ='April 2017'!$J54 -> 3,075.70 € | J54: =J53+B54 -> 3,075.70 € | L54: =IF(C54="x",-B54,0) -> 0
A55: Edeka | B55: -11.84 € | C55: x | G55: x | H55: 2017-04-26 | I55: ='April 2017'!$J55 -> 3,063.86 € | J55: =J54+B55 -> 3,063.86 € | L55: =IF(C55="x",-B55,0) -> 11.84
A56: EC-Card | B56: -30.00 € | F56: 2017-04-26 | G56: x | H56: 2017-04-27 | I56: ='April 2017'!$J56 -> 3,033.86 € | J56: =J55+B56 -> 3,033.86 € | L56: =IF(C56="x",-B56,0) -> 0
A57: Rubin | B57: -28.09 € | C57: x | F57: 2017-04-26 | G57: x | H57: 2017-04-27 | I57: ='April 2017'!$J57 -> 3,005.77 € | J57: =J56+B57 -> 3,005.77 € | L57: =IF(C57="x",-B57,0) -> 28.09
A58: Lidl | B58: -7.25 € | C58: x | F58: 2017-04-26 | G58: x | H58: 2017-04-27 | I58: ='April 2017'!$J58 -> 2,998.52 € | J58: =J57+B58 -> 2,998.52 € | L58: =IF(C58="x",-B58,0) -> 7.25
A59: Corinna Bausparer | B59: -20.00 € | E59: m | G59: x | H59: 2017-04-28 | I59: ='April 2017'!$J59 -> 2,978.52 € | J59: =J58+B59 -> 2,978.52 € | L59: =IF(C59="x",-B59,0) -> 0
A60: Netto | B60: -18.62 € | C60: x | F60: 2017-04-26 | G60: x | H60: 2017-04-28 | I60: ='April 2017'!$J60 -> 2,959.90 € | J60: =J59+B60 -> 2,959.90 € | L60: =IF(C60="x",-B60,0) -> 18.62
A61: EWE | B61: -66.00 € | G61: x | H61: 2017-05-02 | I61: ='April 2017'!$J61 -> 2,893.90 € | J61: =J60+B61 -> 2,893.90 € | L61: =IF(C61="x",-B61,0) -> 0
A62: Rechtsschutz | B62: -41.38 € | E62: vj | G62: x | H62: 2017-05-02 | I62: ='April 2017'!$J62 -> 2,852.52 € | J62: =J61+B62 -> 2,852.52 € | L62: =IF(C62="x",-B62,0) -> 0
A63: Autoversicherung Sven | B63: -30.46 € | E63: m | G63: x | H63: 2017-05-02 | I63: ='April 2017'!$J63 -> 2,822.06 € | J63: =J62+B63 -> 2,822.06 € | L63: =IF(C63="x",-B63,0) -> 0
A64: Autoversicherung Corinna | B64: -22.31 € | E64: m | G64: x | H64: 2017-05-02 | I64: ='April 2017'!$J64 -> 2,799.75 € | J64: =J63+B64 -> 2,799.75 € | L64: =IF(C64="x",-B64,0) -> 0
A65: Comfort Card | B65: -87.66 € | E65: m | G65: x | H65: 2017-05-02 | I65: ='April 2017'!$J65 -> 2,712.09 € | J65: =J64+B65 -> 2,712.09 € | L65: =IF(C65="x",-B65,0) -> 0
A66: Kfz-Steuern | B66: -106.00 € | E66: j | G66: x | H66: 2017-05-02 | I66: ='April 2017'!$J66 -> 2,606.09 € | J66: =J65+B66 -> 2,606.09 € | L66: =IF(C66="x",-B66,0) -> 0
A67: HypoVereinsbank | B67: -909.65 € | E67: m | G67: x | H67: 2017-05-02 | I67: ='April 2017'!$J67 -> 1,696.44 € | J67: =J66+B67 -> 1,696.44 € | L67: =IF(C67="x",-B67,0) -> 0
A68: BVG | B68: -82.67 € | E68: m | G68: x | H68: 2017-05-02 | I68: ='April 2017'!$J68 -> 1,613.77 € | J68: =J67+B68 -> 1,613.77 € | L68: =IF(C68="x",-B68,0) -> 0
A69: iMAC | B69: -84.88 € | D69: am 01.06.2018 85,04 | E69: m | G69: x | H69: 2017-05-02 | I69: ='April 2017'!$J69 -> 1,528.89 € | J69: =J68+B69 -> 1,528.89 € | L69: =IF(C69="x",-B69,0) -> 0
A70: Laptop | B70: -51.01 € | D70: danach 21 x 51,01 und am 1.8.17 51,08 | E70: m | G70: x | H70: 2017-05-02 | I70: ='April 2017'!$J70 -> 1,477.88 € | J70: =J69+B70 -> 1,477.88 € | L70: =IF(C70="x",-B70,0) -> 0
A71: Iphone | B71: -42.04 € | D71: am 01.04.2019 42,08 | E71: m | G71: x | H71: 2017-05-02 | I71: ='April 2017'!$J71 -> 1,435.84 € | J71: =J70+B71 -> 1,435.84 € | L71: =IF(C71="x",-B71,0) -> 0
A72: Udemy | B72: -30.00 € | F72: 2017-04-27 | G72: x | H72: 2017-05-02 | I72: ='April 2017'!$J72 -> 1,405.84 € | J72: =J71+B72 -> 1,405.84 € | L72: =IF(C72="x",-B72,0) -> 0
A73: EC-Card | B73: -40.00 € | F73: 2017-04-29 | G73: x | H73: 2017-05-02 | I73: ='April 2017'!$J73 -> 1,365.84 € | J73: =J72+B73 -> 1,365.84 € | L73: =IF(C73="x",-B73,0) -> 0
A74: Lidl | B74: -85.95 € | C74: x | F74: 2017-04-28 | G74: x | H74: 2017-05-02 | I74: ='April 2017'!$J74 -> 1,279.89 € | J74: =J73+B74 -> 1,279.89 € | L74: =IF(C74="x",-B74,0) -> 85.95
A75: real | B75: -16.67 € | C75: x | F75: 2017-04-28 | G75: x | H75: 2017-05-02 | I75: ='April 2017'!$J75 -> 1,263.22 € | J75: =J74+B75 -> 1,263.22 € | L75: =IF(C75="x",-B75,0) -> 16.67
A76: EC-Card | B76: -30.00 € | F76: 2017-05-02 | G76: x | H76: 2017-05-02 | I76: ='April 2017'!$J76 -> 1,233.22 € | J76: =J75+B76 -> 1,233.22 € | L76: =IF(C76="x",-B76,0) -> 0
A77: Medimax | B77: -139.99 € | F77: 2017-04-29 | G77: x | H77: 2017-05-03 | I77: ='April 2017'!$J77 -> 1,093.23 € | J77: =J76+B77 -> 1,093.23 € | L77: =IF(C77="x",-B77,0) -> 0
A78: Jet | B78: -19.94 € | F78: 2017-04-28 | G78: x | H78: 2017-05-03 | I78: ='April 2017'!$J78 -> 1,073.29 € | J78: =J77+B78 -> 1,073.29 € | L78: =IF(C78="x",-B78,0) -> 0
A79: ND | B79: -6.00 € | G79: x | H79: 2017-05-03 | I79: ='April 2017'!$J79 -> 1,067.29 € | J79: =J78+B79 -> 1,067.29 € | L79: =IF(C79="x",-B79,0) -> 0
A80: Fressnapf | B80: -58.61 € | C80: x | F80: 2017-04-28 | G80: x | H80: 2017-05-03 | I80: ='April 2017'!$J80 -> 1,008.68 € | J80: =J79+B80 -> 1,008.68 € | L80: =IF(C80="x",-B80,0) -> 58.61
A81: OBI | B81: -15.98 € | F81: 2017-04-29 | G81: x | H81: 2017-05-03 | I81: ='April 2017'!$J81 -> 992.70 € | J81: =J80+B81 -> 992.70 € | L81: =IF(C81="x",-B81,0) -> 0
A82: Paypal | B82: -8.99 € | D82: ebay | G82: x | H82: 2017-05-03 | I82: ='April 2017'!$J82 -> 983.71 € | J82: =J81+B82 -> 983.71 € | L82: =IF(C82="x",-B82,0) -> 0
A83: Reisekosten | B83: -11.20 € | D83: airplus | G83: x | H83: 2017-05-03 | I83: ='April 2017'!$J83 -> 972.51 € | J83: =J82+B83 -> 972.51 € | L83: =IF(C83="x",-B83,0) -> 0
A84: Bauhaus | B84: -37.25 € | F84: 2017-04-28 | G84: x | H84: 2017-05-03 | I84: ='April 2017'!$J84 -> 935.26 € | J84: =J83+B84 -> 935.26 € | L84: =IF(C84="x",-B84,0) -> 0
A85: EC-Card | B85: -40.00 € | F85: 2017-05-04 | G85: x | H85: 2017-05-04 | I85: ='April 2017'!$J85 -> 895.26 € | J85: =J84+B85 -> 895.26 € | L85: =IF(C85="x",-B85,0) -> 0
A86: OBI | B86: -11.99 € | F86: 2017-05-02 | G86: x | H86: 2017-05-04 | I86: ='April 2017'!$J86 -> 883.27 € | J86: =J85+B86 -> 883.27 € | L86: =IF(C86="x",-B86,0) -> 0
A87: Contabo | B87: -6.99 € | E87: m | G87: x | H87: 2017-05-08 | I87: ='April 2017'!$J87 -> 876.28 € | J87: =J86+B87 -> 876.28 € | L87: =IF(C87="x",-B87,0) -> 0
A88: real | B88: -29.03 € | C88: x | F88: 2005-06-05 | G88: x | H88: 2017-05-08 | I88: ='April 2017'!$J88 -> 847.25 € | J88: =J87+B88 -> 847.25 € | L88: =IF(C88="x",-B88,0) -> 29.03
A89: Lidl | B89: -67.13 € | C89: x | F89: 2017-05-06 | G89: x | H89: 2017-05-08 | I89: ='April 2017'!$J89 -> 780.12 € | J89: =J88+B89 -> 780.12 € | L89: =IF(C89="x",-B89,0) -> 67.13
A90: Edeka | B90: -18.45 € | C90: x | F90: 2017-05-05 | G90: x | H90: 2017-05-08 | I90: ='April 2017'!$J90 -> 761.67 € | J90: =J89+B90 -> 761.67 € | L90: =IF(C90="x",-B90,0) -> 18.45
A91: EC-Card | B91: -30.00 € | G91: x | H91: 2017-05-08 | I91: ='April 2017'!$J91 -> 731.67 € | J91: =J90+B91 -> 731.67 € | L91: =IF(C91="x",-B91,0) -> 0
A92: Sprint | B92: -13.29 € | F92: 2017-05-05 | G92: x | H92: 2017-05-09 | I92: ='April 2017'!$J92 -> 718.38 € | J92: =J91+B92 -> 718.38 € | L92: =IF(C92="x",-B92,0) -> 0
A93: Bio am Bahnhof | B93: -19.17 € | C93: x | F93: 2017-05-08 | G93: x | H93: 2017-05-09 | I93: ='April 2017'!$J93 -> 699.21 € | J93: =J92+B93 -> 699.21 € | L93: =IF(C93="x",-B93,0) -> 19.17
A94: Russia | B94: -21.35 € | C94: x | F94: 2017-05-08 | G94: x | H94: 2017-05-09 | I94: ='April 2017'!$J94 -> 677.86 € | J94: =J93+B94 -> 677.86 € | L94: =IF(C94="x",-B94,0) -> 21.35
A95: EUROCARD | B95: =-59.94-34-49-9.98-8.7 -> -161.62 € | D95: Amazon Prime --> 49 | E95: m | G95: x | H95: 2017-05-10 | I95: ='April 2017'!$J95 -> 516.24 € | J95: =J94+B95 -> 516.24 € | L95: =IF(C95="x",-B95,0) -> 0
A96: Star | B96: -26.38 € | F96: 2017-05-08 | G96: x | H96: 2017-05-10 | I96: ='April 2017'!$J96 -> 489.86 € | J96: =J95+B96 -> 489.86 € | L96: =IF(C96="x",-B96,0) -> 0
A97: Kabel Internet | B97: -39.54 € | E97: m | G97: x | H97: 2017-05-11 | I97: ='April 2017'!$J97 -> 450.32 € | J97: =J96+B97 -> 450.32 € | L97: =IF(C97="x",-B97,0) -> 0
A98: Kabelanschluss | B98: -30.91 € | E98: m | G98: x | H98: 2017-05-11 | I98: ='April 2017'!$J98 -> 419.41 € | J98: =J97+B98 -> 419.41 € | L98: =IF(C98="x",-B98,0) -> 0
A99: Bauhaus | B99: -19.95 € | F99: 2017-05-09 | G99: x | H99: 2017-05-11 | I99: ='April 2017'!$J99 -> 399.46 € | J99: =J98+B99 -> 399.46 € | L99: =IF(C99="x",-B99,0) -> 0
A100: Netto | B100: -11.95 € | C100: x | F100: 2017-05-09 | G100: x | H100: 2017-05-11 | I100: ='April 2017'!$J100 -> 387.51 € | J100: =J99+B100 -> 387.51 € | L100: =IF(C100="x",-B100,0) -> 11.95
A101: Fressnapf | B101: -20.49 € | C101: x | F101: 2017-05-09 | G101: x | H101: 2017-05-11 | I101: ='April 2017'!$J101 -> 367.02 € | J101: =J100+B101 -> 367.02 € | L101: =IF(C101="x",-B101,0) -> 20.49
A102: Kindergeld | B102: 192.00 € | E102: m | G102: x | H102: 2017-05-11 | I102: ='April 2017'!$J102 -> 559.02 € | J102: =J101+B102 -> 559.02 € | L102: =IF(C102="x",-B102,0) -> 0
A103: Flixbus | B103: -23.47 € | F103: 2017-05-09 | G103: x | H103: 2017-05-11 | I103: ='April 2017'!$J103 -> 535.55 € | J103: =J102+B103 -> 535.55 € | L103: =IF(C103="x",-B103,0) -> 0
A104: Grundsteuer B | B104: -43.45 € | D104: 15.02/15.05/15.08/15.11 | E104: vj | F104: 2017-05-12 | G104: x | H104: 2017-05-12 | I104: ='April 2017'!$J104 -> 492.10 € | J104: =J103+B104 -> 492.10 € | L104: =IF(C104="x",-B104,0) -> 0
A105: Netto | B105: -15.08 € | C105: x | F105: 2017-05-10 | G105: x | H105: 2017-05-12 | I105: ='April 2017'!$J105 -> 477.02 € | J105: =J104+B105 -> 477.02 € | L105: =IF(C105="x",-B105,0) -> 15.08
A106: EC-Card | B106: -30.00 € | F106: 2017-05-11 | G106: x | H106: 2017-05-12 | I106: ='April 2017'!$J106 -> 447.02 € | J106: =J105+B106 -> 447.02 € | L106: =IF(C106="x",-B106,0) -> 0
A107: Lidl | B107: -36.76 € | C107: x | F107: 2017-05-11 | G107: x | H107: 2017-05-12 | I107: ='April 2017'!$J107 -> 410.26 € | J107: =J106+B107 -> 410.26 € | L107: =IF(C107="x",-B107,0) -> 36.76
A108: Jet | B108: -23.76 € | F108: 2017-05-11 | G108: x | H108: 2017-05-12 | I108: ='April 2017'!$J108 -> 386.50 € | J108: =J107+B108 -> 386.50 € | L108: =IF(C108="x",-B108,0) -> 0
A109: Finanzamt | B109: 401.93 € | D109: ???? | G109: x | H109: 2017-05-12 | I109: ='April 2017'!$J109 -> 788.43 € | J109: =J108+B109 -> 788.43 € | L109: =IF(C109="x",-B109,0) -> 0
A110: real | B110: -34.77 € | F110: 2017-05-11 | G110: x | H110: 2017-05-12 | I110: ='April 2017'!$J110 -> 753.66 € | J110: =J109+B110 -> 753.66 € | L110: =IF(C110="x",-B110,0) -> 0
A111: OBI | B111: -32.25 € | F111: 2017-05-11 | G111: x | H111: 2017-05-15 | I111: ='April 2017'!$J111 -> 721.41 € | J111: =J110+B111 -> 721.41 € | L111: =IF(C111="x",-B111,0) -> 0
A112: Vivian | B112: -100.00 € | E112: m | G112: x | H112: 2017-05-15 | I112: ='April 2017'!$J112 -> 621.41 € | J112: =J111+B112 -> 621.41 € | L112: =IF(C112="x",-B112,0) -> 0
A113: DBV Haftpflicht | B113: -6.54 € | E113: m | G113: x | H113: 2017-05-15 | I113: ='April 2017'!$J113 -> 614.87 € | J113: =J112+B113 -> 614.87 € | L113: =IF(C113="x",-B113,0) -> 0
A114: Lidl | B114: -98.83 € | C114: x | D114: 14,99 wegen Rückgabe wiedererhalten | G114: x | H114: 2017-05-15 | I114: ='April 2017'!$J114 -> 516.04 € | J114: =J113+B114 -> 516.04 € | L114: =IF(C114="x",-B114,0) -> 98.83
A115: Rewe | B115: -16.07 € | C115: x | F115: 2017-05-13 | G115: x | H115: 2017-05-15 | I115: ='April 2017'!$J115 -> 499.97 € | J115: =J114+B115 -> 499.97 € | L115: =IF(C115="x",-B115,0) -> 16.07
A116: Haushalt | B116: 0.00 € | I116: ='April 2017'!$J116 -> 499.97 € | J116: =J115+B116 -> 499.97 € | L116: =IF(C116="x",-B116,0) -> 0
I117: ='April 2017'!$J117 -> 499.97 € | J117: =J116+B117 -> 499.97 € | L117: =IF(C117="x",-B117,0) -> 0
I118: ='April 2017'!$J118 -> 499.97 € | J118: =J117+B118 -> 499.97 € | L118: =IF(C118="x",-B118,0) -> 0
I119: ='April 2017'!$J119 -> 499.97 € | J119: =J118+B119 -> 499.97 € | L119: =IF(C119="x",-B119,0) -> 0
I120: ='April 2017'!$J120 -> 499.97 € | J120: =J119+B120 -> 499.97 € | L120: =IF(C120="x",-B120,0) -> 0
I121: ='April 2017'!$J121 -> 499.97 € | J121: =J120+B121 -> 499.97 € | L121: =IF(C121="x",-B121,0) -> 0
J122: =J121+B122 -> 499.97 € | L122: =IF(C122="x",-B122,0) -> 0
J123: =J122+B123 -> 499.97 € | L123: =IF(C123="x",-B123,0) -> 0
J124: =J123+B124 -> 499.97 € | L124: =IF(C124="x",-B124,0) -> 0
J125: =J124+B125 -> 499.97 € | L125: =IF(C125="x",-B125,0) -> 0
J126: =J125+B126 -> 499.97 € | L126: =IF(C126="x",-B126,0) -> 0
J127: =J126+B127 -> 499.97 € | L127: =IF(C127="x",-B127,0) -> 0
J128: =J127+B128 -> 499.97 € | L128: =IF(C128="x",-B128,0) -> 0
J129: =J128+B129 -> 499.97 € | L129: =IF(C129="x",-B129,0) -> 0
J130: =J129+B130 -> 499.97 € | L130: =IF(C130="x",-B130,0) -> 0
J131: =J130+B131 -> 499.97 € | L131: =IF(C131="x",-B131,0) -> 0

Sheet Mai 2017
A1: 2017-05-01
A2: Übertrag aus Vormonat | D2: =LOOKUP(9^99,'April 2017'!I$1:I$65536) -> 499.97 €
A4: WAS? | B4: Wert | C4: Haushalt | D4: Bemerkung | E4: Fälligkeitszeitraum | F4: Wann ausgeführt | G4: Gebucht | H4: Buchungsdatum | I4: Kontostand
A5: Sven Gehalt | B5: 4,392.85 € | E5: m | G5: x | H5: 2017-05-15 | I5: =J5 -> 4,892.82 € | J5: =D2+B5 -> 4,892.82 € | K5: m | L5: =IF(C5="x",-B5,0) -> 0
A6: Teufel | B6: -99.99 € | F6: 2017-05-12 | G6: x | H6: 2017-05-15 | I6: ='Mai 2017'!$J6 -> 4,792.83 € | J6: =J5+B6 -> 4,792.83 € | K6: 2m | L6: =IF(C6="x",-B6,0) -> 0
A7: Autokredit Tilgung | B7: -200.00 € | E7: m | G7: x | H7: 2017-05-15 | I7: ='Mai 2017'!$J7 -> 4,592.83 € | J7: =J6+B7 -> 4,592.83 € | K7: vj | L7: =IF(C7="x",-B7,0) -> 0
A8: SparCard | B8: -600.00 € | D8: 4850.45 | G8: x | H8: 2017-05-15 | I8: ='Mai 2017'!$J8 -> 3,992.83 € | J8: =J7+B8 -> 3,992.83 € | K8: hj | L8: =IF(C8="x",-B8,0) -> 0
A9: Mediamarkt | B9: -14.90 € | F9: 2017-05-12 | G9: x | H9: 2017-05-15 | I9: ='Mai 2017'!$J9 -> 3,977.93 € | J9: =J8+B9 -> 3,977.93 € | K9: j | L9: =IF(C9="x",-B9,0) -> 0
A10: Apotheke | B10: =-23.28-5.52 -> -28.80 € | F10: 2017-05-12 | G10: x | H10: 2017-05-15 | I10: ='Mai 2017'!$J10 -> 3,949.13 € | J10: =J9+B10 -> 3,949.13 € | K10: 2j | L10: =IF(C10="x",-B10,0) -> 0
A11: Office 365 | B11: -62.50 € | D11: Amazon bis 24.5.18 | E11: j | F11: 2017-05-13 | G11: x | H11: 2017-05-15 | I11: ='Mai 2017'!$J11 -> 3,886.63 € | J11: =J10+B11 -> 3,886.63 € | L11: =IF(C11="x",-B11,0) -> 0
A12: Edeka | B12: -13.21 € | C12: x | F12: 2017-05-15 | G12: x | H12: 2017-05-15 | I12: ='Mai 2017'!$J12 -> 3,873.42 € | J12: =J11+B12 -> 3,873.42 € | L12: =IF(C12="x",-B12,0) -> 13.21
A13: Star | B13: -25.67 € | F13: 2017-05-12 | G13: x | H13: 2017-05-15 | I13: ='Mai 2017'!$J13 -> 3,847.75 € | J13: =J12+B13 -> 3,847.75 € | L13: =IF(C13="x",-B13,0) -> 0
A14: EC-Card | B14: -40.00 € | F14: 2017-05-17 | G14: x | H14: 2017-05-17 | I14: ='Mai 2017'!$J14 -> 3,807.75 € | J14: =J13+B14 -> 3,807.75 € | L14: =IF(C14="x",-B14,0) -> 0
A15: ebay | B15: -81.50 € | D15: Rollos | G15: x | H15: 2017-05-17 | I15: ='Mai 2017'!$J15 -> 3,726.25 € | J15: =J14+B15 -> 3,726.25 € | L15: =IF(C15="x",-B15,0) -> 0
A16: Schornsteinfeger | B16: -45.65 € | D16: neuer Preis | E16: 2j | G16: x | H16: 2017-05-18 | I16: ='Mai 2017'!$J16 -> 3,680.60 € | J16: =J15+B16 -> 3,680.60 € | L16: =IF(C16="x",-B16,0) -> 0
A17: GEZ | B17: -52.50 € | E17: vj | G17: x | H17: 2017-05-18 | I17: ='Mai 2017'!$J17 -> 3,628.10 € | J17: =J16+B17 -> 3,628.10 € | L17: =IF(C17="x",-B17,0) -> 0
A18: Fressnapf | B18: -22.55 € | F18: 2017-05-16 | G18: x | H18: 2017-05-18 | I18: ='Mai 2017'!$J18 -> 3,605.55 € | J18: =J17+B18 -> 3,605.55 € | L18: =IF(C18="x",-B18,0) -> 0
A19: Baushaus | B19: -40.19 € | F19: 2017-05-16 | G19: x | H19: 2017-05-18 | I19: ='Mai 2017'!$J19 -> 3,565.36 € | J19: =J18+B19 -> 3,565.36 € | L19: =IF(C19="x",-B19,0) -> 0
A20: Welt digital | B20: -8.38 € | D20: letzte Mal | E20: m | G20: x | H20: 2017-05-18 | I20: ='Mai 2017'!$J20 -> 3,556.98 € | J20: =J19+B20 -> 3,556.98 € | L20: =IF(C20="x",-B20,0) -> 0
A21: Pearl | B21: -23.85 € | D21: Fahrradsensor | F21: 2017-05-15 | G21: x | H21: 2017-05-18 | I21: ='Mai 2017'!$J21 -> 3,533.13 € | J21: =J20+B21 -> 3,533.13 € | L21: =IF(C21="x",-B21,0) -> 0
A22: Total | B22: -22.00 € | F22: 2017-05-17 | G22: x | H22: 2017-05-18 | I22: ='Mai 2017'!$J22 -> 3,511.13 € | J22: =J21+B22 -> 3,511.13 € | L22: =IF(C22="x",-B22,0) -> 0
A23: EWE | B23: 205.54 € | G23: x | H23: 2017-05-18 | I23: ='Mai 2017'!$J23 -> 3,716.67 € | J23: =J22+B23 -> 3,716.67 € | L23: =IF(C23="x",-B23,0) -> 0
A24: Tuxera NTFS | B24: -25.00 € | D24: Paypal | F24: 2017-05-17 | G24: x | H24: 2017-05-19 | I24: ='Mai 2017'!$J24 -> 3,691.67 € | J24: =J23+B24 -> 3,691.67 € | L24: =IF(C24="x",-B24,0) -> 0
A25: Netto | B25: -40.33 € | C25: x | F25: 2017-05-17 | G25: x | H25: 2017-05-19 | I25: ='Mai 2017'!$J25 -> 3,651.34 € | J25: =J24+B25 -> 3,651.34 € | L25: =IF(C25="x",-B25,0) -> 40.33
A26: SparCard | B26: -150.00 € | D26: =D8-'Mai 2017'!$B26 -> 5000.45 | E26: m | G26: x | H26: 2017-05-22 | I26: ='Mai 2017'!$J26 -> 3,501.34 € | J26: =J25+B26 -> 3,501.34 € | L26: =IF(C26="x",-B26,0) -> 0
A27: EMB | B27: -100.00 € | E27: m | G27: x | H27: 2017-05-22 | I27: ='Mai 2017'!$J27 -> 3,401.34 € | J27: =J26+B27 -> 3,401.34 € | L27: =IF(C27="x",-B27,0) -> 0
A28: Paypal | B28: -44.90 € | D28: DAB+ Radio bei Pollin | G28: x | H28: 2017-05-22 | I28: ='Mai 2017'!$J28 -> 3,356.44 € | J28: =J27+B28 -> 3,356.44 € | L28: =IF(C28="x",-B28,0) -> 0
A29: Corinna Handy | B29: -33.96 € | E29: m | G29: x | H29: 2017-05-22 | I29: ='Mai 2017'!$J29 -> 3,322.48 € | J29: =J28+B29 -> 3,322.48 € | L29: =IF(C29="x",-B29,0) -> 0
A30: EC-Card | B30: -30.00 € | F30: 2017-05-19 | G30: x | H30: 2017-05-22 | I30: ='Mai 2017'!$J30 -> 3,292.48 € | J30: =J29+B30 -> 3,292.48 € | L30: =IF(C30="x",-B30,0) -> 0
A31: Lidl | B31: -107.12 € | C31: x | F31: 2017-05-19 | G31: x | H31: 2017-05-22 | I31: ='Mai 2017'!$J31 -> 3,185.36 € | J31: =J30+B31 -> 3,185.36 € | L31: =IF(C31="x",-B31,0) -> 107.12
A32: Karstadt Sport | B32: -107.90 € | F32: 2017-05-20 | G32: x | H32: 2017-05-22 | I32: ='Mai 2017'!$J32 -> 3,077.46 € | J32: =J31+B32 -> 3,077.46 € | L32: =IF(C32="x",-B32,0) -> 0
A33: C&A | B33: -115.40 € | F33: 2017-05-20 | G33: x | H33: 2017-05-22 | I33: ='Mai 2017'!$J33 -> 2,962.06 € | J33: =J32+B33 -> 2,962.06 € | L33: =IF(C33="x",-B33,0) -> 0
A34: real | B34: -25.77 € | C34: x | F34: 2017-05-20 | G34: x | H34: 2017-05-22 | I34: ='Mai 2017'!$J34 -> 2,936.29 € | J34: =J33+B34 -> 2,936.29 € | L34: =IF(C34="x",-B34,0) -> 25.77
A35: Vodafone | B35: -30.59 € | E35: m | G35: x | H35: 2017-05-23 | I35: ='Mai 2017'!$J35 -> 2,905.70 € | J35: =J34+B35 -> 2,905.70 € | L35: =IF(C35="x",-B35,0) -> 0
A36: H&M | B36: -34.97 € | F36: 2017-05-20 | G36: x | H36: 2017-05-23 | I36: ='Mai 2017'!$J36 -> 2,870.73 € | J36: =J35+B36 -> 2,870.73 € | L36: =IF(C36="x",-B36,0) -> 0
A37: Sprint | B37: -15.29 € | F37: 2017-05-23 | G37: x | H37: 2017-05-24 | I37: ='Mai 2017'!$J37 -> 2,855.44 € | J37: =J36+B37 -> 2,855.44 € | L37: =IF(C37="x",-B37,0) -> 0
A38: Gameladen | B38: -23.91 € | D38: Über Paypal / Sniper 3 | F38: 2017-05-22 | G38: x | H38: 2017-05-24 | I38: ='Mai 2017'!$J38 -> 2,831.53 € | J38: =J37+B38 -> 2,831.53 € | L38: =IF(C38="x",-B38,0) -> 0
A39: Amazon | B39: -8.90 € | C39: x | D39: Schwarzer Reis | F39: 2017-05-21 | G39: x | H39: 2017-05-24 | I39: ='Mai 2017'!$J39 -> 2,822.63 € | J39: =J38+B39 -> 2,822.63 € | L39: =IF(C39="x",-B39,0) -> 8.9
A40: Lidl | B40: -50.15 € | C40: x | F40: 2017-05-24 | G40: x | H40: 2017-05-26 | I40: ='Mai 2017'!$J40 -> 2,772.48 € | J40: =J39+B40 -> 2,772.48 € | L40: =IF(C40="x",-B40,0) -> 50.15
A41: EC-Card | B41: -30.00 € | F41: 2017-05-24 | G41: x | H41: 2017-05-26 | I41: ='Mai 2017'!$J41 -> 2,742.48 € | J41: =J40+B41 -> 2,742.48 € | L41: =IF(C41="x",-B41,0) -> 0
A42: Jugendweihe | B42: -100.00 € | F42: 2017-05-26 | G42: x | H42: 2017-05-26 | I42: ='Mai 2017'!$J42 -> 2,642.48 € | J42: =J41+B42 -> 2,642.48 € | L42: =IF(C42="x",-B42,0) -> 0
A43: Corinna Training | B43: -120.00 € | F43: 2017-05-29 | G43: x | H43: 2017-05-29 | I43: ='Mai 2017'!$J43 -> 2,522.48 € | J43: =J42+B43 -> 2,522.48 € | L43: =IF(C43="x",-B43,0) -> 0
A44: EC-Card | B44: -50.00 € | F44: 2017-05-28 | G44: x | H44: 2017-05-29 | I44: ='Mai 2017'!$J44 -> 2,472.48 € | J44: =J43+B44 -> 2,472.48 € | L44: =IF(C44="x",-B44,0) -> 0
A45: Udemy | B45: -30.00 € | D45: Paypal | F45: 2017-05-25 | G45: x | H45: 2017-05-29 | I45: ='Mai 2017'!$J45 -> 2,442.48 € | J45: =J44+B45 -> 2,442.48 € | L45: =IF(C45="x",-B45,0) -> 0
A46: Corinna Gehalt | B46: 1,022.85 € | E46: m | G46: x | H46: 2017-05-29 | I46: ='Mai 2017'!$J46 -> 3,465.33 € | J46: =J45+B46 -> 3,465.33 € | L46: =IF(C46="x",-B46,0) -> 0
A47: Lidl | B47: -50.94 € | C47: x | F47: 2017-05-26 | G47: x | H47: 2017-05-29 | I47: ='Mai 2017'!$J47 -> 3,414.39 € | J47: =J46+B47 -> 3,414.39 € | L47: =IF(C47="x",-B47,0) -> 50.94
A48: real | B48: -19.11 € | C48: x | F48: 2017-05-26 | G48: x | H48: 2017-05-29 | I48: ='Mai 2017'!$J48 -> 3,395.28 € | J48: =J47+B48 -> 3,395.28 € | L48: =IF(C48="x",-B48,0) -> 19.11
A49: Tankstelle Rangsdorf | B49: -38.10 € | F49: 2017-05-26 | G49: x | H49: 2017-05-29 | I49: ='Mai 2017'!$J49 -> 3,357.18 € | J49: =J48+B49 -> 3,357.18 € | L49: =IF(C49="x",-B49,0) -> 0
A50: Russia Markt | B50: -32.10 € | C50: x | F50: 2017-05-26 | G50: x | H50: 2017-05-29 | I50: ='Mai 2017'!$J50 -> 3,325.08 € | J50: =J49+B50 -> 3,325.08 € | L50: =IF(C50="x",-B50,0) -> 32.1
A51: Shell | B51: -31.47 € | F51: 2017-05-28 | G51: x | H51: 2017-05-29 | I51: ='Mai 2017'!$J51 -> 3,293.61 € | J51: =J50+B51 -> 3,293.61 € | L51: =IF(C51="x",-B51,0) -> 0
A52: Amazon | B52: -47.97 € | F52: 2017-05-27 | G52: x | H52: 2017-05-30 | I52: ='Mai 2017'!$J52 -> 3,245.64 € | J52: =J51+B52 -> 3,245.64 € | L52: =IF(C52="x",-B52,0) -> 0
A53: MegaZoo | B53: -17.91 € | F53: 2017-05-26 | G53: x | H53: 2017-05-30 | I53: ='Mai 2017'!$J53 -> 3,227.73 € | J53: =J52+B53 -> 3,227.73 € | L53: =IF(C53="x",-B53,0) -> 0
A54: Hornbach | B54: -20.76 € | F54: 2017-05-26 | G54: x | H54: 2017-05-30 | I54: ='Mai 2017'!$J54 -> 3,206.97 € | J54: =J53+B54 -> 3,206.97 € | L54: =IF(C54="x",-B54,0) -> 0
A55: Go Tankstelle | B55: -40.00 € | F55: 2017-05-26 | G55: x | H55: 2017-05-30 | I55: ='Mai 2017'!$J55 -> 3,166.97 € | J55: =J54+B55 -> 3,166.97 € | L55: =IF(C55="x",-B55,0) -> 0
A56: Paypal | B56: -30.54 € | D56: Flixbus | F56: 2017-05-29 | G56: x | H56: 2017-05-31 | I56: ='Mai 2017'!$J56 -> 3,136.43 € | J56: =J55+B56 -> 3,136.43 € | L56: =IF(C56="x",-B56,0) -> 0
A57: Corinna Bausparer | B57: -20.00 € | E57: m | G57: x | H57: 2017-05-31 | I57: ='Mai 2017'!$J57 -> 3,116.43 € | J57: =J56+B57 -> 3,116.43 € | L57: =IF(C57="x",-B57,0) -> 0
A58: HypoVereinsbank | B58: -909.65 € | E58: m | G58: x | H58: 2017-05-31 | I58: ='Mai 2017'!$J58 -> 2,206.78 € | J58: =J57+B58 -> 2,206.78 € | L58: =IF(C58="x",-B58,0) -> 0
A59: Paypal | B59: -29.90 € | D59: Ebay / Uhrenarmband | F59: 2017-05-30 | G59: x | H59: 2017-05-31 | I59: ='Mai 2017'!$J59 -> 2,176.88 € | J59: =J58+B59 -> 2,176.88 € | L59: =IF(C59="x",-B59,0) -> 0
A60: EC-Card | B60: -30.00 € | F60: 2017-05-31 | G60: x | H60: 2017-05-31 | I60: ='Mai 2017'!$J60 -> 2,146.88 € | J60: =J59+B60 -> 2,146.88 € | L60: =IF(C60="x",-B60,0) -> 0
A61: EWE | B61: -60.00 € | E61: m | G61: x | H61: 2017-06-01 | I61: ='Mai 2017'!$J61 -> 2,086.88 € | J61: =J60+B61 -> 2,086.88 € | L61: =IF(C61="x",-B61,0) -> 0
A62: BVG | B62: -82.67 € | E62: m | G62: x | H62: 2017-06-01 | I62: ='Mai 2017'!$J62 -> 2,004.21 € | J62: =J61+B62 -> 2,004.21 € | L62: =IF(C62="x",-B62,0) -> 0
A63: Autoversicherung Sven | B63: -30.46 € | E63: m | G63: x | H63: 2017-06-01 | I63: ='Mai 2017'!$J63 -> 1,973.75 € | J63: =J62+B63 -> 1,973.75 € | L63: =IF(C63="x",-B63,0) -> 0
A64: Autoversicherung Corinna | B64: -22.31 € | E64: m | G64: x | H64: 2017-06-01 | I64: ='Mai 2017'!$J64 -> 1,951.44 € | J64: =J63+B64 -> 1,951.44 € | L64: =IF(C64="x",-B64,0) -> 0
A65: iMAC | B65: -84.88 € | D65: am 01.06.2018 85,04 | E65: m | G65: x | H65: 2017-06-01 | I65: ='Mai 2017'!$J65 -> 1,866.56 € | J65: =J64+B65 -> 1,866.56 € | L65: =IF(C65="x",-B65,0) -> 0
A66: Laptop | B66: -51.01 € | D66: danach 21 x 51,01 und am 1.8.17 51,08 | E66: m | G66: x | H66: 2017-06-01 | I66: ='Mai 2017'!$J66 -> 1,815.55 € | J66: =J65+B66 -> 1,815.55 € | L66: =IF(C66="x",-B66,0) -> 0
A67: ADAC | B67: -89.50 € | E67: j | G67: x | H67: 2017-06-01 | I67: ='Mai 2017'!$J67 -> 1,726.05 € | J67: =J66+B67 -> 1,726.05 € | L67: =IF(C67="x",-B67,0) -> 0
A68: Edeka | B68: -13.74 € | C68: x | F68: 2017-05-31 | G68: x | H68: 2017-06-01 | I68: ='Mai 2017'!$J68 -> 1,712.31 € | J68: =J67+B68 -> 1,712.31 € | L68: =IF(C68="x",-B68,0) -> 13.74
A69: Tierarzt | B69: -49.30 € | F69: 2017-05-31 | G69: x | H69: 2017-06-01 | I69: ='Mai 2017'!$J69 -> 1,663.01 € | J69: =J68+B69 -> 1,663.01 € | L69: =IF(C69="x",-B69,0) -> 0
A70: Iphone | B70: -42.04 € | D70: am 01.04.2019 42,08 | E70: m | G70: x | H70: 2017-06-01 | I70: ='Mai 2017'!$J70 -> 1,620.97 € | J70: =J69+B70 -> 1,620.97 € | L70: =IF(C70="x",-B70,0) -> 0
A71: Comfort Card | B71: -0.21 € | D71: ??????? | E71: m | G71: x | H71: 2017-06-01 | I71: ='Mai 2017'!$J71 -> 1,620.76 € | J71: =J70+B71 -> 1,620.76 € | L71: =IF(C71="x",-B71,0) -> 0
A72: T-Mobile | B72: -20.37 € | E72: m | G72: x | H72: 2017-06-02 | I72: ='Mai 2017'!$J72 -> 1,600.39 € | J72: =J71+B72 -> 1,600.39 € | L72: =IF(C72="x",-B72,0) -> 0
A73: T-Mobile | B73: -19.95 € | E73: m | G73: x | H73: 2017-06-06 | I73: ='Mai 2017'!$J73 -> 1,580.44 € | J73: =J72+B73 -> 1,580.44 € | L73: =IF(C73="x",-B73,0) -> 0
A74: real | B74: -17.75 € | C74: x | F74: 2017-06-03 | G74: x | H74: 2017-06-06 | I74: ='Mai 2017'!$J74 -> 1,562.69 € | J74: =J73+B74 -> 1,562.69 € | L74: =IF(C74="x",-B74,0) -> 17.75
A75: Pflanzen Kölle | B75: -77.20 € | D75: davon 30 € Auszahlung | F75: 2017-06-03 | G75: x | H75: 2017-06-06 | I75: ='Mai 2017'!$J75 -> 1,485.49 € | J75: =J74+B75 -> 1,485.49 € | L75: =IF(C75="x",-B75,0) -> 0
A76: Lidl | B76: -24.99 € | F76: 2017-06-02 | G76: x | H76: 2017-06-06 | I76: ='Mai 2017'!$J76 -> 1,460.50 € | J76: =J75+B76 -> 1,460.50 € | L76: =IF(C76="x",-B76,0) -> 0
A77: Lidl | B77: -133.82 € | C77: x | F77: 2017-06-02 | G77: x | H77: 2017-06-06 | I77: ='Mai 2017'!$J77 -> 1,326.68 € | J77: =J76+B77 -> 1,326.68 € | L77: =IF(C77="x",-B77,0) -> 133.82
A78: Fressnapf | B78: -13.39 € | C78: x | F78: 2017-06-03 | G78: x | H78: 2017-06-06 | I78: ='Mai 2017'!$J78 -> 1,313.29 € | J78: =J77+B78 -> 1,313.29 € | L78: =IF(C78="x",-B78,0) -> 13.39
A79: Fressnapf | B79: -26.24 € | C79: x | F79: 2017-06-03 | G79: x | H79: 2017-06-06 | I79: ='Mai 2017'!$J79 -> 1,287.05 € | J79: =J78+B79 -> 1,287.05 € | L79: =IF(C79="x",-B79,0) -> 26.24
A80: Paypal | B80: -23.39 € | D80: Witcher 3 komplett | G80: x | H80: 2017-06-06 | I80: ='Mai 2017'!$J80 -> 1,263.66 € | J80: =J79+B80 -> 1,263.66 € | L80: =IF(C80="x",-B80,0) -> 0
A81: Dussmann | B81: -15.94 € | F81: 2017-06-02 | G81: x | H81: 2017-06-06 | I81: ='Mai 2017'!$J81 -> 1,247.72 € | J81: =J80+B81 -> 1,247.72 € | L81: =IF(C81="x",-B81,0) -> 0
A82: Jet | B82: -20.10 € | F82: 2017-06-03 | G82: x | H82: 2017-06-06 | I82: ='Mai 2017'!$J82 -> 1,227.62 € | J82: =J81+B82 -> 1,227.62 € | L82: =IF(C82="x",-B82,0) -> 0
A83: Netto | B83: -7.19 € | C83: x | F83: 2017-06-03 | G83: x | H83: 2017-06-06 | I83: ='Mai 2017'!$J83 -> 1,220.43 € | J83: =J82+B83 -> 1,220.43 € | L83: =IF(C83="x",-B83,0) -> 7.19
A84: Rossmann | B84: -19.28 € | F84: 2017-06-03 | G84: x | H84: 2017-06-06 | I84: ='Mai 2017'!$J84 -> 1,201.15 € | J84: =J83+B84 -> 1,201.15 € | L84: =IF(C84="x",-B84,0) -> 0
A85: Amazon | B85: -4.99 € | F85: 2017-06-04 | G85: x | H85: 2017-06-06 | I85: ='Mai 2017'!$J85 -> 1,196.16 € | J85: =J84+B85 -> 1,196.16 € | L85: =IF(C85="x",-B85,0) -> 0
A86: EC-Card | B86: -30.00 € | F86: 2017-06-07 | G86: x | H86: 2017-06-07 | I86: ='Mai 2017'!$J86 -> 1,166.16 € | J86: =J85+B86 -> 1,166.16 € | L86: =IF(C86="x",-B86,0) -> 0
A87: Contabo | B87: -6.99 € | E87: m | G87: x | H87: 2017-06-07 | I87: ='Mai 2017'!$J87 -> 1,159.17 € | J87: =J86+B87 -> 1,159.17 € | L87: =IF(C87="x",-B87,0) -> 0
A88: Finanzamt | B88: -104.00 € | D88: 10.3/10.6/10.9/10.12 | E88: vj | G88: x | H88: 2017-06-08 | I88: ='Mai 2017'!$J88 -> 1,055.17 € | J88: =J87+B88 -> 1,055.17 € | L88: =IF(C88="x",-B88,0) -> 0
A89: Amazon | B89: -12.99 € | F89: 2017-06-05 | G89: x | H89: 2017-06-08 | I89: ='Mai 2017'!$J89 -> 1,042.18 € | J89: =J88+B89 -> 1,042.18 € | L89: =IF(C89="x",-B89,0) -> 0
A90: DBV Haftpflicht | B90: -6.54 € | E90: m | G90: x | H90: 2017-06-08 | I90: ='Mai 2017'!$J90 -> 1,035.64 € | J90: =J89+B90 -> 1,035.64 € | L90: =IF(C90="x",-B90,0) -> 0
A91: EUROCARD | B91: =-59.94-34-10-3.49-2.29-5.49-10.99-56.9 -> -183.10 € | E91: m | G91: x | H91: 2017-06-09 | I91: ='Mai 2017'!$J91 -> 852.54 € | J91: =J90+B91 -> 852.54 € | L91: =IF(C91="x",-B91,0) -> 0
A92: Kindergeld | B92: 192.00 € | E92: m | G92: x | H92: 2017-06-09 | I92: ='Mai 2017'!$J92 -> 1,044.54 € | J92: =J91+B92 -> 1,044.54 € | L92: =IF(C92="x",-B92,0) -> 0
A93: Total | B93: -26.01 € | F93: 2017-06-08 | G93: x | H93: 2017-06-09 | I93: ='Mai 2017'!$J93 -> 1,018.53 € | J93: =J92+B93 -> 1,018.53 € | L93: =IF(C93="x",-B93,0) -> 0
A94: EC-Card | B94: -50.00 € | F94: 2017-06-09 | G94: x | H94: 2017-06-09 | I94: ='Mai 2017'!$J94 -> 968.53 € | J94: =J93+B94 -> 968.53 € | L94: =IF(C94="x",-B94,0) -> 0
A95: Netto | B95: -13.62 € | C95: x | F95: 2017-06-08 | G95: x | H95: 2017-06-12 | I95: ='Mai 2017'!$J95 -> 954.91 € | J95: =J94+B95 -> 954.91 € | L95: =IF(C95="x",-B95,0) -> 13.62
A96: Kabel Internet | B96: -39.54 € | E96: m | G96: x | H96: 2017-06-12 | I96: ='Mai 2017'!$J96 -> 915.37 € | J96: =J95+B96 -> 915.37 € | L96: =IF(C96="x",-B96,0) -> 0
A97: S-Bahn | B97: -6.80 € | F97: 2017-06-09 | G97: x | H97: 2017-06-12 | I97: ='Mai 2017'!$J97 -> 908.57 € | J97: =J96+B97 -> 908.57 € | L97: =IF(C97="x",-B97,0) -> 0
A98: Kabelanschluss | B98: -30.91 € | E98: m | G98: x | H98: 2017-06-12 | I98: ='Mai 2017'!$J98 -> 877.66 € | J98: =J97+B98 -> 877.66 € | L98: =IF(C98="x",-B98,0) -> 0
A99: Lidl | B99: -78.49 € | C99: x | G99: x | H99: 2017-06-12 | I99: ='Mai 2017'!$J99 -> 799.17 € | J99: =J98+B99 -> 799.17 € | L99: =IF(C99="x",-B99,0) -> 78.49
A100: real | B100: -29.00 € | C100: x | F100: 2017-06-10 | G100: x | H100: 2017-06-12 | I100: ='Mai 2017'!$J100 -> 770.17 € | J100: =J99+B100 -> 770.17 € | L100: =IF(C100="x",-B100,0) -> 29
A101: Schuhcenter | B101: -29.95 € | F101: 2017-06-10 | G101: x | H101: 2017-06-12 | I101: ='Mai 2017'!$J101 -> 740.22 € | J101: =J100+B101 -> 740.22 € | L101: =IF(C101="x",-B101,0) -> 0
A102: Teufel | B102: -119.99 € | F102: 2017-06-09 | G102: x | H102: 2017-06-12 | I102: ='Mai 2017'!$J102 -> 620.23 € | J102: =J101+B102 -> 620.23 € | L102: =IF(C102="x",-B102,0) -> 0
A103: IKEA | B103: -31.90 € | F103: 2017-06-10 | G103: x | H103: 2017-06-13 | I103: ='Mai 2017'!$J103 -> 588.33 € | J103: =J102+B103 -> 588.33 € | L103: =IF(C103="x",-B103,0) -> 0
A104: Thalia | B104: -17.99 € | F104: 2017-06-10 | G104: x | H104: 2017-06-13 | I104: ='Mai 2017'!$J104 -> 570.34 € | J104: =J103+B104 -> 570.34 € | L104: =IF(C104="x",-B104,0) -> 0
A105: MegaZoo | B105: -39.83 € | C105: x | F105: 2017-06-10 | G105: x | H105: 2017-06-13 | I105: ='Mai 2017'!$J105 -> 530.51 € | J105: =J104+B105 -> 530.51 € | L105: =IF(C105="x",-B105,0) -> 39.83
A106: Total | B106: -15.00 € | F106: 2017-06-12 | G106: x | H106: 2017-06-13 | I106: ='Mai 2017'!$J106 -> 515.51 € | J106: =J105+B106 -> 515.51 € | L106: =IF(C106="x",-B106,0) -> 0
A107: Apotheke | B107: -19.74 € | F107: 2017-06-12 | G107: x | H107: 2017-06-14 | I107: ='Mai 2017'!$J107 -> 495.77 € | J107: =J106+B107 -> 495.77 € | L107: =IF(C107="x",-B107,0) -> 0
A108: Dussmann | B108: -19.80 € | F108: 2017-06-12 | G108: x | H108: 2017-06-14 | I108: ='Mai 2017'!$J108 -> 475.97 € | J108: =J107+B108 -> 475.97 € | L108: =IF(C108="x",-B108,0) -> 0
A109: Aldi | B109: -66.79 € | C109: x | F109: 2017-06-13 | G109: x | H109: 2017-06-14 | I109: ='Mai 2017'!$J109 -> 409.18 € | J109: =J108+B109 -> 409.18 € | L109: =IF(C109="x",-B109,0) -> 66.79
A110: Tintenklecks | B110: -14.95 € | F110: 2017-06-13 | G110: x | H110: 2017-06-14 | I110: ='Mai 2017'!$J110 -> 394.23 € | J110: =J109+B110 -> 394.23 € | L110: =IF(C110="x",-B110,0) -> 0
A111: Vivian | B111: -100.00 € | E111: m | G111: x | H111: 2017-06-14 | I111: ='Mai 2017'!$J111 -> 294.23 € | J111: =J110+B111 -> 294.23 € | L111: =IF(C111="x",-B111,0) -> 0
A112: Haushalt | B112: 0.00 € | I112: ='Mai 2017'!$J112 -> 294.23 € | J112: =J111+B112 -> 294.23 € | L112: =IF(C112="x",-B112,0) -> 0
I113: ='Mai 2017'!$J113 -> 294.23 € | J113: =J112+B113 -> 294.23 € | L113: =IF(C113="x",-B113,0) -> 0
I114: ='Mai 2017'!$J114 -> 294.23 € | J114: =J113+B114 -> 294.23 € | L114: =IF(C114="x",-B114,0) -> 0
J115: =J114+B115 -> 294.23 € | L115: =IF(C115="x",-B115,0) -> 0
J116: =J115+B116 -> 294.23 € | L116: =IF(C116="x",-B116,0) -> 0
J117: =J116+B117 -> 294.23 € | L117: =IF(C117="x",-B117,0) -> 0
J118: =J117+B118 -> 294.23 € | L118: =IF(C118="x",-B118,0) -> 0
J119: =J118+B119 -> 294.23 € | L119: =IF(C119="x",-B119,0) -> 0
J120: =J119+B120 -> 294.23 € | L120: =IF(C120="x",-B120,0) -> 0
J121: =J120+B121 -> 294.23 € | L121: =IF(C121="x",-B121,0) -> 0
J122: =J121+B122 -> 294.23 € | L122: =IF(C122="x",-B122,0) -> 0
J123: =J122+B123 -> 294.23 € | L123: =IF(C123="x",-B123,0) -> 0
J124: =J123+B124 -> 294.23 € | L124: =IF(C124="x",-B124,0) -> 0
J125: =J124+B125 -> 294.23 € | L125: =IF(C125="x",-B125,0) -> 0
J126: =J125+B126 -> 294.23 € | L126: =IF(C126="x",-B126,0) -> 0
J127: =J126+B127 -> 294.23 € | L127: =IF(C127="x",-B127,0) -> 0
J128: =J127+B128 -> 294.23 € | L128: =IF(C128="x",-B128,0) -> 0
J129: =J128+B129 -> 294.23 € | L129: =IF(C129="x",-B129,0) -> 0
J130: =J129+B130 -> 294.23 € | L130: =IF(C130="x",-B130,0) -> 0
J131: =J130+B131 -> 294.23 € | L131: =IF(C131="x",-B131,0) -> 0

Sheet Juni 2017
A1: 2017-05-01
A2: Übertrag aus Vormonat | D2: =LOOKUP(9^99,'Mai 2017'!I$1:I$65536) -> 294.23 €
A4: WAS? | B4: Wert | C4: Haushalt | D4: Bemerkung | E4: Fälligkeitszeitraum | F4: Wann ausgeführt | G4: Gebucht | H4: Buchungsdatum | I4: Kontostand
A5: Sven Gehalt | B5: 3,123.01 € | E5: m | G5: x | H5: 2017-06-14 | I5: =J5 -> 3,417.24 € | J5: =D2+B5 -> 3,417.24 € | K5: m | L5: =IF(C5="x",-B5,0) -> 0
A6: Autokredit Tilgung | B6: -200.00 € | E6: m | G6: x | H6: 2017-06-15 | I6: ='Juni 2017'!$J6 -> 3,217.24 € | J6: =J5+B6 -> 3,217.24 € | K6: 2m | L6: =IF(C6="x",-B6,0) -> 0
A7: EC-Card | B7: -40.00 € | F7: 2017-06-14 | G7: x | H7: 2017-06-16 | I7: ='Juni 2017'!$J7 -> 3,177.24 € | J7: =J6+B7 -> 3,177.24 € | K7: vj | L7: =IF(C7="x",-B7,0) -> 0
A8: HDI Gerling | B8: -47.66 € | E8: vj | G8: x | H8: 2017-06-16 | I8: ='Juni 2017'!$J8 -> 3,129.58 € | J8: =J7+B8 -> 3,129.58 € | K8: hj | L8: =IF(C8="x",-B8,0) -> 0
A9: Netto | B9: -37.67 € | C9: x | F9: 2017-06-14 | G9: x | H9: 2017-06-16 | I9: ='Juni 2017'!$J9 -> 3,091.91 € | J9: =J8+B9 -> 3,091.91 € | K9: j | L9: =IF(C9="x",-B9,0) -> 37.67
A10: Pflanzen Kölle | B10: -17.74 € | F10: 2017-06-15 | G10: x | H10: 2017-06-16 | I10: ='Juni 2017'!$J10 -> 3,074.17 € | J10: =J9+B10 -> 3,074.17 € | K10: 2j | L10: =IF(C10="x",-B10,0) -> 0
A11: EC-Card | B11: -50.00 € | F11: 2017-06-16 | G11: x | H11: 2017-06-19 | I11: ='Juni 2017'!$J11 -> 3,024.17 € | J11: =J10+B11 -> 3,024.17 € | L11: =IF(C11="x",-B11,0) -> 0
A12: Lidl | B12: -41.02 € | C12: x | F12: 2017-06-16 | G12: x | H12: 2017-06-19 | I12: ='Juni 2017'!$J12 -> 2,983.15 € | J12: =J11+B12 -> 2,983.15 € | L12: =IF(C12="x",-B12,0) -> 41.02
A13: Total | B13: -25.78 € | F13: 2017-06-17 | G13: x | H13: 2017-06-19 | I13: ='Juni 2017'!$J13 -> 2,957.37 € | J13: =J12+B13 -> 2,957.37 € | L13: =IF(C13="x",-B13,0) -> 0
A14: Total | B14: -26.69 € | F14: 2017-06-17 | G14: x | H14: 2017-06-19 | I14: ='Juni 2017'!$J14 -> 2,930.68 € | J14: =J13+B14 -> 2,930.68 € | L14: =IF(C14="x",-B14,0) -> 0
A15: C&A | B15: -28.95 € | F15: 2017-06-17 | G15: x | H15: 2017-06-19 | I15: ='Juni 2017'!$J15 -> 2,901.73 € | J15: =J14+B15 -> 2,901.73 € | L15: =IF(C15="x",-B15,0) -> 0
A16: Karstadt Sport | B16: -12.99 € | F16: 2017-06-17 | G16: x | H16: 2017-06-19 | I16: ='Juni 2017'!$J16 -> 2,888.74 € | J16: =J15+B16 -> 2,888.74 € | L16: =IF(C16="x",-B16,0) -> 0
A17: Bijou Brigitte | B17: -24.95 € | F17: 2017-06-17 | G17: x | H17: 2017-06-19 | I17: ='Juni 2017'!$J17 -> 2,863.79 € | J17: =J16+B17 -> 2,863.79 € | L17: =IF(C17="x",-B17,0) -> 0
A18: Apotheke | B18: -24.95 € | D18: Aminos | F18: 2017-06-17 | G18: x | H18: 2017-06-19 | I18: ='Juni 2017'!$J18 -> 2,838.84 € | J18: =J17+B18 -> 2,838.84 € | L18: =IF(C18="x",-B18,0) -> 0
A19: New Yorker | B19: -18.85 € | F19: 2017-06-17 | G19: x | H19: 2017-06-19 | I19: ='Juni 2017'!$J19 -> 2,819.99 € | J19: =J18+B19 -> 2,819.99 € | L19: =IF(C19="x",-B19,0) -> 0
A20: Aldi | B20: -62.91 € | C20: x | F20: 2017-06-16 | G20: x | H20: 2017-06-19 | I20: ='Juni 2017'!$J20 -> 2,757.08 € | J20: =J19+B20 -> 2,757.08 € | L20: =IF(C20="x",-B20,0) -> 62.91
A21: Amazon | B21: -6.16 € | D21: Pflanzensamen | F21: 2017-06-14 | G21: x | H21: 2017-06-19 | I21: ='Juni 2017'!$J21 -> 2,750.92 € | J21: =J20+B21 -> 2,750.92 € | L21: =IF(C21="x",-B21,0) -> 0
A22: Amazon | B22: -6.80 € | D22: Pflanzensamen | F22: 2017-06-14 | G22: x | H22: 2017-06-19 | I22: ='Juni 2017'!$J22 -> 2,744.12 € | J22: =J21+B22 -> 2,744.12 € | L22: =IF(C22="x",-B22,0) -> 0
A23: Corinna Handy | B23: -33.96 € | E23: m | G23: x | H23: 2017-06-20 | I23: ='Juni 2017'!$J23 -> 2,710.16 € | J23: =J22+B23 -> 2,710.16 € | L23: =IF(C23="x",-B23,0) -> 0
A24: Amazon | B24: -3.98 € | D24: Pflanzensamen | F24: 2017-06-16 | G24: x | H24: 2017-06-20 | I24: ='Juni 2017'!$J24 -> 2,706.18 € | J24: =J23+B24 -> 2,706.18 € | L24: =IF(C24="x",-B24,0) -> 0
A25: Pearl | B25: -23.85 € | D25: Fahrradsensor | G25: x | H25: 2017-06-20 | I25: ='Juni 2017'!$J25 -> 2,682.33 € | J25: =J24+B25 -> 2,682.33 € | L25: =IF(C25="x",-B25,0) -> 0
A26: Amazon | B26: -1.98 € | D26: Filme ausgeleihen | F26: 2017-06-16 | G26: x | H26: 2017-06-20 | I26: ='Juni 2017'!$J26 -> 2,680.35 € | J26: =J25+B26 -> 2,680.35 € | L26: =IF(C26="x",-B26,0) -> 0
A27: Fressnapf | B27: -34.88 € | C27: x | F27: 2017-06-17 | G27: x | H27: 2017-06-20 | I27: ='Juni 2017'!$J27 -> 2,645.47 € | J27: =J26+B27 -> 2,645.47 € | L27: =IF(C27="x",-B27,0) -> 34.88
A28: Amazon | B28: -3.15 € | D28: Pflanzensamen | F28: 2017-06-16 | G28: x | H28: 2017-06-20 | I28: ='Juni 2017'!$J28 -> 2,642.32 € | J28: =J27+B28 -> 2,642.32 € | L28: =IF(C28="x",-B28,0) -> 0
A29: ebay | B29: -37.00 € | F29: 2017-06-18 | G29: x | H29: 2017-06-20 | I29: ='Juni 2017'!$J29 -> 2,605.32 € | J29: =J28+B29 -> 2,605.32 € | L29: =IF(C29="x",-B29,0) -> 0
A30: EC-Card | B30: -40.00 € | F30: 2017-06-20 | G30: x | H30: 2017-06-20 | I30: ='Juni 2017'!$J30 -> 2,565.32 € | J30: =J29+B30 -> 2,565.32 € | L30: =IF(C30="x",-B30,0) -> 0
A31: SparCard | B31: -150.00 € | D31: ='Mai 2017'!D26-'Juni 2017'!$B31 -> 5150.45 | E31: m | G31: x | H31: 2017-06-21 | I31: ='Juni 2017'!$J31 -> 2,415.32 € | J31: =J30+B31 -> 2,415.32 € | L31: =IF(C31="x",-B31,0) -> 0
A32: EMB | B32: -100.00 € | E32: m | G32: x | H32: 2017-06-21 | I32: ='Juni 2017'!$J32 -> 2,315.32 € | J32: =J31+B32 -> 2,315.32 € | L32: =IF(C32="x",-B32,0) -> 0
A33: Amazon | B33: -5.10 € | D33: Pflanzensamen | F33: 2017-06-19 | G33: x | H33: 2017-06-21 | I33: ='Juni 2017'!$J33 -> 2,310.22 € | J33: =J32+B33 -> 2,310.22 € | L33: =IF(C33="x",-B33,0) -> 0
A34: OBI | B34: -26.33 € | F34: 2017-06-20 | G34: x | H34: 2017-06-22 | I34: ='Juni 2017'!$J34 -> 2,283.89 € | J34: =J33+B34 -> 2,283.89 € | L34: =IF(C34="x",-B34,0) -> 0
A35: Netto | B35: -31.33 € | C35: x | F35: 2017-06-21 | G35: x | H35: 2017-06-23 | I35: ='Juni 2017'!$J35 -> 2,252.56 € | J35: =J34+B35 -> 2,252.56 € | L35: =IF(C35="x",-B35,0) -> 31.33
A36: Total | B36: -20.35 € | F36: 2017-06-22 | G36: x | H36: 2017-06-23 | I36: ='Juni 2017'!$J36 -> 2,232.21 € | J36: =J35+B36 -> 2,232.21 € | L36: =IF(C36="x",-B36,0) -> 0
A37: Vodafone | B37: -12.00 € | E37: m | G37: x | H37: 2017-06-26 | I37: ='Juni 2017'!$J37 -> 2,220.21 € | J37: =J36+B37 -> 2,220.21 € | L37: =IF(C37="x",-B37,0) -> 0
A38: Apotheke | B38: -7.50 € | F38: 2017-06-24 | G38: x | H38: 2017-06-26 | I38: ='Juni 2017'!$J38 -> 2,212.71 € | J38: =J37+B38 -> 2,212.71 € | L38: =IF(C38="x",-B38,0) -> 0
A39: Lidl | B39: -18.47 € | C39: x | F39: 2017-06-23 | G39: x | H39: 2017-06-26 | I39: ='Juni 2017'!$J39 -> 2,194.24 € | J39: =J38+B39 -> 2,194.24 € | L39: =IF(C39="x",-B39,0) -> 18.47
A40: Aldi | B40: -92.48 € | C40: x | F40: 2017-06-23 | G40: x | H40: 2017-06-26 | I40: ='Juni 2017'!$J40 -> 2,101.76 € | J40: =J39+B40 -> 2,101.76 € | L40: =IF(C40="x",-B40,0) -> 92.48
A41: Apotheke | B41: -15.95 € | F41: 2017-06-22 | G41: x | H41: 2017-06-27 | I41: ='Juni 2017'!$J41 -> 2,085.81 € | J41: =J40+B41 -> 2,085.81 € | L41: =IF(C41="x",-B41,0) -> 0
A42: Amazon | B42: -14.95 € | D42: Mosaik Amerika 1 | F42: 2017-06-24 | G42: x | H42: 2017-06-27 | I42: ='Juni 2017'!$J42 -> 2,070.86 € | J42: =J41+B42 -> 2,070.86 € | L42: =IF(C42="x",-B42,0) -> 0
A43: Fressnapf | B43: -22.20 € | C43: x | F43: 2017-06-24 | G43: x | H43: 2017-06-27 | I43: ='Juni 2017'!$J43 -> 2,048.66 € | J43: =J42+B43 -> 2,048.66 € | L43: =IF(C43="x",-B43,0) -> 22.2
A44: Aldi | B44: -23.95 € | C44: x | F44: 2017-06-27 | G44: x | H44: 2017-06-27 | I44: ='Juni 2017'!$J44 -> 2,024.71 € | J44: =J43+B44 -> 2,024.71 € | L44: =IF(C44="x",-B44,0) -> 23.95
A45: Reishunger | B45: -26.08 € | C45: x | D45: über Paypal | F45: 2017-06-24 | G45: x | H45: 2017-06-27 | I45: ='Juni 2017'!$J45 -> 1,998.63 € | J45: =J44+B45 -> 1,998.63 € | L45: =IF(C45="x",-B45,0) -> 26.08
A46: T-Mobile | B46: -20.37 € | E46: m | G46: x | H46: 2017-06-28 | I46: ='Juni 2017'!$J46 -> 1,978.26 € | J46: =J45+B46 -> 1,978.26 € | L46: =IF(C46="x",-B46,0) -> 0
A47: T-Mobile | B47: -19.95 € | E47: m | G47: x | H47: 2017-06-28 | I47: ='Juni 2017'!$J47 -> 1,958.31 € | J47: =J46+B47 -> 1,958.31 € | L47: =IF(C47="x",-B47,0) -> 0
A48: Amazon | B48: -17.90 € | D48: für Rene, Bargeld erhalten | G48: x | H48: 2017-06-28 | I48: ='Juni 2017'!$J48 -> 1,940.41 € | J48: =J47+B48 -> 1,940.41 € | L48: =IF(C48="x",-B48,0) -> 0
A49: Corinna Gehalt | B49: 1,246.59 € | E49: m | G49: x | H49: 2017-06-28 | I49: ='Juni 2017'!$J49 -> 3,187.00 € | J49: =J48+B49 -> 3,187.00 € | L49: =IF(C49="x",-B49,0) -> 0
A50: Netto | B50: -11.75 € | C50: x | F50: 2017-06-27 | G50: x | H50: 2017-06-29 | I50: ='Juni 2017'!$J50 -> 3,175.25 € | J50: =J49+B50 -> 3,175.25 € | L50: =IF(C50="x",-B50,0) -> 11.75
A51: Vivian | B51: -100.00 € | D51: Geburtstag | G51: x | H51: 2017-06-29 | I51: ='Juni 2017'!$J51 -> 3,075.25 € | J51: =J50+B51 -> 3,075.25 € | L51: =IF(C51="x",-B51,0) -> 0
A52: Edeka | B52: -33.01 € | C52: x | F52: 2017-06-28 | G52: x | H52: 2017-06-30 | I52: ='Juni 2017'!$J52 -> 3,042.24 € | J52: =J51+B52 -> 3,042.24 € | L52: =IF(C52="x",-B52,0) -> 33.01
A53: EC-Card | B53: -50.00 € | F53: 2017-06-29 | G53: x | H53: 2017-06-30 | I53: ='Juni 2017'!$J53 -> 2,992.24 € | J53: =J52+B53 -> 2,992.24 € | L53: =IF(C53="x",-B53,0) -> 0
A54: HypoVereinsbank | B54: -909.65 € | E54: m | G54: x | H54: 2017-06-30 | I54: ='Juni 2017'!$J54 -> 2,082.59 € | J54: =J53+B54 -> 2,082.59 € | L54: =IF(C54="x",-B54,0) -> 0
A55: Corinna Bausparer | B55: -20.00 € | E55: m | G55: x | H55: 2017-06-30 | I55: ='Juni 2017'!$J55 -> 2,062.59 € | J55: =J54+B55 -> 2,062.59 € | L55: =IF(C55="x",-B55,0) -> 0
A56: Total | B56: -19.20 € | F56: 2017-06-29 | G56: x | H56: 2017-06-30 | I56: ='Juni 2017'!$J56 -> 2,043.39 € | J56: =J55+B56 -> 2,043.39 € | L56: =IF(C56="x",-B56,0) -> 0
A57: von Sparcard | B57: 300.00 € | F57: 2017-07-01 | G57: x | H57: 2017-07-03 | I57: ='Juni 2017'!$J57 -> 2,343.39 € | J57: =J56+B57 -> 2,343.39 € | L57: =IF(C57="x",-B57,0) -> 0
A58: EWE | B58: -60.00 € | E58: m | G58: x | H58: 2017-06-03 | I58: ='Juni 2017'!$J58 -> 2,283.39 € | J58: =J57+B58 -> 2,283.39 € | L58: =IF(C58="x",-B58,0) -> 0
A59: Flixbus | B59: -26.54 € | D59: Paypal | G59: x | H59: 2017-07-03 | I59: ='Juni 2017'!$J59 -> 2,256.85 € | J59: =J58+B59 -> 2,256.85 € | L59: =IF(C59="x",-B59,0) -> 0
A60: iMAC | B60: -84.88 € | D60: am 01.06.2018 85,04 | E60: m | G60: x | H60: 2017-07-03 | I60: ='Juni 2017'!$J60 -> 2,171.97 € | J60: =J59+B60 -> 2,171.97 € | L60: =IF(C60="x",-B60,0) -> 0
A61: AXA | B61: -40.47 € | E61: vj | G61: x | H61: 2017-07-03 | I61: ='Juni 2017'!$J61 -> 2,131.50 € | J61: =J60+B61 -> 2,131.50 € | L61: =IF(C61="x",-B61,0) -> 0
A62: Laptop | B62: -51.01 € | D62: danach 21 x 51,01 und am 1.8.17 51,08 | E62: m | G62: x | H62: 2017-07-03 | I62: ='Juni 2017'!$J62 -> 2,080.49 € | J62: =J61+B62 -> 2,080.49 € | L62: =IF(C62="x",-B62,0) -> 0
A63: Iphone | B63: -42.04 € | D63: am 01.04.2019 42,08 | E63: m | G63: x | H63: 2017-07-03 | I63: ='Juni 2017'!$J63 -> 2,038.45 € | J63: =J62+B63 -> 2,038.45 € | L63: =IF(C63="x",-B63,0) -> 0
A64: ND | B64: -16.80 € | E64: m | G64: x | H64: 2017-07-03 | I64: ='Juni 2017'!$J64 -> 2,021.65 € | J64: =J63+B64 -> 2,021.65 € | L64: =IF(C64="x",-B64,0) -> 0
A65: BVG | B65: -82.67 € | E65: m | G65: x | H65: 2017-07-03 | I65: ='Juni 2017'!$J65 -> 1,938.98 € | J65: =J64+B65 -> 1,938.98 € | L65: =IF(C65="x",-B65,0) -> 0
A66: Lidl | B66: -11.38 € | C66: x | G66: x | H66: 2017-07-03 | I66: ='Juni 2017'!$J66 -> 1,927.60 € | J66: =J65+B66 -> 1,927.60 € | L66: =IF(C66="x",-B66,0) -> 11.38
A67: Brille | B67: -654.00 € | F67: 2017-07-01 | G67: x | H67: 2017-07-03 | I67: ='Juni 2017'!$J67 -> 1,273.60 € | J67: =J66+B67 -> 1,273.60 € | L67: =IF(C67="x",-B67,0) -> 0
A68: Thalia | B68: -10.00 € | F68: 2017-07-01 | G68: x | H68: 2017-07-03 | I68: ='Juni 2017'!$J68 -> 1,263.60 € | J68: =J67+B68 -> 1,263.60 € | L68: =IF(C68="x",-B68,0) -> 0
A69: Thalia | B69: -19.99 € | F69: 2017-06-30 | G69: x | H69: 2017-07-03 | I69: ='Juni 2017'!$J69 -> 1,243.61 € | J69: =J68+B69 -> 1,243.61 € | L69: =IF(C69="x",-B69,0) -> 0
A70: BurgerBüro | B70: -25.10 € | F70: 2017-07-01 | G70: x | H70: 2017-07-03 | I70: ='Juni 2017'!$J70 -> 1,218.51 € | J70: =J69+B70 -> 1,218.51 € | L70: =IF(C70="x",-B70,0) -> 0
A71: TKMaxx | B71: -20.98 € | F71: 2017-07-01 | G71: x | H71: 2017-07-03 | I71: ='Juni 2017'!$J71 -> 1,197.53 € | J71: =J70+B71 -> 1,197.53 € | L71: =IF(C71="x",-B71,0) -> 0
A72: Aldi | B72: -72.99 € | C72: x | F72: 2017-06-30 | G72: x | H72: 2017-07-03 | I72: ='Juni 2017'!$J72 -> 1,124.54 € | J72: =J71+B72 -> 1,124.54 € | L72: =IF(C72="x",-B72,0) -> 72.99
A73: dm | B73: -16.95 € | F73: 2017-06-30 | G73: x | H73: 2017-07-03 | I73: ='Juni 2017'!$J73 -> 1,107.59 € | J73: =J72+B73 -> 1,107.59 € | L73: =IF(C73="x",-B73,0) -> 0
A74: dm | B74: -10.50 € | F74: 2017-07-01 | G74: x | H74: 2017-07-03 | I74: ='Juni 2017'!$J74 -> 1,097.09 € | J74: =J73+B74 -> 1,097.09 € | L74: =IF(C74="x",-B74,0) -> 0
A75: New Yorker | B75: -9.90 € | F75: 2017-07-01 | G75: x | H75: 2017-07-03 | I75: ='Juni 2017'!$J75 -> 1,087.19 € | J75: =J74+B75 -> 1,087.19 € | L75: =IF(C75="x",-B75,0) -> 0
A76: Autoversicherung Sven | B76: -30.46 € | E76: m | G76: x | H76: 2017-07-03 | I76: ='Juni 2017'!$J76 -> 1,056.73 € | J76: =J75+B76 -> 1,056.73 € | L76: =IF(C76="x",-B76,0) -> 0
A77: Autoversicherung Corinna | B77: -22.31 € | E77: m | G77: x | H77: 2017-07-03 | I77: ='Juni 2017'!$J77 -> 1,034.42 € | J77: =J76+B77 -> 1,034.42 € | L77: =IF(C77="x",-B77,0) -> 0
A78: denns | B78: -16.67 € | C78: x | F78: 2017-07-01 | G78: x | H78: 2017-07-04 | I78: ='Juni 2017'!$J78 -> 1,017.75 € | J78: =J77+B78 -> 1,017.75 € | L78: =IF(C78="x",-B78,0) -> 16.67
A79: Fressnapf | B79: -39.72 € | C79: x | F79: 2017-06-30 | G79: x | H79: 2017-07-04 | I79: ='Juni 2017'!$J79 -> 978.03 € | J79: =J78+B79 -> 978.03 € | L79: =IF(C79="x",-B79,0) -> 39.72
A80: Star Tankstelle | B80: -25.18 € | F80: 2017-07-02 | G80: x | H80: 2017-07-04 | I80: ='Juni 2017'!$J80 -> 952.85 € | J80: =J79+B80 -> 952.85 € | L80: =IF(C80="x",-B80,0) -> 0
A81: EC-Card | B81: -50.00 € | F81: 2017-07-05 | G81: x | H81: 2017-07-05 | I81: ='Juni 2017'!$J81 -> 902.85 € | J81: =J80+B81 -> 902.85 € | L81: =IF(C81="x",-B81,0) -> 0
A82: Total | B82: -19.64 € | F82: 2017-07-05 | G82: x | H82: 2017-07-06 | I82: ='Juni 2017'!$J82 -> 883.21 € | J82: =J81+B82 -> 883.21 € | L82: =IF(C82="x",-B82,0) -> 0
A83: Contabo | B83: -6.99 € | E83: m | G83: x | H83: 2017-07-07 | I83: ='Juni 2017'!$J83 -> 876.22 € | J83: =J82+B83 -> 876.22 € | L83: =IF(C83="x",-B83,0) -> 0
A84: Netto | B84: -25.57 € | C84: x | F84: 2017-07-05 | G84: x | H84: 2017-07-07 | I84: ='Juni 2017'!$J84 -> 850.65 € | J84: =J83+B84 -> 850.65 € | L84: =IF(C84="x",-B84,0) -> 25.57
A85: DBV Haftpflicht | B85: -6.54 € | E85: m | G85: x | H85: 2017-07-10 | I85: ='Juni 2017'!$J85 -> 844.11 € | J85: =J84+B85 -> 844.11 € | L85: =IF(C85="x",-B85,0) -> 0
A86: EC-Card | B86: -80.00 € | D86: 50 Frisör | F86: 2017-07-08 | G86: x | H86: 2017-07-10 | I86: ='Juni 2017'!$J86 -> 764.11 € | J86: =J85+B86 -> 764.11 € | L86: =IF(C86="x",-B86,0) -> 0
A87: MAG | B87: -11.44 € | C87: x | F87: 2017-07-07 | G87: x | H87: 2017-07-10 | I87: ='Juni 2017'!$J87 -> 752.67 € | J87: =J86+B87 -> 752.67 € | L87: =IF(C87="x",-B87,0) -> 11.44
A88: Lidl | B88: -85.86 € | C88: x | F88: 2017-07-07 | G88: x | H88: 2017-07-10 | I88: ='Juni 2017'!$J88 -> 666.81 € | J88: =J87+B88 -> 666.81 € | L88: =IF(C88="x",-B88,0) -> 85.86
A89: Real | B89: -21.67 € | C89: x | F89: 2017-07-08 | G89: x | H89: 2017-07-10 | I89: ='Juni 2017'!$J89 -> 645.14 € | J89: =J88+B89 -> 645.14 € | L89: =IF(C89="x",-B89,0) -> 21.67
A90: Edeka | B90: -19.13 € | C90: x | F90: 2017-07-07 | G90: x | H90: 2017-07-10 | I90: ='Juni 2017'!$J90 -> 626.01 € | J90: =J89+B90 -> 626.01 € | L90: =IF(C90="x",-B90,0) -> 19.13
A91: Dm | B91: -18.85 € | F91: 2017-07-08 | G91: x | H91: 2017-07-10 | I91: ='Juni 2017'!$J91 -> 607.16 € | J91: =J90+B91 -> 607.16 € | L91: =IF(C91="x",-B91,0) -> 0
A92: Amazon | B92: -4.99 € | D92: John Wick 2 | F92: 2017-07-08 | G92: x | H92: 2017-07-11 | I92: ='Juni 2017'!$J92 -> 602.17 € | J92: =J91+B92 -> 602.17 € | L92: =IF(C92="x",-B92,0) -> 0
A93: Amazon | B93: -8.99 € | D93: Mutterboden | F93: 2017-07-08 | G93: x | H93: 2017-07-11 | I93: ='Juni 2017'!$J93 -> 593.18 € | J93: =J92+B93 -> 593.18 € | L93: =IF(C93="x",-B93,0) -> 0
A94: Amazon | B94: -19.00 € | F94: 2017-07-06 | G94: x | H94: 2017-07-11 | I94: ='Juni 2017'!$J94 -> 574.18 € | J94: =J93+B94 -> 574.18 € | L94: =IF(C94="x",-B94,0) -> 0
A95: Star Tankstelle | B95: -21.34 € | F95: 2017-07-07 | G95: x | H95: 2017-07-11 | I95: ='Juni 2017'!$J95 -> 552.84 € | J95: =J94+B95 -> 552.84 € | L95: =IF(C95="x",-B95,0) -> 0
A96: Kindergeld | B96: 192.00 € | E96: m | G96: x | H96: 2017-07-11 | I96: ='Juni 2017'!$J96 -> 744.84 € | J96: =J95+B96 -> 744.84 € | L96: =IF(C96="x",-B96,0) -> 0
A97: EUROCARD | B97: =-59.94-34-10.99-7.99-2.99-29.32-21.99-10.99 -> -178.21 € | E97: m | G97: x | H97: 2017-07-11 | I97: ='Juni 2017'!$J97 -> 566.63 € | J97: =J96+B97 -> 566.63 € | L97: =IF(C97="x",-B97,0) -> 0
A98: Kabel Internet | B98: -39.54 € | E98: m | G98: x | H98: 2017-05-12 | I98: ='Juni 2017'!$J98 -> 527.09 € | J98: =J97+B98 -> 527.09 € | L98: =IF(C98="x",-B98,0) -> 0
A99: Kabelanschluss | B99: -30.91 € | E99: m | G99: x | H99: 2017-05-12 | I99: ='Juni 2017'!$J99 -> 496.18 € | J99: =J98+B99 -> 496.18 € | L99: =IF(C99="x",-B99,0) -> 0
A100: Kaufland | B100: -21.63 € | C100: x | F100: 2017-07-10 | G100: x | H100: 2017-05-12 | I100: ='Juni 2017'!$J100 -> 474.55 € | J100: =J99+B100 -> 474.55 € | L100: =IF(C100="x",-B100,0) -> 21.63
A101: Amazon | B101: -17.98 € | D101: Kopfhörer | F101: 2017-07-09 | G101: x | H101: 2017-05-12 | I101: ='Juni 2017'!$J101 -> 456.57 € | J101: =J100+B101 -> 456.57 € | L101: =IF(C101="x",-B101,0) -> 0
A102: EC-Card | B102: -50.00 € | F102: 2017-07-12 | G102: x | H102: 2017-05-12 | I102: ='Juni 2017'!$J102 -> 406.57 € | J102: =J101+B102 -> 406.57 € | L102: =IF(C102="x",-B102,0) -> 0
A103: Vivian | B103: -100.00 € | E103: m | G103: x | H103: 2017-07-14 | I103: ='Juni 2017'!$J103 -> 306.57 € | J103: =J102+B103 -> 306.57 € | L103: =IF(C103="x",-B103,0) -> 0
I104: ='Juni 2017'!$J104 -> 306.57 € | J104: =J103+B104 -> 306.57 € | L104: =IF(C104="x",-B104,0) -> 0
I105: ='Juni 2017'!$J105 -> 306.57 € | J105: =J104+B105 -> 306.57 € | L105: =IF(C105="x",-B105,0) -> 0
J106: =J105+B106 -> 306.57 € | L106: =IF(C106="x",-B106,0) -> 0
J107: =J106+B107 -> 306.57 € | L107: =IF(C107="x",-B107,0) -> 0
J108: =J107+B108 -> 306.57 € | L108: =IF(C108="x",-B108,0) -> 0
J109: =J108+B109 -> 306.57 € | L109: =IF(C109="x",-B109,0) -> 0
J110: =J109+B110 -> 306.57 € | L110: =IF(C110="x",-B110,0) -> 0
J111: =J110+B111 -> 306.57 € | L111: =IF(C111="x",-B111,0) -> 0
J112: =J111+B112 -> 306.57 € | L112: =IF(C112="x",-B112,0) -> 0
J113: =J112+B113 -> 306.57 € | L113: =IF(C113="x",-B113,0) -> 0
J114: =J113+B114 -> 306.57 € | L114: =IF(C114="x",-B114,0) -> 0
J115: =J114+B115 -> 306.57 € | L115: =IF(C115="x",-B115,0) -> 0
J116: =J115+B116 -> 306.57 € | L116: =IF(C116="x",-B116,0) -> 0
J117: =J116+B117 -> 306.57 € | L117: =IF(C117="x",-B117,0) -> 0
J118: =J117+B118 -> 306.57 € | L118: =IF(C118="x",-B118,0) -> 0
J119: =J118+B119 -> 306.57 € | L119: =IF(C119="x",-B119,0) -> 0
J120: =J119+B120 -> 306.57 € | L120: =IF(C120="x",-B120,0) -> 0
J121: =J120+B121 -> 306.57 € | L121: =IF(C121="x",-B121,0) -> 0
J122: =J121+B122 -> 306.57 € | L122: =IF(C122="x",-B122,0) -> 0
J123: =J122+B123 -> 306.57 € | L123: =IF(C123="x",-B123,0) -> 0
J124: =J123+B124 -> 306.57 € | L124: =IF(C124="x",-B124,0) -> 0
J125: =J124+B125 -> 306.57 € | L125: =IF(C125="x",-B125,0) -> 0
J126: =J125+B126 -> 306.57 € | L126: =IF(C126="x",-B126,0) -> 0
J127: =J126+B127 -> 306.57 € | L127: =IF(C127="x",-B127,0) -> 0
J128: =J127+B128 -> 306.57 € | L128: =IF(C128="x",-B128,0) -> 0
J129: =J128+B129 -> 306.57 € | L129: =IF(C129="x",-B129,0) -> 0
J130: =J129+B130 -> 306.57 € | L130: =IF(C130="x",-B130,0) -> 0
J131: =J130+B131 -> 306.57 € | L131: =IF(C131="x",-B131,0) -> 0

Sheet Juli 2017
A1: 2017-07-01
A2: Übertrag aus Vormonat | D2: =LOOKUP(9^99,'Juni 2017'!I$1:I$65536) -> 306.57 €
A4: WAS? | B4: Wert | C4: Haushalt | D4: Bemerkung | E4: Fälligkeitszeitraum | F4: Wann ausgeführt | G4: Gebucht | H4: Buchungsdatum | I4: Kontostand
A5: Sven Gehalt | B5: 3,123.01 € | E5: m | G5: x | H5: 2017-07-13 | I5: =J5 -> 3,429.58 € | J5: =D2+B5 -> 3,429.58 € | K5: m | L5: =IF(C5="x",-B5,0) -> 0
A6: Optiker Krüger | B6: -200.00 € | D6: Brille Part 1 | F6: 2017-07-13 | G6: x | H6: 2017-07-14 | I6: ='Juli 2017'!$J6 -> 3,229.58 € | J6: =J5+B6 -> 3,229.58 € | K6: 2m | L6: =IF(C6="x",-B6,0) -> 0
A7: Netto | B7: -21.13 € | C7: x | F7: 2017-07-12 | G7: x | H7: 2017-07-14 | I7: ='Juli 2017'!$J7 -> 3,208.45 € | J7: =J6+B7 -> 3,208.45 € | K7: vj | L7: =IF(C7="x",-B7,0) -> 21.13
A8: Sprint | B8: -20.89 € | F8: 2017-07-13 | G8: x | H8: 2017-07-17 | I8: ='Juli 2017'!$J8 -> 3,187.56 € | J8: =J7+B8 -> 3,187.56 € | K8: hj | L8: =IF(C8="x",-B8,0) -> 0
A9: Aldi | B9: -60.91 € | C9: x | F9: 2017-07-14 | G9: x | H9: 2017-07-17 | I9: ='Juli 2017'!$J9 -> 3,126.65 € | J9: =J8+B9 -> 3,126.65 € | K9: j | L9: =IF(C9="x",-B9,0) -> 60.91
A10: Lidl | B10: -33.23 € | C10: x | F10: 2017-07-14 | G10: x | H10: 2017-07-17 | I10: ='Juli 2017'!$J10 -> 3,093.42 € | J10: =J9+B10 -> 3,093.42 € | K10: 2j | L10: =IF(C10="x",-B10,0) -> 33.23
A11: Autokredit Tilgung | B11: -200.00 € | D11: 3735.31 | E11: m | F11: 2017-07-18 | G11: x | H11: 2017-07-18 | I11: ='Juli 2017'!$J11 -> 2,893.42 € | J11: =J10+B11 -> 2,893.42 € | L11: =IF(C11="x",-B11,0) -> 0
A12: EC-Card | B12: -40.00 € | F12: 2017-07-18 | G12: x | H12: 2017-07-18 | I12: ='Juli 2017'!$J12 -> 2,853.42 € | J12: =J11+B12 -> 2,853.42 € | L12: =IF(C12="x",-B12,0) -> 0
A13: Fressnapf | B13: -27.59 € | C13: x | F13: 2017-07-14 | G13: x | H13: 2017-07-18 | I13: ='Juli 2017'!$J13 -> 2,825.83 € | J13: =J12+B13 -> 2,825.83 € | L13: =IF(C13="x",-B13,0) -> 27.59
A14: real | B14: -46.06 € | C14: x | F14: 2017-07-17 | G14: x | H14: 2017-07-18 | I14: ='Juli 2017'!$J14 -> 2,779.77 € | J14: =J13+B14 -> 2,779.77 € | L14: =IF(C14="x",-B14,0) -> 46.06
A15: Sprint | B15: -25.79 € | F15: 2017-07-16 | G15: x | H15: 2017-07-18 | I15: ='Juli 2017'!$J15 -> 2,753.98 € | J15: =J14+B15 -> 2,753.98 € | L15: =IF(C15="x",-B15,0) -> 0
A16: Paypal | B16: -11.27 € | D16: Flixbus | F16: 2017-07-16 | G16: x | H16: 2017-07-18 | I16: ='Juli 2017'!$J16 -> 2,742.71 € | J16: =J15+B16 -> 2,742.71 € | L16: =IF(C16="x",-B16,0) -> 0
A17: Edeka | B17: -28.26 € | C17: x | F17: 2017-07-19 | G17: x | H17: 2017-07-20 | I17: ='Juli 2017'!$J17 -> 2,714.45 € | J17: =J16+B17 -> 2,714.45 € | L17: =IF(C17="x",-B17,0) -> 28.26
A18: Sprint | B18: -27.38 € | C18: x | F18: 2017-07-19 | G18: x | H18: 2017-07-20 | I18: ='Juli 2017'!$J18 -> 2,687.07 € | J18: =J17+B18 -> 2,687.07 € | L18: =IF(C18="x",-B18,0) -> 27.38
A19: Apotheke | B19: -55.15 € | F19: 2017-07-18 | G19: x | H19: 2017-07-20 | I19: ='Juli 2017'!$J19 -> 2,631.92 € | J19: =J18+B19 -> 2,631.92 € | L19: =IF(C19="x",-B19,0) -> 0
A20: SparCard | B20: -150.00 € | D20: 5000.45 | E20: m | G20: x | H20: 2017-07-21 | I20: ='Juli 2017'!$J20 -> 2,481.92 € | J20: =J19+B20 -> 2,481.92 € | L20: =IF(C20="x",-B20,0) -> 0
A21: EMB | B21: -100.00 € | E21: m | G21: x | H21: 2017-07-21 | I21: ='Juli 2017'!$J21 -> 2,381.92 € | J21: =J20+B21 -> 2,381.92 € | L21: =IF(C21="x",-B21,0) -> 0
A22: Corinna Handy | B22: -33.96 € | E22: m | G22: x | H22: 2017-07-24 | I22: ='Juli 2017'!$J22 -> 2,347.96 € | J22: =J21+B22 -> 2,347.96 € | L22: =IF(C22="x",-B22,0) -> 0
A23: Ulli | B23: -11.41 € | C23: x | G23: x | H23: 2017-07-24 | I23: ='Juli 2017'!$J23 -> 2,336.55 € | J23: =J22+B23 -> 2,336.55 € | L23: =IF(C23="x",-B23,0) -> 11.41
A24: Lidl | B24: -88.93 € | C24: x | G24: x | H24: 2017-07-24 | I24: ='Juli 2017'!$J24 -> 2,247.62 € | J24: =J23+B24 -> 2,247.62 € | L24: =IF(C24="x",-B24,0) -> 88.93
A25: EC-Card | B25: -50.00 € | F25: 2017-07-23 | G25: x | H25: 2017-07-24 | I25: ='Juli 2017'!$J25 -> 2,197.62 € | J25: =J24+B25 -> 2,197.62 € | L25: =IF(C25="x",-B25,0) -> 0
A26: Pflanzen Kölle | B26: -34.51 € | F26: 2017-07-21 | G26: x | H26: 2017-07-24 | I26: ='Juli 2017'!$J26 -> 2,163.11 € | J26: =J25+B26 -> 2,163.11 € | L26: =IF(C26="x",-B26,0) -> 0
A27: ebay | B27: -22.90 € | D27: Überweisung M. Heller | F27: 2017-07-24 | G27: x | H27: 2017-07-24 | I27: ='Juli 2017'!$J27 -> 2,140.21 € | J27: =J26+B27 -> 2,140.21 € | L27: =IF(C27="x",-B27,0) -> 0
A28: Amazon | B28: -9.99 € | F28: 2017-07-23 | G28: x | H28: 2017-07-25 | I28: ='Juli 2017'!$J28 -> 2,130.22 € | J28: =J27+B28 -> 2,130.22 € | L28: =IF(C28="x",-B28,0) -> 0
A29: ebay | B29: -4.99 € | G29: x | H29: 2017-07-25 | I29: ='Juli 2017'!$J29 -> 2,125.23 € | J29: =J28+B29 -> 2,125.23 € | L29: =IF(C29="x",-B29,0) -> 0
A30: Fressnapf | B30: -23.42 € | C30: x | G30: x | H30: 2017-07-25 | I30: ='Juli 2017'!$J30 -> 2,101.81 € | J30: =J29+B30 -> 2,101.81 € | L30: =IF(C30="x",-B30,0) -> 23.42
A31: Kaufland | B31: -35.23 € | C31: x | F31: 2017-07-22 | G31: x | H31: 2017-07-25 | I31: ='Juli 2017'!$J31 -> 2,066.58 € | J31: =J30+B31 -> 2,066.58 € | L31: =IF(C31="x",-B31,0) -> 35.23
A32: Jet | B32: -25.98 € | F32: 2017-07-22 | G32: x | H32: 2017-07-25 | I32: ='Juli 2017'!$J32 -> 2,040.60 € | J32: =J31+B32 -> 2,040.60 € | L32: =IF(C32="x",-B32,0) -> 0
A33: Russia | B33: -31.29 € | C33: x | F33: 2017-07-25 | G33: x | H33: 2017-07-26 | I33: ='Juli 2017'!$J33 -> 2,009.31 € | J33: =J32+B33 -> 2,009.31 € | L33: =IF(C33="x",-B33,0) -> 31.29
A34: Amazon | B34: -10.95 € | F34: 2017-07-23 | G34: x | H34: 2017-07-26 | I34: ='Juli 2017'!$J34 -> 1,998.36 € | J34: =J33+B34 -> 1,998.36 € | L34: =IF(C34="x",-B34,0) -> 0
A35: EC-Card | B35: -50.00 € | F35: 2017-07-26 | G35: x | H35: 2017-07-26 | I35: ='Juli 2017'!$J35 -> 1,948.36 € | J35: =J34+B35 -> 1,948.36 € | L35: =IF(C35="x",-B35,0) -> 0
A36: Bauhaus | B36: -15.90 € | F36: 2017-06-25 | G36: x | H36: 2017-07-27 | I36: ='Juli 2017'!$J36 -> 1,932.46 € | J36: =J35+B36 -> 1,932.46 € | L36: =IF(C36="x",-B36,0) -> 0
A37: Tierarzt | B37: -37.24 € | F37: 2017-07-26 | G37: x | H37: 2017-07-27 | I37: ='Juli 2017'!$J37 -> 1,895.22 € | J37: =J36+B37 -> 1,895.22 € | L37: =IF(C37="x",-B37,0) -> 0
A38: Sprint | B38: -20.16 € | F38: 2017-07-26 | G38: x | H38: 2017-07-27 | I38: ='Juli 2017'!$J38 -> 1,875.06 € | J38: =J37+B38 -> 1,875.06 € | L38: =IF(C38="x",-B38,0) -> 0
A39: Corinna Gehalt | B39: 1,156.68 € | E39: m | G39: x | H39: 2017-07-27 | I39: ='Juli 2017'!$J39 -> 3,031.74 € | J39: =J38+B39 -> 3,031.74 € | L39: =IF(C39="x",-B39,0) -> 0
A40: Netto | B40: -31.12 € | C40: x | F40: 2017-07-25 | G40: x | H40: 2017-07-27 | I40: ='Juli 2017'!$J40 -> 3,000.62 € | J40: =J39+B40 -> 3,000.62 € | L40: =IF(C40="x",-B40,0) -> 31.12
A41: Netto | B41: -13.21 € | C41: x | F41: 2017-07-26 | G41: x | H41: 2017-07-28 | I41: ='Juli 2017'!$J41 -> 2,987.41 € | J41: =J40+B41 -> 2,987.41 € | L41: =IF(C41="x",-B41,0) -> 13.21
A42: T-Mobile | B42: -20.37 € | E42: m | G42: x | H42: 2017-07-31 | I42: ='Juli 2017'!$J42 -> 2,967.04 € | J42: =J41+B42 -> 2,967.04 € | L42: =IF(C42="x",-B42,0) -> 0
